Workbook

Sheet Legend
B2: Style legend | H2: Menu
B6: Style | D6: Design | F6: Comment
B8: Header1 | D8: Header1
B10: Header 1A | D10: Header 1A
B12: Header2 | D12: Header2
B14: Header3 | D14: Header3
B16: Header4 | D16: Header4
B18: User_Input_Actual | D18: 100 | F18: A user driven input for actual figures
B20: User_Input_Forecast | D20: 100 | F20: A user driven input for forcast figures
B22: Base_Input | D22: 100 | F22: A model input that should not be changed to protect the integrity of the model
B24: Empty_Cell | F24: A cell that is left intentionally blank to avoid the risk of error
B26: InSheet_calc | D26: 100 | F26: A link within the worksheet or an interim calculation step
B28: OffSheet | D28: 100 | F28: A link to another worksheet to minimise the number of inter-worksheet references
B30: Line_SubTotal | D30: 100 | F30: The sum of elements in the table immediately above
B32: Line_Total | D32: 100 | F32: The sum of elements above, including sub-totals
B34: Unit / Info | D34: AUD millions | F34: Explanatory text showing helpful information or the units/dimensions of the calculations
B36: Line_Summary | D36: 100 | F36: The SUM() of everything in the row
B38: Table_Header | D38: Qtr | F38: Header of a table or of an off-sheet reference
B40: Flag | D40: 1 | F40: Binary flag - set up as a 'Style' and updated with conditional formatting
B42: Check_Cell | D42: 100 | F42: Check figures add up to the correct amount
D44: 100 | F44: AER draft decision
D46: 100 | F46: RRP change
D48: 100 | F48: AER adjustments

Sheet Inflation
A1: United Energy - Connections | G1: AER draft decision | M1: Menu
A2: =RIGHT(CELL("filename", $A$1), LEN(CELL("filename", $A$1)) - SEARCH("]", CELL("filename", $A$1))) -> Inflation | G2: RRP change | L2: Sheet Check | M2: =IF(COUNTIF(C9:M9,"=0")>0,"Check!","OK") -> OK
B4: Output Year | C4: 2021
B6: ="Inflation Rates and Conversion factor to" & " June " &C4 -> Inflation Rates and Conversion factor to June 2021
B7: Financial Year | C7: FY11/12 | D7: FY12/13 | E7: FY13/14 | F7: FY14/15 | G7: FY15/16 | H7: FY16/17 | I7: FY17/18 | J7: FY18/19 | K7: FY19/20 | L7: FY20/21 | M7: FY21/22
B8: Calendar Year | C8: 2011 | D8: =C8+1 -> 2012 | E8: =D8+1 -> 2013 | F8: 2014 | G8: 2015 | H8: 2016 | I8: 2017 | J8: 2018 | K8: 2019 | L8: =K8+1 -> 2020 | M8: 2021
B9: Inflation
B10: ="Converstion Factor to" & " " &$C$4 -> Converstion Factor to 2021 | C10: 1.211002753 | D10: 1.16982596 | E10: 1.146843131 | F10: 1.122582988 | G10: 1.097261568 | H10: 1.080930233 | I10: 1.069981584 | J10: 1.04968383 | K10: 1.028318584 | L10: 1.012195122 | M10: 1
B12: End of Sheet

Sheet Historical Expenditure-Volumes
A1: =Inflation!A1 -> United Energy - Connections | I1: Menu
A2: =RIGHT(CELL("filename", $A$1), LEN(CELL("filename", $A$1)) - SEARCH("]", CELL("filename", $A$1))) -> Historical Expenditure-Volumes
B4: Historical Expenditure by Function Code
C6: $ Nominal
B7: Function Code | C7: Description | D7: 2015/16 | E7: 2016/17 | F7: 2017/18 | G7: 2018/19 | I7: Build Up Method
B8: CBE1 | D8: 1540400.745 | E8: 1835027.085 | F8: 2554261.83 | G8: 2423252.348 | I8: Averaging
B9: CBG1 | D9: 185721.64 | E9: 320771.79 | F9: 282511.88 | G9: 154174.312 | I9: Averaging
B10: CBH1 | D10: 232888.94 | E10: 377952.93 | F10: 602628.37 | G10: 459416.1847 | I10: Bottom Up
B11: CBI1 | D11: 5971251.995 | E11: 5806899.185 | F11: 3751529.92 | G11: 3404485.671 | I11: Averaging
B12: CBK1 | D12: 9998509.495 | E12: 10144764.2 | F12: 7707691.465 | G12: 6604803.137 | I12: Averaging
B13: CBL1 | D13: 2003386.35 | E13: 2272015.605 | F13: 1846471.355 | G13: 1430637.716 | I13: Averaging
B14: CBP1 | D14: 6554977.455 | E14: 5194384.705 | F14: 3505765.425 | G14: 3544299.614 | I14: Averaging
B15: CBS1 | D15: 0 | E15: 0 | F15: 0 | G15: 0 | I15: Averaging
B16: CBE2 | D16: 0 | E16: 0 | F16: 0 | G16: 0 | I16: Averaging
B17: CBG2 | D17: 0 | E17: 0 | F17: 0 | G17: 0 | I17: Averaging
B18: CBH2 | D18: 2534702.73 | E18: 1064694.875 | F18: 488568.46 | G18: 1026270.834 | I18: Bottom Up
B19: CBI2 | D19: 1617582.3 | E19: 303439.01 | F19: 446767.42 | G19: 827746.2047 | I19: Averaging
B20: CBK2 | D20: 2791283.175 | E20: 2168654.68 | F20: 875822.98 | G20: 877899.7766 | I20: Averaging
B21: CBL2 | D21: 0 | E21: 0 | F21: 0 | G21: 0 | I21: Averaging
B22: CBP2 | D22: 0 | E22: 0 | F22: 0 | G22: 0 | I22: Averaging
B23: CBS2 | D23: 0 | E23: 0 | F23: 0 | G23: 0 | I23: Averaging
B24: CDA | D24: 13413943.5 | E24: 12612496.5 | F24: 14966800.5 | G24: 15926986.32 | I24: Averaging
B25: CDP | D25: 0 | E25: 0 | F25: 0 | G25: 0 | I25: Averaging
B26: CHH1 | D26: 1803180.5 | E26: 2501031 | F26: 1928539 | G26: 1660906.615 | I26: Averaging
B27: CHL1 | D27: 2354473 | E27: 1984757 | F27: 1515856 | G27: 1780330.236 | I27: Averaging
B28: CHH2 | D28: 0 | E28: 511421.94 | F28: 680464.775 | G28: 644076.34 | I28: Averaging
B29: CHL2 | D29: 415668.51 | E29: 414284.75 | F29: 414284.75 | G29: 267504.5933 | I29: Averaging
B30: CR1 | D30: 9875765.7 | E30: 11353198.05 | F30: 8870106.015 | G30: 6887068.059 | I30: Bottom Up
B31: CR2 | D31: 3414602.45 | E31: 4748824.325 | F31: 3118855.74 | G31: 1835621.526 | I31: Bottom Up
B32: CS1 | D32: 955612.94 | E32: 611111.205 | F32: 415373.205 | G32: 620869.0575 | I32: Averaging
B33: CS2 | D33: 0 | E33: 0 | F33: 0 | G33: 0 | I33: Averaging
C34: Total | D34: =SUM(D8:D33) -> 65663951.43 | E34: =SUM(E8:E33) -> 64225728.83 | F34: =SUM(F8:F33) -> 53972299.09 | G34: =SUM(G8:G33) -> 50376348.54
B35: Notes
B36: Historical expenditure includes gifted assets
C38: ="$ "&Inflation!$C$4 -> $ 2021
B39: Function Code | C39: Description | D39: 2015/16 | E39: 2016/17 | F39: 2017/18 | G39: 2018/19 | H39: Average
B40: =IF('Historical Expenditure-Volumes'!B8=0," ",'Historical Expenditure-Volumes'!B8) -> CBE1 | C40: =IF('Historical Expenditure-Volumes'!C8=0," ",'Historical Expenditure-Volumes'!C8) ->  | D40: =D8*Inflation!G$10 -> 1690222.536 | E40: =E8*Inflation!H$10 -> 1983536.254 | F40: =F8*Inflation!I$10 -> 2733013.118 | G40: =G8*Inflation!J$10 -> 2543648.807 | H40: =AVERAGE(D40:G40) -> 2237605.179
B41: =IF('Historical Expenditure-Volumes'!B9=0," ",'Historical Expenditure-Volumes'!B9) -> CBG1 | C41: =IF('Historical Expenditure-Volumes'!C9=0," ",'Historical Expenditure-Volumes'!C9) ->  | D41: =D9*Inflation!G$10 -> 203785.2178 | E41: =E9*Inflation!H$10 -> 346731.9256 | F41: =F9*Inflation!I$10 -> 302282.5088 | G41: =G9*Inflation!J$10 -> 161834.2824 | H41: =AVERAGE(D41:G41) -> 253658.4836
B42: =IF('Historical Expenditure-Volumes'!B10=0," ",'Historical Expenditure-Volumes'!B10) -> CBH1 | C42: =IF('Historical Expenditure-Volumes'!C10=0," ",'Historical Expenditure-Volumes'!C10) ->  | D42: =D10*Inflation!G$10 -> 255540.0834 | E42: =E10*Inflation!H$10 -> 408540.7485 | F42: =F10*Inflation!I$10 -> 644801.2578 | G42: =G10*Inflation!J$10 -> 482241.7404 | H42: 447780.9575
B43: =IF('Historical Expenditure-Volumes'!B11=0," ",'Historical Expenditure-Volumes'!B11) -> CBI1 | C43: =IF('Historical Expenditure-Volumes'!C11=0," ",'Historical Expenditure-Volumes'!C11) ->  | D43: =D11*Inflation!G$10 -> 6552025.324 | E43: =E11*Inflation!H$10 -> 6276852.886 | F43: =F11*Inflation!I$10 -> 4014067.925 | G43: =G11*Inflation!J$10 -> 3573633.559 | H43: 5104144.924
B44: =IF('Historical Expenditure-Volumes'!B12=0," ",'Historical Expenditure-Volumes'!B12) -> CBK1 | C44: =IF('Historical Expenditure-Volumes'!C12=0," ",'Historical Expenditure-Volumes'!C12) ->  | D44: =D12*Inflation!G$10 -> 10970980.2 | E44: =E12*Inflation!H$10 -> 10965782.33 | F44: =F12*Inflation!I$10 -> 8247087.921 | G44: =G12*Inflation!J$10 -> 6932955.055 | H44: 9279201.376
B45: =IF('Historical Expenditure-Volumes'!B13=0," ",'Historical Expenditure-Volumes'!B13) -> CBL1 | C45: =IF('Historical Expenditure-Volumes'!C13=0," ",'Historical Expenditure-Volumes'!C13) ->  | D45: =D13*Inflation!G$10 -> 2198238.847 | E45: =E13*Inflation!H$10 -> 2455890.356 | F45: =F13*Inflation!I$10 -> 1975690.345 | G45: =G13*Inflation!J$10 -> 1501717.277 | H45: 2032884.206
B46: =IF('Historical Expenditure-Volumes'!B14=0," ",'Historical Expenditure-Volumes'!B14) -> CBP1 | C46: =IF('Historical Expenditure-Volumes'!C14=0," ",'Historical Expenditure-Volumes'!C14) ->  | D46: =D14*Inflation!G$10 -> 7192524.837 | E46: =E14*Inflation!H$10 -> 5614767.467 | F46: =F14*Inflation!I$10 -> 3751104.442 | G46: =G14*Inflation!J$10 -> 3720393.994 | H46: 5069697.685
B47: =IF('Historical Expenditure-Volumes'!B15=0," ",'Historical Expenditure-Volumes'!B15) -> CBS1 | C47: =IF('Historical Expenditure-Volumes'!C15=0," ",'Historical Expenditure-Volumes'!C15) ->  | D47: =D15*Inflation!G$10 -> 0 | E47: =E15*Inflation!H$10 -> 0 | F47: =F15*Inflation!I$10 -> 0 | G47: =G15*Inflation!J$10 -> 0 | H47: 0
B48: =IF('Historical Expenditure-Volumes'!B16=0," ",'Historical Expenditure-Volumes'!B16) -> CBE2 | C48: =IF('Historical Expenditure-Volumes'!C16=0," ",'Historical Expenditure-Volumes'!C16) ->  | D48: =D16*Inflation!G$10 -> 0 | E48: =E16*Inflation!H$10 -> 0 | F48: =F16*Inflation!I$10 -> 0 | G48: =G16*Inflation!J$10 -> 0 | H48: 0
B49: =IF('Historical Expenditure-Volumes'!B17=0," ",'Historical Expenditure-Volumes'!B17) -> CBG2 | C49: =IF('Historical Expenditure-Volumes'!C17=0," ",'Historical Expenditure-Volumes'!C17) ->  | D49: =D17*Inflation!G$10 -> 0 | E49: =E17*Inflation!H$10 -> 0 | F49: =F17*Inflation!I$10 -> 0 | G49: =G17*Inflation!J$10 -> 0 | H49: 0
B50: =IF('Historical Expenditure-Volumes'!B18=0," ",'Historical Expenditure-Volumes'!B18) -> CBH2 | C50: =IF('Historical Expenditure-Volumes'!C18=0," ",'Historical Expenditure-Volumes'!C18) ->  | D50: =D18*Inflation!G$10 -> 2781231.891 | E50: =E18*Inflation!H$10 -> 1150860.879 | F50: =F18*Inflation!I$10 -> 522759.2546 | G50: =G18*Inflation!J$10 -> 1077259.9 | H50: 1383027.981
B51: =IF('Historical Expenditure-Volumes'!B19=0," ",'Historical Expenditure-Volumes'!B19) -> CBI2 | C51: =IF('Historical Expenditure-Volumes'!C19=0," ",'Historical Expenditure-Volumes'!C19) ->  | D51: =D19*Inflation!G$10 -> 1774910.89 | E51: =E19*Inflation!H$10 -> 327996.3996 | F51: =F19*Inflation!I$10 -> 478032.9116 | G51: =G19*Inflation!J$10 -> 868871.8066 | H51: 862453.002
B52: =IF('Historical Expenditure-Volumes'!B20=0," ",'Historical Expenditure-Volumes'!B20) -> CBK2 | C52: =IF('Historical Expenditure-Volumes'!C20=0," ",'Historical Expenditure-Volumes'!C20) ->  | D52: =D20*Inflation!G$10 -> 3062767.752 | E52: =E20*Inflation!H$10 -> 2344164.408 | F52: =F20*Inflation!I$10 -> 937114.4593 | G52: =G20*Inflation!J$10 -> 921517.2 | H52: 1816390.955
B53: =IF('Historical Expenditure-Volumes'!B21=0," ",'Historical Expenditure-Volumes'!B21) -> CBL2 | C53: =IF('Historical Expenditure-Volumes'!C21=0," ",'Historical Expenditure-Volumes'!C21) ->  | D53: =D21*Inflation!G$10 -> 0 | E53: =E21*Inflation!H$10 -> 0 | F53: =F21*Inflation!I$10 -> 0 | G53: =G21*Inflation!J$10 -> 0 | H53: 0
B54: =IF('Historical Expenditure-Volumes'!B22=0," ",'Historical Expenditure-Volumes'!B22) -> CBP2 | C54: =IF('Historical Expenditure-Volumes'!C22=0," ",'Historical Expenditure-Volumes'!C22) ->  | D54: =D22*Inflation!G$10 -> 0 | E54: =E22*Inflation!H$10 -> 0 | F54: =F22*Inflation!I$10 -> 0 | G54: =G22*Inflation!J$10 -> 0 | H54: 0
B55: =IF('Historical Expenditure-Volumes'!B23=0," ",'Historical Expenditure-Volumes'!B23) -> CBS2 | C55: =IF('Historical Expenditure-Volumes'!C23=0," ",'Historical Expenditure-Volumes'!C23) ->  | D55: =D23*Inflation!G$10 -> 0 | E55: =E23*Inflation!H$10 -> 0 | F55: =F23*Inflation!I$10 -> 0 | G55: =G23*Inflation!J$10 -> 0 | H55: 0
B56: =IF('Historical Expenditure-Volumes'!B24=0," ",'Historical Expenditure-Volumes'!B24) -> CDA | C56: =IF('Historical Expenditure-Volumes'!C24=0," ",'Historical Expenditure-Volumes'!C24) ->  | D56: =D24*Inflation!G$10 -> 14718604.67 | E56: =E24*Inflation!H$10 -> 13633228.77 | F56: =F24*Inflation!I$10 -> 16014200.9 | G56: =G24*Inflation!J$10 -> 16718300 | H56: 15271083.59
B57: =IF('Historical Expenditure-Volumes'!B25=0," ",'Historical Expenditure-Volumes'!B25) -> CDP | C57: =IF('Historical Expenditure-Volumes'!C25=0," ",'Historical Expenditure-Volumes'!C25) ->  | D57: =D25*Inflation!G$10 -> 0 | E57: =E25*Inflation!H$10 -> 0 | F57: =F25*Inflation!I$10 -> 0 | G57: =G25*Inflation!J$10 -> 0 | H57: 0
B58: =IF('Historical Expenditure-Volumes'!B26=0," ",'Historical Expenditure-Volumes'!B26) -> CHH1 | C58: =IF('Historical Expenditure-Volumes'!C26=0," ",'Historical Expenditure-Volumes'!C26) ->  | D58: =D26*Inflation!G$10 -> 1978560.662 | E58: =E26*Inflation!H$10 -> 2703440.02 | F58: =F26*Inflation!I$10 -> 2063501.214 | G58: =G26*Inflation!J$10 -> 1743426.817 | H58: 2122232.178
B59: =IF('Historical Expenditure-Volumes'!B27=0," ",'Historical Expenditure-Volumes'!B27) -> CHL1 | C59: =IF('Historical Expenditure-Volumes'!C27=0," ",'Historical Expenditure-Volumes'!C27) ->  | D59: =D27*Inflation!G$10 -> 2583472.735 | E59: =E27*Inflation!H$10 -> 2145383.846 | F59: =F27*Inflation!I$10 -> 1621938.004 | G59: =G27*Inflation!J$10 -> 1868783.862 | H59: 2054894.611
B60: =IF('Historical Expenditure-Volumes'!B28=0," ",'Historical Expenditure-Volumes'!B28) -> CHH2 | C60: =IF('Historical Expenditure-Volumes'!C28=0," ",'Historical Expenditure-Volumes'!C28) ->  | D60: =D28*Inflation!G$10 -> 0 | E60: =E28*Inflation!H$10 -> 552811.4365 | F60: =F28*Inflation!I$10 -> 728084.7777 | G60: =G28*Inflation!J$10 -> 676076.5195 | H60: 489243.1834
B61: =IF('Historical Expenditure-Volumes'!B29=0," ",'Historical Expenditure-Volumes'!B29) -> CHL2 | C61: =IF('Historical Expenditure-Volumes'!C29=0," ",'Historical Expenditure-Volumes'!C29) ->  | D61: =D29*Inflation!G$10 -> 456097.0808 | E61: =E29*Inflation!H$10 -> 447812.9112 | F61: =F29*Inflation!I$10 -> 443277.0529 | G61: =G29*Inflation!J$10 -> 280795.2461 | H61: 406995.5728
B62: =IF('Historical Expenditure-Volumes'!B30=0," ",'Historical Expenditure-Volumes'!B30) -> CR1 | C62: =IF('Historical Expenditure-Volumes'!C30=0," ",'Historical Expenditure-Volumes'!C30) ->  | D62: =D30*Inflation!G$10 -> 10836298.15 | E62: =E30*Inflation!H$10 -> 12272015 | F62: =F30*Inflation!I$10 -> 9490850.082 | G62: =G30*Inflation!J$10 -> 7229243.978 | H62: 9957101.804
B63: =IF('Historical Expenditure-Volumes'!B31=0," ",'Historical Expenditure-Volumes'!B31) -> CR2 | C63: =IF('Historical Expenditure-Volumes'!C31=0," ",'Historical Expenditure-Volumes'!C31) ->  | D63: =D31*Inflation!G$10 -> 3746712.037 | E63: =E31*Inflation!H$10 -> 5133147.782 | F63: =F31*Inflation!I$10 -> 3337118.204 | G63: =G31*Inflation!J$10 -> 1926822.234 | H63: 3535950.064
B64: =IF('Historical Expenditure-Volumes'!B32=0," ",'Historical Expenditure-Volumes'!B32) -> CS1 | C64: =IF('Historical Expenditure-Volumes'!C32=0," ",'Historical Expenditure-Volumes'!C32) ->  | D64: =D32*Inflation!G$10 -> 1048557.352 | E64: =E32*Inflation!H$10 -> 660568.5769 | F64: =F32*Inflation!I$10 -> 444441.6798 | G64: =G32*Inflation!J$10 -> 651716.2103 | H64: 701320.9549
B65: =IF('Historical Expenditure-Volumes'!B33=0," ",'Historical Expenditure-Volumes'!B33) -> CS2 | C65: =IF('Historical Expenditure-Volumes'!C33=0," ",'Historical Expenditure-Volumes'!C33) ->  | D65: =D33*Inflation!G$10 -> 0 | E65: =E33*Inflation!H$10 -> 0 | F65: =F33*Inflation!I$10 -> 0 | G65: =G33*Inflation!J$10 -> 0 | H65: 0
C66: Total | D66: =SUM(D40:D65) -> 72050530.27 | E66: =SUM(E40:E65) -> 69423532 | F66: =SUM(F40:F65) -> 57749366.06 | G66: =SUM(G40:G65) -> 52879238.49 | H66: =SUM(H40:H65) -> 63025666.71
B69: Historical Volumes by Function Code
C71: Volumes
B72: Function Code | C72: Description | D72: 2015/16 | E72: 2016/17 | F72: 2017/18 | G72: 2018/19 | H72: Average
B73: =IF('Historical Expenditure-Volumes'!B8=0," ",'Historical Expenditure-Volumes'!B8) -> CBE1 | C73: =IF('Historical Expenditure-Volumes'!C8=0," ",'Historical Expenditure-Volumes'!C8) ->  | D73: 327.5099349 | E73: 475.0885247 | F73: 628.1404619 | G73: 578.7430174 | H73: =IFERROR(AVERAGE(D73:G73),0) -> 502.3704847
B74: =IF('Historical Expenditure-Volumes'!B9=0," ",'Historical Expenditure-Volumes'!B9) -> CBG1 | C74: =IF('Historical Expenditure-Volumes'!C9=0," ",'Historical Expenditure-Volumes'!C9) ->  | D74: 19.36660542 | E74: 27.71747801 | F74: 22.38867618 | G74: 16.03273675 | H74: =IFERROR(AVERAGE(D74:G74),0) -> 21.37637409
B75: =IF('Historical Expenditure-Volumes'!B10=0," ",'Historical Expenditure-Volumes'!B10) -> CBH1 | C75: =IF('Historical Expenditure-Volumes'!C10=0," ",'Historical Expenditure-Volumes'!C10) ->  | D75: 26.85844602 | E75: 35.67067224 | F75: 40.56998854 | G75: 39.23277404 | H75: 35.58297021
B76: =IF('Historical Expenditure-Volumes'!B11=0," ",'Historical Expenditure-Volumes'!B11) -> CBI1 | C76: =IF('Historical Expenditure-Volumes'!C11=0," ",'Historical Expenditure-Volumes'!C11) ->  | D76: 252.4097928 | E76: 302.6043235 | F76: 330.1722566 | G76: 306.4706074 | H76: 297.9142451
B77: =IF('Historical Expenditure-Volumes'!B12=0," ",'Historical Expenditure-Volumes'!B12) -> CBK1 | C77: =IF('Historical Expenditure-Volumes'!C12=0," ",'Historical Expenditure-Volumes'!C12) ->  | D77: 554.6572507 | E77: 588.1736019 | F77: 584.7973683 | G77: 568.7549095 | H77: 574.0957826
B78: =IF('Historical Expenditure-Volumes'!B13=0," ",'Historical Expenditure-Volumes'!B13) -> CBL1 | C78: =IF('Historical Expenditure-Volumes'!C13=0," ",'Historical Expenditure-Volumes'!C13) ->  | D78: 398.2963374 | E78: 419.650687 | F78: 363.7671974 | G78: 344.3485833 | H78: 381.5157013
B79: =IF('Historical Expenditure-Volumes'!B14=0," ",'Historical Expenditure-Volumes'!B14) -> CBP1 | C79: =IF('Historical Expenditure-Volumes'!C14=0," ",'Historical Expenditure-Volumes'!C14) ->  | D79: 514.5513176 | E79: 503.7584987 | F79: 460.2969499 | G79: 449.2884927 | H79: 481.9738147
B80: =IF('Historical Expenditure-Volumes'!B15=0," ",'Historical Expenditure-Volumes'!B15) -> CBS1 | C80: =IF('Historical Expenditure-Volumes'!C15=0," ",'Historical Expenditure-Volumes'!C15) ->  | D80: 0 | E80: 0 | F80: 0 | G80: 0 | H80: 0
B81: =IF('Historical Expenditure-Volumes'!B16=0," ",'Historical Expenditure-Volumes'!B16) -> CBE2 | C81: =IF('Historical Expenditure-Volumes'!C16=0," ",'Historical Expenditure-Volumes'!C16) ->  | D81: 0 | E81: 0 | F81: 0 | G81: 0 | H81: 0
B82: =IF('Historical Expenditure-Volumes'!B17=0," ",'Historical Expenditure-Volumes'!B17) -> CBG2 | C82: =IF('Historical Expenditure-Volumes'!C17=0," ",'Historical Expenditure-Volumes'!C17) ->  | D82: 0 | E82: 0 | F82: 0 | G82: 0 | H82: 0
B83: =IF('Historical Expenditure-Volumes'!B18=0," ",'Historical Expenditure-Volumes'!B18) -> CBH2 | C83: =IF('Historical Expenditure-Volumes'!C18=0," ",'Historical Expenditure-Volumes'!C18) ->  | D83: 9.99834543 | E83: 7.168213913 | F83: 5.596084812 | G83: 6.695565735 | H83: 7.364552473
B84: =IF('Historical Expenditure-Volumes'!B19=0," ",'Historical Expenditure-Volumes'!B19) -> CBI2 | C84: =IF('Historical Expenditure-Volumes'!C19=0," ",'Historical Expenditure-Volumes'!C19) ->  | D84: 9.214197864 | E84: 6.860922413 | F84: 2.798042406 | G84: 4.401539155 | H84: 5.818675459
B85: =IF('Historical Expenditure-Volumes'!B20=0," ",'Historical Expenditure-Volumes'!B20) -> CBK2 | C85: =IF('Historical Expenditure-Volumes'!C20=0," ",'Historical Expenditure-Volumes'!C20) ->  | D85: 21.08896268 | E85: 15.42869964 | F85: 6.996732363 | G85: 8.419902848 | H85: 12.98357438
B86: =IF('Historical Expenditure-Volumes'!B21=0," ",'Historical Expenditure-Volumes'!B21) -> CBL2 | C86: =IF('Historical Expenditure-Volumes'!C21=0," ",'Historical Expenditure-Volumes'!C21) ->  | D86: 0 | E86: 0 | F86: 0 | G86: 0 | H86: 0
B87: =IF('Historical Expenditure-Volumes'!B22=0," ",'Historical Expenditure-Volumes'!B22) -> CBP2 | C87: =IF('Historical Expenditure-Volumes'!C22=0," ",'Historical Expenditure-Volumes'!C22) ->  | D87: 0 | E87: 0 | F87: 0 | G87: 0 | H87: 0
B88: =IF('Historical Expenditure-Volumes'!B23=0," ",'Historical Expenditure-Volumes'!B23) -> CBS2 | C88: =IF('Historical Expenditure-Volumes'!C23=0," ",'Historical Expenditure-Volumes'!C23) ->  | D88: 0 | E88: 0 | F88: 0 | G88: 0 | H88: 0
B89: =IF('Historical Expenditure-Volumes'!B24=0," ",'Historical Expenditure-Volumes'!B24) -> CDA | C89: =IF('Historical Expenditure-Volumes'!C24=0," ",'Historical Expenditure-Volumes'!C24) ->  | D89: 8619.5 | E89: 8829.5 | F89: 9554.5 | G89: 9621.5 | H89: 9156.25
B90: =IF('Historical Expenditure-Volumes'!B25=0," ",'Historical Expenditure-Volumes'!B25) -> CDP | C90: =IF('Historical Expenditure-Volumes'!C25=0," ",'Historical Expenditure-Volumes'!C25) ->  | G90: 0 | H90: 0
B91: =IF('Historical Expenditure-Volumes'!B26=0," ",'Historical Expenditure-Volumes'!B26) -> CHH1 | C91: =IF('Historical Expenditure-Volumes'!C26=0," ",'Historical Expenditure-Volumes'!C26) ->  | D91: 423.5 | E91: 462.5 | F91: 392 | G91: 376.375 | H91: 413.59375
B92: =IF('Historical Expenditure-Volumes'!B27=0," ",'Historical Expenditure-Volumes'!B27) -> CHL1 | C92: =IF('Historical Expenditure-Volumes'!C27=0," ",'Historical Expenditure-Volumes'!C27) ->  | D92: 521.5 | E92: 312.5 | F92: 204 | G92: 244.875 | H92: 320.71875
B93: =IF('Historical Expenditure-Volumes'!B28=0," ",'Historical Expenditure-Volumes'!B28) -> CHH2 | C93: =IF('Historical Expenditure-Volumes'!C28=0," ",'Historical Expenditure-Volumes'!C28) ->  | D93: 0 | E93: 66.5 | F93: 82.5 | G93: 36.625 | H93: 46.40625
B94: =IF('Historical Expenditure-Volumes'!B29=0," ",'Historical Expenditure-Volumes'!B29) -> CHL2 | C94: =IF('Historical Expenditure-Volumes'!C29=0," ",'Historical Expenditure-Volumes'!C29) ->  | D94: 45.5 | E94: 0 | F94: 0 | G94: 11.375 | H94: 14.21875
B95: =IF('Historical Expenditure-Volumes'!B30=0," ",'Historical Expenditure-Volumes'!B30) -> CR1 | C95: =IF('Historical Expenditure-Volumes'!C30=0," ",'Historical Expenditure-Volumes'!C30) ->  | D95: 994.2071407 | E95: 1149.691376 | F95: 1291.291691 | G95: 1223.065963 | H95: 1164.564043
B96: =IF('Historical Expenditure-Volumes'!B31=0," ",'Historical Expenditure-Volumes'!B31) -> CR2 | C96: =IF('Historical Expenditure-Volumes'!C31=0," ",'Historical Expenditure-Volumes'!C31) ->  | D96: 24.67390239 | E96: 30.68700197 | F96: 25.18455012 | G96: 22.25396674 | H96: 25.6998553
B97: =IF('Historical Expenditure-Volumes'!B32=0," ",'Historical Expenditure-Volumes'!B32) -> CS1 | C97: =IF('Historical Expenditure-Volumes'!C32=0," ",'Historical Expenditure-Volumes'!C32) ->  | D97: 0.5 | E97: 4 | F97: 7 | G97: 5.375 | H97: 4.21875
B98: =IF('Historical Expenditure-Volumes'!B33=0," ",'Historical Expenditure-Volumes'!B33) -> CS2 | C98: =IF('Historical Expenditure-Volumes'!C33=0," ",'Historical Expenditure-Volumes'!C33) ->  | G98: 0 | H98: 0
C99: Total | D99: =SUM(D73:D98) -> 12763.33223 | E99: =SUM(E73:E98) -> 13237.5 | F99: =SUM(F73:F98) -> 14002 | G99: =SUM(G73:G98) -> 13863.83306 | H99: =SUM(H73:H98) -> 13466.66632
B102: End of Sheet

Sheet Historical Contributions
A1: =Inflation!A1 -> United Energy - Connections | N1: Menu
A2: =RIGHT(CELL("filename", $A$1), LEN(CELL("filename", $A$1)) - SEARCH("]", CELL("filename", $A$1))) -> Historical Contributions | M2: Sheet Check | N2: =IF(SUM(C166:G166)=(SUM(C133:G133)-SUM(C67:G67)+SUM(C34:G34)),"OK","Check!") -> OK
B4: Historical Gifted Assets by Function Code
C6: $ Nominal | J6: ="$ "&Inflation!$C$4 -> $ 2021
B7: Function Code | C7: Description | D7: 2015/16 | E7: 2016/17 | F7: 2017/18 | G7: 2018/19 | I7: Function Code | J7: Description | K7: 2015/16 | L7: 2016/17 | M7: 2017/18 | N7: 2018/19
B8: =IF('Historical Expenditure-Volumes'!B8=0," ",'Historical Expenditure-Volumes'!B8) -> CBE1 | D8: 36006 | E8: 105714 | F8: 228340 | G8: 538021 | I8: =B8 -> CBE1 | K8: =IF(D8<>"",D8*Inflation!G$10,"") -> 39508 | L8: =IF(E8<>"",E8*Inflation!H$10,"") -> 114269.4586 | M8: =IF(F8<>"",F8*Inflation!I$10,"") -> 244319.5948 | N8: =IF(G8<>"",G8*Inflation!J$10,"") -> 564751.944
B9: =IF('Historical Expenditure-Volumes'!B9=0," ",'Historical Expenditure-Volumes'!B9) -> CBG1 | D9: 0 | E9: 0 | F9: 0 | G9: 0 | I9: =B9 -> CBG1 | K9: =IF(D9<>"",D9*Inflation!G$10,"") -> 0 | L9: =IF(E9<>"",E9*Inflation!H$10,"") -> 0 | M9: =IF(F9<>"",F9*Inflation!I$10,"") -> 0 | N9: =IF(G9<>"",G9*Inflation!J$10,"") -> 0
B10: =IF('Historical Expenditure-Volumes'!B10=0," ",'Historical Expenditure-Volumes'!B10) -> CBH1 | D10: 0 | E10: 0 | F10: 205593 | G10: 49520 | I10: CBH1 | K10: =IF(D10<>"",D10*Inflation!G$10,"") -> 0 | L10: =IF(E10<>"",E10*Inflation!H$10,"") -> 0 | M10: =IF(F10<>"",F10*Inflation!I$10,"") -> 219980.7238 | N10: =IF(G10<>"",G10*Inflation!J$10,"") -> 51980.34327
B11: =IF('Historical Expenditure-Volumes'!B11=0," ",'Historical Expenditure-Volumes'!B11) -> CBI1 | D11: 0 | E11: 234190 | F11: 305572 | G11: 189610 | I11: CBI1 | K11: =IF(D11<>"",D11*Inflation!G$10,"") -> 0 | L11: =IF(E11<>"",E11*Inflation!H$10,"") -> 253143.0512 | M11: =IF(F11<>"",F11*Inflation!I$10,"") -> 326956.4125 | N11: =IF(G11<>"",G11*Inflation!J$10,"") -> 199030.551
B12: =IF('Historical Expenditure-Volumes'!B12=0," ",'Historical Expenditure-Volumes'!B12) -> CBK1 | D12: 2086050.78 | E12: 2204124.49 | F12: 1992080.9 | G12: 724175 | I12: CBK1 | K12: =IF(D12<>"",D12*Inflation!G$10,"") -> 2288943.349 | L12: =IF(E12<>"",E12*Inflation!H$10,"") -> 2382504.798 | M12: =IF(F12<>"",F12*Inflation!I$10,"") -> 2131489.876 | N12: =IF(G12<>"",G12*Inflation!J$10,"") -> 760154.7877
B13: =IF('Historical Expenditure-Volumes'!B13=0," ",'Historical Expenditure-Volumes'!B13) -> CBL1 | D13: 0 | E13: 66507 | F13: 399676 | G13: 31292 | I13: CBL1 | K13: =IF(D13<>"",D13*Inflation!G$10,"") -> 0 | L13: =IF(E13<>"",E13*Inflation!H$10,"") -> 71889.42698 | M13: =IF(F13<>"",F13*Inflation!I$10,"") -> 427645.9595 | N13: =IF(G13<>"",G13*Inflation!J$10,"") -> 32846.70641
B14: =IF('Historical Expenditure-Volumes'!B14=0," ",'Historical Expenditure-Volumes'!B14) -> CBP1 | D14: 37593.45 | E14: 211433 | F14: 283926 | G14: 338809 | I14: CBP1 | K14: =IF(D14<>"",D14*Inflation!G$10,"") -> 41249.84788 | L14: =IF(E14<>"",E14*Inflation!H$10,"") -> 228544.3219 | M14: =IF(F14<>"",F14*Inflation!I$10,"") -> 303795.5912 | N14: =IF(G14<>"",G14*Inflation!J$10,"") -> 355642.3288
B15: =IF('Historical Expenditure-Volumes'!B15=0," ",'Historical Expenditure-Volumes'!B15) -> CBS1 | D15: 0 | E15: 0 | F15: 0 | G15: 0 | I15: CBS1 | K15: =IF(D15<>"",D15*Inflation!G$10,"") -> 0 | L15: =IF(E15<>"",E15*Inflation!H$10,"") -> 0 | M15: =IF(F15<>"",F15*Inflation!I$10,"") -> 0 | N15: =IF(G15<>"",G15*Inflation!J$10,"") -> 0
B16: =IF('Historical Expenditure-Volumes'!B16=0," ",'Historical Expenditure-Volumes'!B16) -> CBE2 | D16: 0 | E16: 0 | F16: 0 | G16: 0 | I16: CBE2 | K16: =IF(D16<>"",D16*Inflation!G$10,"") -> 0 | L16: =IF(E16<>"",E16*Inflation!H$10,"") -> 0 | M16: =IF(F16<>"",F16*Inflation!I$10,"") -> 0 | N16: =IF(G16<>"",G16*Inflation!J$10,"") -> 0
B17: =IF('Historical Expenditure-Volumes'!B17=0," ",'Historical Expenditure-Volumes'!B17) -> CBG2 | D17: 0 | E17: 0 | F17: 0 | G17: 0 | I17: CBG2 | K17: =IF(D17<>"",D17*Inflation!G$10,"") -> 0 | L17: =IF(E17<>"",E17*Inflation!H$10,"") -> 0 | M17: =IF(F17<>"",F17*Inflation!I$10,"") -> 0 | N17: =IF(G17<>"",G17*Inflation!J$10,"") -> 0
B18: =IF('Historical Expenditure-Volumes'!B18=0," ",'Historical Expenditure-Volumes'!B18) -> CBH2 | D18: 0 | E18: 0 | F18: 0 | G18: 477466 | I18: CBH2 | K18: =IF(D18<>"",D18*Inflation!G$10,"") -> 0 | L18: =IF(E18<>"",E18*Inflation!H$10,"") -> 0 | M18: =IF(F18<>"",F18*Inflation!I$10,"") -> 0 | N18: =IF(G18<>"",G18*Inflation!J$10,"") -> 501188.3397
B19: =IF('Historical Expenditure-Volumes'!B19=0," ",'Historical Expenditure-Volumes'!B19) -> CBI2 | D19: 0 | E19: 0 | F19: 0 | G19: 0 | I19: CBI2 | K19: =IF(D19<>"",D19*Inflation!G$10,"") -> 0 | L19: =IF(E19<>"",E19*Inflation!H$10,"") -> 0 | M19: =IF(F19<>"",F19*Inflation!I$10,"") -> 0 | N19: =IF(G19<>"",G19*Inflation!J$10,"") -> 0
B20: =IF('Historical Expenditure-Volumes'!B20=0," ",'Historical Expenditure-Volumes'!B20) -> CBK2 | D20: 545076 | E20: 1450163 | F20: 663420 | G20: 0 | I20: CBK2 | K20: =IF(D20<>"",D20*Inflation!G$10,"") -> 598090.9462 | L20: =IF(E20<>"",E20*Inflation!H$10,"") -> 1567525.029 | M20: =IF(F20<>"",F20*Inflation!I$10,"") -> 709847.1823 | N20: =IF(G20<>"",G20*Inflation!J$10,"") -> 0
B21: =IF('Historical Expenditure-Volumes'!B21=0," ",'Historical Expenditure-Volumes'!B21) -> CBL2 | D21: 0 | E21: 0 | F21: 0 | G21: 0 | I21: CBL2 | K21: =IF(D21<>"",D21*Inflation!G$10,"") -> 0 | L21: =IF(E21<>"",E21*Inflation!H$10,"") -> 0 | M21: =IF(F21<>"",F21*Inflation!I$10,"") -> 0 | N21: =IF(G21<>"",G21*Inflation!J$10,"") -> 0
B22: =IF('Historical Expenditure-Volumes'!B22=0," ",'Historical Expenditure-Volumes'!B22) -> CBP2 | D22: 0 | E22: 0 | F22: 0 | G22: 0 | I22: CBP2 | K22: =IF(D22<>"",D22*Inflation!G$10,"") -> 0 | L22: =IF(E22<>"",E22*Inflation!H$10,"") -> 0 | M22: =IF(F22<>"",F22*Inflation!I$10,"") -> 0 | N22: =IF(G22<>"",G22*Inflation!J$10,"") -> 0
B23: =IF('Historical Expenditure-Volumes'!B23=0," ",'Historical Expenditure-Volumes'!B23) -> CBS2 | D23: 0 | E23: 0 | F23: 0 | G23: 0 | I23: CBS2 | K23: =IF(D23<>"",D23*Inflation!G$10,"") -> 0 | L23: =IF(E23<>"",E23*Inflation!H$10,"") -> 0 | M23: =IF(F23<>"",F23*Inflation!I$10,"") -> 0 | N23: =IF(G23<>"",G23*Inflation!J$10,"") -> 0
B24: =IF('Historical Expenditure-Volumes'!B24=0," ",'Historical Expenditure-Volumes'!B24) -> CDA | D24: 0 | E24: 0 | F24: 0 | G24: 0 | I24: CDA | K24: =IF(D24<>"",D24*Inflation!G$10,"") -> 0 | L24: =IF(E24<>"",E24*Inflation!H$10,"") -> 0 | M24: =IF(F24<>"",F24*Inflation!I$10,"") -> 0 | N24: =IF(G24<>"",G24*Inflation!J$10,"") -> 0
B25: =IF('Historical Expenditure-Volumes'!B25=0," ",'Historical Expenditure-Volumes'!B25) -> CDP | D25: 0 | E25: 0 | F25: 0 | G25: 0 | I25: CDP | K25: =IF(D25<>"",D25*Inflation!G$10,"") -> 0 | L25: =IF(E25<>"",E25*Inflation!H$10,"") -> 0 | M25: =IF(F25<>"",F25*Inflation!I$10,"") -> 0 | N25: =IF(G25<>"",G25*Inflation!J$10,"") -> 0
B26: =IF('Historical Expenditure-Volumes'!B26=0," ",'Historical Expenditure-Volumes'!B26) -> CHH1 | D26: 378200.63 | E26: 845867.55 | F26: 2424171.28 | G26: 635146 | I26: CHH1 | K26: =IF(D26<>"",D26*Inflation!G$10,"") -> 414985.0161 | L26: =IF(E26<>"",E26*Inflation!H$10,"") -> 914323.8075 | M26: =IF(F26<>"",F26*Inflation!I$10,"") -> 2593818.626 | N26: =IF(G26<>"",G26*Inflation!J$10,"") -> 666702.486
B27: =IF('Historical Expenditure-Volumes'!B27=0," ",'Historical Expenditure-Volumes'!B27) -> CHL1 | D27: 1493453.84 | E27: 807643.1 | F27: 1528210.98 | G27: 246800 | I27: CHL1 | K27: =IF(D27<>"",D27*Inflation!G$10,"") -> 1638709.501 | L27: =IF(E27<>"",E27*Inflation!H$10,"") -> 873005.8439 | M27: =IF(F27<>"",F27*Inflation!I$10,"") -> 1635157.605 | N27: =IF(G27<>"",G27*Inflation!J$10,"") -> 259061.9693
B28: =IF('Historical Expenditure-Volumes'!B28=0," ",'Historical Expenditure-Volumes'!B28) -> CHH2 | D28: 0 | E28: 0 | F28: 0 | G28: 0 | I28: CHH2 | K28: =IF(D28<>"",D28*Inflation!G$10,"") -> 0 | L28: =IF(E28<>"",E28*Inflation!H$10,"") -> 0 | M28: =IF(F28<>"",F28*Inflation!I$10,"") -> 0 | N28: =IF(G28<>"",G28*Inflation!J$10,"") -> 0
B29: =IF('Historical Expenditure-Volumes'!B29=0," ",'Historical Expenditure-Volumes'!B29) -> CHL2 | D29: 0 | E29: 0 | F29: 0 | G29: 0 | I29: CHL2 | K29: =IF(D29<>"",D29*Inflation!G$10,"") -> 0 | L29: =IF(E29<>"",E29*Inflation!H$10,"") -> 0 | M29: =IF(F29<>"",F29*Inflation!I$10,"") -> 0 | N29: =IF(G29<>"",G29*Inflation!J$10,"") -> 0
B30: =IF('Historical Expenditure-Volumes'!B30=0," ",'Historical Expenditure-Volumes'!B30) -> CR1 | D30: 1345161 | E30: 3237133.81 | F30: 3126803.55 | G30: 372860 | I30: CR1 | K30: =IF(D30<>"",D30*Inflation!G$10,"") -> 1475993.467 | L30: =IF(E30<>"",E30*Inflation!H$10,"") -> 3499115.802 | M30: =IF(F30<>"",F30*Inflation!I$10,"") -> 3345622.215 | N30: =IF(G30<>"",G30*Inflation!J$10,"") -> 391385.1129
B31: =IF('Historical Expenditure-Volumes'!B31=0," ",'Historical Expenditure-Volumes'!B31) -> CR2 | D31: 0 | E31: 1235482 | F31: 975000 | G31: 0 | I31: CR2 | K31: =IF(D31<>"",D31*Inflation!G$10,"") -> 0 | L31: =IF(E31<>"",E31*Inflation!H$10,"") -> 1335469.846 | M31: =IF(F31<>"",F31*Inflation!I$10,"") -> 1043232.044 | N31: =IF(G31<>"",G31*Inflation!J$10,"") -> 0
B32: =IF('Historical Expenditure-Volumes'!B32=0," ",'Historical Expenditure-Volumes'!B32) -> CS1 | D32: 165298 | E32: 22440 | F32: 0 | G32: 0 | I32: CS1 | K32: =IF(D32<>"",D32*Inflation!G$10,"") -> 181375.1426 | L32: =IF(E32<>"",E32*Inflation!H$10,"") -> 24256.07442 | M32: =IF(F32<>"",F32*Inflation!I$10,"") -> 0 | N32: =IF(G32<>"",G32*Inflation!J$10,"") -> 0
B33: =IF('Historical Expenditure-Volumes'!B33=0," ",'Historical Expenditure-Volumes'!B33) -> CS2 | D33: 0 | E33: 0 | F33: 0 | G33: 0 | I33: CS2 | K33: =IF(D33<>"",D33*Inflation!G$10,"") -> 0 | L33: =IF(E33<>"",E33*Inflation!H$10,"") -> 0 | M33: =IF(F33<>"",F33*Inflation!I$10,"") -> 0 | N33: =IF(G33<>"",G33*Inflation!J$10,"") -> 0
B34: Total | D34: =SUM(D8:D33) -> 6086839.7 | E34: =SUM(E8:E33) -> 10420697.95 | F34: =SUM(F8:F33) -> 12132793.71 | G34: =SUM(G8:G33) -> 3603699 | I34: Total | K34: =SUM(K8:K33) -> 6678855.27 | L34: =SUM(L8:L33) -> 11264047.46 | M34: =SUM(M8:M33) -> 12981865.83 | N34: =SUM(N8:N33) -> 3782744.569
B37: Historical Rebates by Function Code
C39: $ Nominal | J39: ="$ "&Inflation!$C$4 -> $ 2021
B40: Function Code | C40: Description | D40: 2015/16 | E40: 2016/17 | F40: 2017/18 | G40: 2018/19 | I40: Function Code | J40: Description | K40: 2015/16 | L40: 2016/17 | M40: 2017/18 | N40: 2018/19
B41: =IF('Historical Expenditure-Volumes'!B8=0," ",'Historical Expenditure-Volumes'!B8) -> CBE1 | D41: 36006 | E41: 61690 | F41: 0 | G41: 167070 | I41: =B41 -> CBE1 | K41: =IF(D41<>"",D41*Inflation!G$10,"") -> 39508 | L41: =IF(E41<>"",E41*Inflation!H$10,"") -> 66682.58605 | M41: =IF(F41<>"",F41*Inflation!I$10,"") -> 0 | N41: =IF(G41<>"",G41*Inflation!J$10,"") -> 175370.6775
B42: =IF('Historical Expenditure-Volumes'!B9=0," ",'Historical Expenditure-Volumes'!B9) -> CBG1 | D42: 0 | E42: 0 | F42: 0 | G42: 0 | I42: =B42 -> CBG1 | K42: =IF(D42<>"",D42*Inflation!G$10,"") -> 0 | L42: =IF(E42<>"",E42*Inflation!H$10,"") -> 0 | M42: =IF(F42<>"",F42*Inflation!I$10,"") -> 0 | N42: =IF(G42<>"",G42*Inflation!J$10,"") -> 0
B43: =IF('Historical Expenditure-Volumes'!B10=0," ",'Historical Expenditure-Volumes'!B10) -> CBH1 | D43: 0 | E43: 0 | F43: 0 | G43: 0 | I43: CBH1 | K43: =IF(D43<>"",D43*Inflation!G$10,"") -> 0 | L43: =IF(E43<>"",E43*Inflation!H$10,"") -> 0 | M43: =IF(F43<>"",F43*Inflation!I$10,"") -> 0 | N43: =IF(G43<>"",G43*Inflation!J$10,"") -> 0
B44: =IF('Historical Expenditure-Volumes'!B11=0," ",'Historical Expenditure-Volumes'!B11) -> CBI1 | D44: 0 | E44: 0 | F44: 45300 | G44: 102130 | I44: CBI1 | K44: =IF(D44<>"",D44*Inflation!G$10,"") -> 0 | L44: =IF(E44<>"",E44*Inflation!H$10,"") -> 0 | M44: =IF(F44<>"",F44*Inflation!I$10,"") -> 48470.16575 | N44: =IF(G44<>"",G44*Inflation!J$10,"") -> 107204.2096
B45: =IF('Historical Expenditure-Volumes'!B12=0," ",'Historical Expenditure-Volumes'!B12) -> CBK1 | D45: 1321631 | E45: 1172028 | F45: 751068.9 | G45: 442311 | I45: CBK1 | K45: =IF(D45<>"",D45*Inflation!G$10,"") -> 1450174.903 | L45: =IF(E45<>"",E45*Inflation!H$10,"") -> 1266880.499 | M45: =IF(F45<>"",F45*Inflation!I$10,"") -> 803629.8912 | N45: =IF(G45<>"",G45*Inflation!J$10,"") -> 464286.7046
B46: =IF('Historical Expenditure-Volumes'!B13=0," ",'Historical Expenditure-Volumes'!B13) -> CBL1 | D46: 0 | E46: 10540 | F46: 223320 | G46: 23710 | I46: CBL1 | K46: =IF(D46<>"",D46*Inflation!G$10,"") -> 0 | L46: =IF(E46<>"",E46*Inflation!H$10,"") -> 11393.00465 | M46: =IF(F46<>"",F46*Inflation!I$10,"") -> 238948.2873 | N46: =IF(G46<>"",G46*Inflation!J$10,"") -> 24888.00361
B47: =IF('Historical Expenditure-Volumes'!B14=0," ",'Historical Expenditure-Volumes'!B14) -> CBP1 | D47: 0 | E47: 93680 | F47: 0 | G47: 338809 | I47: CBP1 | K47: =IF(D47<>"",D47*Inflation!G$10,"") -> 0 | L47: =IF(E47<>"",E47*Inflation!H$10,"") -> 101261.5442 | M47: =IF(F47<>"",F47*Inflation!I$10,"") -> 0 | N47: =IF(G47<>"",G47*Inflation!J$10,"") -> 355642.3288
B48: =IF('Historical Expenditure-Volumes'!B15=0," ",'Historical Expenditure-Volumes'!B15) -> CBS1 | D48: 0 | E48: 0 | F48: 0 | G48: 0 | I48: CBS1 | K48: =IF(D48<>"",D48*Inflation!G$10,"") -> 0 | L48: =IF(E48<>"",E48*Inflation!H$10,"") -> 0 | M48: =IF(F48<>"",F48*Inflation!I$10,"") -> 0 | N48: =IF(G48<>"",G48*Inflation!J$10,"") -> 0
B49: =IF('Historical Expenditure-Volumes'!B16=0," ",'Historical Expenditure-Volumes'!B16) -> CBE2 | D49: 0 | E49: 0 | F49: 0 | G49: 0 | I49: CBE2 | K49: =IF(D49<>"",D49*Inflation!G$10,"") -> 0 | L49: =IF(E49<>"",E49*Inflation!H$10,"") -> 0 | M49: =IF(F49<>"",F49*Inflation!I$10,"") -> 0 | N49: =IF(G49<>"",G49*Inflation!J$10,"") -> 0
B50: =IF('Historical Expenditure-Volumes'!B17=0," ",'Historical Expenditure-Volumes'!B17) -> CBG2 | D50: 0 | E50: 0 | F50: 0 | G50: 0 | I50: CBG2 | K50: =IF(D50<>"",D50*Inflation!G$10,"") -> 0 | L50: =IF(E50<>"",E50*Inflation!H$10,"") -> 0 | M50: =IF(F50<>"",F50*Inflation!I$10,"") -> 0 | N50: =IF(G50<>"",G50*Inflation!J$10,"") -> 0
B51: =IF('Historical Expenditure-Volumes'!B18=0," ",'Historical Expenditure-Volumes'!B18) -> CBH2 | D51: 0 | E51: 0 | F51: 0 | G51: 0 | I51: CBH2 | K51: =IF(D51<>"",D51*Inflation!G$10,"") -> 0 | L51: =IF(E51<>"",E51*Inflation!H$10,"") -> 0 | M51: =IF(F51<>"",F51*Inflation!I$10,"") -> 0 | N51: =IF(G51<>"",G51*Inflation!J$10,"") -> 0
B52: =IF('Historical Expenditure-Volumes'!B19=0," ",'Historical Expenditure-Volumes'!B19) -> CBI2 | D52: 0 | E52: 0 | F52: 0 | G52: 0 | I52: CBI2 | K52: =IF(D52<>"",D52*Inflation!G$10,"") -> 0 | L52: =IF(E52<>"",E52*Inflation!H$10,"") -> 0 | M52: =IF(F52<>"",F52*Inflation!I$10,"") -> 0 | N52: =IF(G52<>"",G52*Inflation!J$10,"") -> 0
B53: =IF('Historical Expenditure-Volumes'!B20=0," ",'Historical Expenditure-Volumes'!B20) -> CBK2 | D53: 545076 | E53: 441827 | F53: 663420 | G53: 0 | I53: CBK2 | K53: =IF(D53<>"",D53*Inflation!G$10,"") -> 598090.9462 | L53: =IF(E53<>"",E53*Inflation!H$10,"") -> 477584.1619 | M53: =IF(F53<>"",F53*Inflation!I$10,"") -> 709847.1823 | N53: =IF(G53<>"",G53*Inflation!J$10,"") -> 0
B54: =IF('Historical Expenditure-Volumes'!B21=0," ",'Historical Expenditure-Volumes'!B21) -> CBL2 | D54: 0 | E54: 0 | F54: 0 | G54: 0 | I54: CBL2 | K54: =IF(D54<>"",D54*Inflation!G$10,"") -> 0 | L54: =IF(E54<>"",E54*Inflation!H$10,"") -> 0 | M54: =IF(F54<>"",F54*Inflation!I$10,"") -> 0 | N54: =IF(G54<>"",G54*Inflation!J$10,"") -> 0
B55: =IF('Historical Expenditure-Volumes'!B22=0," ",'Historical Expenditure-Volumes'!B22) -> CBP2 | D55: 0 | E55: 0 | F55: 0 | G55: 0 | I55: CBP2 | K55: =IF(D55<>"",D55*Inflation!G$10,"") -> 0 | L55: =IF(E55<>"",E55*Inflation!H$10,"") -> 0 | M55: =IF(F55<>"",F55*Inflation!I$10,"") -> 0 | N55: =IF(G55<>"",G55*Inflation!J$10,"") -> 0
B56: =IF('Historical Expenditure-Volumes'!B23=0," ",'Historical Expenditure-Volumes'!B23) -> CBS2 | D56: 0 | E56: 0 | F56: 0 | G56: 0 | I56: CBS2 | K56: =IF(D56<>"",D56*Inflation!G$10,"") -> 0 | L56: =IF(E56<>"",E56*Inflation!H$10,"") -> 0 | M56: =IF(F56<>"",F56*Inflation!I$10,"") -> 0 | N56: =IF(G56<>"",G56*Inflation!J$10,"") -> 0
B57: =IF('Historical Expenditure-Volumes'!B24=0," ",'Historical Expenditure-Volumes'!B24) -> CDA | D57: 0 | E57: 0 | F57: 0 | G57: 0 | I57: CDA | K57: =IF(D57<>"",D57*Inflation!G$10,"") -> 0 | L57: =IF(E57<>"",E57*Inflation!H$10,"") -> 0 | M57: =IF(F57<>"",F57*Inflation!I$10,"") -> 0 | N57: =IF(G57<>"",G57*Inflation!J$10,"") -> 0
B58: =IF('Historical Expenditure-Volumes'!B25=0," ",'Historical Expenditure-Volumes'!B25) -> CDP | D58: 0 | E58: 0 | F58: 0 | G58: 0 | I58: CDP | K58: =IF(D58<>"",D58*Inflation!G$10,"") -> 0 | L58: =IF(E58<>"",E58*Inflation!H$10,"") -> 0 | M58: =IF(F58<>"",F58*Inflation!I$10,"") -> 0 | N58: =IF(G58<>"",G58*Inflation!J$10,"") -> 0
B59: =IF('Historical Expenditure-Volumes'!B26=0," ",'Historical Expenditure-Volumes'!B26) -> CHH1 | D59: 143860.54 | E59: 548004.55 | F59: 934471.28 | G59: 230170 | I59: CHH1 | K59: =IF(D59<>"",D59*Inflation!G$10,"") -> 157852.6416 | L59: =IF(E59<>"",E59*Inflation!H$10,"") -> 592354.6857 | M59: =IF(F59<>"",F59*Inflation!I$10,"") -> 999867.0602 | N59: =IF(G59<>"",G59*Inflation!J$10,"") -> 241605.7272
B60: =IF('Historical Expenditure-Volumes'!B27=0," ",'Historical Expenditure-Volumes'!B27) -> CHL1 | D60: 919817.16 | E60: 40115 | F60: 701178.98 | G60: 0 | I60: CHL1 | K60: =IF(D60<>"",D60*Inflation!G$10,"") -> 1009280.019 | L60: =IF(E60<>"",E60*Inflation!H$10,"") -> 43361.51628 | M60: =IF(F60<>"",F60*Inflation!I$10,"") -> 750248.5955 | N60: =IF(G60<>"",G60*Inflation!J$10,"") -> 0
B61: =IF('Historical Expenditure-Volumes'!B28=0," ",'Historical Expenditure-Volumes'!B28) -> CHH2 | D61: 0 | E61: 0 | F61: 0 | G61: 0 | I61: CHH2 | K61: =IF(D61<>"",D61*Inflation!G$10,"") -> 0 | L61: =IF(E61<>"",E61*Inflation!H$10,"") -> 0 | M61: =IF(F61<>"",F61*Inflation!I$10,"") -> 0 | N61: =IF(G61<>"",G61*Inflation!J$10,"") -> 0
B62: =IF('Historical Expenditure-Volumes'!B29=0," ",'Historical Expenditure-Volumes'!B29) -> CHL2 | D62: 0 | E62: 0 | F62: 0 | G62: 0 | I62: CHL2 | K62: =IF(D62<>"",D62*Inflation!G$10,"") -> 0 | L62: =IF(E62<>"",E62*Inflation!H$10,"") -> 0 | M62: =IF(F62<>"",F62*Inflation!I$10,"") -> 0 | N62: =IF(G62<>"",G62*Inflation!J$10,"") -> 0
B63: =IF('Historical Expenditure-Volumes'!B30=0," ",'Historical Expenditure-Volumes'!B30) -> CR1 | D63: 76095 | E63: 344973.81 | F63: 175659.55 | G63: 18280 | I63: CR1 | K63: =IF(D63<>"",D63*Inflation!G$10,"") -> 83496.11898 | L63: =IF(E63<>"",E63*Inflation!H$10,"") -> 372892.6207 | M63: =IF(F63<>"",F63*Inflation!I$10,"") -> 187952.4835 | N63: =IF(G63<>"",G63*Inflation!J$10,"") -> 19188.22042
B64: =IF('Historical Expenditure-Volumes'!B31=0," ",'Historical Expenditure-Volumes'!B31) -> CR2 | D64: 0 | E64: 0 | F64: 0 | G64: 0 | I64: CR2 | K64: =IF(D64<>"",D64*Inflation!G$10,"") -> 0 | L64: =IF(E64<>"",E64*Inflation!H$10,"") -> 0 | M64: =IF(F64<>"",F64*Inflation!I$10,"") -> 0 | N64: =IF(G64<>"",G64*Inflation!J$10,"") -> 0
B65: =IF('Historical Expenditure-Volumes'!B32=0," ",'Historical Expenditure-Volumes'!B32) -> CS1 | D65: 44798 | E65: 0 | F65: 0 | G65: 0 | I65: CS1 | K65: =IF(D65<>"",D65*Inflation!G$10,"") -> 49155.1237 | L65: =IF(E65<>"",E65*Inflation!H$10,"") -> 0 | M65: =IF(F65<>"",F65*Inflation!I$10,"") -> 0 | N65: =IF(G65<>"",G65*Inflation!J$10,"") -> 0
B66: =IF('Historical Expenditure-Volumes'!B33=0," ",'Historical Expenditure-Volumes'!B33) -> CS2 | D66: 0 | E66: 0 | F66: 0 | G66: 0 | I66: CS2 | K66: =IF(D66<>"",D66*Inflation!G$10,"") -> 0 | L66: =IF(E66<>"",E66*Inflation!H$10,"") -> 0 | M66: =IF(F66<>"",F66*Inflation!I$10,"") -> 0 | N66: =IF(G66<>"",G66*Inflation!J$10,"") -> 0
B67: Total | D67: =SUM(D41:D66) -> 3087283.7 | E67: =SUM(E41:E66) -> 2712858.36 | F67: =SUM(F41:F66) -> 3494418.71 | G67: =SUM(G41:G66) -> 1322480 | I67: Total | K67: =SUM(K41:K66) -> 3387557.752 | L67: =SUM(L41:L66) -> 2932410.618 | M67: =SUM(M41:M66) -> 3738963.666 | N67: =SUM(N41:N66) -> 1388185.872
B70: Historical Cash Contribution Ratios by Function Code
C72: %
B73: Function Code | C73: Description | D73: 2015/16 | E73: 2016/17 | F73: 2017/18 | G73: 2018/19
B74: =IF('Historical Expenditure-Volumes'!B8=0," ",'Historical Expenditure-Volumes'!B8) -> CBE1 | D74: =IF('Historical Expenditure-Volumes'!D8=0,0,D107/'Historical Expenditure-Volumes'!D8) -> 0.1839926004 | E74: =IF('Historical Expenditure-Volumes'!E8=0,0,E107/'Historical Expenditure-Volumes'!E8) -> 0.2612939977 | F74: =IF('Historical Expenditure-Volumes'!F8=0,0,F107/'Historical Expenditure-Volumes'!F8) -> 0.2267794006 | G74: =IF('Historical Expenditure-Volumes'!G8=0,0,G107/'Historical Expenditure-Volumes'!G8) -> 0.2426497421
B75: =IF('Historical Expenditure-Volumes'!B9=0," ",'Historical Expenditure-Volumes'!B9) -> CBG1 | D75: =IF('Historical Expenditure-Volumes'!D9=0,0,D108/'Historical Expenditure-Volumes'!D9) -> 0.2086478444 | E75: =IF('Historical Expenditure-Volumes'!E9=0,0,E108/'Historical Expenditure-Volumes'!E9) -> 0.1753592893 | F75: =IF('Historical Expenditure-Volumes'!F9=0,0,F108/'Historical Expenditure-Volumes'!F9) -> 0.4767030141 | G75: =IF('Historical Expenditure-Volumes'!G9=0,0,G108/'Historical Expenditure-Volumes'!G9) -> 0.6526443401
B76: =IF('Historical Expenditure-Volumes'!B10=0," ",'Historical Expenditure-Volumes'!B10) -> CBH1 | D76: =IF('Historical Expenditure-Volumes'!D10=0,0,D109/'Historical Expenditure-Volumes'!D10) -> 0.3042978992 | E76: =IF('Historical Expenditure-Volumes'!E10=0,0,E109/'Historical Expenditure-Volumes'!E10) -> 0.0966688254 | F76: =IF('Historical Expenditure-Volumes'!F10=0,0,F109/'Historical Expenditure-Volumes'!F10) -> 0.3047429925 | G76: =IF('Historical Expenditure-Volumes'!G10=0,0,G109/'Historical Expenditure-Volumes'!G10) -> 0.9305500801
B77: =IF('Historical Expenditure-Volumes'!B11=0," ",'Historical Expenditure-Volumes'!B11) -> CBI1 | D77: =IF('Historical Expenditure-Volumes'!D11=0,0,D110/'Historical Expenditure-Volumes'!D11) -> 0.1661742578 | E77: =IF('Historical Expenditure-Volumes'!E11=0,0,E110/'Historical Expenditure-Volumes'!E11) -> 0.3468182194 | F77: =IF('Historical Expenditure-Volumes'!F11=0,0,F110/'Historical Expenditure-Volumes'!F11) -> 0.3651941115 | G77: =IF('Historical Expenditure-Volumes'!G11=0,0,G110/'Historical Expenditure-Volumes'!G11) -> 0.5631509703
B78: =IF('Historical Expenditure-Volumes'!B12=0," ",'Historical Expenditure-Volumes'!B12) -> CBK1 | D78: =IF('Historical Expenditure-Volumes'!D12=0,0,D111/'Historical Expenditure-Volumes'!D12) -> 0.0910386146 | E78: =IF('Historical Expenditure-Volumes'!E12=0,0,E111/'Historical Expenditure-Volumes'!E12) -> 0.3031566645 | F78: =IF('Historical Expenditure-Volumes'!F12=0,0,F111/'Historical Expenditure-Volumes'!F12) -> 0.2369708482 | G78: =IF('Historical Expenditure-Volumes'!G12=0,0,G111/'Historical Expenditure-Volumes'!G12) -> 0.5938917754
B79: =IF('Historical Expenditure-Volumes'!B13=0," ",'Historical Expenditure-Volumes'!B13) -> CBL1 | D79: =IF('Historical Expenditure-Volumes'!D13=0,0,D112/'Historical Expenditure-Volumes'!D13) -> 0.1888553125 | E79: =IF('Historical Expenditure-Volumes'!E13=0,0,E112/'Historical Expenditure-Volumes'!E13) -> 0.2646544707 | F79: =IF('Historical Expenditure-Volumes'!F13=0,0,F112/'Historical Expenditure-Volumes'!F13) -> 0.3785901905 | G79: =IF('Historical Expenditure-Volumes'!G13=0,0,G112/'Historical Expenditure-Volumes'!G13) -> 0.514066894
B80: =IF('Historical Expenditure-Volumes'!B14=0," ",'Historical Expenditure-Volumes'!B14) -> CBP1 | D80: =IF('Historical Expenditure-Volumes'!D14=0,0,D113/'Historical Expenditure-Volumes'!D14) -> 0.2090651177 | E80: =IF('Historical Expenditure-Volumes'!E14=0,0,E113/'Historical Expenditure-Volumes'!E14) -> 0.3419684683 | F80: =IF('Historical Expenditure-Volumes'!F14=0,0,F113/'Historical Expenditure-Volumes'!F14) -> 0.3445411179 | G80: =IF('Historical Expenditure-Volumes'!G14=0,0,G113/'Historical Expenditure-Volumes'!G14) -> 0.5382623922
B81: =IF('Historical Expenditure-Volumes'!B15=0," ",'Historical Expenditure-Volumes'!B15) -> CBS1 | D81: =IF('Historical Expenditure-Volumes'!D15=0,0,D114/'Historical Expenditure-Volumes'!D15) -> 0 | E81: =IF('Historical Expenditure-Volumes'!E15=0,0,E114/'Historical Expenditure-Volumes'!E15) -> 0 | F81: =IF('Historical Expenditure-Volumes'!F15=0,0,F114/'Historical Expenditure-Volumes'!F15) -> 0 | G81: =IF('Historical Expenditure-Volumes'!G15=0,0,G114/'Historical Expenditure-Volumes'!G15) -> 0
B82: =IF('Historical Expenditure-Volumes'!B16=0," ",'Historical Expenditure-Volumes'!B16) -> CBE2 | D82: =IF('Historical Expenditure-Volumes'!D16=0,0,D115/'Historical Expenditure-Volumes'!D16) -> 0 | E82: =IF('Historical Expenditure-Volumes'!E16=0,0,E115/'Historical Expenditure-Volumes'!E16) -> 0 | F82: =IF('Historical Expenditure-Volumes'!F16=0,0,F115/'Historical Expenditure-Volumes'!F16) -> 0 | G82: =IF('Historical Expenditure-Volumes'!G16=0,0,G115/'Historical Expenditure-Volumes'!G16) -> 0
B83: =IF('Historical Expenditure-Volumes'!B17=0," ",'Historical Expenditure-Volumes'!B17) -> CBG2 | D83: =IF('Historical Expenditure-Volumes'!D17=0,0,D116/'Historical Expenditure-Volumes'!D17) -> 0 | E83: =IF('Historical Expenditure-Volumes'!E17=0,0,E116/'Historical Expenditure-Volumes'!E17) -> 0 | F83: =IF('Historical Expenditure-Volumes'!F17=0,0,F116/'Historical Expenditure-Volumes'!F17) -> 0 | G83: =IF('Historical Expenditure-Volumes'!G17=0,0,G116/'Historical Expenditure-Volumes'!G17) -> 0
B84: =IF('Historical Expenditure-Volumes'!B18=0," ",'Historical Expenditure-Volumes'!B18) -> CBH2 | D84: =IF('Historical Expenditure-Volumes'!D18=0,0,D117/'Historical Expenditure-Volumes'!D18) -> 0.247738006 | E84: =IF('Historical Expenditure-Volumes'!E18=0,0,E117/'Historical Expenditure-Volumes'!E18) -> 0.5172963108 | F84: =IF('Historical Expenditure-Volumes'!F18=0,0,F117/'Historical Expenditure-Volumes'!F18) -> 0.09684546818 | G84: =IF('Historical Expenditure-Volumes'!G18=0,0,G117/'Historical Expenditure-Volumes'!G18) -> 0.2310516973
B85: =IF('Historical Expenditure-Volumes'!B19=0," ",'Historical Expenditure-Volumes'!B19) -> CBI2 | D85: =IF('Historical Expenditure-Volumes'!D19=0,0,D118/'Historical Expenditure-Volumes'!D19) -> 0.3512406661 | E85: =IF('Historical Expenditure-Volumes'!E19=0,0,E118/'Historical Expenditure-Volumes'!E19) -> 0.2318154117 | F85: =IF('Historical Expenditure-Volumes'!F19=0,0,F118/'Historical Expenditure-Volumes'!F19) -> 0.103283113 | G85: =IF('Historical Expenditure-Volumes'!G19=0,0,G118/'Historical Expenditure-Volumes'!G19) -> 0.3623629491
B86: =IF('Historical Expenditure-Volumes'!B20=0," ",'Historical Expenditure-Volumes'!B20) -> CBK2 | D86: =IF('Historical Expenditure-Volumes'!D20=0,0,D119/'Historical Expenditure-Volumes'!D20) -> 0.521468669 | E86: =IF('Historical Expenditure-Volumes'!E20=0,0,E119/'Historical Expenditure-Volumes'!E20) -> 0.2984948977 | F86: =IF('Historical Expenditure-Volumes'!F20=0,0,F119/'Historical Expenditure-Volumes'!F20) -> 1.517825639 | G86: =IF('Historical Expenditure-Volumes'!G20=0,0,G119/'Historical Expenditure-Volumes'!G20) -> 0.1451978536
B87: =IF('Historical Expenditure-Volumes'!B21=0," ",'Historical Expenditure-Volumes'!B21) -> CBL2 | D87: =IF('Historical Expenditure-Volumes'!D21=0,0,D120/'Historical Expenditure-Volumes'!D21) -> 0 | E87: =IF('Historical Expenditure-Volumes'!E21=0,0,E120/'Historical Expenditure-Volumes'!E21) -> 0 | F87: =IF('Historical Expenditure-Volumes'!F21=0,0,F120/'Historical Expenditure-Volumes'!F21) -> 0 | G87: =IF('Historical Expenditure-Volumes'!G21=0,0,G120/'Historical Expenditure-Volumes'!G21) -> 0
B88: =IF('Historical Expenditure-Volumes'!B22=0," ",'Historical Expenditure-Volumes'!B22) -> CBP2 | D88: =IF('Historical Expenditure-Volumes'!D22=0,0,D121/'Historical Expenditure-Volumes'!D22) -> 0 | E88: =IF('Historical Expenditure-Volumes'!E22=0,0,E121/'Historical Expenditure-Volumes'!E22) -> 0 | F88: =IF('Historical Expenditure-Volumes'!F22=0,0,F121/'Historical Expenditure-Volumes'!F22) -> 0 | G88: =IF('Historical Expenditure-Volumes'!G22=0,0,G121/'Historical Expenditure-Volumes'!G22) -> 0
B89: =IF('Historical Expenditure-Volumes'!B23=0," ",'Historical Expenditure-Volumes'!B23) -> CBS2 | D89: =IF('Historical Expenditure-Volumes'!D23=0,0,D122/'Historical Expenditure-Volumes'!D23) -> 0 | E89: =IF('Historical Expenditure-Volumes'!E23=0,0,E122/'Historical Expenditure-Volumes'!E23) -> 0 | F89: =IF('Historical Expenditure-Volumes'!F23=0,0,F122/'Historical Expenditure-Volumes'!F23) -> 0 | G89: =IF('Historical Expenditure-Volumes'!G23=0,0,G122/'Historical Expenditure-Volumes'!G23) -> 0
B90: =IF('Historical Expenditure-Volumes'!B24=0," ",'Historical Expenditure-Volumes'!B24) -> CDA | D90: =IF('Historical Expenditure-Volumes'!D24=0,0,D123/'Historical Expenditure-Volumes'!D24) -> 0.3746256871 | E90: =IF('Historical Expenditure-Volumes'!E24=0,0,E123/'Historical Expenditure-Volumes'!E24) -> 0.7828436091 | F90: =IF('Historical Expenditure-Volumes'!F24=0,0,F123/'Historical Expenditure-Volumes'!F24) -> 0.815590165 | G90: =IF('Historical Expenditure-Volumes'!G24=0,0,G123/'Historical Expenditure-Volumes'!G24) -> 0.7921336044
B91: =IF('Historical Expenditure-Volumes'!B25=0," ",'Historical Expenditure-Volumes'!B25) -> CDP | D91: =IF('Historical Expenditure-Volumes'!D25=0,0,D124/'Historical Expenditure-Volumes'!D25) -> 0 | E91: =IF('Historical Expenditure-Volumes'!E25=0,0,E124/'Historical Expenditure-Volumes'!E25) -> 0 | F91: =IF('Historical Expenditure-Volumes'!F25=0,0,F124/'Historical Expenditure-Volumes'!F25) -> 0 | G91: =IF('Historical Expenditure-Volumes'!G25=0,0,G124/'Historical Expenditure-Volumes'!G25) -> 0
B92: =IF('Historical Expenditure-Volumes'!B26=0," ",'Historical Expenditure-Volumes'!B26) -> CHH1 | D92: =IF('Historical Expenditure-Volumes'!D26=0,0,D125/'Historical Expenditure-Volumes'!D26) -> 0.117102422 | E92: =IF('Historical Expenditure-Volumes'!E26=0,0,E125/'Historical Expenditure-Volumes'!E26) -> 0.1289974624 | F92: =IF('Historical Expenditure-Volumes'!F26=0,0,F125/'Historical Expenditure-Volumes'!F26) -> 0.2277861381 | G92: =IF('Historical Expenditure-Volumes'!G26=0,0,G125/'Historical Expenditure-Volumes'!G26) -> 0.120659481
B93: =IF('Historical Expenditure-Volumes'!B27=0," ",'Historical Expenditure-Volumes'!B27) -> CHL1 | D93: =IF('Historical Expenditure-Volumes'!D27=0,0,D126/'Historical Expenditure-Volumes'!D27) -> 0.1547693188 | E93: =IF('Historical Expenditure-Volumes'!E27=0,0,E126/'Historical Expenditure-Volumes'!E27) -> 0.1581756193 | F93: =IF('Historical Expenditure-Volumes'!F27=0,0,F126/'Historical Expenditure-Volumes'!F27) -> 0.1914649046 | G93: =IF('Historical Expenditure-Volumes'!G27=0,0,G126/'Historical Expenditure-Volumes'!G27) -> 0.1247959482
B94: =IF('Historical Expenditure-Volumes'!B28=0," ",'Historical Expenditure-Volumes'!B28) -> CHH2 | D94: =IF('Historical Expenditure-Volumes'!D28=0,0,D127/'Historical Expenditure-Volumes'!D28) -> 0 | E94: =IF('Historical Expenditure-Volumes'!E28=0,0,E127/'Historical Expenditure-Volumes'!E28) -> 0 | F94: =IF('Historical Expenditure-Volumes'!F28=0,0,F127/'Historical Expenditure-Volumes'!F28) -> 0.09160509144 | G94: =IF('Historical Expenditure-Volumes'!G28=0,0,G127/'Historical Expenditure-Volumes'!G28) -> 0.01993182064
B95: =IF('Historical Expenditure-Volumes'!B29=0," ",'Historical Expenditure-Volumes'!B29) -> CHL2 | D95: =IF('Historical Expenditure-Volumes'!D29=0,0,D128/'Historical Expenditure-Volumes'!D29) -> 0.1255159159 | E95: =IF('Historical Expenditure-Volumes'!E29=0,0,E128/'Historical Expenditure-Volumes'!E29) -> 0 | F95: =IF('Historical Expenditure-Volumes'!F29=0,0,F128/'Historical Expenditure-Volumes'!F29) -> 0.1401386044 | G95: =IF('Historical Expenditure-Volumes'!G29=0,0,G128/'Historical Expenditure-Volumes'!G29) -> 0
B96: =IF('Historical Expenditure-Volumes'!B30=0," ",'Historical Expenditure-Volumes'!B30) -> CR1 | D96: =IF('Historical Expenditure-Volumes'!D30=0,0,D129/'Historical Expenditure-Volumes'!D30) -> 0.4367130501 | E96: =IF('Historical Expenditure-Volumes'!E30=0,0,E129/'Historical Expenditure-Volumes'!E30) -> 0.4941185676 | F96: =IF('Historical Expenditure-Volumes'!F30=0,0,F129/'Historical Expenditure-Volumes'!F30) -> 0.8673359602 | G96: =IF('Historical Expenditure-Volumes'!G30=0,0,G129/'Historical Expenditure-Volumes'!G30) -> 0.6860896162
B97: =IF('Historical Expenditure-Volumes'!B31=0," ",'Historical Expenditure-Volumes'!B31) -> CR2 | D97: =IF('Historical Expenditure-Volumes'!D31=0,0,D130/'Historical Expenditure-Volumes'!D31) -> 0.2880229281 | E97: =IF('Historical Expenditure-Volumes'!E31=0,0,E130/'Historical Expenditure-Volumes'!E31) -> 0.4100016596 | F97: =IF('Historical Expenditure-Volumes'!F31=0,0,F130/'Historical Expenditure-Volumes'!F31) -> 1.255728302 | G97: =IF('Historical Expenditure-Volumes'!G31=0,0,G130/'Historical Expenditure-Volumes'!G31) -> 0.5465974903
B98: =IF('Historical Expenditure-Volumes'!B32=0," ",'Historical Expenditure-Volumes'!B32) -> CS1 | D98: =IF('Historical Expenditure-Volumes'!D32=0,0,D131/'Historical Expenditure-Volumes'!D32) -> 0.07409904187 | E98: =IF('Historical Expenditure-Volumes'!E32=0,0,E131/'Historical Expenditure-Volumes'!E32) -> 0.5735453664 | F98: =IF('Historical Expenditure-Volumes'!F32=0,0,F131/'Historical Expenditure-Volumes'!F32) -> 0.2295285272 | G98: =IF('Historical Expenditure-Volumes'!G32=0,0,G131/'Historical Expenditure-Volumes'!G32) -> 0.271063597
B99: =IF('Historical Expenditure-Volumes'!B33=0," ",'Historical Expenditure-Volumes'!B33) -> CS2 | D99: =IF('Historical Expenditure-Volumes'!D33=0,0,D132/'Historical Expenditure-Volumes'!D33) -> 0 | E99: =IF('Historical Expenditure-Volumes'!E33=0,0,E132/'Historical Expenditure-Volumes'!E33) -> 0 | F99: =IF('Historical Expenditure-Volumes'!F33=0,0,F132/'Historical Expenditure-Volumes'!F33) -> 0 | G99: =IF('Historical Expenditure-Volumes'!G33=0,0,G132/'Historical Expenditure-Volumes'!G33) -> 0
B100: Total | D100: =IF('Historical Expenditure-Volumes'!D34=0,0,D133/'Historical Expenditure-Volumes'!D34) -> 0.2697995333 | E100: =IF('Historical Expenditure-Volumes'!E34=0,0,E133/'Historical Expenditure-Volumes'!E34) -> 0.4316843524 | F100: =IF('Historical Expenditure-Volumes'!F34=0,0,F133/'Historical Expenditure-Volumes'!F34) -> 0.5963370844 | G100: =IF('Historical Expenditure-Volumes'!G34=0,0,G133/'Historical Expenditure-Volumes'!G34) -> 0.5798784682
B103: Historical Cash Contributions by Function Code
C105: $ Nominal | J105: ="$ "&Inflation!$C$4 -> $ 2021
B106: Function Code | C106: Description | D106: 2015/16 | E106: 2016/17 | F106: 2017/18 | G106: 2018/19 | I106: Function Code | J106: Description | K106: 2015/16 | L106: 2016/17 | M106: 2017/18 | N106: 2018/19
B107: =IF('Historical Expenditure-Volumes'!B8=0," ",'Historical Expenditure-Volumes'!B8) -> CBE1 | D107: 283422.3387 | E107: 479481.563 | F107: 579253.9668 | G107: 588001.5575 | I107: =B107 -> CBE1 | K107: =IF(D107<>"",D107*Inflation!G$10,"") -> 310988.4396 | L107: =IF(E107<>"",E107*Inflation!H$10,"") -> 518286.1174 | M107: =IF(F107<>"",F107*Inflation!I$10,"") -> 619791.0768 | N107: =IF(G107<>"",G107*Inflation!J$10,"") -> 617215.727
B108: =IF('Historical Expenditure-Volumes'!B9=0," ",'Historical Expenditure-Volumes'!B9) -> CBG1 | D108: 38750.41985 | E108: 56250.31311 | F108: 134674.2647 | G108: 100620.9921 | I108: =B108 -> CBG1 | K108: =IF(D108<>"",D108*Inflation!G$10,"") -> 42519.34643 | L108: =IF(E108<>"",E108*Inflation!H$10,"") -> 60802.66403 | M108: =IF(F108<>"",F108*Inflation!I$10,"") -> 144098.983 | N108: =IF(G108<>"",G108*Inflation!J$10,"") -> 105620.2284
B109: =IF('Historical Expenditure-Volumes'!B10=0," ",'Historical Expenditure-Volumes'!B10) -> CBH1 | D109: 70867.61519 | E109: 36536.2658 | F109: 183646.7728 | G109: 427509.7675 | I109: CBH1 | K109: =IF(D109<>"",D109*Inflation!G$10,"") -> 77760.31053 | L109: =IF(E109<>"",E109*Inflation!H$10,"") -> 39493.15429 | M109: =IF(F109<>"",F109*Inflation!I$10,"") -> 196498.6648 | N109: =IF(G109<>"",G109*Inflation!J$10,"") -> 448750.0902
B110: =IF('Historical Expenditure-Volumes'!B11=0," ",'Historical Expenditure-Volumes'!B11) -> CBI1 | D110: 992268.3685 | E110: 2013938.435 | F110: 1370036.636 | G110: 1917239.409 | I110: CBI1 | K110: =IF(D110<>"",D110*Inflation!G$10,"") -> 1088777.945 | L110: =IF(E110<>"",E110*Inflation!H$10,"") -> 2176926.941 | M110: =IF(F110<>"",F110*Inflation!I$10,"") -> 1465913.969 | N110: =IF(G110<>"",G110*Inflation!J$10,"") -> 2012495.206
B111: =IF('Historical Expenditure-Volumes'!B12=0," ",'Historical Expenditure-Volumes'!B12) -> CBK1 | D111: 910250.4525 | E111: 3075452.877 | F111: 1826498.184 | G111: 3922538.261 | I111: CBK1 | K111: =IF(D111<>"",D111*Inflation!G$10,"") -> 998782.8384 | L111: =IF(E111<>"",E111*Inflation!H$10,"") -> 3324349.994 | M111: =IF(F111<>"",F111*Inflation!I$10,"") -> 1954319.42 | N111: =IF(G111<>"",G111*Inflation!J$10,"") -> 4117424.986
B112: =IF('Historical Expenditure-Volumes'!B13=0," ",'Historical Expenditure-Volumes'!B13) -> CBL1 | D112: 378350.1553 | E112: 601299.0873 | F112: 699055.9421 | G112: 735443.4871 | I112: CBL1 | K112: =IF(D112<>"",D112*Inflation!G$10,"") -> 415149.0845 | L112: =IF(E112<>"",E112*Inflation!H$10,"") -> 649962.3622 | M112: =IF(F112<>"",F112*Inflation!I$10,"") -> 747976.9841 | N112: =IF(G112<>"",G112*Inflation!J$10,"") -> 771983.1364
B113: =IF('Historical Expenditure-Volumes'!B14=0," ",'Historical Expenditure-Volumes'!B14) -> CBP1 | D113: 1370417.133 | E113: 1776315.781 | F113: 1207880.338 | G113: 1907763.189 | I113: CBP1 | K113: =IF(D113<>"",D113*Inflation!G$10,"") -> 1503706.052 | L113: =IF(E113<>"",E113*Inflation!H$10,"") -> 1920073.43 | M113: =IF(F113<>"",F113*Inflation!I$10,"") -> 1292409.718 | N113: =IF(G113<>"",G113*Inflation!J$10,"") -> 2002548.171
B114: =IF('Historical Expenditure-Volumes'!B15=0," ",'Historical Expenditure-Volumes'!B15) -> CBS1 | D114: 0 | E114: 0 | F114: 0 | G114: 0 | I114: CBS1 | K114: =IF(D114<>"",D114*Inflation!G$10,"") -> 0 | L114: =IF(E114<>"",E114*Inflation!H$10,"") -> 0 | M114: =IF(F114<>"",F114*Inflation!I$10,"") -> 0 | N114: =IF(G114<>"",G114*Inflation!J$10,"") -> 0
B115: =IF('Historical Expenditure-Volumes'!B16=0," ",'Historical Expenditure-Volumes'!B16) -> CBE2 | D115: 0 | E115: 0 | F115: 0 | G115: 0 | I115: CBE2 | K115: =IF(D115<>"",D115*Inflation!G$10,"") -> 0 | L115: =IF(E115<>"",E115*Inflation!H$10,"") -> 0 | M115: =IF(F115<>"",F115*Inflation!I$10,"") -> 0 | N115: =IF(G115<>"",G115*Inflation!J$10,"") -> 0
B116: =IF('Historical Expenditure-Volumes'!B17=0," ",'Historical Expenditure-Volumes'!B17) -> CBG2 | D116: 0 | E116: 0 | F116: 0 | G116: 0 | I116: CBG2 | K116: =IF(D116<>"",D116*Inflation!G$10,"") -> 0 | L116: =IF(E116<>"",E116*Inflation!H$10,"") -> 0 | M116: =IF(F116<>"",F116*Inflation!I$10,"") -> 0 | N116: =IF(G116<>"",G116*Inflation!J$10,"") -> 0
B117: =IF('Historical Expenditure-Volumes'!B18=0," ",'Historical Expenditure-Volumes'!B18) -> CBH2 | D117: 627942.2003 | E117: 550762.7309 | F117: 47315.64125 | G117: 237121.6181 | I117: CBH2 | K117: =IF(D117<>"",D117*Inflation!G$10,"") -> 689016.843 | L117: =IF(E117<>"",E117*Inflation!H$10,"") -> 595336.0868 | M117: =IF(F117<>"",F117*Inflation!I$10,"") -> 50626.86476 | N117: =IF(G117<>"",G117*Inflation!J$10,"") -> 248902.7283
B118: =IF('Historical Expenditure-Volumes'!B19=0," ",'Historical Expenditure-Volumes'!B19) -> CBI2 | D118: 568160.6844 | E118: 70341.83904 | F118: 46143.52993 | G118: 299944.5558 | I118: CBI2 | K118: =IF(D118<>"",D118*Inflation!G$10,"") -> 623420.8832 | L118: =IF(E118<>"",E118*Inflation!H$10,"") -> 76034.62043 | M118: =IF(F118<>"",F118*Inflation!I$10,"") -> 49372.72723 | N118: =IF(G118<>"",G118*Inflation!J$10,"") -> 314846.9502
B119: =IF('Historical Expenditure-Volumes'!B20=0," ",'Historical Expenditure-Volumes'!B20) -> CBK2 | D119: 1455566.722 | E119: 647332.3569 | F119: 1329346.574 | G119: 127469.1633 | I119: CBK2 | K119: =IF(D119<>"",D119*Inflation!G$10,"") -> 1597137.423 | L119: =IF(E119<>"",E119*Inflation!H$10,"") -> 699721.115 | M119: =IF(F119<>"",F119*Inflation!I$10,"") -> 1422376.353 | N119: =IF(G119<>"",G119*Inflation!J$10,"") -> 133802.3195
B120: =IF('Historical Expenditure-Volumes'!B21=0," ",'Historical Expenditure-Volumes'!B21) -> CBL2 | D120: 0 | E120: 0 | F120: 0 | G120: 0 | I120: CBL2 | K120: =IF(D120<>"",D120*Inflation!G$10,"") -> 0 | L120: =IF(E120<>"",E120*Inflation!H$10,"") -> 0 | M120: =IF(F120<>"",F120*Inflation!I$10,"") -> 0 | N120: =IF(G120<>"",G120*Inflation!J$10,"") -> 0
B121: =IF('Historical Expenditure-Volumes'!B22=0," ",'Historical Expenditure-Volumes'!B22) -> CBP2 | D121: 0 | E121: 0 | F121: 0 | G121: 0 | I121: CBP2 | K121: =IF(D121<>"",D121*Inflation!G$10,"") -> 0 | L121: =IF(E121<>"",E121*Inflation!H$10,"") -> 0 | M121: =IF(F121<>"",F121*Inflation!I$10,"") -> 0 | N121: =IF(G121<>"",G121*Inflation!J$10,"") -> 0
B122: =IF('Historical Expenditure-Volumes'!B23=0," ",'Historical Expenditure-Volumes'!B23) -> CBS2 | D122: 0 | E122: 0 | F122: 0 | G122: 0 | I122: CBS2 | K122: =IF(D122<>"",D122*Inflation!G$10,"") -> 0 | L122: =IF(E122<>"",E122*Inflation!H$10,"") -> 0 | M122: =IF(F122<>"",F122*Inflation!I$10,"") -> 0 | N122: =IF(G122<>"",G122*Inflation!J$10,"") -> 0
B123: =IF('Historical Expenditure-Volumes'!B24=0," ",'Historical Expenditure-Volumes'!B24) -> CDA | D123: 5025207.8 | E123: 9873612.28 | F123: 12206775.29 | G123: 12616301.08 | I123: CDA | K123: =IF(D123<>"",D123*Inflation!G$10,"") -> 5513967.388 | L123: =IF(E123<>"",E123*Inflation!H$10,"") -> 10672686.02 | M123: =IF(F123<>"",F123*Inflation!I$10,"") -> 13061024.76 | N123: =IF(G123<>"",G123*Inflation!J$10,"") -> 13243127.24
B124: =IF('Historical Expenditure-Volumes'!B25=0," ",'Historical Expenditure-Volumes'!B25) -> CDP | D124: 0 | E124: 0 | F124: 0 | G124: 0 | I124: CDP | K124: =IF(D124<>"",D124*Inflation!G$10,"") -> 0 | L124: =IF(E124<>"",E124*Inflation!H$10,"") -> 0 | M124: =IF(F124<>"",F124*Inflation!I$10,"") -> 0 | N124: =IF(G124<>"",G124*Inflation!J$10,"") -> 0
B125: =IF('Historical Expenditure-Volumes'!B26=0," ",'Historical Expenditure-Volumes'!B26) -> CHH1 | D125: 211156.8038 | E125: 322626.6523 | F125: 439294.451 | G125: 200404.1301 | I125: CHH1 | K125: =IF(D125<>"",D125*Inflation!G$10,"") -> 231694.2456 | L125: =IF(E125<>"",E125*Inflation!H$10,"") -> 348736.9023 | M125: =IF(F125<>"",F125*Inflation!I$10,"") -> 470036.9724 | N125: =IF(G125<>"",G125*Inflation!J$10,"") -> 210360.9749
B126: =IF('Historical Expenditure-Volumes'!B27=0," ",'Historical Expenditure-Volumes'!B27) -> CHL1 | D126: 364400.1824 | E126: 313940.1677 | F126: 290233.2244 | G126: 222178 | I126: CHL1 | K126: =IF(D126<>"",D126*Inflation!G$10,"") -> 399842.3154 | L126: =IF(E126<>"",E126*Inflation!H$10,"") -> 339347.4185 | M126: =IF(F126<>"",F126*Inflation!I$10,"") -> 310544.2051 | N126: =IF(G126<>"",G126*Inflation!J$10,"") -> 233216.654
B127: =IF('Historical Expenditure-Volumes'!B28=0," ",'Historical Expenditure-Volumes'!B28) -> CHH2 | D127: 0 | E127: 0 | F127: 62334.03794 | G127: 12837.61409 | I127: CHH2 | K127: =IF(D127<>"",D127*Inflation!G$10,"") -> 0 | L127: =IF(E127<>"",E127*Inflation!H$10,"") -> 0 | M127: =IF(F127<>"",F127*Inflation!I$10,"") -> 66696.27264 | N127: =IF(G127<>"",G127*Inflation!J$10,"") -> 13475.43593
B128: =IF('Historical Expenditure-Volumes'!B29=0," ",'Historical Expenditure-Volumes'!B29) -> CHL2 | D128: 52173.01374 | E128: 0 | F128: 58057.28669 | G128: 0 | I128: CHL2 | K128: =IF(D128<>"",D128*Inflation!G$10,"") -> 57247.44284 | L128: =IF(E128<>"",E128*Inflation!H$10,"") -> 0 | M128: =IF(F128<>"",F128*Inflation!I$10,"") -> 62120.22757 | N128: =IF(G128<>"",G128*Inflation!J$10,"") -> 0
B129: =IF('Historical Expenditure-Volumes'!B30=0," ",'Historical Expenditure-Volumes'!B30) -> CR1 | D129: 4312875.761 | E129: 5609825.955 | F129: 7693361.918 | G129: 4725145.881 | I129: CR1 | K129: =IF(D129<>"",D129*Inflation!G$10,"") -> 4732352.818 | L129: =IF(E129<>"",E129*Inflation!H$10,"") -> 6063830.475 | M129: =IF(F129<>"",F129*Inflation!I$10,"") -> 8231755.569 | N129: =IF(G129<>"",G129*Inflation!J$10,"") -> 4959909.226
B130: =IF('Historical Expenditure-Volumes'!B31=0," ",'Historical Expenditure-Volumes'!B31) -> CR2 | D130: 983483.7961 | E130: 1947025.855 | F130: 3916435.422 | G130: 1003346.119 | I130: CR2 | K130: =IF(D130<>"",D130*Inflation!G$10,"") -> 1079138.972 | L130: =IF(E130<>"",E130*Inflation!H$10,"") -> 2104599.11 | M130: =IF(F130<>"",F130*Inflation!I$10,"") -> 4190513.776 | N130: =IF(G130<>"",G130*Inflation!J$10,"") -> 1053196.197
B131: =IF('Historical Expenditure-Volumes'!B32=0," ",'Historical Expenditure-Volumes'!B32) -> CS1 | D131: 70810.00325 | E131: 350500 | F131: 95340 | G131: 168295 | I131: CS1 | K131: =IF(D131<>"",D131*Inflation!G$10,"") -> 77697.09516 | L131: =IF(E131<>"",E131*Inflation!H$10,"") -> 378866.0465 | M131: =IF(F131<>"",F131*Inflation!I$10,"") -> 102012.0442 | N131: =IF(G131<>"",G131*Inflation!J$10,"") -> 176656.5402
B132: =IF('Historical Expenditure-Volumes'!B33=0," ",'Historical Expenditure-Volumes'!B33) -> CS2 | D132: 0 | E132: 0 | F132: 0 | G132: 0 | I132: CS2 | K132: =IF(D132<>"",D132*Inflation!G$10,"") -> 0 | L132: =IF(E132<>"",E132*Inflation!H$10,"") -> 0 | M132: =IF(F132<>"",F132*Inflation!I$10,"") -> 0 | N132: =IF(G132<>"",G132*Inflation!J$10,"") -> 0
B133: Total | D133: =SUM(D107:D132) -> 17716103.45 | E133: =SUM(E107:E132) -> 27725242.16 | F133: =SUM(F107:F132) -> 32185683.48 | G133: =SUM(G107:G132) -> 29212159.82 | I133: Total | K133: =SUM(K107:K132) -> 19439199.44 | L133: =SUM(L107:L132) -> 29969052.46 | M133: =SUM(M107:M132) -> 34438088.59 | N133: =SUM(N107:N132) -> 30663531.81
B136: Historical Total Contributions by Function Code
B137: Total Contributions = Cash Contributions - rebates + gifted assets
C138: $ Nominal | J138: ="$ "&Inflation!$C$4 -> $ 2021
B139: Function Code | C139: Description | D139: 2015/16 | E139: 2016/17 | F139: 2017/18 | G139: 2018/19 | I139: Function Code | J139: Description | K139: 2015/16 | L139: 2016/17 | M139: 2017/18 | N139: 2018/19
B140: =IF('Historical Expenditure-Volumes'!B8=0," ",'Historical Expenditure-Volumes'!B8) -> CBE1 | D140: =D107-D41+D8 -> 283422.3387 | E140: 523505.563 | F140: 807593.9668 | G140: 958952.5575 | I140: =B140 -> CBE1 | K140: =IF(D140<>"",D140*Inflation!G$10,"") -> 310988.4396 | L140: =IF(E140<>"",E140*Inflation!H$10,"") -> 565872.99 | M140: =IF(F140<>"",F140*Inflation!I$10,"") -> 864110.6716 | N140: =IF(G140<>"",G140*Inflation!J$10,"") -> 1006596.993
B141: =IF('Historical Expenditure-Volumes'!B9=0," ",'Historical Expenditure-Volumes'!B9) -> CBG1 | D141: 38750.41985 | E141: 56250.31311 | F141: 134674.2647 | G141: 100620.9921 | I141: =B141 -> CBG1 | K141: =IF(D141<>"",D141*Inflation!G$10,"") -> 42519.34643 | L141: =IF(E141<>"",E141*Inflation!H$10,"") -> 60802.66403 | M141: =IF(F141<>"",F141*Inflation!I$10,"") -> 144098.983 | N141: =IF(G141<>"",G141*Inflation!J$10,"") -> 105620.2284
B142: =IF('Historical Expenditure-Volumes'!B10=0," ",'Historical Expenditure-Volumes'!B10) -> CBH1 | D142: 70867.61519 | E142: 36536.2658 | F142: 389239.7728 | G142: 477029.7675 | I142: CBH1 | K142: =IF(D142<>"",D142*Inflation!G$10,"") -> 77760.31053 | L142: =IF(E142<>"",E142*Inflation!H$10,"") -> 39493.15429 | M142: =IF(F142<>"",F142*Inflation!I$10,"") -> 416479.3886 | N142: =IF(G142<>"",G142*Inflation!J$10,"") -> 500730.4334
B143: =IF('Historical Expenditure-Volumes'!B11=0," ",'Historical Expenditure-Volumes'!B11) -> CBI1 | D143: 992268.3685 | E143: 2248128.435 | F143: 1630308.636 | G143: 2004719.409 | I143: CBI1 | K143: =IF(D143<>"",D143*Inflation!G$10,"") -> 1088777.945 | L143: =IF(E143<>"",E143*Inflation!H$10,"") -> 2430069.993 | M143: =IF(F143<>"",F143*Inflation!I$10,"") -> 1744400.216 | N143: =IF(G143<>"",G143*Inflation!J$10,"") -> 2104321.548
B144: =IF('Historical Expenditure-Volumes'!B12=0," ",'Historical Expenditure-Volumes'!B12) -> CBK1 | D144: 1674670.233 | E144: 4107549.367 | F144: 3067510.184 | G144: 4204402.261 | I144: CBK1 | K144: =IF(D144<>"",D144*Inflation!G$10,"") -> 1837551.284 | L144: =IF(E144<>"",E144*Inflation!H$10,"") -> 4439974.293 | M144: =IF(F144<>"",F144*Inflation!I$10,"") -> 3282179.405 | N144: =IF(G144<>"",G144*Inflation!J$10,"") -> 4413293.069
B145: =IF('Historical Expenditure-Volumes'!B13=0," ",'Historical Expenditure-Volumes'!B13) -> CBL1 | D145: 378350.1553 | E145: 657266.0873 | F145: 875411.9421 | G145: 743025.4871 | I145: CBL1 | K145: =IF(D145<>"",D145*Inflation!G$10,"") -> 415149.0845 | L145: =IF(E145<>"",E145*Inflation!H$10,"") -> 710458.7846 | M145: =IF(F145<>"",F145*Inflation!I$10,"") -> 936674.6563 | N145: =IF(G145<>"",G145*Inflation!J$10,"") -> 779941.8392
B146: =IF('Historical Expenditure-Volumes'!B14=0," ",'Historical Expenditure-Volumes'!B14) -> CBP1 | D146: 1408010.583 | E146: 1894068.781 | F146: 1491806.338 | G146: 1907763.189 | I146: CBP1 | K146: =IF(D146<>"",D146*Inflation!G$10,"") -> 1544955.9 | L146: =IF(E146<>"",E146*Inflation!H$10,"") -> 2047356.208 | M146: =IF(F146<>"",F146*Inflation!I$10,"") -> 1596205.309 | N146: =IF(G146<>"",G146*Inflation!J$10,"") -> 2002548.171
B147: =IF('Historical Expenditure-Volumes'!B15=0," ",'Historical Expenditure-Volumes'!B15) -> CBS1 | D147: 0 | E147: 0 | F147: 0 | G147: 0 | I147: CBS1 | K147: =IF(D147<>"",D147*Inflation!G$10,"") -> 0 | L147: =IF(E147<>"",E147*Inflation!H$10,"") -> 0 | M147: =IF(F147<>"",F147*Inflation!I$10,"") -> 0 | N147: =IF(G147<>"",G147*Inflation!J$10,"") -> 0
B148: =IF('Historical Expenditure-Volumes'!B16=0," ",'Historical Expenditure-Volumes'!B16) -> CBE2 | D148: 0 | E148: 0 | F148: 0 | G148: 0 | I148: CBE2 | K148: =IF(D148<>"",D148*Inflation!G$10,"") -> 0 | L148: =IF(E148<>"",E148*Inflation!H$10,"") -> 0 | M148: =IF(F148<>"",F148*Inflation!I$10,"") -> 0 | N148: =IF(G148<>"",G148*Inflation!J$10,"") -> 0
B149: =IF('Historical Expenditure-Volumes'!B17=0," ",'Historical Expenditure-Volumes'!B17) -> CBG2 | D149: 0 | E149: 0 | F149: 0 | G149: 0 | I149: CBG2 | K149: =IF(D149<>"",D149*Inflation!G$10,"") -> 0 | L149: =IF(E149<>"",E149*Inflation!H$10,"") -> 0 | M149: =IF(F149<>"",F149*Inflation!I$10,"") -> 0 | N149: =IF(G149<>"",G149*Inflation!J$10,"") -> 0
B150: =IF('Historical Expenditure-Volumes'!B18=0," ",'Historical Expenditure-Volumes'!B18) -> CBH2 | D150: 627942.2003 | E150: 550762.7309 | F150: 47315.64125 | G150: 714587.6181 | I150: CBH2 | K150: =IF(D150<>"",D150*Inflation!G$10,"") -> 689016.843 | L150: =IF(E150<>"",E150*Inflation!H$10,"") -> 595336.0868 | M150: =IF(F150<>"",F150*Inflation!I$10,"") -> 50626.86476 | N150: =IF(G150<>"",G150*Inflation!J$10,"") -> 750091.068
B151: =IF('Historical Expenditure-Volumes'!B19=0," ",'Historical Expenditure-Volumes'!B19) -> CBI2 | D151: 568160.6844 | E151: 70341.83904 | F151: 46143.52993 | G151: 299944.5558 | I151: CBI2 | K151: =IF(D151<>"",D151*Inflation!G$10,"") -> 623420.8832 | L151: =IF(E151<>"",E151*Inflation!H$10,"") -> 76034.62043 | M151: =IF(F151<>"",F151*Inflation!I$10,"") -> 49372.72723 | N151: =IF(G151<>"",G151*Inflation!J$10,"") -> 314846.9502
B152: =IF('Historical Expenditure-Volumes'!B20=0," ",'Historical Expenditure-Volumes'!B20) -> CBK2 | D152: 1455566.722 | E152: 1655668.357 | F152: 1329346.574 | G152: 127469.1633 | I152: CBK2 | K152: =IF(D152<>"",D152*Inflation!G$10,"") -> 1597137.423 | L152: =IF(E152<>"",E152*Inflation!H$10,"") -> 1789661.982 | M152: =IF(F152<>"",F152*Inflation!I$10,"") -> 1422376.353 | N152: =IF(G152<>"",G152*Inflation!J$10,"") -> 133802.3195
B153: =IF('Historical Expenditure-Volumes'!B21=0," ",'Historical Expenditure-Volumes'!B21) -> CBL2 | D153: 0 | E153: 0 | F153: 0 | G153: 0 | I153: CBL2 | K153: =IF(D153<>"",D153*Inflation!G$10,"") -> 0 | L153: =IF(E153<>"",E153*Inflation!H$10,"") -> 0 | M153: =IF(F153<>"",F153*Inflation!I$10,"") -> 0 | N153: =IF(G153<>"",G153*Inflation!J$10,"") -> 0
B154: =IF('Historical Expenditure-Volumes'!B22=0," ",'Historical Expenditure-Volumes'!B22) -> CBP2 | D154: 0 | E154: 0 | F154: 0 | G154: 0 | I154: CBP2 | K154: =IF(D154<>"",D154*Inflation!G$10,"") -> 0 | L154: =IF(E154<>"",E154*Inflation!H$10,"") -> 0 | M154: =IF(F154<>"",F154*Inflation!I$10,"") -> 0 | N154: =IF(G154<>"",G154*Inflation!J$10,"") -> 0
B155: =IF('Historical Expenditure-Volumes'!B23=0," ",'Historical Expenditure-Volumes'!B23) -> CBS2 | D155: 0 | E155: 0 | F155: 0 | G155: 0 | I155: CBS2 | K155: =IF(D155<>"",D155*Inflation!G$10,"") -> 0 | L155: =IF(E155<>"",E155*Inflation!H$10,"") -> 0 | M155: =IF(F155<>"",F155*Inflation!I$10,"") -> 0 | N155: =IF(G155<>"",G155*Inflation!J$10,"") -> 0
B156: =IF('Historical Expenditure-Volumes'!B24=0," ",'Historical Expenditure-Volumes'!B24) -> CDA | D156: 5025207.8 | E156: 9873612.28 | F156: 12206775.29 | G156: 12616301.08 | I156: CDA | K156: =IF(D156<>"",D156*Inflation!G$10,"") -> 5513967.388 | L156: =IF(E156<>"",E156*Inflation!H$10,"") -> 10672686.02 | M156: =IF(F156<>"",F156*Inflation!I$10,"") -> 13061024.76 | N156: =IF(G156<>"",G156*Inflation!J$10,"") -> 13243127.24
B157: =IF('Historical Expenditure-Volumes'!B25=0," ",'Historical Expenditure-Volumes'!B25) -> CDP | D157: 0 | E157: 0 | F157: 0 | G157: 0 | I157: CDP | K157: =IF(D157<>"",D157*Inflation!G$10,"") -> 0 | L157: =IF(E157<>"",E157*Inflation!H$10,"") -> 0 | M157: =IF(F157<>"",F157*Inflation!I$10,"") -> 0 | N157: =IF(G157<>"",G157*Inflation!J$10,"") -> 0
B158: =IF('Historical Expenditure-Volumes'!B26=0," ",'Historical Expenditure-Volumes'!B26) -> CHH1 | D158: 445496.8938 | E158: 620489.6523 | F158: 1928994.451 | G158: 605380.1301 | I158: CHH1 | K158: =IF(D158<>"",D158*Inflation!G$10,"") -> 488826.62 | L158: =IF(E158<>"",E158*Inflation!H$10,"") -> 670706.0242 | M158: =IF(F158<>"",F158*Inflation!I$10,"") -> 2063988.538 | N158: =IF(G158<>"",G158*Inflation!J$10,"") -> 635457.7337
B159: =IF('Historical Expenditure-Volumes'!B27=0," ",'Historical Expenditure-Volumes'!B27) -> CHL1 | D159: 938036.8624 | E159: 1081468.268 | F159: 1117265.224 | G159: 468978 | I159: CHL1 | K159: =IF(D159<>"",D159*Inflation!G$10,"") -> 1029271.798 | L159: =IF(E159<>"",E159*Inflation!H$10,"") -> 1168991.746 | M159: =IF(F159<>"",F159*Inflation!I$10,"") -> 1195453.214 | N159: =IF(G159<>"",G159*Inflation!J$10,"") -> 492278.6233
B160: =IF('Historical Expenditure-Volumes'!B28=0," ",'Historical Expenditure-Volumes'!B28) -> CHH2 | D160: 0 | E160: 0 | F160: 62334.03794 | G160: 12837.61409 | I160: CHH2 | K160: =IF(D160<>"",D160*Inflation!G$10,"") -> 0 | L160: =IF(E160<>"",E160*Inflation!H$10,"") -> 0 | M160: =IF(F160<>"",F160*Inflation!I$10,"") -> 66696.27264 | N160: =IF(G160<>"",G160*Inflation!J$10,"") -> 13475.43593
B161: =IF('Historical Expenditure-Volumes'!B29=0," ",'Historical Expenditure-Volumes'!B29) -> CHL2 | D161: 52173.01374 | E161: 0 | F161: 58057.28669 | G161: 0 | I161: CHL2 | K161: =IF(D161<>"",D161*Inflation!G$10,"") -> 57247.44284 | L161: =IF(E161<>"",E161*Inflation!H$10,"") -> 0 | M161: =IF(F161<>"",F161*Inflation!I$10,"") -> 62120.22757 | N161: =IF(G161<>"",G161*Inflation!J$10,"") -> 0
B162: =IF('Historical Expenditure-Volumes'!B30=0," ",'Historical Expenditure-Volumes'!B30) -> CR1 | D162: 5581941.761 | E162: 8501985.955 | F162: 10644505.92 | G162: 5079725.881 | I162: CR1 | K162: =IF(D162<>"",D162*Inflation!G$10,"") -> 6124850.167 | L162: =IF(E162<>"",E162*Inflation!H$10,"") -> 9190053.656 | M162: =IF(F162<>"",F162*Inflation!I$10,"") -> 11389425.3 | N162: =IF(G162<>"",G162*Inflation!J$10,"") -> 5332106.119
B163: =IF('Historical Expenditure-Volumes'!B31=0," ",'Historical Expenditure-Volumes'!B31) -> CR2 | D163: 983483.7961 | E163: 3182507.855 | F163: 4891435.422 | G163: 1003346.119 | I163: CR2 | K163: =IF(D163<>"",D163*Inflation!G$10,"") -> 1079138.972 | L163: =IF(E163<>"",E163*Inflation!H$10,"") -> 3440068.955 | M163: =IF(F163<>"",F163*Inflation!I$10,"") -> 5233745.82 | N163: =IF(G163<>"",G163*Inflation!J$10,"") -> 1053196.197
B164: =IF('Historical Expenditure-Volumes'!B32=0," ",'Historical Expenditure-Volumes'!B32) -> CS1 | D164: 191310.0033 | E164: 372940 | F164: 95340 | G164: 168295 | I164: CS1 | K164: =IF(D164<>"",D164*Inflation!G$10,"") -> 209917.114 | L164: =IF(E164<>"",E164*Inflation!H$10,"") -> 403122.1209 | M164: =IF(F164<>"",F164*Inflation!I$10,"") -> 102012.0442 | N164: =IF(G164<>"",G164*Inflation!J$10,"") -> 176656.5402
B165: =IF('Historical Expenditure-Volumes'!B33=0," ",'Historical Expenditure-Volumes'!B33) -> CS2 | D165: 0 | E165: 0 | F165: 0 | G165: 0 | I165: CS2 | K165: =IF(D165<>"",D165*Inflation!G$10,"") -> 0 | L165: =IF(E165<>"",E165*Inflation!H$10,"") -> 0 | M165: =IF(F165<>"",F165*Inflation!I$10,"") -> 0 | N165: =IF(G165<>"",G165*Inflation!J$10,"") -> 0
B166: Total | D166: =SUM(D140:D165) -> 20715659.45 | E166: =SUM(E140:E165) -> 35433081.75 | F166: =SUM(F140:F165) -> 40824058.48 | G166: =SUM(G140:G165) -> 31493378.82 | I166: Total | K166: =SUM(K140:K165) -> 22730496.96 | L166: =SUM(L140:L165) -> 38300689.3 | M166: =SUM(M140:M165) -> 43680990.75 | N166: =SUM(N140:N165) -> 33058090.51
B171: Net Capex
B172: Net Capex = Gross Capex - Total contributions
C173: $ Nominal | J173: ="$ "&Inflation!$C$4 -> $ 2021
B174: Function Code | C174: Description | D174: 2015/16 | E174: 2016/17 | F174: 2017/18 | G174: 2018/19 | I174: Function Code | J174: Description | K174: 2015/16 | L174: 2016/17 | M174: 2017/18 | N174: 2018/19
B175: =IF('Historical Expenditure-Volumes'!B8=0," ",'Historical Expenditure-Volumes'!B8) -> CBE1 | D175: ='Historical Expenditure-Volumes'!D8-D140 -> 1256978.406 | E175: ='Historical Expenditure-Volumes'!E8-E140 -> 1311521.522 | F175: ='Historical Expenditure-Volumes'!F8-F140 -> 1746667.863 | G175: ='Historical Expenditure-Volumes'!G8-G140 -> 1464299.791 | I175: =B175 -> CBE1 | K175: =IF(D175<>"",D175*Inflation!G$10,"") -> 1379234.096 | L175: =IF(E175<>"",E175*Inflation!H$10,"") -> 1417663.264 | M175: =IF(F175<>"",F175*Inflation!I$10,"") -> 1868902.447 | N175: =IF(G175<>"",G175*Inflation!J$10,"") -> 1537051.813
B176: =IF('Historical Expenditure-Volumes'!B9=0," ",'Historical Expenditure-Volumes'!B9) -> CBG1 | D176: ='Historical Expenditure-Volumes'!D9-D141 -> 146971.2202 | E176: ='Historical Expenditure-Volumes'!E9-E141 -> 264521.4769 | F176: ='Historical Expenditure-Volumes'!F9-F141 -> 147837.6153 | G176: ='Historical Expenditure-Volumes'!G9-G141 -> 53553.3199 | I176: =B176 -> CBG1 | K176: =IF(D176<>"",D176*Inflation!G$10,"") -> 161265.8714 | L176: =IF(E176<>"",E176*Inflation!H$10,"") -> 285929.2615 | M176: =IF(F176<>"",F176*Inflation!I$10,"") -> 158183.5258 | N176: =IF(G176<>"",G176*Inflation!J$10,"") -> 56214.05395
B177: =IF('Historical Expenditure-Volumes'!B10=0," ",'Historical Expenditure-Volumes'!B10) -> CBH1 | D177: ='Historical Expenditure-Volumes'!D10-D142 -> 162021.3248 | E177: ='Historical Expenditure-Volumes'!E10-E142 -> 341416.6642 | F177: ='Historical Expenditure-Volumes'!F10-F142 -> 213388.5972 | G177: ='Historical Expenditure-Volumes'!G10-G142 -> -17613.58279 | I177: CBH1 | K177: =IF(D177<>"",D177*Inflation!G$10,"") -> 177779.7728 | L177: =IF(E177<>"",E177*Inflation!H$10,"") -> 369047.5942 | M177: =IF(F177<>"",F177*Inflation!I$10,"") -> 228321.8692 | N177: =IF(G177<>"",G177*Inflation!J$10,"") -> -18488.69305
B178: =IF('Historical Expenditure-Volumes'!B11=0," ",'Historical Expenditure-Volumes'!B11) -> CBI1 | D178: ='Historical Expenditure-Volumes'!D11-D143 -> 4978983.627 | E178: ='Historical Expenditure-Volumes'!E11-E143 -> 3558770.75 | F178: ='Historical Expenditure-Volumes'!F11-F143 -> 2121221.284 | G178: ='Historical Expenditure-Volumes'!G11-G143 -> 1399766.262 | I178: CBI1 | K178: =IF(D178<>"",D178*Inflation!G$10,"") -> 5463247.379 | L178: =IF(E178<>"",E178*Inflation!H$10,"") -> 3846782.894 | M178: =IF(F178<>"",F178*Inflation!I$10,"") -> 2269667.709 | N178: =IF(G178<>"",G178*Inflation!J$10,"") -> 1469312.011
B179: =IF('Historical Expenditure-Volumes'!B12=0," ",'Historical Expenditure-Volumes'!B12) -> CBK1 | D179: ='Historical Expenditure-Volumes'!D12-D144 -> 8323839.262 | E179: ='Historical Expenditure-Volumes'!E12-E144 -> 6037214.833 | F179: ='Historical Expenditure-Volumes'!F12-F144 -> 4640181.281 | G179: ='Historical Expenditure-Volumes'!G12-G144 -> 2400400.876 | I179: CBK1 | K179: =IF(D179<>"",D179*Inflation!G$10,"") -> 9133428.917 | L179: =IF(E179<>"",E179*Inflation!H$10,"") -> 6525808.033 | M179: =IF(F179<>"",F179*Inflation!I$10,"") -> 4964908.516 | N179: =IF(G179<>"",G179*Inflation!J$10,"") -> 2519661.986
B180: =IF('Historical Expenditure-Volumes'!B13=0," ",'Historical Expenditure-Volumes'!B13) -> CBL1 | D180: ='Historical Expenditure-Volumes'!D13-D145 -> 1625036.195 | E180: ='Historical Expenditure-Volumes'!E13-E145 -> 1614749.518 | F180: ='Historical Expenditure-Volumes'!F13-F145 -> 971059.4129 | G180: ='Historical Expenditure-Volumes'!G13-G145 -> 687612.2289 | I180: CBL1 | K180: =IF(D180<>"",D180*Inflation!G$10,"") -> 1783089.762 | L180: =IF(E180<>"",E180*Inflation!H$10,"") -> 1745431.572 | M180: =IF(F180<>"",F180*Inflation!I$10,"") -> 1039015.689 | N180: =IF(G180<>"",G180*Inflation!J$10,"") -> 721775.4381
B181: =IF('Historical Expenditure-Volumes'!B14=0," ",'Historical Expenditure-Volumes'!B14) -> CBP1 | D181: ='Historical Expenditure-Volumes'!D14-D146 -> 5146966.872 | E181: ='Historical Expenditure-Volumes'!E14-E146 -> 3300315.924 | F181: ='Historical Expenditure-Volumes'!F14-F146 -> 2013959.087 | G181: ='Historical Expenditure-Volumes'!G14-G146 -> 1636536.425 | I181: CBP1 | K181: =IF(D181<>"",D181*Inflation!G$10,"") -> 5647568.938 | L181: =IF(E181<>"",E181*Inflation!H$10,"") -> 3567411.259 | M181: =IF(F181<>"",F181*Inflation!I$10,"") -> 2154899.133 | N181: =IF(G181<>"",G181*Inflation!J$10,"") -> 1717845.823
B182: =IF('Historical Expenditure-Volumes'!B15=0," ",'Historical Expenditure-Volumes'!B15) -> CBS1 | D182: ='Historical Expenditure-Volumes'!D15-D147 -> 0 | E182: ='Historical Expenditure-Volumes'!E15-E147 -> 0 | F182: ='Historical Expenditure-Volumes'!F15-F147 -> 0 | G182: ='Historical Expenditure-Volumes'!G15-G147 -> 0 | I182: CBS1 | K182: =IF(D182<>"",D182*Inflation!G$10,"") -> 0 | L182: =IF(E182<>"",E182*Inflation!H$10,"") -> 0 | M182: =IF(F182<>"",F182*Inflation!I$10,"") -> 0 | N182: =IF(G182<>"",G182*Inflation!J$10,"") -> 0
B183: =IF('Historical Expenditure-Volumes'!B16=0," ",'Historical Expenditure-Volumes'!B16) -> CBE2 | D183: ='Historical Expenditure-Volumes'!D16-D148 -> 0 | E183: ='Historical Expenditure-Volumes'!E16-E148 -> 0 | F183: ='Historical Expenditure-Volumes'!F16-F148 -> 0 | G183: ='Historical Expenditure-Volumes'!G16-G148 -> 0 | I183: CBE2 | K183: =IF(D183<>"",D183*Inflation!G$10,"") -> 0 | L183: =IF(E183<>"",E183*Inflation!H$10,"") -> 0 | M183: =IF(F183<>"",F183*Inflation!I$10,"") -> 0 | N183: =IF(G183<>"",G183*Inflation!J$10,"") -> 0
B184: =IF('Historical Expenditure-Volumes'!B17=0," ",'Historical Expenditure-Volumes'!B17) -> CBG2 | D184: ='Historical Expenditure-Volumes'!D17-D149 -> 0 | E184: ='Historical Expenditure-Volumes'!E17-E149 -> 0 | F184: ='Historical Expenditure-Volumes'!F17-F149 -> 0 | G184: ='Historical Expenditure-Volumes'!G17-G149 -> 0 | I184: CBG2 | K184: =IF(D184<>"",D184*Inflation!G$10,"") -> 0 | L184: =IF(E184<>"",E184*Inflation!H$10,"") -> 0 | M184: =IF(F184<>"",F184*Inflation!I$10,"") -> 0 | N184: =IF(G184<>"",G184*Inflation!J$10,"") -> 0
B185: =IF('Historical Expenditure-Volumes'!B18=0," ",'Historical Expenditure-Volumes'!B18) -> CBH2 | D185: ='Historical Expenditure-Volumes'!D18-D150 -> 1906760.53 | E185: ='Historical Expenditure-Volumes'!E18-E150 -> 513932.1441 | F185: ='Historical Expenditure-Volumes'!F18-F150 -> 441252.8188 | G185: ='Historical Expenditure-Volumes'!G18-G150 -> 311683.2159 | I185: CBH2 | K185: =IF(D185<>"",D185*Inflation!G$10,"") -> 2092215.048 | L185: =IF(E185<>"",E185*Inflation!H$10,"") -> 555524.792 | M185: =IF(F185<>"",F185*Inflation!I$10,"") -> 472132.3899 | N185: =IF(G185<>"",G185*Inflation!J$10,"") -> 327168.8318
B186: =IF('Historical Expenditure-Volumes'!B19=0," ",'Historical Expenditure-Volumes'!B19) -> CBI2 | D186: ='Historical Expenditure-Volumes'!D19-D151 -> 1049421.616 | E186: ='Historical Expenditure-Volumes'!E19-E151 -> 233097.171 | F186: ='Historical Expenditure-Volumes'!F19-F151 -> 400623.8901 | G186: ='Historical Expenditure-Volumes'!G19-G151 -> 527801.6489 | I186: CBI2 | K186: =IF(D186<>"",D186*Inflation!G$10,"") -> 1151490.007 | L186: =IF(E186<>"",E186*Inflation!H$10,"") -> 251961.7792 | M186: =IF(F186<>"",F186*Inflation!I$10,"") -> 428660.1844 | N186: =IF(G186<>"",G186*Inflation!J$10,"") -> 554024.8564
B187: =IF('Historical Expenditure-Volumes'!B20=0," ",'Historical Expenditure-Volumes'!B20) -> CBK2 | D187: ='Historical Expenditure-Volumes'!D20-D152 -> 1335716.453 | E187: ='Historical Expenditure-Volumes'!E20-E152 -> 512986.3231 | F187: ='Historical Expenditure-Volumes'!F20-F152 -> -453523.5943 | G187: ='Historical Expenditure-Volumes'!G20-G152 -> 750430.6133 | I187: CBK2 | K187: =IF(D187<>"",D187*Inflation!G$10,"") -> 1465630.329 | L187: =IF(E187<>"",E187*Inflation!H$10,"") -> 554502.4256 | M187: =IF(F187<>"",F187*Inflation!I$10,"") -> -485261.8937 | N187: =IF(G187<>"",G187*Inflation!J$10,"") -> 787714.8805
B188: =IF('Historical Expenditure-Volumes'!B21=0," ",'Historical Expenditure-Volumes'!B21) -> CBL2 | D188: ='Historical Expenditure-Volumes'!D21-D153 -> 0 | E188: ='Historical Expenditure-Volumes'!E21-E153 -> 0 | F188: ='Historical Expenditure-Volumes'!F21-F153 -> 0 | G188: ='Historical Expenditure-Volumes'!G21-G153 -> 0 | I188: CBL2 | K188: =IF(D188<>"",D188*Inflation!G$10,"") -> 0 | L188: =IF(E188<>"",E188*Inflation!H$10,"") -> 0 | M188: =IF(F188<>"",F188*Inflation!I$10,"") -> 0 | N188: =IF(G188<>"",G188*Inflation!J$10,"") -> 0
B189: =IF('Historical Expenditure-Volumes'!B22=0," ",'Historical Expenditure-Volumes'!B22) -> CBP2 | D189: ='Historical Expenditure-Volumes'!D22-D154 -> 0 | E189: ='Historical Expenditure-Volumes'!E22-E154 -> 0 | F189: ='Historical Expenditure-Volumes'!F22-F154 -> 0 | G189: ='Historical Expenditure-Volumes'!G22-G154 -> 0 | I189: CBP2 | K189: =IF(D189<>"",D189*Inflation!G$10,"") -> 0 | L189: =IF(E189<>"",E189*Inflation!H$10,"") -> 0 | M189: =IF(F189<>"",F189*Inflation!I$10,"") -> 0 | N189: =IF(G189<>"",G189*Inflation!J$10,"") -> 0
B190: =IF('Historical Expenditure-Volumes'!B23=0," ",'Historical Expenditure-Volumes'!B23) -> CBS2 | D190: ='Historical Expenditure-Volumes'!D23-D155 -> 0 | E190: ='Historical Expenditure-Volumes'!E23-E155 -> 0 | F190: ='Historical Expenditure-Volumes'!F23-F155 -> 0 | G190: ='Historical Expenditure-Volumes'!G23-G155 -> 0 | I190: CBS2 | K190: =IF(D190<>"",D190*Inflation!G$10,"") -> 0 | L190: =IF(E190<>"",E190*Inflation!H$10,"") -> 0 | M190: =IF(F190<>"",F190*Inflation!I$10,"") -> 0 | N190: =IF(G190<>"",G190*Inflation!J$10,"") -> 0
B191: =IF('Historical Expenditure-Volumes'!B24=0," ",'Historical Expenditure-Volumes'!B24) -> CDA | D191: ='Historical Expenditure-Volumes'!D24-D156 -> 8388735.7 | E191: ='Historical Expenditure-Volumes'!E24-E156 -> 2738884.22 | F191: ='Historical Expenditure-Volumes'!F24-F156 -> 2760025.21 | G191: ='Historical Expenditure-Volumes'!G24-G156 -> 3310685.239 | I191: CDA | K191: =IF(D191<>"",D191*Inflation!G$10,"") -> 9204637.284 | L191: =IF(E191<>"",E191*Inflation!H$10,"") -> 2960542.757 | M191: =IF(F191<>"",F191*Inflation!I$10,"") -> 2953176.146 | N191: =IF(G191<>"",G191*Inflation!J$10,"") -> 3475172.762
B192: =IF('Historical Expenditure-Volumes'!B25=0," ",'Historical Expenditure-Volumes'!B25) -> CDP | D192: ='Historical Expenditure-Volumes'!D25-D157 -> 0 | E192: ='Historical Expenditure-Volumes'!E25-E157 -> 0 | F192: ='Historical Expenditure-Volumes'!F25-F157 -> 0 | G192: ='Historical Expenditure-Volumes'!G25-G157 -> 0 | I192: CDP | K192: =IF(D192<>"",D192*Inflation!G$10,"") -> 0 | L192: =IF(E192<>"",E192*Inflation!H$10,"") -> 0 | M192: =IF(F192<>"",F192*Inflation!I$10,"") -> 0 | N192: =IF(G192<>"",G192*Inflation!J$10,"") -> 0
B193: =IF('Historical Expenditure-Volumes'!B26=0," ",'Historical Expenditure-Volumes'!B26) -> CHH1 | D193: ='Historical Expenditure-Volumes'!D26-D158 -> 1357683.606 | E193: ='Historical Expenditure-Volumes'!E26-E158 -> 1880541.348 | F193: ='Historical Expenditure-Volumes'!F26-F158 -> -455.4510042 | G193: ='Historical Expenditure-Volumes'!G26-G158 -> 1055526.485 | I193: CHH1 | K193: =IF(D193<>"",D193*Inflation!G$10,"") -> 1489734.042 | L193: =IF(E193<>"",E193*Inflation!H$10,"") -> 2032733.996 | M193: =IF(F193<>"",F193*Inflation!I$10,"") -> -487.3241869 | N193: =IF(G193<>"",G193*Inflation!J$10,"") -> 1107969.083
B194: =IF('Historical Expenditure-Volumes'!B27=0," ",'Historical Expenditure-Volumes'!B27) -> CHL1 | D194: ='Historical Expenditure-Volumes'!D27-D159 -> 1416436.138 | E194: ='Historical Expenditure-Volumes'!E27-E159 -> 903288.7323 | F194: ='Historical Expenditure-Volumes'!F27-F159 -> 398590.7756 | G194: ='Historical Expenditure-Volumes'!G27-G159 -> 1311352.236 | I194: CHL1 | K194: =IF(D194<>"",D194*Inflation!G$10,"") -> 1554200.937 | L194: =IF(E194<>"",E194*Inflation!H$10,"") -> 976392.0995 | M194: =IF(F194<>"",F194*Inflation!I$10,"") -> 426484.7894 | N194: =IF(G194<>"",G194*Inflation!J$10,"") -> 1376505.238
B195: =IF('Historical Expenditure-Volumes'!B28=0," ",'Historical Expenditure-Volumes'!B28) -> CHH2 | D195: ='Historical Expenditure-Volumes'!D28-D160 -> 0 | E195: ='Historical Expenditure-Volumes'!E28-E160 -> 511421.94 | F195: ='Historical Expenditure-Volumes'!F28-F160 -> 618130.7371 | G195: ='Historical Expenditure-Volumes'!G28-G160 -> 631238.7259 | I195: CHH2 | K195: =IF(D195<>"",D195*Inflation!G$10,"") -> 0 | L195: =IF(E195<>"",E195*Inflation!H$10,"") -> 552811.4365 | M195: =IF(F195<>"",F195*Inflation!I$10,"") -> 661388.505 | N195: =IF(G195<>"",G195*Inflation!J$10,"") -> 662601.0836
B196: =IF('Historical Expenditure-Volumes'!B29=0," ",'Historical Expenditure-Volumes'!B29) -> CHL2 | D196: ='Historical Expenditure-Volumes'!D29-D161 -> 363495.4963 | E196: ='Historical Expenditure-Volumes'!E29-E161 -> 414284.75 | F196: ='Historical Expenditure-Volumes'!F29-F161 -> 356227.4633 | G196: ='Historical Expenditure-Volumes'!G29-G161 -> 267504.5933 | I196: CHL2 | K196: =IF(D196<>"",D196*Inflation!G$10,"") -> 398849.638 | L196: =IF(E196<>"",E196*Inflation!H$10,"") -> 447812.9112 | M196: =IF(F196<>"",F196*Inflation!I$10,"") -> 381156.8254 | N196: =IF(G196<>"",G196*Inflation!J$10,"") -> 280795.2461
B197: =IF('Historical Expenditure-Volumes'!B30=0," ",'Historical Expenditure-Volumes'!B30) -> CR1 | D197: ='Historical Expenditure-Volumes'!D30-D162 -> 4293823.939 | E197: ='Historical Expenditure-Volumes'!E30-E162 -> 2851212.09 | F197: ='Historical Expenditure-Volumes'!F30-F162 -> -1774399.903 | G197: ='Historical Expenditure-Volumes'!G30-G162 -> 1807342.178 | I197: CR1 | K197: =IF(D197<>"",D197*Inflation!G$10,"") -> 4711447.986 | L197: =IF(E197<>"",E197*Inflation!H$10,"") -> 3081961.347 | M197: =IF(F197<>"",F197*Inflation!I$10,"") -> -1898575.218 | N197: =IF(G197<>"",G197*Inflation!J$10,"") -> 1897137.86
B198: =IF('Historical Expenditure-Volumes'!B31=0," ",'Historical Expenditure-Volumes'!B31) -> CR2 | D198: ='Historical Expenditure-Volumes'!D31-D163 -> 2431118.654 | E198: ='Historical Expenditure-Volumes'!E31-E163 -> 1566316.47 | F198: ='Historical Expenditure-Volumes'!F31-F163 -> -1772579.682 | G198: ='Historical Expenditure-Volumes'!G31-G163 -> 832275.4067 | I198: CR2 | K198: =IF(D198<>"",D198*Inflation!G$10,"") -> 2667573.065 | L198: =IF(E198<>"",E198*Inflation!H$10,"") -> 1693078.827 | M198: =IF(F198<>"",F198*Inflation!I$10,"") -> -1896627.616 | N198: =IF(G198<>"",G198*Inflation!J$10,"") -> 873626.0366
B199: =IF('Historical Expenditure-Volumes'!B32=0," ",'Historical Expenditure-Volumes'!B32) -> CS1 | D199: ='Historical Expenditure-Volumes'!D32-D164 -> 764302.9367 | E199: ='Historical Expenditure-Volumes'!E32-E164 -> 238171.205 | F199: ='Historical Expenditure-Volumes'!F32-F164 -> 320033.205 | G199: ='Historical Expenditure-Volumes'!G32-G164 -> 452574.0575 | I199: CS1 | K199: =IF(D199<>"",D199*Inflation!G$10,"") -> 838640.2384 | L199: =IF(E199<>"",E199*Inflation!H$10,"") -> 257446.456 | M199: =IF(F199<>"",F199*Inflation!I$10,"") -> 342429.6356 | N199: =IF(G199<>"",G199*Inflation!J$10,"") -> 475059.6701
B200: =IF('Historical Expenditure-Volumes'!B33=0," ",'Historical Expenditure-Volumes'!B33) -> CS2 | D200: ='Historical Expenditure-Volumes'!D33-D165 -> 0 | E200: ='Historical Expenditure-Volumes'!E33-E165 -> 0 | F200: ='Historical Expenditure-Volumes'!F33-F165 -> 0 | G200: ='Historical Expenditure-Volumes'!G33-G165 -> 0 | I200: CS2 | K200: =IF(D200<>"",D200*Inflation!G$10,"") -> 0 | L200: =IF(E200<>"",E200*Inflation!H$10,"") -> 0 | M200: =IF(F200<>"",F200*Inflation!I$10,"") -> 0 | N200: =IF(G200<>"",G200*Inflation!J$10,"") -> 0
B201: Total | D201: =SUM(D175:D200) -> 44948291.97 | E201: =SUM(E175:E200) -> 28792647.08 | F201: =SUM(F175:F200) -> 13148240.61 | G201: =SUM(G175:G200) -> 18882969.72 | I201: Total | K201: =SUM(K175:K200) -> 49320033.31 | L201: =SUM(L175:L200) -> 31122842.7 | M201: =SUM(M175:M200) -> 14068375.31 | N201: =SUM(N175:N200) -> 19821147.98
B204: Historical Total Contribution Ratios by Function Code
C206: %
B207: Function Code | C207: Description | D207: 2015/16 | E207: 2016/17 | F207: 2017/18 | G207: 2018/19
B208: =IF('Historical Expenditure-Volumes'!B8=0," ",'Historical Expenditure-Volumes'!B8) -> CBE1 | D208: =IF('Historical Expenditure-Volumes'!D8=0,0,D140/'Historical Expenditure-Volumes'!D8) -> 0.1839926004 | E208: =IF('Historical Expenditure-Volumes'!E8=0,0,E140/'Historical Expenditure-Volumes'!E8) -> 0.2852849243 | F208: =IF('Historical Expenditure-Volumes'!F8=0,0,F140/'Historical Expenditure-Volumes'!F8) -> 0.3161750911 | G208: =IF('Historical Expenditure-Volumes'!G8=0,0,G140/'Historical Expenditure-Volumes'!G8) -> 0.3957295484
B209: =IF('Historical Expenditure-Volumes'!B9=0," ",'Historical Expenditure-Volumes'!B9) -> CBG1 | D209: =IF('Historical Expenditure-Volumes'!D9=0,0,D141/'Historical Expenditure-Volumes'!D9) -> 0.2086478444 | E209: =IF('Historical Expenditure-Volumes'!E9=0,0,E141/'Historical Expenditure-Volumes'!E9) -> 0.1753592893 | F209: =IF('Historical Expenditure-Volumes'!F9=0,0,F141/'Historical Expenditure-Volumes'!F9) -> 0.4767030141 | G209: =IF('Historical Expenditure-Volumes'!G9=0,0,G141/'Historical Expenditure-Volumes'!G9) -> 0.6526443401
B210: =IF('Historical Expenditure-Volumes'!B10=0," ",'Historical Expenditure-Volumes'!B10) -> CBH1 | D210: =IF('Historical Expenditure-Volumes'!D10=0,0,D142/'Historical Expenditure-Volumes'!D10) -> 0.3042978992 | E210: =IF('Historical Expenditure-Volumes'!E10=0,0,E142/'Historical Expenditure-Volumes'!E10) -> 0.0966688254 | F210: =IF('Historical Expenditure-Volumes'!F10=0,0,F142/'Historical Expenditure-Volumes'!F10) -> 0.6459034991 | G210: =IF('Historical Expenditure-Volumes'!G10=0,0,G142/'Historical Expenditure-Volumes'!G10) -> 1.038339056
B211: =IF('Historical Expenditure-Volumes'!B11=0," ",'Historical Expenditure-Volumes'!B11) -> CBI1 | D211: =IF('Historical Expenditure-Volumes'!D11=0,0,D143/'Historical Expenditure-Volumes'!D11) -> 0.1661742578 | E211: =IF('Historical Expenditure-Volumes'!E11=0,0,E143/'Historical Expenditure-Volumes'!E11) -> 0.3871478329 | F211: =IF('Historical Expenditure-Volumes'!F11=0,0,F143/'Historical Expenditure-Volumes'!F11) -> 0.4345716736 | G211: =IF('Historical Expenditure-Volumes'!G11=0,0,G143/'Historical Expenditure-Volumes'!G11) -> 0.5888464816
B212: =IF('Historical Expenditure-Volumes'!B12=0," ",'Historical Expenditure-Volumes'!B12) -> CBK1 | D212: =IF('Historical Expenditure-Volumes'!D12=0,0,D144/'Historical Expenditure-Volumes'!D12) -> 0.167491988 | E212: =IF('Historical Expenditure-Volumes'!E12=0,0,E144/'Historical Expenditure-Volumes'!E12) -> 0.404893528 | F212: =IF('Historical Expenditure-Volumes'!F12=0,0,F144/'Historical Expenditure-Volumes'!F12) -> 0.3979804067 | G212: =IF('Historical Expenditure-Volumes'!G12=0,0,G144/'Historical Expenditure-Volumes'!G12) -> 0.6365673849
B213: =IF('Historical Expenditure-Volumes'!B13=0," ",'Historical Expenditure-Volumes'!B13) -> CBL1 | D213: =IF('Historical Expenditure-Volumes'!D13=0,0,D145/'Historical Expenditure-Volumes'!D13) -> 0.1888553125 | E213: =IF('Historical Expenditure-Volumes'!E13=0,0,E145/'Historical Expenditure-Volumes'!E13) -> 0.2892876641 | F213: =IF('Historical Expenditure-Volumes'!F13=0,0,F145/'Historical Expenditure-Volumes'!F13) -> 0.474099931 | G213: =IF('Historical Expenditure-Volumes'!G13=0,0,G145/'Historical Expenditure-Volumes'!G13) -> 0.5193666285
B214: =IF('Historical Expenditure-Volumes'!B14=0," ",'Historical Expenditure-Volumes'!B14) -> CBP1 | D214: =IF('Historical Expenditure-Volumes'!D14=0,0,D146/'Historical Expenditure-Volumes'!D14) -> 0.2148002175 | E214: =IF('Historical Expenditure-Volumes'!E14=0,0,E146/'Historical Expenditure-Volumes'!E14) -> 0.3646377557 | F214: =IF('Historical Expenditure-Volumes'!F14=0,0,F146/'Historical Expenditure-Volumes'!F14) -> 0.425529423 | G214: =IF('Historical Expenditure-Volumes'!G14=0,0,G146/'Historical Expenditure-Volumes'!G14) -> 0.5382623922
B215: =IF('Historical Expenditure-Volumes'!B15=0," ",'Historical Expenditure-Volumes'!B15) -> CBS1 | D215: =IF('Historical Expenditure-Volumes'!D15=0,0,D147/'Historical Expenditure-Volumes'!D15) -> 0 | E215: =IF('Historical Expenditure-Volumes'!E15=0,0,E147/'Historical Expenditure-Volumes'!E15) -> 0 | F215: =IF('Historical Expenditure-Volumes'!F15=0,0,F147/'Historical Expenditure-Volumes'!F15) -> 0 | G215: =IF('Historical Expenditure-Volumes'!G15=0,0,G147/'Historical Expenditure-Volumes'!G15) -> 0
B216: =IF('Historical Expenditure-Volumes'!B16=0," ",'Historical Expenditure-Volumes'!B16) -> CBE2 | D216: =IF('Historical Expenditure-Volumes'!D16=0,0,D148/'Historical Expenditure-Volumes'!D16) -> 0 | E216: =IF('Historical Expenditure-Volumes'!E16=0,0,E148/'Historical Expenditure-Volumes'!E16) -> 0 | F216: =IF('Historical Expenditure-Volumes'!F16=0,0,F148/'Historical Expenditure-Volumes'!F16) -> 0 | G216: =IF('Historical Expenditure-Volumes'!G16=0,0,G148/'Historical Expenditure-Volumes'!G16) -> 0
B217: =IF('Historical Expenditure-Volumes'!B17=0," ",'Historical Expenditure-Volumes'!B17) -> CBG2 | D217: =IF('Historical Expenditure-Volumes'!D17=0,0,D149/'Historical Expenditure-Volumes'!D17) -> 0 | E217: =IF('Historical Expenditure-Volumes'!E17=0,0,E149/'Historical Expenditure-Volumes'!E17) -> 0 | F217: =IF('Historical Expenditure-Volumes'!F17=0,0,F149/'Historical Expenditure-Volumes'!F17) -> 0 | G217: =IF('Historical Expenditure-Volumes'!G17=0,0,G149/'Historical Expenditure-Volumes'!G17) -> 0
B218: =IF('Historical Expenditure-Volumes'!B18=0," ",'Historical Expenditure-Volumes'!B18) -> CBH2 | D218: =IF('Historical Expenditure-Volumes'!D18=0,0,D150/'Historical Expenditure-Volumes'!D18) -> 0.247738006 | E218: =IF('Historical Expenditure-Volumes'!E18=0,0,E150/'Historical Expenditure-Volumes'!E18) -> 0.5172963108 | F218: =IF('Historical Expenditure-Volumes'!F18=0,0,F150/'Historical Expenditure-Volumes'!F18) -> 0.09684546818 | G218: =IF('Historical Expenditure-Volumes'!G18=0,0,G150/'Historical Expenditure-Volumes'!G18) -> 0.6962953584
B219: =IF('Historical Expenditure-Volumes'!B19=0," ",'Historical Expenditure-Volumes'!B19) -> CBI2 | D219: =IF('Historical Expenditure-Volumes'!D19=0,0,D151/'Historical Expenditure-Volumes'!D19) -> 0.3512406661 | E219: =IF('Historical Expenditure-Volumes'!E19=0,0,E151/'Historical Expenditure-Volumes'!E19) -> 0.2318154117 | F219: =IF('Historical Expenditure-Volumes'!F19=0,0,F151/'Historical Expenditure-Volumes'!F19) -> 0.103283113 | G219: =IF('Historical Expenditure-Volumes'!G19=0,0,G151/'Historical Expenditure-Volumes'!G19) -> 0.3623629491
B220: =IF('Historical Expenditure-Volumes'!B20=0," ",'Historical Expenditure-Volumes'!B20) -> CBK2 | D220: =IF('Historical Expenditure-Volumes'!D20=0,0,D152/'Historical Expenditure-Volumes'!D20) -> 0.521468669 | E220: =IF('Historical Expenditure-Volumes'!E20=0,0,E152/'Historical Expenditure-Volumes'!E20) -> 0.763454123 | F220: =IF('Historical Expenditure-Volumes'!F20=0,0,F152/'Historical Expenditure-Volumes'!F20) -> 1.517825639 | G220: =IF('Historical Expenditure-Volumes'!G20=0,0,G152/'Historical Expenditure-Volumes'!G20) -> 0.1451978536
... 15 more rows

Sheet ACIF Growth Figures
A1: =Inflation!A1 -> United Energy - Connections | O1: Menu
A2: =RIGHT(CELL("filename", $A$1), LEN(CELL("filename", $A$1)) - SEARCH("]", CELL("filename", $A$1))) -> ACIF Growth Figures
B4: Growth Indices by Industry Type
C6: Growth Rate
B7: Function Code | C7: Description | E7: 2015-16 | F7: 2016-17 | G7: 2017-18 | H7: 2018-19 | I7: 2019-20 | J7: 2020-21 | K7: 2021-22 | L7: 2022-23 | M7: 2023-24 | N7: 2024-25 | O7: 2025-26
B8: =IF('Historical Expenditure-Volumes'!B8=0," ",'Historical Expenditure-Volumes'!B8) -> CBE1 | C8: Business Supply - LV connections & LV augmentation as required (SR>150kVA) <=$400k | E8: 1.034826382 | F8: 1.043978954 | G8: 1.148155192 | H8: 1.04373033 | I8: 0.9757974925 | J8: 1.024314874 | K8: 0.9826135281 | L8: 0.9323745657 | M8: 0.9926343154 | N8: 1.021300742 | O8: 1.010257287
B9: =IF('Historical Expenditure-Volumes'!B9=0," ",'Historical Expenditure-Volumes'!B9) -> CBG1 | C9: Business Supply - ground substation augmentation (SR>200kVA) <=$400k | E9: 1.034826382 | F9: 1.043978954 | G9: 1.148155192 | H9: 1.04373033 | I9: 0.9757974925 | J9: 1.024314874 | K9: 0.9826135281 | L9: 0.9323745657 | M9: 0.9926343154 | N9: 1.021300742 | O9: 1.010257287
B10: =IF('Historical Expenditure-Volumes'!B10=0," ",'Historical Expenditure-Volumes'!B10) -> CBH1 | C10: Business Supply -HV customer connection (SR>200kVA) <=$400k | E10: 1.034826382 | F10: 1.043978954 | G10: 1.148155192 | H10: 1.04373033 | I10: 0.9757974925 | J10: 1.024314874 | K10: 0.9826135281 | L10: 0.9323745657 | M10: 0.9926343154 | N10: 1.021300742 | O10: 1.010257287
B11: =IF('Historical Expenditure-Volumes'!B11=0," ",'Historical Expenditure-Volumes'!B11) -> CBI1 | C11: Business Supply - New Indoor Sub (SR>200kVA) <=$400k | E11: 1.034826382 | F11: 1.043978954 | G11: 1.148155192 | H11: 1.04373033 | I11: 0.9757974925 | J11: 1.024314874 | K11: 0.9826135281 | L11: 0.9323745657 | M11: 0.9926343154 | N11: 1.021300742 | O11: 1.010257287
B12: =IF('Historical Expenditure-Volumes'!B12=0," ",'Historical Expenditure-Volumes'!B12) -> CBK1 | C12: Business Supply - New Kiosk Substation (SR>200kVA) <=$400k | E12: 1.034826382 | F12: 1.043978954 | G12: 1.148155192 | H12: 1.04373033 | I12: 0.9757974925 | J12: 1.024314874 | K12: 0.9826135281 | L12: 0.9323745657 | M12: 0.9926343154 | N12: 1.021300742 | O12: 1.010257287
B13: =IF('Historical Expenditure-Volumes'!B13=0," ",'Historical Expenditure-Volumes'!B13) -> CBL1 | C13: Business Supply - LV connections & LV augmentation as required (70kVA<SR<150kVA) <=$400k | E13: 1.034826382 | F13: 1.043978954 | G13: 1.148155192 | H13: 1.04373033 | I13: 0.9757974925 | J13: 1.024314874 | K13: 0.9826135281 | L13: 0.9323745657 | M13: 0.9926343154 | N13: 1.021300742 | O13: 1.010257287
B14: =IF('Historical Expenditure-Volumes'!B14=0," ",'Historical Expenditure-Volumes'!B14) -> CBP1 | C14: Business Supply - Pole Substation (SR>200 kVA) <=$400k | E14: 1.034826382 | F14: 1.043978954 | G14: 1.148155192 | H14: 1.04373033 | I14: 0.9757974925 | J14: 1.024314874 | K14: 0.9826135281 | L14: 0.9323745657 | M14: 0.9926343154 | N14: 1.021300742 | O14: 1.010257287
B15: =IF('Historical Expenditure-Volumes'!B15=0," ",'Historical Expenditure-Volumes'!B15) -> CBS1 | C15: Bus Sup Proj>10kVA-Sub Modific <=$400k | E15: 1.034826382 | F15: 1.043978954 | G15: 1.148155192 | H15: 1.04373033 | I15: 0.9757974925 | J15: 1.024314874 | K15: 0.9826135281 | L15: 0.9323745657 | M15: 0.9926343154 | N15: 1.021300742 | O15: 1.010257287
B16: =IF('Historical Expenditure-Volumes'!B16=0," ",'Historical Expenditure-Volumes'!B16) -> CBE2 | C16: Business Supply - LV connections & LV augmentation as required (SR>150kVA) >$400k | E16: 1.034826382 | F16: 1.043978954 | G16: 1.148155192 | H16: 1.04373033 | I16: 0.9757974925 | J16: 1.024314874 | K16: 0.9826135281 | L16: 0.9323745657 | M16: 0.9926343154 | N16: 1.021300742 | O16: 1.010257287
B17: =IF('Historical Expenditure-Volumes'!B17=0," ",'Historical Expenditure-Volumes'!B17) -> CBG2 | C17: Business Supply - ground substation augmentation (SR>200kVA) >$400k | E17: 1.034826382 | F17: 1.043978954 | G17: 1.148155192 | H17: 1.04373033 | I17: 0.9757974925 | J17: 1.024314874 | K17: 0.9826135281 | L17: 0.9323745657 | M17: 0.9926343154 | N17: 1.021300742 | O17: 1.010257287
B18: =IF('Historical Expenditure-Volumes'!B18=0," ",'Historical Expenditure-Volumes'!B18) -> CBH2 | C18: Business Supply -HV customer connection (SR>200kVA) >$400k | E18: 1.034826382 | F18: 1.043978954 | G18: 1.148155192 | H18: 1.04373033 | I18: 0.9757974925 | J18: 1.024314874 | K18: 0.9826135281 | L18: 0.9323745657 | M18: 0.9926343154 | N18: 1.021300742 | O18: 1.010257287
B19: =IF('Historical Expenditure-Volumes'!B19=0," ",'Historical Expenditure-Volumes'!B19) -> CBI2 | C19: Business Supply - New Indoor Sub (SR>200kVA) >$400k | E19: 1.034826382 | F19: 1.043978954 | G19: 1.148155192 | H19: 1.04373033 | I19: 0.9757974925 | J19: 1.024314874 | K19: 0.9826135281 | L19: 0.9323745657 | M19: 0.9926343154 | N19: 1.021300742 | O19: 1.010257287
B20: =IF('Historical Expenditure-Volumes'!B20=0," ",'Historical Expenditure-Volumes'!B20) -> CBK2 | C20: Business Supply - New Kiosk Substation (SR>200kVA) >$400k | E20: 1.034826382 | F20: 1.043978954 | G20: 1.148155192 | H20: 1.04373033 | I20: 0.9757974925 | J20: 1.024314874 | K20: 0.9826135281 | L20: 0.9323745657 | M20: 0.9926343154 | N20: 1.021300742 | O20: 1.010257287
B21: =IF('Historical Expenditure-Volumes'!B21=0," ",'Historical Expenditure-Volumes'!B21) -> CBL2 | C21: Business Supply - LV connections & LV augmentation as required (70kVA<SR<150kVA) >$400k | E21: 1.034826382 | F21: 1.043978954 | G21: 1.148155192 | H21: 1.04373033 | I21: 0.9757974925 | J21: 1.024314874 | K21: 0.9826135281 | L21: 0.9323745657 | M21: 0.9926343154 | N21: 1.021300742 | O21: 1.010257287
B22: =IF('Historical Expenditure-Volumes'!B22=0," ",'Historical Expenditure-Volumes'!B22) -> CBP2 | C22: Business Supply - Pole Substation (SR>200 kVA) >$400k | E22: 1.034826382 | F22: 1.043978954 | G22: 1.148155192 | H22: 1.04373033 | I22: 0.9757974925 | J22: 1.024314874 | K22: 0.9826135281 | L22: 0.9323745657 | M22: 0.9926343154 | N22: 1.021300742 | O22: 1.010257287
B23: =IF('Historical Expenditure-Volumes'!B23=0," ",'Historical Expenditure-Volumes'!B23) -> CBS2 | C23: Bus Sup Proj>10kVA-Sub Modific >$400k | E23: 1.034826382 | F23: 1.043978954 | G23: 1.148155192 | H23: 1.04373033 | I23: 0.9757974925 | J23: 1.024314874 | K23: 0.9826135281 | L23: 0.9323745657 | M23: 0.9926343154 | N23: 1.021300742 | O23: 1.010257287
B24: =IF('Historical Expenditure-Volumes'!B24=0," ",'Historical Expenditure-Volumes'!B24) -> CDA | C24: S/DIVISION PIT INST Dual & multiple occupancy new supply (SR<100kVA) | E24: 1.111700265 | F24: 1.058180346 | G24: 1.01679636 | H24: 0.9843593175 | I24: 0.9403942561 | J24: 0.9886604924 | K24: 1.024309998 | L24: 1.033547466 | M24: 1.016229282 | N24: 1.007815155 | O24: 1.005141605
B25: =IF('Historical Expenditure-Volumes'!B25=0," ",'Historical Expenditure-Volumes'!B25) -> CDP | C25: SP2-FY16-CDP-CB-PIT AT BSE REPL P/L POLE | E25: 1.111700265 | F25: 1.058180346 | G25: 1.01679636 | H25: 0.9843593175 | I25: 0.9403942561 | J25: 0.9886604924 | K25: 1.024309998 | L25: 1.033547466 | M25: 1.016229282 | N25: 1.007815155 | O25: 1.005141605
B26: =IF('Historical Expenditure-Volumes'!B26=0," ",'Historical Expenditure-Volumes'!B26) -> CHH1 | C26: URD - HV Extension (SR >200kVA) no of lots >15 lot | E26: 1.191090666 | F26: 1.065641506 | G26: 1.049712862 | H26: 0.9896169176 | I26: 0.8928095018 | J26: 0.9125231658 | K26: 0.9492427343 | L26: 1.028195177 | M26: 1.107107139 | N26: 1.033015707 | O26: 1.006121298
B27: =IF('Historical Expenditure-Volumes'!B27=0," ",'Historical Expenditure-Volumes'!B27) -> CHL1 | C27: URD - LV Extension (100kVA<SR<200kVA) No of lots <15 lot | E27: 1.191090666 | F27: 1.065641506 | G27: 1.049712862 | H27: 0.9896169176 | I27: 0.8928095018 | J27: 0.9125231658 | K27: 0.9492427343 | L27: 1.028195177 | M27: 1.107107139 | N27: 1.033015707 | O27: 1.006121298
B28: =IF('Historical Expenditure-Volumes'!B28=0," ",'Historical Expenditure-Volumes'!B28) -> CHH2 | C28: URD - HV Extension (SR >200kVA) no of lots >15 lot | E28: 1.191090666 | F28: 1.065641506 | G28: 1.049712862 | H28: 0.9896169176 | I28: 0.8928095018 | J28: 0.9125231658 | K28: 0.9492427343 | L28: 1.028195177 | M28: 1.107107139 | N28: 1.033015707 | O28: 1.006121298
B29: =IF('Historical Expenditure-Volumes'!B29=0," ",'Historical Expenditure-Volumes'!B29) -> CHL2 | C29: URD - LV Extension (100kVA<SR<200kVA) No of lots <15 lot | E29: 1.191090666 | F29: 1.065641506 | G29: 1.049712862 | H29: 0.9896169176 | I29: 0.8928095018 | J29: 0.9125231658 | K29: 0.9492427343 | L29: 1.028195177 | M29: 1.107107139 | N29: 1.033015707 | O29: 1.006121298
B30: =IF('Historical Expenditure-Volumes'!B30=0," ",'Historical Expenditure-Volumes'!B30) -> CR1 | C30: All recoverable works <= $400k | E30: 1.082329078 | F30: 1.104839599 | G30: 1.37198164 | H30: 1.104363636 | I30: 1.075403359 | J30: 1.023821188 | K30: 0.9857048867 | L30: 0.9210558252 | M30: 0.9333289413 | N30: 0.9682360415 | O30: 0.9818473427
B31: =IF('Historical Expenditure-Volumes'!B31=0," ",'Historical Expenditure-Volumes'!B31) -> CR2 | C31: All recoverable works > $400k | E31: 1.082329078 | F31: 1.104839599 | G31: 1.37198164 | H31: 1.104363636 | I31: 1.075403359 | J31: 1.023821188 | K31: 0.9857048867 | L31: 0.9210558252 | M31: 0.9333289413 | N31: 0.9682360415 | O31: 0.9818473427
B32: =IF('Historical Expenditure-Volumes'!B32=0," ",'Historical Expenditure-Volumes'!B32) -> CS1 | C32: Rural Supply - O/H HV and U/G HV - <= $400k | E32: 1.123695751 | F32: 1.063383125 | G32: 1.046443938 | H32: 1.0147539 | I32: 0.9383863663 | J32: 0.9629159258 | K32: 1.022025851 | L32: 1.028003613 | M32: 1.016821491 | N32: 1.005432099 | O32: 1.006016699
B33: =IF('Historical Expenditure-Volumes'!B33=0," ",'Historical Expenditure-Volumes'!B33) -> CS2 | C33: Rural Supply - O/H HV and U/G HV - > $400k | E33: 1.123695751 | F33: 1.063383125 | G33: 1.046443938 | H33: 1.0147539 | I33: 0.9383863663 | J33: 0.9629159258 | K33: 1.022025851 | L33: 1.028003613 | M33: 1.016821491 | N33: 1.005432099 | O33: 1.006016699
B39: ACIF DATA: -
B41: Type | C41: Sector | D41: Region | E41: 2015-16 | F41: 2016-17 | G41: 2017-18 | H41: 2018-19 | I41: 2019-20 | J41: 2020-21 | K41: 2021-22 | L41: 2022-23 | M41: 2023-24 | N41: 2024-25 | O41: 2025-26
B42: Residential | C42: New Houses | D42: VIC | E42: 10706 | F42: 11052 | G42: 11333 | H42: 11533 | I42: 11166 | J42: 10670 | K42: 10924 | L42: 11230 | M42: 11416 | N42: 11479 | O42: 11548
B43: Residential | C43: New Other Residential | D43: VIC | E43: 8310 | F43: 8754 | G43: 9317 | H43: 9405 | I43: 8300 | J43: 7263 | K43: 6596 | L43: 6767 | M43: 7858 | N43: 8221 | O43: 8275
B44: Residential | C44: Alterations and Additions (large) | D44: VIC | E44: 2685 | F44: 2937 | G44: 2666 | H44: 2639 | I44: 2460 | J44: 2597 | K44: 2668 | L44: 2790 | M44: 2833 | N44: 2869 | O44: 2878
B45: Residential | C45: Other (mainly small alterations and additions) | D45: VIC | E45: 6624 | F45: 7321 | G45: 6775 | H45: 6924 | I45: 6658 | J45: 6350 | K45: 6539 | L45: 6972 | M45: 7358 | N45: 7493 | O45: 7456
B46: Non-residential | C46: Industrial | D46: VIC | E46: 1579 | F46: 1663 | G46: 1716 | H46: 1643 | I46: 1712 | J46: 1703 | K46: 1718 | L46: 1810 | M46: 1844 | N46: 1795 | O46: 1790
B47: Non-residential | C47: Educational | D47: VIC | E47: 1287 | F47: 1701 | G47: 2266 | H47: 2334 | I47: 2398 | J47: 2423 | K47: 2223 | L47: 2077 | M47: 2110 | N47: 2122 | O47: 2150
B48: Non-residential | C48: Health and aged care | D48: VIC | E48: 1613 | F48: 1173 | G48: 1413 | H48: 1300 | I48: 1208 | J48: 1284 | K48: 1442 | L48: 1419 | M48: 1252 | N48: 1251 | O48: 1266
B49: Non-residential | C49: Entertainment and recreation | D49: VIC | E49: 408 | F49: 885 | G49: 979 | H49: 848 | I49: 848 | J49: 925 | K49: 875 | L49: 707 | M49: 703 | N49: 724 | O49: 719
B50: Non-residential | C50: Accommodation | D50: VIC | E50: 225 | F50: 429 | G50: 708 | H50: 756 | I50: 577 | J50: 610 | K50: 586 | L50: 501 | M50: 456 | N50: 438 | O50: 375
B51: Non-residential | C51: Miscellaneous | D51: VIC | E51: 704 | F51: 750 | G51: 658 | H51: 988 | I51: 1103 | J51: 1074 | K51: 1051 | L51: 1021 | M51: 989 | N51: 970 | O51: 957
B52: Non-residential | C52: Retail/Wholesale trade | D52: VIC | E52: 1615 | F52: 1827 | G52: 1445 | H52: 1412 | I52: 1454 | J52: 1492 | K52: 1532 | L52: 1518 | M52: 1446 | N52: 1413 | O52: 1460
B53: Non-residential | C53: Offices | D53: VIC | E53: 1935 | F53: 1639 | G53: 2505 | H53: 2930 | I53: 2800 | J53: 2725 | K53: 2598 | L53: 2067 | M53: 2079 | N53: 2311 | O53: 2360
B54: Non-residential | C54: Other commercial | D54: VIC | E54: 302 | F54: 211 | G54: 483 | H54: 558 | I54: 448 | J54: 415 | K54: 423 | L54: 403 | M54: 409 | N54: 415 | O54: 430
B55: Engineering | C55: Roads | D55: VIC | E55: 2857 | F55: 3270 | G55: 4304 | H55: 4407 | I55: 4969 | J55: 5100 | K55: 5351 | L55: 4655 | M55: 4573 | N55: 4251 | O55: 4202
B56: Engineering | C56: Bridges, railways, harbours | D56: VIC | E56: 1211 | F56: 1460 | G56: 2921 | H56: 3483 | I56: 4888 | J56: 5074 | K56: 4886 | L56: 4450 | M56: 3789 | N56: 3388 | O56: 2937
B57: Engineering | C57: Electricity, pipelines | D57: VIC | E57: 2356 | F57: 2042 | G57: 2662 | H57: 3645 | I57: 3524 | J57: 3643 | K57: 3117 | L57: 2952 | M57: 2676 | N57: 2733 | O57: 2697
B58: Engineering | C58: Water and sewerage | D58: VIC | E58: 729 | F58: 725 | G58: 1167 | H58: 1167 | I58: 1303 | J58: 1475 | K58: 1518 | L58: 1298 | M58: 1223 | N58: 1233 | O58: 1278
B59: Engineering | C59: Telecommunications | D59: VIC | E59: 1918 | F59: 2525 | G59: 2696 | H59: 2483 | I59: 1646 | J59: 1427 | K59: 1608 | L59: 1824 | M59: 1906 | N59: 2112 | O59: 2354
B60: Engineering | C60: Heavy industry incl. mining | D60: VIC | E60: 1022 | F60: 793 | G60: 447 | H60: 452 | I60: 484 | J60: 512 | K60: 515 | L60: 592 | M60: 606 | N60: 623 | O60: 626
B61: Engineering | C61: Recreation and other | D61: VIC | E61: 1060 | F61: 1211 | G61: 1605 | H61: 1476 | I61: 1516 | J61: 1623 | K61: 1592 | L61: 1502 | M61: 1578 | N61: 1653 | O61: 1711
B62: Residential | C62: New Houses | D62: Melbourne | E62: 7431 | F62: 7902 | G62: 8269 | H62: 8391 | I62: 7874 | J62: 7582 | K62: 7749 | L62: 7966 | M62: 8100 | N62: 8144 | O62: 8193
B63: Residential | C63: New Other Residential | D63: Melbourne | E63: 8034 | F63: 8589 | G63: 9145 | H63: 9071 | I63: 7912 | J63: 6939 | K63: 6313 | L63: 6471 | M63: 7515 | N63: 7862 | O63: 7914
B64: Residential | C64: Alterations and Additions (large) | D64: Melbourne | E64: 2454 | F64: 2571 | G64: 2458 | H64: 2252 | I64: 2129 | J64: 2240 | K64: 2306 | L64: 2412 | M64: 2448 | N64: 2480 | O64: 2488
B65: Residential | C65: Other (mainly small alterations and additions) | D65: Melbourne | E65: 5044 | F65: 5591 | G65: 5156 | H65: 5269 | I65: 5067 | J65: 4837 | K65: 4978 | L65: 5307 | M65: 5602 | N65: 5704 | O65: 5676
B66: Non-residential | C66: Educational | D66: Melbourne | E66: 1104 | F66: 1512 | G66: 1740 | H66: 1863 | I66: 1950 | J66: 1989 | K66: 1830 | L66: 1707 | M66: 1734 | N66: 1745 | O66: 1767
B67: Non-residential | C67: Health and aged care | D67: Melbourne | E67: 1155 | F67: 891 | G67: 1197 | H67: 971 | I67: 894 | J67: 938 | K67: 1064 | L67: 1046 | M67: 923 | N67: 922 | O67: 933
B68: Non-residential | C68: Entertainment and recreation | D68: Melbourne | E68: 348 | F68: 675 | G68: 766 | H68: 635 | I68: 702 | J68: 733 | K68: 702 | L68: 567 | M68: 563 | N68: 580 | O68: 576
B69: Non-residential | C69: Accommodation | D69: Melbourne | E69: 209 | F69: 399 | G69: 679 | H69: 696 | I69: 500 | J69: 549 | K69: 523 | L69: 447 | M69: 408 | N69: 391 | O69: 335
B70: Non-residential | C70: Miscellaneous | D70: Melbourne | E70: 517 | F70: 560 | G70: 434 | H70: 723 | I70: 627 | J70: 678 | K70: 644 | L70: 627 | M70: 609 | N70: 596 | O70: 588
B71: Non-residential | C71: Retail/Wholesale trade | D71: Melbourne | E71: 1302 | F71: 1385 | G71: 1182 | H71: 1223 | I71: 1256 | J71: 1281 | K71: 1317 | L71: 1304 | M71: 1242 | N71: 1214 | O71: 1255
B72: Non-residential | C72: Offices | D72: Melbourne | E72: 1816 | F72: 1478 | G72: 2238 | H72: 2764 | I72: 2656 | J72: 2586 | K72: 2471 | L72: 1965 | M72: 1976 | N72: 2196 | O72: 2243
B73: Non-residential | C73: Other commercial | D73: Melbourne | E73: 218 | F73: 141 | G73: 322 | H73: 400 | I73: 285 | J73: 273 | K73: 277 | L73: 264 | M73: 268 | N73: 272 | O73: 282
B74: Non-residential | C74: Industrial | D74: Melbourne | E74: 1322 | F74: 1471 | G74: 1464 | H74: 1399 | I74: 1427 | J74: 1434 | K74: 1442 | L74: 1519 | M74: 1548 | N74: 1507 | O74: 1503
B77: End of Sheet

Sheet Major Projects
A1: =Inflation!A1 -> United Energy - Connections | G1: Menu
A2: =RIGHT(CELL("filename", $A$1), LEN(CELL("filename", $A$1)) - SEARCH("]", CELL("filename", $A$1))) -> Major Projects
B4: Major Projects
C6: ="$ 2019" -> $ 2019
B7: Function Code | C7: 2019/20 | D7: 2020/21 | E7: 2021/22 | F7: 2022/23 | G7: 2023/24 | H7: 2024/25 | I7: 2025/26
B8: ='Historical Expenditure-Volumes'!B10 -> CBH1 | C8: 430115.5024 | D8: 430115.5024 | E8: 430115.5024 | F8: 430115.5024 | G8: 430115.5024 | H8: 430115.5024 | I8: 430115.5024
B9: ='Historical Expenditure-Volumes'!B18 -> CBH2 | C9: 1882102.57 | D9: 1532102.57 | E9: 2182102.57 | F9: 2962102.57 | G9: 1832102.57 | H9: 3282102.57 | I9: 2132102.57
B10: ='Historical Expenditure-Volumes'!B30 -> CR1 | C10: 9580128.812 | D10: 9580128.812 | E10: 9580128.812 | F10: 9580128.812 | G10: 9580128.812 | H10: 9580128.812 | I10: 9580128.812
B11: ='Historical Expenditure-Volumes'!B31 -> CR2 | C11: 7220000 | D11: 8300000 | E11: 11750000 | F11: 9540000 | G11: 13800000 | H11: 8800000 | I11: 3850000
B12: Totals of major projects for CBH and CR projects | C12: =SUM(C8:C11) -> 19112346.88 | D12: 19842346.88 | E12: 23942346.88 | F12: 22512346.88 | G12: 25642346.88 | H12: 22092346.88 | I12: 15992346.88
B15: End of Sheet

Sheet Function Code Mapping
A1: =Inflation!A1 -> United Energy - Connections | D1: Menu
A2: =RIGHT(CELL("filename", $A$1), LEN(CELL("filename", $A$1)) - SEARCH("]", CELL("filename", $A$1))) -> Function Code Mapping | C2: Sheet Check | D2: =IF(SUM(S26:S51)<>0,"Check!","OK") -> OK
B4: Allocation of RIN categories expenditure to FC
B6: CONNECTION SUBCATEGORY | C6: CONNECTION CLASSIFICATION | D6: CODE
B7: RESIDENTIAL | C7: SIMPLE CONNECTION LV | D7: R1
C8: COMPLEX CONNECTION LV | D8: R2
C9: COMPLEX CONNECTION HV | D9: R3
B10: COMMERCIAL/INDUSTRIAL | C10: SIMPLE CONNECTION LV | D10: CI1
C11: COMPLEX CONNECTION HV (CUSTOMER CONNECTED AT LV, MINOR HV WORKS) | D11: CI2
C12: COMPLEX CONNECTION HV (CUSTOMER CONNECTED AT LV, UPSTREAM ASSET WORKS) | D12: CI3
C13: COMPLEX CONNECTION HV (CUSTOMER CONNECTED AT HV) | D13: CI4
C14: COMPLEX CONNECTION SUB-TRANSMISSION | D14: CI5
B15: SUBDIVISION | C15: COMPLEX CONNECTION LV | D15: S1
C16: COMPLEX CONNECTION HV (NO UPSTREAM ASSET WORKS) | D16: S2
C17: COMPLEX CONNECTION HV (WITH UPSTREAM ASSET WORKS) | D17: S3
B18: EMBEDDED GENERATION | C18: SIMPLE CONNECTION LV | D18: EG1
C19: COMPLEX CONNECTION HV (SMALL CAPACITY) | D19: EG2
C20: COMPLEX CONNECTION HV (LARGE CAPACITY) | D20: EG3
B23: Function Code Titles
D24: AER Code
B25: Capex | C25: Description | D25: R1 | E25: R2 | F25: R3 | G25: CI1 | H25: CI2 | I25: CI3 | J25: CI4 | K25: CI5 | L25: S1 | M25: S2 | N25: S3 | O25: EG1 | P25: EG2 | Q25: EG3 | R25: Check
B26: =IF('Historical Expenditure-Volumes'!B8=0," ",'Historical Expenditure-Volumes'!B8) -> CBE1 | C26: Business Supply - LV connections & LV augmentation as required (SR>150kVA) <=$400k | D26: 0 | E26: 0 | F26: 0 | G26: 1 | H26: 0 | I26: 0 | J26: 0 | K26: 0 | L26: 0 | M26: 0 | N26: 0 | O26: 0 | P26: 0 | Q26: 0 | R26: =SUM(D26:Q26) -> 1 | S26: =IF(R26=0,0,1-R26) -> 0
B27: =IF('Historical Expenditure-Volumes'!B9=0," ",'Historical Expenditure-Volumes'!B9) -> CBG1 | C27: Business Supply - ground substation augmentation (SR>200kVA) <=$400k | D27: 0 | E27: 0 | F27: 0 | G27: 0 | H27: 1 | I27: 0 | J27: 0 | K27: 0 | L27: 0 | M27: 0 | N27: 0 | O27: 0 | P27: 0 | Q27: 0 | R27: =SUM(D27:Q27) -> 1 | S27: =IF(R27=0,0,1-R27) -> 0
B28: =IF('Historical Expenditure-Volumes'!B10=0," ",'Historical Expenditure-Volumes'!B10) -> CBH1 | C28: Business Supply -HV customer connection (SR>200kVA) <=$400k | D28: 0 | E28: 0 | F28: 0 | G28: 0 | H28: 0 | I28: 0 | J28: 1 | K28: 0 | L28: 0 | M28: 0 | N28: 0 | O28: 0 | P28: 0 | Q28: 0 | R28: 1 | S28: 0
B29: =IF('Historical Expenditure-Volumes'!B11=0," ",'Historical Expenditure-Volumes'!B11) -> CBI1 | C29: Business Supply - New Indoor Sub (SR>200kVA) <=$400k | D29: 0 | E29: 0 | F29: 0 | G29: 0 | H29: 1 | I29: 0 | J29: 0 | K29: 0 | L29: 0 | M29: 0 | N29: 0 | O29: 0 | P29: 0 | Q29: 0 | R29: 1 | S29: 0
B30: =IF('Historical Expenditure-Volumes'!B12=0," ",'Historical Expenditure-Volumes'!B12) -> CBK1 | C30: Business Supply - New Kiosk Substation (SR>200kVA) <=$400k | D30: 0 | E30: 0 | F30: 0 | G30: 0 | H30: 1 | I30: 0 | J30: 0 | K30: 0 | L30: 0 | M30: 0 | N30: 0 | O30: 0 | P30: 0 | Q30: 0 | R30: 1 | S30: 0
B31: =IF('Historical Expenditure-Volumes'!B13=0," ",'Historical Expenditure-Volumes'!B13) -> CBL1 | C31: Business Supply - LV connections & LV augmentation as required (70kVA<SR<150kVA) <=$400k | D31: 0 | E31: 0 | F31: 0 | G31: 1 | H31: 0 | I31: 0 | J31: 0 | K31: 0 | L31: 0 | M31: 0 | N31: 0 | O31: 0 | P31: 0 | Q31: 0 | R31: 1 | S31: 0
B32: =IF('Historical Expenditure-Volumes'!B14=0," ",'Historical Expenditure-Volumes'!B14) -> CBP1 | C32: Business Supply - Pole Substation (SR>200 kVA) <=$400k | D32: 0 | E32: 0 | F32: 0 | G32: 0 | H32: 1 | I32: 0 | J32: 0 | K32: 0 | L32: 0 | M32: 0 | N32: 0 | O32: 0 | P32: 0 | Q32: 0 | R32: 1 | S32: 0
B33: =IF('Historical Expenditure-Volumes'!B15=0," ",'Historical Expenditure-Volumes'!B15) -> CBS1 | C33: Bus Sup Proj>10kVA-Sub Modific <=$400k | D33: 0 | E33: 0 | F33: 0 | G33: 0 | H33: 1 | I33: 0 | J33: 0 | K33: 0 | L33: 0 | M33: 0 | N33: 0 | O33: 0 | P33: 0 | Q33: 0 | R33: 1 | S33: 0
B34: =IF('Historical Expenditure-Volumes'!B16=0," ",'Historical Expenditure-Volumes'!B16) -> CBE2 | C34: Business Supply - LV connections & LV augmentation as required (SR>150kVA) >$400k | D34: 0 | E34: 0 | F34: 0 | G34: 0 | H34: 0 | I34: 1 | J34: 0 | K34: 0 | L34: 0 | M34: 0 | N34: 0 | O34: 0 | P34: 0 | Q34: 0 | R34: 1 | S34: 0
B35: =IF('Historical Expenditure-Volumes'!B17=0," ",'Historical Expenditure-Volumes'!B17) -> CBG2 | C35: Business Supply - ground substation augmentation (SR>200kVA) >$400k | D35: 0 | E35: 0 | F35: 0 | G35: 0 | H35: 0 | I35: 1 | J35: 0 | K35: 0 | L35: 0 | M35: 0 | N35: 0 | O35: 0 | P35: 0 | Q35: 0 | R35: 1 | S35: 0
B36: =IF('Historical Expenditure-Volumes'!B18=0," ",'Historical Expenditure-Volumes'!B18) -> CBH2 | C36: Business Supply -HV customer connection (SR>200kVA) >$400k | D36: 0 | E36: 0 | F36: 0 | G36: 0 | H36: 0 | I36: 0 | J36: 1 | K36: 0 | L36: 0 | M36: 0 | N36: 0 | O36: 0 | P36: 0 | Q36: 0 | R36: 1 | S36: 0
B37: =IF('Historical Expenditure-Volumes'!B19=0," ",'Historical Expenditure-Volumes'!B19) -> CBI2 | C37: Business Supply - New Indoor Sub (SR>200kVA) >$400k | D37: 0 | E37: 0 | F37: 0 | G37: 0 | H37: 0 | I37: 1 | J37: 0 | K37: 0 | L37: 0 | M37: 0 | N37: 0 | O37: 0 | P37: 0 | Q37: 0 | R37: 1 | S37: 0
B38: =IF('Historical Expenditure-Volumes'!B20=0," ",'Historical Expenditure-Volumes'!B20) -> CBK2 | C38: Business Supply - New Kiosk Substation (SR>200kVA) >$400k | D38: 0 | E38: 0 | F38: 0 | G38: 0 | H38: 0 | I38: 1 | J38: 0 | K38: 0 | L38: 0 | M38: 0 | N38: 0 | O38: 0 | P38: 0 | Q38: 0 | R38: 1 | S38: 0
B39: =IF('Historical Expenditure-Volumes'!B21=0," ",'Historical Expenditure-Volumes'!B21) -> CBL2 | C39: Business Supply - LV connections & LV augmentation as required (70kVA<SR<150kVA) >$400k | D39: 0 | E39: 0 | F39: 0 | G39: 0 | H39: 0 | I39: 1 | J39: 0 | K39: 0 | L39: 0 | M39: 0 | N39: 0 | O39: 0 | P39: 0 | Q39: 0 | R39: 1 | S39: 0
B40: =IF('Historical Expenditure-Volumes'!B22=0," ",'Historical Expenditure-Volumes'!B22) -> CBP2 | C40: Business Supply - Pole Substation (SR>200 kVA) >$400k | D40: 0 | E40: 0 | F40: 0 | G40: 0 | H40: 0 | I40: 1 | J40: 0 | K40: 0 | L40: 0 | M40: 0 | N40: 0 | O40: 0 | P40: 0 | Q40: 0 | R40: 1 | S40: 0
B41: =IF('Historical Expenditure-Volumes'!B23=0," ",'Historical Expenditure-Volumes'!B23) -> CBS2 | C41: Bus Sup Proj>10kVA-Sub Modific >$400k | D41: 0 | E41: 0 | F41: 0 | G41: 0 | H41: 0 | I41: 1 | J41: 0 | K41: 0 | L41: 0 | M41: 0 | N41: 0 | O41: 0 | P41: 0 | Q41: 0 | R41: 1 | S41: 0
B42: =IF('Historical Expenditure-Volumes'!B24=0," ",'Historical Expenditure-Volumes'!B24) -> CDA | C42: S/DIVISION PIT INST Dual & multiple occupancy new supply (SR<100kVA) | D42: 1 | E42: 0 | F42: 0 | G42: 0 | H42: 0 | I42: 0 | J42: 0 | K42: 0 | L42: 0 | M42: 0 | N42: 0 | O42: 0 | P42: 0 | Q42: 0 | R42: 1 | S42: 0
B43: =IF('Historical Expenditure-Volumes'!B25=0," ",'Historical Expenditure-Volumes'!B25) -> CDP | C43: SP2-FY16-CDP-CB-PIT AT BSE REPL P/L POLE | D43: 1 | E43: 0 | F43: 0 | G43: 0 | H43: 0 | I43: 0 | J43: 0 | K43: 0 | L43: 0 | M43: 0 | N43: 0 | O43: 0 | P43: 0 | Q43: 0 | R43: 1 | S43: 0
B44: =IF('Historical Expenditure-Volumes'!B26=0," ",'Historical Expenditure-Volumes'!B26) -> CHH1 | C44: URD - HV Extension (SR >200kVA) no of lots >15 lot | D44: 0 | E44: 0 | F44: 0 | G44: 0 | H44: 0 | I44: 0 | J44: 0 | K44: 0 | L44: 0 | M44: 1 | N44: 0 | O44: 0 | P44: 0 | Q44: 0 | R44: 1 | S44: 0
B45: =IF('Historical Expenditure-Volumes'!B27=0," ",'Historical Expenditure-Volumes'!B27) -> CHL1 | C45: URD - LV Extension (100kVA<SR<200kVA) No of lots <15 lot | D45: 0 | E45: 0 | F45: 0 | G45: 0 | H45: 0 | I45: 0 | J45: 0 | K45: 0 | L45: 1 | M45: 0 | N45: 0 | O45: 0 | P45: 0 | Q45: 0 | R45: 1 | S45: 0
B46: =IF('Historical Expenditure-Volumes'!B28=0," ",'Historical Expenditure-Volumes'!B28) -> CHH2 | C46: URD - HV Extension (SR >200kVA) no of lots >15 lot | D46: 0 | E46: 0 | F46: 0 | G46: 0 | H46: 0 | I46: 0 | J46: 0 | K46: 0 | L46: 0 | M46: 0 | N46: 1 | O46: 0 | P46: 0 | Q46: 0 | R46: 1 | S46: 0
B47: =IF('Historical Expenditure-Volumes'!B29=0," ",'Historical Expenditure-Volumes'!B29) -> CHL2 | C47: URD - LV Extension (100kVA<SR<200kVA) No of lots <15 lot | D47: 0 | E47: 0 | F47: 0 | G47: 0 | H47: 0 | I47: 0 | J47: 0 | K47: 0 | L47: 1 | M47: 0 | N47: 0 | O47: 0 | P47: 0 | Q47: 0 | R47: 1 | S47: 0
B48: =IF('Historical Expenditure-Volumes'!B30=0," ",'Historical Expenditure-Volumes'!B30) -> CR1 | C48: All recoverable works <= $400k | D48: 0 | E48: 0 | F48: 0 | G48: 0 | H48: 0 | I48: 0 | J48: 1 | K48: 0 | L48: 0 | M48: 0 | N48: 0 | O48: 0 | P48: 0 | Q48: 0 | R48: 1 | S48: 0
B49: =IF('Historical Expenditure-Volumes'!B31=0," ",'Historical Expenditure-Volumes'!B31) -> CR2 | C49: All recoverable works > $400k | D49: 0 | E49: 0 | F49: 0 | G49: 0 | H49: 0 | I49: 0 | J49: 1 | K49: 0 | L49: 0 | M49: 0 | N49: 0 | O49: 0 | P49: 0 | Q49: 0 | R49: 1 | S49: 0
B50: =IF('Historical Expenditure-Volumes'!B32=0," ",'Historical Expenditure-Volumes'!B32) -> CS1 | C50: Rural Supply - O/H HV and U/G HV - <= $400k | D50: 0 | E50: 0 | F50: 0 | G50: 0 | H50: 0 | I50: 0 | J50: 0 | K50: 0 | L50: 0 | M50: 1 | N50: 0 | O50: 0 | P50: 0 | Q50: 0 | R50: 1 | S50: 0
B51: =IF('Historical Expenditure-Volumes'!B33=0," ",'Historical Expenditure-Volumes'!B33) -> CS2 | C51: Rural Supply - O/H HV and U/G HV - > $400k | D51: 0 | E51: 0 | F51: 0 | G51: 0 | H51: 0 | I51: 0 | J51: 0 | K51: 0 | L51: 0 | M51: 1 | N51: 0 | O51: 0 | P51: 0 | Q51: 0 | R51: 1 | S51: 0
B54: End of Sheet

Sheet Growth Rates
A1: =Inflation!A1 -> United Energy - Connections | L1: Menu
A2: =RIGHT(CELL("filename", $A$1), LEN(CELL("filename", $A$1)) - SEARCH("]", CELL("filename", $A$1))) -> Growth Rates
B5: Growth Rate by Function Code
B6: ACIF rates
C7: Growth Rate
B8: Function Code | C8: 2016/17 | D8: 2017/18 | E8: 2018/19 | F8: 2019/20 | G8: 2020/21 | H8: 2021/22 | I8: 2022/23 | J8: 2023/24 | K8: 2024/25 | L8: 2025/26
B9: =IF('Historical Expenditure-Volumes'!B8=0," ",'Historical Expenditure-Volumes'!B8) -> CBE1 | C9: =IF('ACIF Growth Figures'!F8=0,0,'ACIF Growth Figures'!F8-1) -> 0.04397895364 | D9: =IF('ACIF Growth Figures'!G8=0,0,'ACIF Growth Figures'!G8-1) -> 0.1481551921 | E9: =IF('ACIF Growth Figures'!H8=0,0,'ACIF Growth Figures'!H8-1) -> 0.04373032963 | F9: =IF('ACIF Growth Figures'!I8=0,0,'ACIF Growth Figures'!I8-1) -> -0.02420250754 | G9: =IF('ACIF Growth Figures'!J8=0,0,'ACIF Growth Figures'!J8-1) -> 0.02431487355 | H9: =IF('ACIF Growth Figures'!K8=0,0,'ACIF Growth Figures'!K8-1) -> -0.0173864719 | I9: =IF('ACIF Growth Figures'!L8=0,0,'ACIF Growth Figures'!L8-1) -> -0.06762543427 | J9: =IF('ACIF Growth Figures'!M8=0,0,'ACIF Growth Figures'!M8-1) -> -0.007365684575 | K9: =IF('ACIF Growth Figures'!N8=0,0,'ACIF Growth Figures'!N8-1) -> 0.02130074203 | L9: =IF('ACIF Growth Figures'!O8=0,0,'ACIF Growth Figures'!O8-1) -> 0.01025728695
B10: =IF('Historical Expenditure-Volumes'!B9=0," ",'Historical Expenditure-Volumes'!B9) -> CBG1 | C10: =IF('ACIF Growth Figures'!F9=0,0,'ACIF Growth Figures'!F9-1) -> 0.04397895364 | D10: =IF('ACIF Growth Figures'!G9=0,0,'ACIF Growth Figures'!G9-1) -> 0.1481551921 | E10: =IF('ACIF Growth Figures'!H9=0,0,'ACIF Growth Figures'!H9-1) -> 0.04373032963 | F10: =IF('ACIF Growth Figures'!I9=0,0,'ACIF Growth Figures'!I9-1) -> -0.02420250754 | G10: =IF('ACIF Growth Figures'!J9=0,0,'ACIF Growth Figures'!J9-1) -> 0.02431487355 | H10: =IF('ACIF Growth Figures'!K9=0,0,'ACIF Growth Figures'!K9-1) -> -0.0173864719 | I10: =IF('ACIF Growth Figures'!L9=0,0,'ACIF Growth Figures'!L9-1) -> -0.06762543427 | J10: =IF('ACIF Growth Figures'!M9=0,0,'ACIF Growth Figures'!M9-1) -> -0.007365684575 | K10: =IF('ACIF Growth Figures'!N9=0,0,'ACIF Growth Figures'!N9-1) -> 0.02130074203 | L10: =IF('ACIF Growth Figures'!O9=0,0,'ACIF Growth Figures'!O9-1) -> 0.01025728695
B11: =IF('Historical Expenditure-Volumes'!B10=0," ",'Historical Expenditure-Volumes'!B10) -> CBH1 | C11: =IF('ACIF Growth Figures'!F10=0,0,'ACIF Growth Figures'!F10-1) -> 0.04397895364 | D11: =IF('ACIF Growth Figures'!G10=0,0,'ACIF Growth Figures'!G10-1) -> 0.1481551921 | E11: =IF('ACIF Growth Figures'!H10=0,0,'ACIF Growth Figures'!H10-1) -> 0.04373032963 | F11: =IF('ACIF Growth Figures'!I10=0,0,'ACIF Growth Figures'!I10-1) -> -0.02420250754 | G11: =IF('ACIF Growth Figures'!J10=0,0,'ACIF Growth Figures'!J10-1) -> 0.02431487355 | H11: =IF('ACIF Growth Figures'!K10=0,0,'ACIF Growth Figures'!K10-1) -> -0.0173864719 | I11: =IF('ACIF Growth Figures'!L10=0,0,'ACIF Growth Figures'!L10-1) -> -0.06762543427 | J11: =IF('ACIF Growth Figures'!M10=0,0,'ACIF Growth Figures'!M10-1) -> -0.007365684575 | K11: =IF('ACIF Growth Figures'!N10=0,0,'ACIF Growth Figures'!N10-1) -> 0.02130074203 | L11: =IF('ACIF Growth Figures'!O10=0,0,'ACIF Growth Figures'!O10-1) -> 0.01025728695
B12: =IF('Historical Expenditure-Volumes'!B11=0," ",'Historical Expenditure-Volumes'!B11) -> CBI1 | C12: =IF('ACIF Growth Figures'!F11=0,0,'ACIF Growth Figures'!F11-1) -> 0.04397895364 | D12: =IF('ACIF Growth Figures'!G11=0,0,'ACIF Growth Figures'!G11-1) -> 0.1481551921 | E12: =IF('ACIF Growth Figures'!H11=0,0,'ACIF Growth Figures'!H11-1) -> 0.04373032963 | F12: =IF('ACIF Growth Figures'!I11=0,0,'ACIF Growth Figures'!I11-1) -> -0.02420250754 | G12: =IF('ACIF Growth Figures'!J11=0,0,'ACIF Growth Figures'!J11-1) -> 0.02431487355 | H12: =IF('ACIF Growth Figures'!K11=0,0,'ACIF Growth Figures'!K11-1) -> -0.0173864719 | I12: =IF('ACIF Growth Figures'!L11=0,0,'ACIF Growth Figures'!L11-1) -> -0.06762543427 | J12: =IF('ACIF Growth Figures'!M11=0,0,'ACIF Growth Figures'!M11-1) -> -0.007365684575 | K12: =IF('ACIF Growth Figures'!N11=0,0,'ACIF Growth Figures'!N11-1) -> 0.02130074203 | L12: =IF('ACIF Growth Figures'!O11=0,0,'ACIF Growth Figures'!O11-1) -> 0.01025728695
B13: =IF('Historical Expenditure-Volumes'!B12=0," ",'Historical Expenditure-Volumes'!B12) -> CBK1 | C13: =IF('ACIF Growth Figures'!F12=0,0,'ACIF Growth Figures'!F12-1) -> 0.04397895364 | D13: =IF('ACIF Growth Figures'!G12=0,0,'ACIF Growth Figures'!G12-1) -> 0.1481551921 | E13: =IF('ACIF Growth Figures'!H12=0,0,'ACIF Growth Figures'!H12-1) -> 0.04373032963 | F13: =IF('ACIF Growth Figures'!I12=0,0,'ACIF Growth Figures'!I12-1) -> -0.02420250754 | G13: =IF('ACIF Growth Figures'!J12=0,0,'ACIF Growth Figures'!J12-1) -> 0.02431487355 | H13: =IF('ACIF Growth Figures'!K12=0,0,'ACIF Growth Figures'!K12-1) -> -0.0173864719 | I13: =IF('ACIF Growth Figures'!L12=0,0,'ACIF Growth Figures'!L12-1) -> -0.06762543427 | J13: =IF('ACIF Growth Figures'!M12=0,0,'ACIF Growth Figures'!M12-1) -> -0.007365684575 | K13: =IF('ACIF Growth Figures'!N12=0,0,'ACIF Growth Figures'!N12-1) -> 0.02130074203 | L13: =IF('ACIF Growth Figures'!O12=0,0,'ACIF Growth Figures'!O12-1) -> 0.01025728695
B14: =IF('Historical Expenditure-Volumes'!B13=0," ",'Historical Expenditure-Volumes'!B13) -> CBL1 | C14: =IF('ACIF Growth Figures'!F13=0,0,'ACIF Growth Figures'!F13-1) -> 0.04397895364 | D14: =IF('ACIF Growth Figures'!G13=0,0,'ACIF Growth Figures'!G13-1) -> 0.1481551921 | E14: =IF('ACIF Growth Figures'!H13=0,0,'ACIF Growth Figures'!H13-1) -> 0.04373032963 | F14: =IF('ACIF Growth Figures'!I13=0,0,'ACIF Growth Figures'!I13-1) -> -0.02420250754 | G14: =IF('ACIF Growth Figures'!J13=0,0,'ACIF Growth Figures'!J13-1) -> 0.02431487355 | H14: =IF('ACIF Growth Figures'!K13=0,0,'ACIF Growth Figures'!K13-1) -> -0.0173864719 | I14: =IF('ACIF Growth Figures'!L13=0,0,'ACIF Growth Figures'!L13-1) -> -0.06762543427 | J14: =IF('ACIF Growth Figures'!M13=0,0,'ACIF Growth Figures'!M13-1) -> -0.007365684575 | K14: =IF('ACIF Growth Figures'!N13=0,0,'ACIF Growth Figures'!N13-1) -> 0.02130074203 | L14: =IF('ACIF Growth Figures'!O13=0,0,'ACIF Growth Figures'!O13-1) -> 0.01025728695
B15: =IF('Historical Expenditure-Volumes'!B14=0," ",'Historical Expenditure-Volumes'!B14) -> CBP1 | C15: =IF('ACIF Growth Figures'!F14=0,0,'ACIF Growth Figures'!F14-1) -> 0.04397895364 | D15: =IF('ACIF Growth Figures'!G14=0,0,'ACIF Growth Figures'!G14-1) -> 0.1481551921 | E15: =IF('ACIF Growth Figures'!H14=0,0,'ACIF Growth Figures'!H14-1) -> 0.04373032963 | F15: =IF('ACIF Growth Figures'!I14=0,0,'ACIF Growth Figures'!I14-1) -> -0.02420250754 | G15: =IF('ACIF Growth Figures'!J14=0,0,'ACIF Growth Figures'!J14-1) -> 0.02431487355 | H15: =IF('ACIF Growth Figures'!K14=0,0,'ACIF Growth Figures'!K14-1) -> -0.0173864719 | I15: =IF('ACIF Growth Figures'!L14=0,0,'ACIF Growth Figures'!L14-1) -> -0.06762543427 | J15: =IF('ACIF Growth Figures'!M14=0,0,'ACIF Growth Figures'!M14-1) -> -0.007365684575 | K15: =IF('ACIF Growth Figures'!N14=0,0,'ACIF Growth Figures'!N14-1) -> 0.02130074203 | L15: =IF('ACIF Growth Figures'!O14=0,0,'ACIF Growth Figures'!O14-1) -> 0.01025728695
B16: =IF('Historical Expenditure-Volumes'!B15=0," ",'Historical Expenditure-Volumes'!B15) -> CBS1 | C16: =IF('ACIF Growth Figures'!F15=0,0,'ACIF Growth Figures'!F15-1) -> 0.04397895364 | D16: =IF('ACIF Growth Figures'!G15=0,0,'ACIF Growth Figures'!G15-1) -> 0.1481551921 | E16: =IF('ACIF Growth Figures'!H15=0,0,'ACIF Growth Figures'!H15-1) -> 0.04373032963 | F16: =IF('ACIF Growth Figures'!I15=0,0,'ACIF Growth Figures'!I15-1) -> -0.02420250754 | G16: =IF('ACIF Growth Figures'!J15=0,0,'ACIF Growth Figures'!J15-1) -> 0.02431487355 | H16: =IF('ACIF Growth Figures'!K15=0,0,'ACIF Growth Figures'!K15-1) -> -0.0173864719 | I16: =IF('ACIF Growth Figures'!L15=0,0,'ACIF Growth Figures'!L15-1) -> -0.06762543427 | J16: =IF('ACIF Growth Figures'!M15=0,0,'ACIF Growth Figures'!M15-1) -> -0.007365684575 | K16: =IF('ACIF Growth Figures'!N15=0,0,'ACIF Growth Figures'!N15-1) -> 0.02130074203 | L16: =IF('ACIF Growth Figures'!O15=0,0,'ACIF Growth Figures'!O15-1) -> 0.01025728695
B17: =IF('Historical Expenditure-Volumes'!B16=0," ",'Historical Expenditure-Volumes'!B16) -> CBE2 | C17: =IF('ACIF Growth Figures'!F16=0,0,'ACIF Growth Figures'!F16-1) -> 0.04397895364 | D17: =IF('ACIF Growth Figures'!G16=0,0,'ACIF Growth Figures'!G16-1) -> 0.1481551921 | E17: =IF('ACIF Growth Figures'!H16=0,0,'ACIF Growth Figures'!H16-1) -> 0.04373032963 | F17: =IF('ACIF Growth Figures'!I16=0,0,'ACIF Growth Figures'!I16-1) -> -0.02420250754 | G17: =IF('ACIF Growth Figures'!J16=0,0,'ACIF Growth Figures'!J16-1) -> 0.02431487355 | H17: =IF('ACIF Growth Figures'!K16=0,0,'ACIF Growth Figures'!K16-1) -> -0.0173864719 | I17: =IF('ACIF Growth Figures'!L16=0,0,'ACIF Growth Figures'!L16-1) -> -0.06762543427 | J17: =IF('ACIF Growth Figures'!M16=0,0,'ACIF Growth Figures'!M16-1) -> -0.007365684575 | K17: =IF('ACIF Growth Figures'!N16=0,0,'ACIF Growth Figures'!N16-1) -> 0.02130074203 | L17: =IF('ACIF Growth Figures'!O16=0,0,'ACIF Growth Figures'!O16-1) -> 0.01025728695
B18: =IF('Historical Expenditure-Volumes'!B17=0," ",'Historical Expenditure-Volumes'!B17) -> CBG2 | C18: =IF('ACIF Growth Figures'!F17=0,0,'ACIF Growth Figures'!F17-1) -> 0.04397895364 | D18: =IF('ACIF Growth Figures'!G17=0,0,'ACIF Growth Figures'!G17-1) -> 0.1481551921 | E18: =IF('ACIF Growth Figures'!H17=0,0,'ACIF Growth Figures'!H17-1) -> 0.04373032963 | F18: =IF('ACIF Growth Figures'!I17=0,0,'ACIF Growth Figures'!I17-1) -> -0.02420250754 | G18: =IF('ACIF Growth Figures'!J17=0,0,'ACIF Growth Figures'!J17-1) -> 0.02431487355 | H18: =IF('ACIF Growth Figures'!K17=0,0,'ACIF Growth Figures'!K17-1) -> -0.0173864719 | I18: =IF('ACIF Growth Figures'!L17=0,0,'ACIF Growth Figures'!L17-1) -> -0.06762543427 | J18: =IF('ACIF Growth Figures'!M17=0,0,'ACIF Growth Figures'!M17-1) -> -0.007365684575 | K18: =IF('ACIF Growth Figures'!N17=0,0,'ACIF Growth Figures'!N17-1) -> 0.02130074203 | L18: =IF('ACIF Growth Figures'!O17=0,0,'ACIF Growth Figures'!O17-1) -> 0.01025728695
B19: =IF('Historical Expenditure-Volumes'!B18=0," ",'Historical Expenditure-Volumes'!B18) -> CBH2 | C19: =IF('ACIF Growth Figures'!F18=0,0,'ACIF Growth Figures'!F18-1) -> 0.04397895364 | D19: =IF('ACIF Growth Figures'!G18=0,0,'ACIF Growth Figures'!G18-1) -> 0.1481551921 | E19: =IF('ACIF Growth Figures'!H18=0,0,'ACIF Growth Figures'!H18-1) -> 0.04373032963 | F19: =IF('ACIF Growth Figures'!I18=0,0,'ACIF Growth Figures'!I18-1) -> -0.02420250754 | G19: =IF('ACIF Growth Figures'!J18=0,0,'ACIF Growth Figures'!J18-1) -> 0.02431487355 | H19: =IF('ACIF Growth Figures'!K18=0,0,'ACIF Growth Figures'!K18-1) -> -0.0173864719 | I19: =IF('ACIF Growth Figures'!L18=0,0,'ACIF Growth Figures'!L18-1) -> -0.06762543427 | J19: =IF('ACIF Growth Figures'!M18=0,0,'ACIF Growth Figures'!M18-1) -> -0.007365684575 | K19: =IF('ACIF Growth Figures'!N18=0,0,'ACIF Growth Figures'!N18-1) -> 0.02130074203 | L19: =IF('ACIF Growth Figures'!O18=0,0,'ACIF Growth Figures'!O18-1) -> 0.01025728695
B20: =IF('Historical Expenditure-Volumes'!B19=0," ",'Historical Expenditure-Volumes'!B19) -> CBI2 | C20: =IF('ACIF Growth Figures'!F19=0,0,'ACIF Growth Figures'!F19-1) -> 0.04397895364 | D20: =IF('ACIF Growth Figures'!G19=0,0,'ACIF Growth Figures'!G19-1) -> 0.1481551921 | E20: =IF('ACIF Growth Figures'!H19=0,0,'ACIF Growth Figures'!H19-1) -> 0.04373032963 | F20: =IF('ACIF Growth Figures'!I19=0,0,'ACIF Growth Figures'!I19-1) -> -0.02420250754 | G20: =IF('ACIF Growth Figures'!J19=0,0,'ACIF Growth Figures'!J19-1) -> 0.02431487355 | H20: =IF('ACIF Growth Figures'!K19=0,0,'ACIF Growth Figures'!K19-1) -> -0.0173864719 | I20: =IF('ACIF Growth Figures'!L19=0,0,'ACIF Growth Figures'!L19-1) -> -0.06762543427 | J20: =IF('ACIF Growth Figures'!M19=0,0,'ACIF Growth Figures'!M19-1) -> -0.007365684575 | K20: =IF('ACIF Growth Figures'!N19=0,0,'ACIF Growth Figures'!N19-1) -> 0.02130074203 | L20: =IF('ACIF Growth Figures'!O19=0,0,'ACIF Growth Figures'!O19-1) -> 0.01025728695
B21: =IF('Historical Expenditure-Volumes'!B20=0," ",'Historical Expenditure-Volumes'!B20) -> CBK2 | C21: =IF('ACIF Growth Figures'!F20=0,0,'ACIF Growth Figures'!F20-1) -> 0.04397895364 | D21: =IF('ACIF Growth Figures'!G20=0,0,'ACIF Growth Figures'!G20-1) -> 0.1481551921 | E21: =IF('ACIF Growth Figures'!H20=0,0,'ACIF Growth Figures'!H20-1) -> 0.04373032963 | F21: =IF('ACIF Growth Figures'!I20=0,0,'ACIF Growth Figures'!I20-1) -> -0.02420250754 | G21: =IF('ACIF Growth Figures'!J20=0,0,'ACIF Growth Figures'!J20-1) -> 0.02431487355 | H21: =IF('ACIF Growth Figures'!K20=0,0,'ACIF Growth Figures'!K20-1) -> -0.0173864719 | I21: =IF('ACIF Growth Figures'!L20=0,0,'ACIF Growth Figures'!L20-1) -> -0.06762543427 | J21: =IF('ACIF Growth Figures'!M20=0,0,'ACIF Growth Figures'!M20-1) -> -0.007365684575 | K21: =IF('ACIF Growth Figures'!N20=0,0,'ACIF Growth Figures'!N20-1) -> 0.02130074203 | L21: =IF('ACIF Growth Figures'!O20=0,0,'ACIF Growth Figures'!O20-1) -> 0.01025728695
B22: =IF('Historical Expenditure-Volumes'!B21=0," ",'Historical Expenditure-Volumes'!B21) -> CBL2 | C22: =IF('ACIF Growth Figures'!F21=0,0,'ACIF Growth Figures'!F21-1) -> 0.04397895364 | D22: =IF('ACIF Growth Figures'!G21=0,0,'ACIF Growth Figures'!G21-1) -> 0.1481551921 | E22: =IF('ACIF Growth Figures'!H21=0,0,'ACIF Growth Figures'!H21-1) -> 0.04373032963 | F22: =IF('ACIF Growth Figures'!I21=0,0,'ACIF Growth Figures'!I21-1) -> -0.02420250754 | G22: =IF('ACIF Growth Figures'!J21=0,0,'ACIF Growth Figures'!J21-1) -> 0.02431487355 | H22: =IF('ACIF Growth Figures'!K21=0,0,'ACIF Growth Figures'!K21-1) -> -0.0173864719 | I22: =IF('ACIF Growth Figures'!L21=0,0,'ACIF Growth Figures'!L21-1) -> -0.06762543427 | J22: =IF('ACIF Growth Figures'!M21=0,0,'ACIF Growth Figures'!M21-1) -> -0.007365684575 | K22: =IF('ACIF Growth Figures'!N21=0,0,'ACIF Growth Figures'!N21-1) -> 0.02130074203 | L22: =IF('ACIF Growth Figures'!O21=0,0,'ACIF Growth Figures'!O21-1) -> 0.01025728695
B23: =IF('Historical Expenditure-Volumes'!B22=0," ",'Historical Expenditure-Volumes'!B22) -> CBP2 | C23: =IF('ACIF Growth Figures'!F22=0,0,'ACIF Growth Figures'!F22-1) -> 0.04397895364 | D23: =IF('ACIF Growth Figures'!G22=0,0,'ACIF Growth Figures'!G22-1) -> 0.1481551921 | E23: =IF('ACIF Growth Figures'!H22=0,0,'ACIF Growth Figures'!H22-1) -> 0.04373032963 | F23: =IF('ACIF Growth Figures'!I22=0,0,'ACIF Growth Figures'!I22-1) -> -0.02420250754 | G23: =IF('ACIF Growth Figures'!J22=0,0,'ACIF Growth Figures'!J22-1) -> 0.02431487355 | H23: =IF('ACIF Growth Figures'!K22=0,0,'ACIF Growth Figures'!K22-1) -> -0.0173864719 | I23: =IF('ACIF Growth Figures'!L22=0,0,'ACIF Growth Figures'!L22-1) -> -0.06762543427 | J23: =IF('ACIF Growth Figures'!M22=0,0,'ACIF Growth Figures'!M22-1) -> -0.007365684575 | K23: =IF('ACIF Growth Figures'!N22=0,0,'ACIF Growth Figures'!N22-1) -> 0.02130074203 | L23: =IF('ACIF Growth Figures'!O22=0,0,'ACIF Growth Figures'!O22-1) -> 0.01025728695
B24: =IF('Historical Expenditure-Volumes'!B23=0," ",'Historical Expenditure-Volumes'!B23) -> CBS2 | C24: =IF('ACIF Growth Figures'!F23=0,0,'ACIF Growth Figures'!F23-1) -> 0.04397895364 | D24: =IF('ACIF Growth Figures'!G23=0,0,'ACIF Growth Figures'!G23-1) -> 0.1481551921 | E24: =IF('ACIF Growth Figures'!H23=0,0,'ACIF Growth Figures'!H23-1) -> 0.04373032963 | F24: =IF('ACIF Growth Figures'!I23=0,0,'ACIF Growth Figures'!I23-1) -> -0.02420250754 | G24: =IF('ACIF Growth Figures'!J23=0,0,'ACIF Growth Figures'!J23-1) -> 0.02431487355 | H24: =IF('ACIF Growth Figures'!K23=0,0,'ACIF Growth Figures'!K23-1) -> -0.0173864719 | I24: =IF('ACIF Growth Figures'!L23=0,0,'ACIF Growth Figures'!L23-1) -> -0.06762543427 | J24: =IF('ACIF Growth Figures'!M23=0,0,'ACIF Growth Figures'!M23-1) -> -0.007365684575 | K24: =IF('ACIF Growth Figures'!N23=0,0,'ACIF Growth Figures'!N23-1) -> 0.02130074203 | L24: =IF('ACIF Growth Figures'!O23=0,0,'ACIF Growth Figures'!O23-1) -> 0.01025728695
B25: =IF('Historical Expenditure-Volumes'!B24=0," ",'Historical Expenditure-Volumes'!B24) -> CDA | C25: =IF('ACIF Growth Figures'!F24=0,0,'ACIF Growth Figures'!F24-1) -> 0.05818034557 | D25: =IF('ACIF Growth Figures'!G24=0,0,'ACIF Growth Figures'!G24-1) -> 0.01679636008 | E25: =IF('ACIF Growth Figures'!H24=0,0,'ACIF Growth Figures'!H24-1) -> -0.0156406825 | F25: =IF('ACIF Growth Figures'!I24=0,0,'ACIF Growth Figures'!I24-1) -> -0.0596057439 | G25: =IF('ACIF Growth Figures'!J24=0,0,'ACIF Growth Figures'!J24-1) -> -0.01133950757 | H25: =IF('ACIF Growth Figures'!K24=0,0,'ACIF Growth Figures'!K24-1) -> 0.02430999817 | I25: =IF('ACIF Growth Figures'!L24=0,0,'ACIF Growth Figures'!L24-1) -> 0.0335474661 | J25: =IF('ACIF Growth Figures'!M24=0,0,'ACIF Growth Figures'!M24-1) -> 0.01622928177 | K25: =IF('ACIF Growth Figures'!N24=0,0,'ACIF Growth Figures'!N24-1) -> 0.007815154604 | L25: =IF('ACIF Growth Figures'!O24=0,0,'ACIF Growth Figures'!O24-1) -> 0.005141604855
B26: =IF('Historical Expenditure-Volumes'!B25=0," ",'Historical Expenditure-Volumes'!B25) -> CDP | C26: =IF('ACIF Growth Figures'!F25=0,0,'ACIF Growth Figures'!F25-1) -> 0.05818034557 | D26: =IF('ACIF Growth Figures'!G25=0,0,'ACIF Growth Figures'!G25-1) -> 0.01679636008 | E26: =IF('ACIF Growth Figures'!H25=0,0,'ACIF Growth Figures'!H25-1) -> -0.0156406825 | F26: =IF('ACIF Growth Figures'!I25=0,0,'ACIF Growth Figures'!I25-1) -> -0.0596057439 | G26: =IF('ACIF Growth Figures'!J25=0,0,'ACIF Growth Figures'!J25-1) -> -0.01133950757 | H26: =IF('ACIF Growth Figures'!K25=0,0,'ACIF Growth Figures'!K25-1) -> 0.02430999817 | I26: =IF('ACIF Growth Figures'!L25=0,0,'ACIF Growth Figures'!L25-1) -> 0.0335474661 | J26: =IF('ACIF Growth Figures'!M25=0,0,'ACIF Growth Figures'!M25-1) -> 0.01622928177 | K26: =IF('ACIF Growth Figures'!N25=0,0,'ACIF Growth Figures'!N25-1) -> 0.007815154604 | L26: =IF('ACIF Growth Figures'!O25=0,0,'ACIF Growth Figures'!O25-1) -> 0.005141604855
B27: =IF('Historical Expenditure-Volumes'!B26=0," ",'Historical Expenditure-Volumes'!B26) -> CHH1 | C27: =IF('ACIF Growth Figures'!F26=0,0,'ACIF Growth Figures'!F26-1) -> 0.06564150622 | D27: =IF('ACIF Growth Figures'!G26=0,0,'ACIF Growth Figures'!G26-1) -> 0.04971286192 | E27: =IF('ACIF Growth Figures'!H26=0,0,'ACIF Growth Figures'!H26-1) -> -0.01038308243 | F27: =IF('ACIF Growth Figures'!I26=0,0,'ACIF Growth Figures'!I26-1) -> -0.1071904982 | G27: =IF('ACIF Growth Figures'!J26=0,0,'ACIF Growth Figures'!J26-1) -> -0.08747683423 | H27: =IF('ACIF Growth Figures'!K26=0,0,'ACIF Growth Figures'!K26-1) -> -0.05075726566 | I27: =IF('ACIF Growth Figures'!L26=0,0,'ACIF Growth Figures'!L26-1) -> 0.02819517697 | J27: =IF('ACIF Growth Figures'!M26=0,0,'ACIF Growth Figures'!M26-1) -> 0.1071071394 | K27: =IF('ACIF Growth Figures'!N26=0,0,'ACIF Growth Figures'!N26-1) -> 0.0330157065 | L27: =IF('ACIF Growth Figures'!O26=0,0,'ACIF Growth Figures'!O26-1) -> 0.006121297602
B28: =IF('Historical Expenditure-Volumes'!B27=0," ",'Historical Expenditure-Volumes'!B27) -> CHL1 | C28: =IF('ACIF Growth Figures'!F27=0,0,'ACIF Growth Figures'!F27-1) -> 0.06564150622 | D28: =IF('ACIF Growth Figures'!G27=0,0,'ACIF Growth Figures'!G27-1) -> 0.04971286192 | E28: =IF('ACIF Growth Figures'!H27=0,0,'ACIF Growth Figures'!H27-1) -> -0.01038308243 | F28: =IF('ACIF Growth Figures'!I27=0,0,'ACIF Growth Figures'!I27-1) -> -0.1071904982 | G28: =IF('ACIF Growth Figures'!J27=0,0,'ACIF Growth Figures'!J27-1) -> -0.08747683423 | H28: =IF('ACIF Growth Figures'!K27=0,0,'ACIF Growth Figures'!K27-1) -> -0.05075726566 | I28: =IF('ACIF Growth Figures'!L27=0,0,'ACIF Growth Figures'!L27-1) -> 0.02819517697 | J28: =IF('ACIF Growth Figures'!M27=0,0,'ACIF Growth Figures'!M27-1) -> 0.1071071394 | K28: =IF('ACIF Growth Figures'!N27=0,0,'ACIF Growth Figures'!N27-1) -> 0.0330157065 | L28: =IF('ACIF Growth Figures'!O27=0,0,'ACIF Growth Figures'!O27-1) -> 0.006121297602
B29: =IF('Historical Expenditure-Volumes'!B28=0," ",'Historical Expenditure-Volumes'!B28) -> CHH2 | C29: =IF('ACIF Growth Figures'!F28=0,0,'ACIF Growth Figures'!F28-1) -> 0.06564150622 | D29: =IF('ACIF Growth Figures'!G28=0,0,'ACIF Growth Figures'!G28-1) -> 0.04971286192 | E29: =IF('ACIF Growth Figures'!H28=0,0,'ACIF Growth Figures'!H28-1) -> -0.01038308243 | F29: =IF('ACIF Growth Figures'!I28=0,0,'ACIF Growth Figures'!I28-1) -> -0.1071904982 | G29: =IF('ACIF Growth Figures'!J28=0,0,'ACIF Growth Figures'!J28-1) -> -0.08747683423 | H29: =IF('ACIF Growth Figures'!K28=0,0,'ACIF Growth Figures'!K28-1) -> -0.05075726566 | I29: =IF('ACIF Growth Figures'!L28=0,0,'ACIF Growth Figures'!L28-1) -> 0.02819517697 | J29: =IF('ACIF Growth Figures'!M28=0,0,'ACIF Growth Figures'!M28-1) -> 0.1071071394 | K29: =IF('ACIF Growth Figures'!N28=0,0,'ACIF Growth Figures'!N28-1) -> 0.0330157065 | L29: =IF('ACIF Growth Figures'!O28=0,0,'ACIF Growth Figures'!O28-1) -> 0.006121297602
B30: =IF('Historical Expenditure-Volumes'!B29=0," ",'Historical Expenditure-Volumes'!B29) -> CHL2 | C30: =IF('ACIF Growth Figures'!F29=0,0,'ACIF Growth Figures'!F29-1) -> 0.06564150622 | D30: =IF('ACIF Growth Figures'!G29=0,0,'ACIF Growth Figures'!G29-1) -> 0.04971286192 | E30: =IF('ACIF Growth Figures'!H29=0,0,'ACIF Growth Figures'!H29-1) -> -0.01038308243 | F30: =IF('ACIF Growth Figures'!I29=0,0,'ACIF Growth Figures'!I29-1) -> -0.1071904982 | G30: =IF('ACIF Growth Figures'!J29=0,0,'ACIF Growth Figures'!J29-1) -> -0.08747683423 | H30: =IF('ACIF Growth Figures'!K29=0,0,'ACIF Growth Figures'!K29-1) -> -0.05075726566 | I30: =IF('ACIF Growth Figures'!L29=0,0,'ACIF Growth Figures'!L29-1) -> 0.02819517697 | J30: =IF('ACIF Growth Figures'!M29=0,0,'ACIF Growth Figures'!M29-1) -> 0.1071071394 | K30: =IF('ACIF Growth Figures'!N29=0,0,'ACIF Growth Figures'!N29-1) -> 0.0330157065 | L30: =IF('ACIF Growth Figures'!O29=0,0,'ACIF Growth Figures'!O29-1) -> 0.006121297602
B31: =IF('Historical Expenditure-Volumes'!B30=0," ",'Historical Expenditure-Volumes'!B30) -> CR1 | C31: =IF('ACIF Growth Figures'!F30=0,0,'ACIF Growth Figures'!F30-1) -> 0.1048395987 | D31: =IF('ACIF Growth Figures'!G30=0,0,'ACIF Growth Figures'!G30-1) -> 0.3719816404 | E31: =IF('ACIF Growth Figures'!H30=0,0,'ACIF Growth Figures'!H30-1) -> 0.1043636364 | F31: =IF('ACIF Growth Figures'!I30=0,0,'ACIF Growth Figures'!I30-1) -> 0.07540335858 | G31: =IF('ACIF Growth Figures'!J30=0,0,'ACIF Growth Figures'!J30-1) -> 0.023821188 | H31: =IF('ACIF Growth Figures'!K30=0,0,'ACIF Growth Figures'!K30-1) -> -0.01429511334 | I31: =IF('ACIF Growth Figures'!L30=0,0,'ACIF Growth Figures'!L30-1) -> -0.07894417476 | J31: =IF('ACIF Growth Figures'!M30=0,0,'ACIF Growth Figures'!M30-1) -> -0.0666710587 | K31: =IF('ACIF Growth Figures'!N30=0,0,'ACIF Growth Figures'!N30-1) -> -0.0317639585 | L31: =IF('ACIF Growth Figures'!O30=0,0,'ACIF Growth Figures'!O30-1) -> -0.01815265729
B32: =IF('Historical Expenditure-Volumes'!B31=0," ",'Historical Expenditure-Volumes'!B31) -> CR2 | C32: =IF('ACIF Growth Figures'!F31=0,0,'ACIF Growth Figures'!F31-1) -> 0.1048395987 | D32: =IF('ACIF Growth Figures'!G31=0,0,'ACIF Growth Figures'!G31-1) -> 0.3719816404 | E32: =IF('ACIF Growth Figures'!H31=0,0,'ACIF Growth Figures'!H31-1) -> 0.1043636364 | F32: =IF('ACIF Growth Figures'!I31=0,0,'ACIF Growth Figures'!I31-1) -> 0.07540335858 | G32: =IF('ACIF Growth Figures'!J31=0,0,'ACIF Growth Figures'!J31-1) -> 0.023821188 | H32: =IF('ACIF Growth Figures'!K31=0,0,'ACIF Growth Figures'!K31-1) -> -0.01429511334 | I32: =IF('ACIF Growth Figures'!L31=0,0,'ACIF Growth Figures'!L31-1) -> -0.07894417476 | J32: =IF('ACIF Growth Figures'!M31=0,0,'ACIF Growth Figures'!M31-1) -> -0.0666710587 | K32: =IF('ACIF Growth Figures'!N31=0,0,'ACIF Growth Figures'!N31-1) -> -0.0317639585 | L32: =IF('ACIF Growth Figures'!O31=0,0,'ACIF Growth Figures'!O31-1) -> -0.01815265729
B33: =IF('Historical Expenditure-Volumes'!B32=0," ",'Historical Expenditure-Volumes'!B32) -> CS1 | C33: =IF('ACIF Growth Figures'!F32=0,0,'ACIF Growth Figures'!F32-1) -> 0.06338312475 | D33: =IF('ACIF Growth Figures'!G32=0,0,'ACIF Growth Figures'!G32-1) -> 0.04644393824 | E33: =IF('ACIF Growth Figures'!H32=0,0,'ACIF Growth Figures'!H32-1) -> 0.01475390011 | F33: =IF('ACIF Growth Figures'!I32=0,0,'ACIF Growth Figures'!I32-1) -> -0.06161363366 | G33: =IF('ACIF Growth Figures'!J32=0,0,'ACIF Growth Figures'!J32-1) -> -0.03708407417 | H33: =IF('ACIF Growth Figures'!K32=0,0,'ACIF Growth Figures'!K32-1) -> 0.0220258507 | I33: =IF('ACIF Growth Figures'!L32=0,0,'ACIF Growth Figures'!L32-1) -> 0.02800361337 | J33: =IF('ACIF Growth Figures'!M32=0,0,'ACIF Growth Figures'!M32-1) -> 0.01682149134 | K33: =IF('ACIF Growth Figures'!N32=0,0,'ACIF Growth Figures'!N32-1) -> 0.005432098765 | L33: =IF('ACIF Growth Figures'!O32=0,0,'ACIF Growth Figures'!O32-1) -> 0.006016699411
B34: =IF('Historical Expenditure-Volumes'!B33=0," ",'Historical Expenditure-Volumes'!B33) -> CS2 | C34: =IF('ACIF Growth Figures'!F33=0,0,'ACIF Growth Figures'!F33-1) -> 0.06338312475 | D34: =IF('ACIF Growth Figures'!G33=0,0,'ACIF Growth Figures'!G33-1) -> 0.04644393824 | E34: =IF('ACIF Growth Figures'!H33=0,0,'ACIF Growth Figures'!H33-1) -> 0.01475390011 | F34: =IF('ACIF Growth Figures'!I33=0,0,'ACIF Growth Figures'!I33-1) -> -0.06161363366 | G34: =IF('ACIF Growth Figures'!J33=0,0,'ACIF Growth Figures'!J33-1) -> -0.03708407417 | H34: =IF('ACIF Growth Figures'!K33=0,0,'ACIF Growth Figures'!K33-1) -> 0.0220258507 | I34: =IF('ACIF Growth Figures'!L33=0,0,'ACIF Growth Figures'!L33-1) -> 0.02800361337 | J34: =IF('ACIF Growth Figures'!M33=0,0,'ACIF Growth Figures'!M33-1) -> 0.01682149134 | K34: =IF('ACIF Growth Figures'!N33=0,0,'ACIF Growth Figures'!N33-1) -> 0.005432098765 | L34: =IF('ACIF Growth Figures'!O33=0,0,'ACIF Growth Figures'!O33-1) -> 0.006016699411
B38: End of Sheet

Sheet Unit Rates
A1: =Inflation!A1 -> United Energy - Connections | D1: Menu
A2: =RIGHT(CELL("filename", $A$1), LEN(CELL("filename", $A$1)) - SEARCH("]", CELL("filename", $A$1))) -> Unit Rates
B4: Average Unit Rates by Function Code
C6: ="Unit Rate "&"$ "& Inflation!C4 -> Unit Rate $ 2021
B7: Function Code | C7: Description | D7: Average
B8: =IF('Historical Expenditure-Volumes'!B8=0," ",'Historical Expenditure-Volumes'!B8) -> CBE1 | C8: Business Supply - LV connections & LV augmentation as required (SR>150kVA) <=$400k | D8: =IFERROR(SUM('Historical Expenditure-Volumes'!D40:G40)/SUM('Historical Expenditure-Volumes'!D73:G73), 0) -> 4454.093635
B9: =IF('Historical Expenditure-Volumes'!B9=0," ",'Historical Expenditure-Volumes'!B9) -> CBG1 | C9: Business Supply - ground substation augmentation (SR>200kVA) <=$400k | D9: =IFERROR(SUM('Historical Expenditure-Volumes'!D41:G41)/SUM('Historical Expenditure-Volumes'!D74:G74), 0) -> 11866.30074
B10: =IF('Historical Expenditure-Volumes'!B10=0," ",'Historical Expenditure-Volumes'!B10) -> CBH1 | C10: Business Supply -HV customer connection (SR>200kVA) <=$400k | D10: =IFERROR(SUM('Historical Expenditure-Volumes'!D42:G42)/SUM('Historical Expenditure-Volumes'!D75:G75), 0) -> 12584.13659
B11: =IF('Historical Expenditure-Volumes'!B11=0," ",'Historical Expenditure-Volumes'!B11) -> CBI1 | C11: Business Supply - New Indoor Sub (SR>200kVA) <=$400k | D11: =IFERROR(SUM('Historical Expenditure-Volumes'!D43:G43)/SUM('Historical Expenditure-Volumes'!D76:G76), 0) -> 17132.93341
B12: =IF('Historical Expenditure-Volumes'!B12=0," ",'Historical Expenditure-Volumes'!B12) -> CBK1 | C12: Business Supply - New Kiosk Substation (SR>200kVA) <=$400k | D12: =IFERROR(SUM('Historical Expenditure-Volumes'!D44:G44)/SUM('Historical Expenditure-Volumes'!D77:G77), 0) -> 16163.15893
B13: =IF('Historical Expenditure-Volumes'!B13=0," ",'Historical Expenditure-Volumes'!B13) -> CBL1 | C13: Business Supply - LV connections & LV augmentation as required (70kVA<SR<150kVA) <=$400k | D13: =IFERROR(SUM('Historical Expenditure-Volumes'!D45:G45)/SUM('Historical Expenditure-Volumes'!D78:G78), 0) -> 5328.44179
B14: =IF('Historical Expenditure-Volumes'!B14=0," ",'Historical Expenditure-Volumes'!B14) -> CBP1 | C14: Business Supply - Pole Substation (SR>200 kVA) <=$400k | D14: =IFERROR(SUM('Historical Expenditure-Volumes'!D46:G46)/SUM('Historical Expenditure-Volumes'!D79:G79), 0) -> 10518.61643
B15: =IF('Historical Expenditure-Volumes'!B15=0," ",'Historical Expenditure-Volumes'!B15) -> CBS1 | C15: Bus Sup Proj>10kVA-Sub Modific <=$400k | D15: =IFERROR(SUM('Historical Expenditure-Volumes'!D47:G47)/SUM('Historical Expenditure-Volumes'!D80:G80), 0) -> 0
B16: =IF('Historical Expenditure-Volumes'!B16=0," ",'Historical Expenditure-Volumes'!B16) -> CBE2 | C16: Business Supply - LV connections & LV augmentation as required (SR>150kVA) >$400k | D16: =IFERROR(SUM('Historical Expenditure-Volumes'!D48:G48)/SUM('Historical Expenditure-Volumes'!D81:G81), 0) -> 0
B17: =IF('Historical Expenditure-Volumes'!B17=0," ",'Historical Expenditure-Volumes'!B17) -> CBG2 | C17: Business Supply - ground substation augmentation (SR>200kVA) >$400k | D17: =IFERROR(SUM('Historical Expenditure-Volumes'!D49:G49)/SUM('Historical Expenditure-Volumes'!D82:G82), 0) -> 0
B18: =IF('Historical Expenditure-Volumes'!B18=0," ",'Historical Expenditure-Volumes'!B18) -> CBH2 | C18: Business Supply -HV customer connection (SR>200kVA) >$400k | D18: =IFERROR(SUM('Historical Expenditure-Volumes'!D50:G50)/SUM('Historical Expenditure-Volumes'!D83:G83), 0) -> 187795.2511
B19: =IF('Historical Expenditure-Volumes'!B19=0," ",'Historical Expenditure-Volumes'!B19) -> CBI2 | C19: Business Supply - New Indoor Sub (SR>200kVA) >$400k | D19: =IFERROR(SUM('Historical Expenditure-Volumes'!D51:G51)/SUM('Historical Expenditure-Volumes'!D84:G84), 0) -> 148221.5339
B20: =IF('Historical Expenditure-Volumes'!B20=0," ",'Historical Expenditure-Volumes'!B20) -> CBK2 | C20: Business Supply - New Kiosk Substation (SR>200kVA) >$400k | D20: =IFERROR(SUM('Historical Expenditure-Volumes'!D52:G52)/SUM('Historical Expenditure-Volumes'!D85:G85), 0) -> 139899.145
B21: =IF('Historical Expenditure-Volumes'!B21=0," ",'Historical Expenditure-Volumes'!B21) -> CBL2 | C21: Business Supply - LV connections & LV augmentation as required (70kVA<SR<150kVA) >$400k | D21: =IFERROR(SUM('Historical Expenditure-Volumes'!D53:G53)/SUM('Historical Expenditure-Volumes'!D86:G86), 0) -> 0
B22: =IF('Historical Expenditure-Volumes'!B22=0," ",'Historical Expenditure-Volumes'!B22) -> CBP2 | C22: Business Supply - Pole Substation (SR>200 kVA) >$400k | D22: =IFERROR(SUM('Historical Expenditure-Volumes'!D54:G54)/SUM('Historical Expenditure-Volumes'!D87:G87), 0) -> 0
B23: =IF('Historical Expenditure-Volumes'!B23=0," ",'Historical Expenditure-Volumes'!B23) -> CBS2 | C23: Bus Sup Proj>10kVA-Sub Modific >$400k | D23: =IFERROR(SUM('Historical Expenditure-Volumes'!D55:G55)/SUM('Historical Expenditure-Volumes'!D88:G88), 0) -> 0
B24: =IF('Historical Expenditure-Volumes'!B24=0," ",'Historical Expenditure-Volumes'!B24) -> CDA | C24: S/DIVISION PIT INST Dual & multiple occupancy new supply (SR<100kVA) | D24: =IFERROR(SUM('Historical Expenditure-Volumes'!D56:G56)/SUM('Historical Expenditure-Volumes'!D89:G89), 0) -> 1667.831655
B25: =IF('Historical Expenditure-Volumes'!B25=0," ",'Historical Expenditure-Volumes'!B25) -> CDP | C25: SP2-FY16-CDP-CB-PIT AT BSE REPL P/L POLE | D25: =IFERROR(SUM('Historical Expenditure-Volumes'!D57:G57)/SUM('Historical Expenditure-Volumes'!D90:G90), 0) -> 0
B26: =IF('Historical Expenditure-Volumes'!B26=0," ",'Historical Expenditure-Volumes'!B26) -> CHH1 | C26: URD - HV Extension (SR >200kVA) no of lots >15 lot | D26: =IFERROR(SUM('Historical Expenditure-Volumes'!D58:G58)/SUM('Historical Expenditure-Volumes'!D91:G91), 0) -> 5131.199826
B27: =IF('Historical Expenditure-Volumes'!B27=0," ",'Historical Expenditure-Volumes'!B27) -> CHL1 | C27: URD - LV Extension (100kVA<SR<200kVA) No of lots <15 lot | D27: =IFERROR(SUM('Historical Expenditure-Volumes'!D59:G59)/SUM('Historical Expenditure-Volumes'!D92:G92), 0) -> 6407.154591
B28: =IF('Historical Expenditure-Volumes'!B28=0," ",'Historical Expenditure-Volumes'!B28) -> CHH2 | C28: URD - HV Extension (SR >200kVA) no of lots >15 lot | D28: =IFERROR(SUM('Historical Expenditure-Volumes'!D60:G60)/SUM('Historical Expenditure-Volumes'!D93:G93), 0) -> 10542.61405
B29: =IF('Historical Expenditure-Volumes'!B29=0," ",'Historical Expenditure-Volumes'!B29) -> CHL2 | C29: URD - LV Extension (100kVA<SR<200kVA) No of lots <15 lot | D29: =IFERROR(SUM('Historical Expenditure-Volumes'!D61:G61)/SUM('Historical Expenditure-Volumes'!D94:G94), 0) -> 28623.86446
B30: =IF('Historical Expenditure-Volumes'!B30=0," ",'Historical Expenditure-Volumes'!B30) -> CR1 | C30: All recoverable works <= $400k | D30: =IFERROR(SUM('Historical Expenditure-Volumes'!D62:G62)/SUM('Historical Expenditure-Volumes'!D95:G95), 0) -> 8550.068042
B31: =IF('Historical Expenditure-Volumes'!B31=0," ",'Historical Expenditure-Volumes'!B31) -> CR2 | C31: All recoverable works > $400k | D31: =IFERROR(SUM('Historical Expenditure-Volumes'!D63:G63)/SUM('Historical Expenditure-Volumes'!D96:G96), 0) -> 137586.3803
B32: =IF('Historical Expenditure-Volumes'!B32=0," ",'Historical Expenditure-Volumes'!B32) -> CS1 | C32: Rural Supply - O/H HV and U/G HV - <= $400k | D32: =IFERROR(SUM('Historical Expenditure-Volumes'!D64:G64)/SUM('Historical Expenditure-Volumes'!D97:G97), 0) -> 166239.0412
B33: =IF('Historical Expenditure-Volumes'!B33=0," ",'Historical Expenditure-Volumes'!B33) -> CS2 | C33: Rural Supply - O/H HV and U/G HV - > $400k | D33: =IFERROR(SUM('Historical Expenditure-Volumes'!D65:G65)/SUM('Historical Expenditure-Volumes'!D98:G98), 0) -> 0
B35: End of Sheet

Sheet Forecast Expenditure-Volumes
A1: =Inflation!A1 -> United Energy - Connections | M1: Menu
A2: =RIGHT(CELL("filename", $A$1), LEN(CELL("filename", $A$1)) - SEARCH("]", CELL("filename", $A$1))) -> Forecast Expenditure-Volumes | L2: Sheet Check | M2: =IF(CEILING(SUM(C8:M33),1)=CEILING(SUM(N41:X54),1),"OK","Check!") -> OK
B4: Forecast Volumes - Growth Rate by Function Code
C6: 0's
B7: Function Code | C7: 2015/16 | D7: 2016/17 | E7: 2017/18 | F7: 2018/19 | G7: 2019/20 | H7: 2020/21 | I7: 2021/22 | J7: 2022/23 | K7: 2023/24 | L7: 2024/25 | M7: 2025/26
B8: =IF('Historical Expenditure-Volumes'!B8=0," ",'Historical Expenditure-Volumes'!B8) -> CBE1 | C8: ='Historical Expenditure-Volumes'!D73 -> 327.5099349 | D8: ='Historical Expenditure-Volumes'!E73 -> 475.0885247 | E8: ='Historical Expenditure-Volumes'!F73 -> 628.1404619 | F8: ='Historical Expenditure-Volumes'!G73 -> 578.7430174 | G8: ='Historical Expenditure-Volumes'!H73 -> 502.3704847 | H8: =G8*(1+'Growth Rates'!G9) -> 514.5855595 | I8: =H8*(1+'Growth Rates'!H9) -> 505.6387322 | J8: =I8*(1+'Growth Rates'!I9) -> 471.4446933 | K8: =J8*(1+'Growth Rates'!J9) -> 467.9721804 | L8: =K8*(1+'Growth Rates'!K9) -> 477.9403351 | M8: =L8*(1+'Growth Rates'!L9) -> 482.8427063
B9: =IF('Historical Expenditure-Volumes'!B9=0," ",'Historical Expenditure-Volumes'!B9) -> CBG1 | C9: ='Historical Expenditure-Volumes'!D74 -> 19.36660542 | D9: ='Historical Expenditure-Volumes'!E74 -> 27.71747801 | E9: ='Historical Expenditure-Volumes'!F74 -> 22.38867618 | F9: ='Historical Expenditure-Volumes'!G74 -> 16.03273675 | G9: ='Historical Expenditure-Volumes'!H74 -> 21.37637409 | H9: =G9*(1+'Growth Rates'!G10) -> 21.89613792 | I9: =H9*(1+'Growth Rates'!H10) -> 21.51544134 | J9: =I9*(1+'Growth Rates'!I10) -> 20.06045027 | K9: =J9*(1+'Growth Rates'!J10) -> 19.91269132 | L9: =K9*(1+'Growth Rates'!K10) -> 20.33684642 | M9: =L9*(1+'Growth Rates'!L10) -> 20.54544729
B10: =IF('Historical Expenditure-Volumes'!B10=0," ",'Historical Expenditure-Volumes'!B10) -> CBH1 | C10: ='Historical Expenditure-Volumes'!D75 -> 26.85844602 | D10: ='Historical Expenditure-Volumes'!E75 -> 35.67067224 | E10: ='Historical Expenditure-Volumes'!F75 -> 40.56998854 | F10: ='Historical Expenditure-Volumes'!G75 -> 39.23277404 | G10: ='Historical Expenditure-Volumes'!H75 -> 35.58297021 | H10: =G10*(1+'Growth Rates'!G11) -> 36.44816563 | I10: =H10*(1+'Growth Rates'!H11) -> 35.81446063 | J10: =I10*(1+'Growth Rates'!I11) -> 33.39249217 | K10: =J10*(1+'Growth Rates'!J11) -> 33.14653361 | L10: =K10*(1+'Growth Rates'!K11) -> 33.85257937 | M10: =L10*(1+'Growth Rates'!L11) -> 34.19981499
B11: =IF('Historical Expenditure-Volumes'!B11=0," ",'Historical Expenditure-Volumes'!B11) -> CBI1 | C11: ='Historical Expenditure-Volumes'!D76 -> 252.4097928 | D11: ='Historical Expenditure-Volumes'!E76 -> 302.6043235 | E11: ='Historical Expenditure-Volumes'!F76 -> 330.1722566 | F11: ='Historical Expenditure-Volumes'!G76 -> 306.4706074 | G11: ='Historical Expenditure-Volumes'!H76 -> 297.9142451 | H11: =G11*(1+'Growth Rates'!G12) -> 305.1579923 | I11: =H11*(1+'Growth Rates'!H12) -> 299.8523714 | J11: =I11*(1+'Growth Rates'!I12) -> 279.5747246 | K11: =J11*(1+'Growth Rates'!J12) -> 277.5154654 | L11: =K11*(1+'Growth Rates'!K12) -> 283.4267507 | M11: =L11*(1+'Growth Rates'!L12) -> 286.3339402
B12: =IF('Historical Expenditure-Volumes'!B12=0," ",'Historical Expenditure-Volumes'!B12) -> CBK1 | C12: ='Historical Expenditure-Volumes'!D77 -> 554.6572507 | D12: ='Historical Expenditure-Volumes'!E77 -> 588.1736019 | E12: ='Historical Expenditure-Volumes'!F77 -> 584.7973683 | F12: ='Historical Expenditure-Volumes'!G77 -> 568.7549095 | G12: ='Historical Expenditure-Volumes'!H77 -> 574.0957826 | H12: =G12*(1+'Growth Rates'!G13) -> 588.0548489 | I12: =H12*(1+'Growth Rates'!H13) -> 577.8306498 | J12: =I12*(1+'Growth Rates'!I13) -> 538.7546012 | K12: =J12*(1+'Growth Rates'!J13) -> 534.7863047 | L12: =K12*(1+'Growth Rates'!K13) -> 546.1776499 | M12: =L12*(1+'Growth Rates'!L13) -> 551.7799507
B13: =IF('Historical Expenditure-Volumes'!B13=0," ",'Historical Expenditure-Volumes'!B13) -> CBL1 | C13: ='Historical Expenditure-Volumes'!D78 -> 398.2963374 | D13: ='Historical Expenditure-Volumes'!E78 -> 419.650687 | E13: ='Historical Expenditure-Volumes'!F78 -> 363.7671974 | F13: ='Historical Expenditure-Volumes'!G78 -> 344.3485833 | G13: ='Historical Expenditure-Volumes'!H78 -> 381.5157013 | H13: =G13*(1+'Growth Rates'!G14) -> 390.7922073 | I13: =H13*(1+'Growth Rates'!H14) -> 383.9977096 | J13: =I13*(1+'Growth Rates'!I14) -> 358.0296977 | K13: =J13*(1+'Growth Rates'!J14) -> 355.3925639 | L13: =K13*(1+'Growth Rates'!K14) -> 362.9626892 | M13: =L13*(1+'Growth Rates'!L14) -> 366.6857017
B14: =IF('Historical Expenditure-Volumes'!B14=0," ",'Historical Expenditure-Volumes'!B14) -> CBP1 | C14: ='Historical Expenditure-Volumes'!D79 -> 514.5513176 | D14: ='Historical Expenditure-Volumes'!E79 -> 503.7584987 | E14: ='Historical Expenditure-Volumes'!F79 -> 460.2969499 | F14: ='Historical Expenditure-Volumes'!G79 -> 449.2884927 | G14: ='Historical Expenditure-Volumes'!H79 -> 481.9738147 | H14: =G14*(1+'Growth Rates'!G15) -> 493.6929471 | I14: =H14*(1+'Growth Rates'!H15) -> 485.1093685 | J14: =I14*(1+'Growth Rates'!I15) -> 452.3036368 | K14: =J14*(1+'Growth Rates'!J15) -> 448.9721109 | L14: =K14*(1+'Growth Rates'!K15) -> 458.53555 | M14: =L14*(1+'Growth Rates'!L15) -> 463.2388807
B15: =IF('Historical Expenditure-Volumes'!B15=0," ",'Historical Expenditure-Volumes'!B15) -> CBS1 | C15: ='Historical Expenditure-Volumes'!D80 -> 0 | D15: ='Historical Expenditure-Volumes'!E80 -> 0 | E15: ='Historical Expenditure-Volumes'!F80 -> 0 | F15: ='Historical Expenditure-Volumes'!G80 -> 0 | G15: ='Historical Expenditure-Volumes'!H80 -> 0 | H15: =G15*(1+'Growth Rates'!G16) -> 0 | I15: =H15*(1+'Growth Rates'!H16) -> 0 | J15: =I15*(1+'Growth Rates'!I16) -> 0 | K15: =J15*(1+'Growth Rates'!J16) -> 0 | L15: =K15*(1+'Growth Rates'!K16) -> 0 | M15: =L15*(1+'Growth Rates'!L16) -> 0
B16: =IF('Historical Expenditure-Volumes'!B16=0," ",'Historical Expenditure-Volumes'!B16) -> CBE2 | C16: ='Historical Expenditure-Volumes'!D81 -> 0 | D16: ='Historical Expenditure-Volumes'!E81 -> 0 | E16: ='Historical Expenditure-Volumes'!F81 -> 0 | F16: ='Historical Expenditure-Volumes'!G81 -> 0 | G16: ='Historical Expenditure-Volumes'!H81 -> 0 | H16: =G16*(1+'Growth Rates'!G17) -> 0 | I16: =H16*(1+'Growth Rates'!H17) -> 0 | J16: =I16*(1+'Growth Rates'!I17) -> 0 | K16: =J16*(1+'Growth Rates'!J17) -> 0 | L16: =K16*(1+'Growth Rates'!K17) -> 0 | M16: =L16*(1+'Growth Rates'!L17) -> 0
B17: =IF('Historical Expenditure-Volumes'!B17=0," ",'Historical Expenditure-Volumes'!B17) -> CBG2 | C17: ='Historical Expenditure-Volumes'!D82 -> 0 | D17: ='Historical Expenditure-Volumes'!E82 -> 0 | E17: ='Historical Expenditure-Volumes'!F82 -> 0 | F17: ='Historical Expenditure-Volumes'!G82 -> 0 | G17: ='Historical Expenditure-Volumes'!H82 -> 0 | H17: =G17*(1+'Growth Rates'!G18) -> 0 | I17: =H17*(1+'Growth Rates'!H18) -> 0 | J17: =I17*(1+'Growth Rates'!I18) -> 0 | K17: =J17*(1+'Growth Rates'!J18) -> 0 | L17: =K17*(1+'Growth Rates'!K18) -> 0 | M17: =L17*(1+'Growth Rates'!L18) -> 0
B18: =IF('Historical Expenditure-Volumes'!B18=0," ",'Historical Expenditure-Volumes'!B18) -> CBH2 | C18: ='Historical Expenditure-Volumes'!D83 -> 9.99834543 | D18: ='Historical Expenditure-Volumes'!E83 -> 7.168213913 | E18: ='Historical Expenditure-Volumes'!F83 -> 5.596084812 | F18: ='Historical Expenditure-Volumes'!G83 -> 6.695565735 | G18: ='Historical Expenditure-Volumes'!H83 -> 7.364552473 | H18: =G18*(1+'Growth Rates'!G19) -> 7.543620635 | I18: =H18*(1+'Growth Rates'!H19) -> 7.412463686 | J18: =I18*(1+'Growth Rates'!I19) -> 6.911192611 | K18: =J18*(1+'Growth Rates'!J19) -> 6.860286946 | L18: =K18*(1+'Growth Rates'!K19) -> 7.006416148 | M18: =L18*(1+'Growth Rates'!L19) -> 7.078282969
B19: =IF('Historical Expenditure-Volumes'!B19=0," ",'Historical Expenditure-Volumes'!B19) -> CBI2 | C19: ='Historical Expenditure-Volumes'!D84 -> 9.214197864 | D19: ='Historical Expenditure-Volumes'!E84 -> 6.860922413 | E19: ='Historical Expenditure-Volumes'!F84 -> 2.798042406 | F19: ='Historical Expenditure-Volumes'!G84 -> 4.401539155 | G19: ='Historical Expenditure-Volumes'!H84 -> 5.818675459 | H19: =G19*(1+'Growth Rates'!G20) -> 5.960155817 | I19: =H19*(1+'Growth Rates'!H20) -> 5.856529736 | J19: =I19*(1+'Growth Rates'!I20) -> 5.460479369 | K19: =J19*(1+'Growth Rates'!J20) -> 5.4202592 | L19: =K19*(1+'Growth Rates'!K20) -> 5.535714743 | M19: =L19*(1+'Growth Rates'!L20) -> 5.592496158
B20: =IF('Historical Expenditure-Volumes'!B20=0," ",'Historical Expenditure-Volumes'!B20) -> CBK2 | C20: ='Historical Expenditure-Volumes'!D85 -> 21.08896268 | D20: ='Historical Expenditure-Volumes'!E85 -> 15.42869964 | E20: ='Historical Expenditure-Volumes'!F85 -> 6.996732363 | F20: ='Historical Expenditure-Volumes'!G85 -> 8.419902848 | G20: ='Historical Expenditure-Volumes'!H85 -> 12.98357438 | H20: =G20*(1+'Growth Rates'!G21) -> 13.29926835 | I20: =H20*(1+'Growth Rates'!H21) -> 13.068041 | J20: =I20*(1+'Growth Rates'!I21) -> 12.18430905 | K20: =J20*(1+'Growth Rates'!J21) -> 12.09456327 | L20: =K20*(1+'Growth Rates'!K21) -> 12.35218644 | M20: =L20*(1+'Growth Rates'!L21) -> 12.47888637
B21: =IF('Historical Expenditure-Volumes'!B21=0," ",'Historical Expenditure-Volumes'!B21) -> CBL2 | C21: ='Historical Expenditure-Volumes'!D86 -> 0 | D21: ='Historical Expenditure-Volumes'!E86 -> 0 | E21: ='Historical Expenditure-Volumes'!F86 -> 0 | F21: ='Historical Expenditure-Volumes'!G86 -> 0 | G21: ='Historical Expenditure-Volumes'!H86 -> 0 | H21: =G21*(1+'Growth Rates'!G22) -> 0 | I21: =H21*(1+'Growth Rates'!H22) -> 0 | J21: =I21*(1+'Growth Rates'!I22) -> 0 | K21: =J21*(1+'Growth Rates'!J22) -> 0 | L21: =K21*(1+'Growth Rates'!K22) -> 0 | M21: =L21*(1+'Growth Rates'!L22) -> 0
B22: =IF('Historical Expenditure-Volumes'!B22=0," ",'Historical Expenditure-Volumes'!B22) -> CBP2 | C22: ='Historical Expenditure-Volumes'!D87 -> 0 | D22: ='Historical Expenditure-Volumes'!E87 -> 0 | E22: ='Historical Expenditure-Volumes'!F87 -> 0 | F22: ='Historical Expenditure-Volumes'!G87 -> 0 | G22: ='Historical Expenditure-Volumes'!H87 -> 0 | H22: =G22*(1+'Growth Rates'!G23) -> 0 | I22: =H22*(1+'Growth Rates'!H23) -> 0 | J22: =I22*(1+'Growth Rates'!I23) -> 0 | K22: =J22*(1+'Growth Rates'!J23) -> 0 | L22: =K22*(1+'Growth Rates'!K23) -> 0 | M22: =L22*(1+'Growth Rates'!L23) -> 0
B23: =IF('Historical Expenditure-Volumes'!B23=0," ",'Historical Expenditure-Volumes'!B23) -> CBS2 | C23: ='Historical Expenditure-Volumes'!D88 -> 0 | D23: ='Historical Expenditure-Volumes'!E88 -> 0 | E23: ='Historical Expenditure-Volumes'!F88 -> 0 | F23: ='Historical Expenditure-Volumes'!G88 -> 0 | G23: ='Historical Expenditure-Volumes'!H88 -> 0 | H23: =G23*(1+'Growth Rates'!G24) -> 0 | I23: =H23*(1+'Growth Rates'!H24) -> 0 | J23: =I23*(1+'Growth Rates'!I24) -> 0 | K23: =J23*(1+'Growth Rates'!J24) -> 0 | L23: =K23*(1+'Growth Rates'!K24) -> 0 | M23: =L23*(1+'Growth Rates'!L24) -> 0
B24: =IF('Historical Expenditure-Volumes'!B24=0," ",'Historical Expenditure-Volumes'!B24) -> CDA | C24: ='Historical Expenditure-Volumes'!D89 -> 8619.5 | D24: ='Historical Expenditure-Volumes'!E89 -> 8829.5 | E24: ='Historical Expenditure-Volumes'!F89 -> 9554.5 | F24: ='Historical Expenditure-Volumes'!G89 -> 9621.5 | G24: ='Historical Expenditure-Volumes'!H89 -> 9156.25 | H24: =G24*(1+'Growth Rates'!G25) -> 9052.422634 | I24: =H24*(1+'Growth Rates'!H25) -> 9272.487012 | J24: =I24*(1+'Growth Rates'!I25) -> 9583.555455 | K24: =J24*(1+'Growth Rates'!J25) -> 9739.089677 | L24: =K24*(1+'Growth Rates'!K25) -> 9815.202169 | M24: =L24*(1+'Growth Rates'!L25) -> 9865.66806
B25: =IF('Historical Expenditure-Volumes'!B25=0," ",'Historical Expenditure-Volumes'!B25) -> CDP | C25: ='Historical Expenditure-Volumes'!D90 ->  | D25: ='Historical Expenditure-Volumes'!E90 ->  | E25: ='Historical Expenditure-Volumes'!F90 ->  | F25: ='Historical Expenditure-Volumes'!G90 -> 0 | G25: ='Historical Expenditure-Volumes'!H90 -> 0 | H25: =G25*(1+'Growth Rates'!G26) -> 0 | I25: =H25*(1+'Growth Rates'!H26) -> 0 | J25: =I25*(1+'Growth Rates'!I26) -> 0 | K25: =J25*(1+'Growth Rates'!J26) -> 0 | L25: =K25*(1+'Growth Rates'!K26) -> 0 | M25: =L25*(1+'Growth Rates'!L26) -> 0
B26: =IF('Historical Expenditure-Volumes'!B26=0," ",'Historical Expenditure-Volumes'!B26) -> CHH1 | C26: ='Historical Expenditure-Volumes'!D91 -> 423.5 | D26: ='Historical Expenditure-Volumes'!E91 -> 462.5 | E26: ='Historical Expenditure-Volumes'!F91 -> 392 | F26: ='Historical Expenditure-Volumes'!G91 -> 376.375 | G26: ='Historical Expenditure-Volumes'!H91 -> 413.59375 | H26: =G26*(1+'Growth Rates'!G27) -> 377.4138781 | I26: =H26*(1+'Growth Rates'!H27) -> 358.2573816 | J26: =I26*(1+'Growth Rates'!I27) -> 368.3585119 | K26: =J26*(1+'Growth Rates'!J27) -> 407.8123384 | L26: =K26*(1+'Growth Rates'!K27) -> 421.2765508 | M26: =L26*(1+'Growth Rates'!L27) -> 423.85531
B27: =IF('Historical Expenditure-Volumes'!B27=0," ",'Historical Expenditure-Volumes'!B27) -> CHL1 | C27: ='Historical Expenditure-Volumes'!D92 -> 521.5 | D27: ='Historical Expenditure-Volumes'!E92 -> 312.5 | E27: ='Historical Expenditure-Volumes'!F92 -> 204 | F27: ='Historical Expenditure-Volumes'!G92 -> 244.875 | G27: ='Historical Expenditure-Volumes'!H92 -> 320.71875 | H27: =G27*(1+'Growth Rates'!G28) -> 292.6632891 | I27: =H27*(1+'Growth Rates'!H28) -> 277.8085008 | J27: =I27*(1+'Growth Rates'!I28) -> 285.6413606 | K27: =J27*(1+'Growth Rates'!J28) -> 316.2355896 | L27: =K27*(1+'Growth Rates'!K28) -> 326.676331 | M27: =L27*(1+'Growth Rates'!L28) -> 328.6760141
B28: =IF('Historical Expenditure-Volumes'!B28=0," ",'Historical Expenditure-Volumes'!B28) -> CHH2 | C28: ='Historical Expenditure-Volumes'!D93 -> 0 | D28: ='Historical Expenditure-Volumes'!E93 -> 66.5 | E28: ='Historical Expenditure-Volumes'!F93 -> 82.5 | F28: ='Historical Expenditure-Volumes'!G93 -> 36.625 | G28: ='Historical Expenditure-Volumes'!H93 -> 46.40625 | H28: =G28*(1+'Growth Rates'!G29) -> 42.34677816 | I28: =H28*(1+'Growth Rates'!H29) -> 40.19737149 | J28: =I28*(1+'Growth Rates'!I29) -> 41.3307435 | K28: =J28*(1+'Growth Rates'!J29) -> 45.7575612 | L28: =K28*(1+'Growth Rates'!K29) -> 47.26827941 | M28: =L28*(1+'Growth Rates'!L29) -> 47.55762262
B29: =IF('Historical Expenditure-Volumes'!B29=0," ",'Historical Expenditure-Volumes'!B29) -> CHL2 | C29: ='Historical Expenditure-Volumes'!D94 -> 45.5 | D29: ='Historical Expenditure-Volumes'!E94 -> 0 | E29: ='Historical Expenditure-Volumes'!F94 -> 0 | F29: ='Historical Expenditure-Volumes'!G94 -> 11.375 | G29: ='Historical Expenditure-Volumes'!H94 -> 14.21875 | H29: =G29*(1+'Growth Rates'!G30) -> 12.97493876 | I29: =H29*(1+'Growth Rates'!H30) -> 12.31636635 | J29: =I29*(1+'Growth Rates'!I30) -> 12.66362848 | K29: =J29*(1+'Growth Rates'!J30) -> 14.0199935 | L29: =K29*(1+'Growth Rates'!K30) -> 14.48287349 | M29: =L29*(1+'Growth Rates'!L30) -> 14.57152747
B30: =IF('Historical Expenditure-Volumes'!B30=0," ",'Historical Expenditure-Volumes'!B30) -> CR1 | C30: ='Historical Expenditure-Volumes'!D95 -> 994.2071407 | D30: ='Historical Expenditure-Volumes'!E95 -> 1149.691376 | E30: ='Historical Expenditure-Volumes'!F95 -> 1291.291691 | F30: ='Historical Expenditure-Volumes'!G95 -> 1223.065963 | G30: ='Historical Expenditure-Volumes'!H95 -> 1164.564043 | H30: =G30*(1+'Growth Rates'!G31) -> 1192.305342 | I30: =H30*(1+'Growth Rates'!H31) -> 1175.261202 | J30: =I30*(1+'Growth Rates'!I31) -> 1082.481176 | K30: =J30*(1+'Growth Rates'!J31) -> 1010.31101 | L30: =K30*(1+'Growth Rates'!K31) -> 978.219533 | M30: =L30*(1+'Growth Rates'!L31) -> 960.4622491
B31: =IF('Historical Expenditure-Volumes'!B31=0," ",'Historical Expenditure-Volumes'!B31) -> CR2 | C31: ='Historical Expenditure-Volumes'!D96 -> 24.67390239 | D31: ='Historical Expenditure-Volumes'!E96 -> 30.68700197 | E31: ='Historical Expenditure-Volumes'!F96 -> 25.18455012 | F31: ='Historical Expenditure-Volumes'!G96 -> 22.25396674 | G31: ='Historical Expenditure-Volumes'!H96 -> 25.6998553 | H31: =G31*(1+'Growth Rates'!G32) -> 26.31205639 | I31: =H31*(1+'Growth Rates'!H32) -> 25.93592256 | J31: =I31*(1+'Growth Rates'!I32) -> 23.88843256 | K31: =J31*(1+'Growth Rates'!J32) -> 22.29576547 | L31: =K31*(1+'Growth Rates'!K32) -> 21.5875637 | M31: =L31*(1+'Growth Rates'!L32) -> 21.19569205
B32: =IF('Historical Expenditure-Volumes'!B32=0," ",'Historical Expenditure-Volumes'!B32) -> CS1 | C32: ='Historical Expenditure-Volumes'!D97 -> 0.5 | D32: ='Historical Expenditure-Volumes'!E97 -> 4 | E32: ='Historical Expenditure-Volumes'!F97 -> 7 | F32: ='Historical Expenditure-Volumes'!G97 -> 5.375 | G32: ='Historical Expenditure-Volumes'!H97 -> 4.21875 | H32: =G32*(1+'Growth Rates'!G33) -> 4.062301562 | I32: =H32*(1+'Growth Rates'!H33) -> 4.15177721 | J32: =I32*(1+'Growth Rates'!I33) -> 4.268041974 | K32: =J32*(1+'Growth Rates'!J33) -> 4.339836805 | L32: =K32*(1+'Growth Rates'!K33) -> 4.363411227 | M32: =L32*(1+'Growth Rates'!L33) -> 4.389664561
B33: =IF('Historical Expenditure-Volumes'!B33=0," ",'Historical Expenditure-Volumes'!B33) -> CS2 | C33: ='Historical Expenditure-Volumes'!D98 ->  | D33: ='Historical Expenditure-Volumes'!E98 ->  | E33: ='Historical Expenditure-Volumes'!F98 ->  | F33: ='Historical Expenditure-Volumes'!G98 -> 0 | G33: ='Historical Expenditure-Volumes'!H98 -> 0 | H33: =G33*(1+'Growth Rates'!G34) -> 0 | I33: =H33*(1+'Growth Rates'!H34) -> 0 | J33: =I33*(1+'Growth Rates'!I34) -> 0 | K33: =J33*(1+'Growth Rates'!J34) -> 0 | L33: =K33*(1+'Growth Rates'!K34) -> 0 | M33: =L33*(1+'Growth Rates'!L34) -> 0
B34: Totals | C34: =SUM(C8:C33) -> 12763.33223 | D34: 13237.5 | E34: 14002 | F34: 13863.83306 | G34: 13466.66632 | H34: 13377.93212 | I34: 13502.5113 | J34: 13580.30363 | K34: 13721.93473 | L34: 13837.20343 | M34: 13897.15225
B35: Check | C35: =C34-'Historical Expenditure-Volumes'!D99 -> 0 | D35: =D34-'Historical Expenditure-Volumes'!E99 -> 0 | E35: =E34-'Historical Expenditure-Volumes'!F99 -> 0 | F35: =F34-'Historical Expenditure-Volumes'!G99 -> 0 | G35: =G34-'Historical Expenditure-Volumes'!H99 -> 0 | H35: =SUMPRODUCT(G8:G33,1+'Growth Rates'!G9:G34)-H34 -> 0 | I35: =SUMPRODUCT(H8:H33,1+'Growth Rates'!H9:H34)-I34 -> 0 | J35: =SUMPRODUCT(I8:I33,1+'Growth Rates'!I9:I34)-J34 -> 0 | K35: =SUMPRODUCT(J8:J33,1+'Growth Rates'!J9:J34)-K34 -> 0 | L35: =SUMPRODUCT(K8:K33,1+'Growth Rates'!K9:K34)-L34 -> 0 | M35: =SUMPRODUCT(L8:L33,1+'Growth Rates'!L9:L34)-M34 -> 0
B38: Forecast Volumes - Growth Rate by AER Category
B39: Based on Function Code Mapping | N39: 0's
B40: CONNECTION SUBCATEGORY | C40: CONNECTION CLASSIFICATION | M40: CODE | N40: 2015/16 | O40: 2016/17 | P40: 2017/18 | Q40: 2018/19 | R40: 2019/20 | S40: 2020/21 | T40: 2021/22 | U40: 2022/23 | V40: 2023/24 | W40: 2024/25 | X40: 2025/26
B41: RESIDENTIAL | C41: SIMPLE CONNECTION LV | M41: R1 | N41: =SUMPRODUCT(C8:C33,'Function Code Mapping'!$D$26:$D$51) -> 8619.5 | O41: =SUMPRODUCT(D8:D33,'Function Code Mapping'!$D$26:$D$51) -> 8829.5 | P41: =SUMPRODUCT(E8:E33,'Function Code Mapping'!$D$26:$D$51) -> 9554.5 | Q41: =SUMPRODUCT(F8:F33,'Function Code Mapping'!$D$26:$D$51) -> 9621.5 | R41: =SUMPRODUCT(G8:G33,'Function Code Mapping'!$D$26:$D$51) -> 9156.25 | S41: =SUMPRODUCT(H8:H33,'Function Code Mapping'!$D$26:$D$51) -> 9052.422634 | T41: =SUMPRODUCT(I8:I33,'Function Code Mapping'!$D$26:$D$51) -> 9272.487012 | U41: =SUMPRODUCT(J8:J33,'Function Code Mapping'!$D$26:$D$51) -> 9583.555455 | V41: =SUMPRODUCT(K8:K33,'Function Code Mapping'!$D$26:$D$51) -> 9739.089677 | W41: =SUMPRODUCT(L8:L33,'Function Code Mapping'!$D$26:$D$51) -> 9815.202169 | X41: =SUMPRODUCT(M8:M33,'Function Code Mapping'!$D$26:$D$51) -> 9865.66806
C42: COMPLEX CONNECTION LV | M42: R2 | N42: =SUMPRODUCT(C8:C33,'Function Code Mapping'!$E$26:$E$51) -> 0 | O42: =SUMPRODUCT(D8:D33,'Function Code Mapping'!$E$26:$E$51) -> 0 | P42: =SUMPRODUCT(E8:E33,'Function Code Mapping'!$E$26:$E$51) -> 0 | Q42: =SUMPRODUCT(F8:F33,'Function Code Mapping'!$E$26:$E$51) -> 0 | R42: =SUMPRODUCT(G8:G33,'Function Code Mapping'!$E$26:$E$51) -> 0 | S42: =SUMPRODUCT(H8:H33,'Function Code Mapping'!$E$26:$E$51) -> 0 | T42: =SUMPRODUCT(I8:I33,'Function Code Mapping'!$E$26:$E$51) -> 0 | U42: =SUMPRODUCT(J8:J33,'Function Code Mapping'!$E$26:$E$51) -> 0 | V42: =SUMPRODUCT(K8:K33,'Function Code Mapping'!$E$26:$E$51) -> 0 | W42: =SUMPRODUCT(L8:L33,'Function Code Mapping'!$E$26:$E$51) -> 0 | X42: =SUMPRODUCT(M8:M33,'Function Code Mapping'!$E$26:$E$51) -> 0
C43: COMPLEX CONNECTION HV | M43: R3 | N43: =SUMPRODUCT(C8:C33,'Function Code Mapping'!$F$26:$F$51) -> 0 | O43: =SUMPRODUCT(D8:D33,'Function Code Mapping'!$F$26:$F$51) -> 0 | P43: =SUMPRODUCT(E8:E33,'Function Code Mapping'!$F$26:$F$51) -> 0 | Q43: =SUMPRODUCT(F8:F33,'Function Code Mapping'!$F$26:$F$51) -> 0 | R43: =SUMPRODUCT(G8:G33,'Function Code Mapping'!$F$26:$F$51) -> 0 | S43: =SUMPRODUCT(H8:H33,'Function Code Mapping'!$F$26:$F$51) -> 0 | T43: =SUMPRODUCT(I8:I33,'Function Code Mapping'!$F$26:$F$51) -> 0 | U43: =SUMPRODUCT(J8:J33,'Function Code Mapping'!$F$26:$F$51) -> 0 | V43: =SUMPRODUCT(K8:K33,'Function Code Mapping'!$F$26:$F$51) -> 0 | W43: =SUMPRODUCT(L8:L33,'Function Code Mapping'!$F$26:$F$51) -> 0 | X43: =SUMPRODUCT(M8:M33,'Function Code Mapping'!$F$26:$F$51) -> 0
B44: COMMERCIAL / INDUSTRIAL | C44: SIMPLE CONNECTION LV | M44: CI1 | N44: =SUMPRODUCT(C8:C33,'Function Code Mapping'!$G$26:$G$51) -> 725.8062723 | O44: =SUMPRODUCT(D8:D33,'Function Code Mapping'!$G$26:$G$51) -> 894.7392117 | P44: =SUMPRODUCT(E8:E33,'Function Code Mapping'!$G$26:$G$51) -> 991.9076594 | Q44: =SUMPRODUCT(F8:F33,'Function Code Mapping'!$G$26:$G$51) -> 923.0916008 | R44: =SUMPRODUCT(G8:G33,'Function Code Mapping'!$G$26:$G$51) -> 883.886186 | S44: =SUMPRODUCT(H8:H33,'Function Code Mapping'!$G$26:$G$51) -> 905.3777669 | T44: =SUMPRODUCT(I8:I33,'Function Code Mapping'!$G$26:$G$51) -> 889.6364418 | U44: =SUMPRODUCT(J8:J33,'Function Code Mapping'!$G$26:$G$51) -> 829.474391 | V44: =SUMPRODUCT(K8:K33,'Function Code Mapping'!$G$26:$G$51) -> 823.3647443 | W44: =SUMPRODUCT(L8:L33,'Function Code Mapping'!$G$26:$G$51) -> 840.9030243 | X44: =SUMPRODUCT(M8:M33,'Function Code Mapping'!$G$26:$G$51) -> 849.528408
C45: COMPLEX CONNECTION HV (CUSTOMER CONNECTED AT LV, MINOR HV WORKS) | M45: CI2 | N45: =SUMPRODUCT(C8:C33,'Function Code Mapping'!$H$26:$H$51) -> 1340.984967 | O45: =SUMPRODUCT(D8:D33,'Function Code Mapping'!$H$26:$H$51) -> 1422.253902 | P45: =SUMPRODUCT(E8:E33,'Function Code Mapping'!$H$26:$H$51) -> 1397.655251 | Q45: =SUMPRODUCT(F8:F33,'Function Code Mapping'!$H$26:$H$51) -> 1340.546746 | R45: =SUMPRODUCT(G8:G33,'Function Code Mapping'!$H$26:$H$51) -> 1375.360216 | S45: =SUMPRODUCT(H8:H33,'Function Code Mapping'!$H$26:$H$51) -> 1408.801926 | T45: =SUMPRODUCT(I8:I33,'Function Code Mapping'!$H$26:$H$51) -> 1384.307831 | U45: =SUMPRODUCT(J8:J33,'Function Code Mapping'!$H$26:$H$51) -> 1290.693413 | V45: =SUMPRODUCT(K8:K33,'Function Code Mapping'!$H$26:$H$51) -> 1281.186572 | W45: =SUMPRODUCT(L8:L33,'Function Code Mapping'!$H$26:$H$51) -> 1308.476797 | X45: =SUMPRODUCT(M8:M33,'Function Code Mapping'!$H$26:$H$51) -> 1321.898219
C46: COMPLEX CONNECTION HV (CUSTOMER CONNECTED AT LV, UPSTREAM ASSET WORKS) | M46: CI3 | N46: =SUMPRODUCT(C8:C33,'Function Code Mapping'!$I$26:$I$51) -> 30.30316054 | O46: =SUMPRODUCT(D8:D33,'Function Code Mapping'!$I$26:$I$51) -> 22.28962206 | P46: =SUMPRODUCT(E8:E33,'Function Code Mapping'!$I$26:$I$51) -> 9.794774769 | Q46: =SUMPRODUCT(F8:F33,'Function Code Mapping'!$I$26:$I$51) -> 12.821442 | R46: =SUMPRODUCT(G8:G33,'Function Code Mapping'!$I$26:$I$51) -> 18.80224984 | S46: =SUMPRODUCT(H8:H33,'Function Code Mapping'!$I$26:$I$51) -> 19.25942417 | T46: =SUMPRODUCT(I8:I33,'Function Code Mapping'!$I$26:$I$51) -> 18.92457073 | U46: =SUMPRODUCT(J8:J33,'Function Code Mapping'!$I$26:$I$51) -> 17.64478842 | V46: =SUMPRODUCT(K8:K33,'Function Code Mapping'!$I$26:$I$51) -> 17.51482247 | W46: =SUMPRODUCT(L8:L33,'Function Code Mapping'!$I$26:$I$51) -> 17.88790119 | X46: =SUMPRODUCT(M8:M33,'Function Code Mapping'!$I$26:$I$51) -> 18.07138252
C47: COMPLEX CONNECTION HV (CUSTOMER CONNECTED AT HV) | M47: CI4 | N47: =SUMPRODUCT(C8:C33,'Function Code Mapping'!$J$26:$J$51) -> 1055.737834 | O47: =SUMPRODUCT(D8:D33,'Function Code Mapping'!$J$26:$J$51) -> 1223.217264 | P47: =SUMPRODUCT(E8:E33,'Function Code Mapping'!$J$26:$J$51) -> 1362.642315 | Q47: =SUMPRODUCT(F8:F33,'Function Code Mapping'!$J$26:$J$51) -> 1291.248269 | R47: =SUMPRODUCT(G8:G33,'Function Code Mapping'!$J$26:$J$51) -> 1233.211421 | S47: =SUMPRODUCT(H8:H33,'Function Code Mapping'!$J$26:$J$51) -> 1262.609184 | T47: =SUMPRODUCT(I8:I33,'Function Code Mapping'!$J$26:$J$51) -> 1244.424049 | U47: =SUMPRODUCT(J8:J33,'Function Code Mapping'!$J$26:$J$51) -> 1146.673293 | V47: =SUMPRODUCT(K8:K33,'Function Code Mapping'!$J$26:$J$51) -> 1072.613596 | W47: =SUMPRODUCT(L8:L33,'Function Code Mapping'!$J$26:$J$51) -> 1040.666092 | X47: =SUMPRODUCT(M8:M33,'Function Code Mapping'!$J$26:$J$51) -> 1022.936039
C48: COMPLEX CONNECTION SUB-TRANSMISSION | M48: CI5 | N48: =SUMPRODUCT(C8:C33,'Function Code Mapping'!$K$26:$K$51) -> 0 | O48: =SUMPRODUCT(D8:D33,'Function Code Mapping'!$K$26:$K$51) -> 0 | P48: =SUMPRODUCT(E8:E33,'Function Code Mapping'!$K$26:$K$51) -> 0 | Q48: =SUMPRODUCT(F8:F33,'Function Code Mapping'!$K$26:$K$51) -> 0 | R48: =SUMPRODUCT(G8:G33,'Function Code Mapping'!$K$26:$K$51) -> 0 | S48: =SUMPRODUCT(H8:H33,'Function Code Mapping'!$K$26:$K$51) -> 0 | T48: =SUMPRODUCT(I8:I33,'Function Code Mapping'!$K$26:$K$51) -> 0 | U48: =SUMPRODUCT(J8:J33,'Function Code Mapping'!$K$26:$K$51) -> 0 | V48: =SUMPRODUCT(K8:K33,'Function Code Mapping'!$K$26:$K$51) -> 0 | W48: =SUMPRODUCT(L8:L33,'Function Code Mapping'!$K$26:$K$51) -> 0 | X48: =SUMPRODUCT(M8:M33,'Function Code Mapping'!$K$26:$K$51) -> 0
B49: SUBDIVISION | C49: COMPLEX CONNECTION LV | M49: S1 | N49: =SUMPRODUCT(C8:C33,'Function Code Mapping'!$L$26:$L$51) -> 567 | O49: =SUMPRODUCT(D8:D33,'Function Code Mapping'!$L$26:$L$51) -> 312.5 | P49: =SUMPRODUCT(E8:E33,'Function Code Mapping'!$L$26:$L$51) -> 204 | Q49: =SUMPRODUCT(F8:F33,'Function Code Mapping'!$L$26:$L$51) -> 256.25 | R49: =SUMPRODUCT(G8:G33,'Function Code Mapping'!$L$26:$L$51) -> 334.9375 | S49: =SUMPRODUCT(H8:H33,'Function Code Mapping'!$L$26:$L$51) -> 305.6382278 | T49: =SUMPRODUCT(I8:I33,'Function Code Mapping'!$L$26:$L$51) -> 290.1248671 | U49: =SUMPRODUCT(J8:J33,'Function Code Mapping'!$L$26:$L$51) -> 298.3049891 | V49: =SUMPRODUCT(K8:K33,'Function Code Mapping'!$L$26:$L$51) -> 330.2555831 | W49: =SUMPRODUCT(L8:L33,'Function Code Mapping'!$L$26:$L$51) -> 341.1592045 | X49: =SUMPRODUCT(M8:M33,'Function Code Mapping'!$L$26:$L$51) -> 343.2475416
C50: COMPLEX CONNECTION HV (NO UPSTREAM ASSET WORKS) | M50: S2 | N50: =SUMPRODUCT(C8:C33,'Function Code Mapping'!$M$26:$M$51) -> 424 | O50: =SUMPRODUCT(D8:D33,'Function Code Mapping'!$M$26:$M$51) -> 466.5 | P50: =SUMPRODUCT(E8:E33,'Function Code Mapping'!$M$26:$M$51) -> 399 | Q50: =SUMPRODUCT(F8:F33,'Function Code Mapping'!$M$26:$M$51) -> 381.75 | R50: =SUMPRODUCT(G8:G33,'Function Code Mapping'!$M$26:$M$51) -> 417.8125 | S50: =SUMPRODUCT(H8:H33,'Function Code Mapping'!$M$26:$M$51) -> 381.4761797 | T50: =SUMPRODUCT(I8:I33,'Function Code Mapping'!$M$26:$M$51) -> 362.4091588 | U50: =SUMPRODUCT(J8:J33,'Function Code Mapping'!$M$26:$M$51) -> 372.6265539 | V50: =SUMPRODUCT(K8:K33,'Function Code Mapping'!$M$26:$M$51) -> 412.1521752 | W50: =SUMPRODUCT(L8:L33,'Function Code Mapping'!$M$26:$M$51) -> 425.6399621 | X50: =SUMPRODUCT(M8:M33,'Function Code Mapping'!$M$26:$M$51) -> 428.2449746
C51: COMPLEX CONNECTION HV (WITH UPSTREAM ASSET WORKS) | M51: S3 | N51: =SUMPRODUCT(C8:C33,'Function Code Mapping'!$N$26:$N$51) -> 0 | O51: =SUMPRODUCT(D8:D33,'Function Code Mapping'!$N$26:$N$51) -> 66.5 | P51: =SUMPRODUCT(E8:E33,'Function Code Mapping'!$N$26:$N$51) -> 82.5 | Q51: =SUMPRODUCT(F8:F33,'Function Code Mapping'!$N$26:$N$51) -> 36.625 | R51: =SUMPRODUCT(G8:G33,'Function Code Mapping'!$N$26:$N$51) -> 46.40625 | S51: =SUMPRODUCT(H8:H33,'Function Code Mapping'!$N$26:$N$51) -> 42.34677816 | T51: =SUMPRODUCT(I8:I33,'Function Code Mapping'!$N$26:$N$51) -> 40.19737149 | U51: =SUMPRODUCT(J8:J33,'Function Code Mapping'!$N$26:$N$51) -> 41.3307435 | V51: =SUMPRODUCT(K8:K33,'Function Code Mapping'!$N$26:$N$51) -> 45.7575612 | W51: =SUMPRODUCT(L8:L33,'Function Code Mapping'!$N$26:$N$51) -> 47.26827941 | X51: =SUMPRODUCT(M8:M33,'Function Code Mapping'!$N$26:$N$51) -> 47.55762262
B52: EMBEDDED GENERATION | C52: SIMPLE CONNECTION LV | M52: EG1 | N52: =SUMPRODUCT(C8:C33,'Function Code Mapping'!$O$26:$O$51) -> 0 | O52: =SUMPRODUCT(D8:D33,'Function Code Mapping'!$O$26:$O$51) -> 0 | P52: =SUMPRODUCT(E8:E33,'Function Code Mapping'!$O$26:$O$51) -> 0 | Q52: =SUMPRODUCT(F8:F33,'Function Code Mapping'!$O$26:$O$51) -> 0 | R52: =SUMPRODUCT(G8:G33,'Function Code Mapping'!$O$26:$O$51) -> 0 | S52: =SUMPRODUCT(H8:H33,'Function Code Mapping'!$O$26:$O$51) -> 0 | T52: =SUMPRODUCT(I8:I33,'Function Code Mapping'!$O$26:$O$51) -> 0 | U52: =SUMPRODUCT(J8:J33,'Function Code Mapping'!$O$26:$O$51) -> 0 | V52: =SUMPRODUCT(K8:K33,'Function Code Mapping'!$O$26:$O$51) -> 0 | W52: =SUMPRODUCT(L8:L33,'Function Code Mapping'!$O$26:$O$51) -> 0 | X52: =SUMPRODUCT(M8:M33,'Function Code Mapping'!$O$26:$O$51) -> 0
C53: COMPLEX CONNECTION HV (SMALL CAPACITY) | M53: EG2 | N53: =SUMPRODUCT(C8:C33,'Function Code Mapping'!$P$26:$P$51) -> 0 | O53: =SUMPRODUCT(D8:D33,'Function Code Mapping'!$P$26:$P$51) -> 0 | P53: =SUMPRODUCT(E8:E33,'Function Code Mapping'!$P$26:$P$51) -> 0 | Q53: =SUMPRODUCT(F8:F33,'Function Code Mapping'!$P$26:$P$51) -> 0 | R53: =SUMPRODUCT(G8:G33,'Function Code Mapping'!$P$26:$P$51) -> 0 | S53: =SUMPRODUCT(H8:H33,'Function Code Mapping'!$P$26:$P$51) -> 0 | T53: =SUMPRODUCT(I8:I33,'Function Code Mapping'!$P$26:$P$51) -> 0 | U53: =SUMPRODUCT(J8:J33,'Function Code Mapping'!$P$26:$P$51) -> 0 | V53: =SUMPRODUCT(K8:K33,'Function Code Mapping'!$P$26:$P$51) -> 0 | W53: =SUMPRODUCT(L8:L33,'Function Code Mapping'!$P$26:$P$51) -> 0 | X53: =SUMPRODUCT(M8:M33,'Function Code Mapping'!$P$26:$P$51) -> 0
C54: COMPLEX CONNECTION HV (LARGE CAPACITY) | M54: EG3 | N54: =SUMPRODUCT(C8:C33,'Function Code Mapping'!$Q$26:$Q$51) -> 0 | O54: =SUMPRODUCT(D8:D33,'Function Code Mapping'!$Q$26:$Q$51) -> 0 | P54: =SUMPRODUCT(E8:E33,'Function Code Mapping'!$Q$26:$Q$51) -> 0 | Q54: =SUMPRODUCT(F8:F33,'Function Code Mapping'!$Q$26:$Q$51) -> 0 | R54: =SUMPRODUCT(G8:G33,'Function Code Mapping'!$Q$26:$Q$51) -> 0 | S54: =SUMPRODUCT(H8:H33,'Function Code Mapping'!$Q$26:$Q$51) -> 0 | T54: =SUMPRODUCT(I8:I33,'Function Code Mapping'!$Q$26:$Q$51) -> 0 | U54: =SUMPRODUCT(J8:J33,'Function Code Mapping'!$Q$26:$Q$51) -> 0 | V54: =SUMPRODUCT(K8:K33,'Function Code Mapping'!$Q$26:$Q$51) -> 0 | W54: =SUMPRODUCT(L8:L33,'Function Code Mapping'!$Q$26:$Q$51) -> 0 | X54: =SUMPRODUCT(M8:M33,'Function Code Mapping'!$Q$26:$Q$51) -> 0
M55: Totals | N55: =SUM(N41:N54) -> 12763.33223 | O55: 13237.5 | P55: 14002 | Q55: 13863.83306 | R55: 13466.66632 | S55: 13377.93212 | T55: 13502.5113 | U55: 13580.30363 | V55: 13721.93473 | W55: 13837.20343 | X55: 13897.15225
M56: Check | N56: =N55-C34 -> 0 | O56: =O55-D34 -> 0 | P56: 0 | Q56: 0 | R56: 0 | S56: 0 | T56: 0 | U56: 0 | V56: 0 | W56: 0 | X56: 0
B58: ="Forecast Expenditure by Function Code (High Volume)" -> Forecast Expenditure by Function Code (High Volume)
C60: ="$ "&Inflation!$C$4 -> $ 2021
B61: Function Code | C61: 2015/16 | D61: 2016/17 | E61: 2017/18 | F61: 2018/19 | G61: 2019/20 | H61: 2020/21 | I61: 2021/22 | J61: 2022/23 | K61: 2023/24 | L61: 2024/25 | M61: 2025/26
B62: =IF('Historical Expenditure-Volumes'!B8=0," ",'Historical Expenditure-Volumes'!B8) -> CBE1 | C62: =IFERROR(IF('Historical Expenditure-Volumes'!$I8="Averaging",'Historical Expenditure-Volumes'!D40,0),0) -> 1690222.536 | D62: =IFERROR(IF('Historical Expenditure-Volumes'!$I8="Averaging",'Historical Expenditure-Volumes'!E40,0),0) -> 1983536.254 | E62: =IFERROR(IF('Historical Expenditure-Volumes'!$I8="Averaging",'Historical Expenditure-Volumes'!F40,0),0) -> 2733013.118 | F62: =IFERROR(IF('Historical Expenditure-Volumes'!$I8="Averaging",'Historical Expenditure-Volumes'!G40,0),0) -> 2543648.807 | G62: =IFERROR(IF('Historical Expenditure-Volumes'!$I8="Averaging",G8*'Unit Rates'!$D8,0),0) -> 2237605.179 | H62: =IFERROR(IF('Historical Expenditure-Volumes'!$I8="Averaging",H8*'Unit Rates'!$D8,0),0) -> 2292012.266 | I62: =IFERROR(IF('Historical Expenditure-Volumes'!$I8="Averaging",I8*'Unit Rates'!$D8,0),0) -> 2252162.259 | J62: =IFERROR(IF('Historical Expenditure-Volumes'!$I8="Averaging",J8*'Unit Rates'!$D8,0),0) -> 2099858.808 | K62: =IFERROR(IF('Historical Expenditure-Volumes'!$I8="Averaging",K8*'Unit Rates'!$D8,0),0) -> 2084391.91 | L62: =IFERROR(IF('Historical Expenditure-Volumes'!$I8="Averaging",L8*'Unit Rates'!$D8,0),0) -> 2128791.005 | M62: =IFERROR(IF('Historical Expenditure-Volumes'!$I8="Averaging",M8*'Unit Rates'!$D8,0),0) -> 2150626.625
B63: =IF('Historical Expenditure-Volumes'!B9=0," ",'Historical Expenditure-Volumes'!B9) -> CBG1 | C63: =IFERROR(IF('Historical Expenditure-Volumes'!$I9="Averaging",'Historical Expenditure-Volumes'!D41,0),0) -> 203785.2178 | D63: =IFERROR(IF('Historical Expenditure-Volumes'!$I9="Averaging",'Historical Expenditure-Volumes'!E41,0),0) -> 346731.9256 | E63: =IFERROR(IF('Historical Expenditure-Volumes'!$I9="Averaging",'Historical Expenditure-Volumes'!F41,0),0) -> 302282.5088 | F63: =IFERROR(IF('Historical Expenditure-Volumes'!$I9="Averaging",'Historical Expenditure-Volumes'!G41,0),0) -> 161834.2824 | G63: =IFERROR(IF('Historical Expenditure-Volumes'!$I9="Averaging",G9*'Unit Rates'!$D9,0),0) -> 253658.4836 | H63: =IFERROR(IF('Historical Expenditure-Volumes'!$I9="Averaging",H9*'Unit Rates'!$D9,0),0) -> 259826.1576 | I63: =IFERROR(IF('Historical Expenditure-Volumes'!$I9="Averaging",I9*'Unit Rates'!$D9,0),0) -> 255308.6974 | J63: =IFERROR(IF('Historical Expenditure-Volumes'!$I9="Averaging",J9*'Unit Rates'!$D9,0),0) -> 238043.3359 | K63: =IFERROR(IF('Historical Expenditure-Volumes'!$I9="Averaging",K9*'Unit Rates'!$D9,0),0) -> 236289.9837 | L63: =IFERROR(IF('Historical Expenditure-Volumes'!$I9="Averaging",L9*'Unit Rates'!$D9,0),0) -> 241323.1357 | M63: =IFERROR(IF('Historical Expenditure-Volumes'!$I9="Averaging",M9*'Unit Rates'!$D9,0),0) -> 243798.4564
B64: =IF('Historical Expenditure-Volumes'!B10=0," ",'Historical Expenditure-Volumes'!B10) -> CBH1 | C64: =IFERROR(IF('Historical Expenditure-Volumes'!$I10="Averaging",'Historical Expenditure-Volumes'!D42,0),0) -> 0 | D64: =IFERROR(IF('Historical Expenditure-Volumes'!$I10="Averaging",'Historical Expenditure-Volumes'!E42,0),0) -> 0 | E64: =IFERROR(IF('Historical Expenditure-Volumes'!$I10="Averaging",'Historical Expenditure-Volumes'!F42,0),0) -> 0 | F64: =IFERROR(IF('Historical Expenditure-Volumes'!$I10="Averaging",'Historical Expenditure-Volumes'!G42,0),0) -> 0 | G64: =IFERROR(IF('Historical Expenditure-Volumes'!$I10="Averaging",G10*'Unit Rates'!$D10,0),0) -> 0 | H64: =IFERROR(IF('Historical Expenditure-Volumes'!$I10="Averaging",H10*'Unit Rates'!$D10,0),0) -> 0 | I64: =IFERROR(IF('Historical Expenditure-Volumes'!$I10="Averaging",I10*'Unit Rates'!$D10,0),0) -> 0 | J64: =IFERROR(IF('Historical Expenditure-Volumes'!$I10="Averaging",J10*'Unit Rates'!$D10,0),0) -> 0 | K64: =IFERROR(IF('Historical Expenditure-Volumes'!$I10="Averaging",K10*'Unit Rates'!$D10,0),0) -> 0 | L64: =IFERROR(IF('Historical Expenditure-Volumes'!$I10="Averaging",L10*'Unit Rates'!$D10,0),0) -> 0 | M64: =IFERROR(IF('Historical Expenditure-Volumes'!$I10="Averaging",M10*'Unit Rates'!$D10,0),0) -> 0
B65: =IF('Historical Expenditure-Volumes'!B11=0," ",'Historical Expenditure-Volumes'!B11) -> CBI1 | C65: =IFERROR(IF('Historical Expenditure-Volumes'!$I11="Averaging",'Historical Expenditure-Volumes'!D43,0),0) -> 6552025.324 | D65: =IFERROR(IF('Historical Expenditure-Volumes'!$I11="Averaging",'Historical Expenditure-Volumes'!E43,0),0) -> 6276852.886 | E65: =IFERROR(IF('Historical Expenditure-Volumes'!$I11="Averaging",'Historical Expenditure-Volumes'!F43,0),0) -> 4014067.925 | F65: =IFERROR(IF('Historical Expenditure-Volumes'!$I11="Averaging",'Historical Expenditure-Volumes'!G43,0),0) -> 3573633.559 | G65: =IFERROR(IF('Historical Expenditure-Volumes'!$I11="Averaging",G11*'Unit Rates'!$D11,0),0) -> 5104144.924 | H65: =IFERROR(IF('Historical Expenditure-Volumes'!$I11="Averaging",H11*'Unit Rates'!$D11,0),0) -> 5228251.562 | I65: =IFERROR(IF('Historical Expenditure-Volumes'!$I11="Averaging",I11*'Unit Rates'!$D11,0),0) -> 5137350.713 | J65: =IFERROR(IF('Historical Expenditure-Volumes'!$I11="Averaging",J11*'Unit Rates'!$D11,0),0) -> 4789935.14 | K65: =IFERROR(IF('Historical Expenditure-Volumes'!$I11="Averaging",K11*'Unit Rates'!$D11,0),0) -> 4754653.989 | L65: =IFERROR(IF('Historical Expenditure-Volumes'!$I11="Averaging",L11*'Unit Rates'!$D11,0),0) -> 4855931.647 | M65: =IFERROR(IF('Historical Expenditure-Volumes'!$I11="Averaging",M11*'Unit Rates'!$D11,0),0) -> 4905740.331
B66: =IF('Historical Expenditure-Volumes'!B12=0," ",'Historical Expenditure-Volumes'!B12) -> CBK1 | C66: =IFERROR(IF('Historical Expenditure-Volumes'!$I12="Averaging",'Historical Expenditure-Volumes'!D44,0),0) -> 10970980.2 | D66: =IFERROR(IF('Historical Expenditure-Volumes'!$I12="Averaging",'Historical Expenditure-Volumes'!E44,0),0) -> 10965782.33 | E66: =IFERROR(IF('Historical Expenditure-Volumes'!$I12="Averaging",'Historical Expenditure-Volumes'!F44,0),0) -> 8247087.921 | F66: =IFERROR(IF('Historical Expenditure-Volumes'!$I12="Averaging",'Historical Expenditure-Volumes'!G44,0),0) -> 6932955.055 | G66: =IFERROR(IF('Historical Expenditure-Volumes'!$I12="Averaging",G12*'Unit Rates'!$D12,0),0) -> 9279201.376 | H66: =IFERROR(IF('Historical Expenditure-Volumes'!$I12="Averaging",H12*'Unit Rates'!$D12,0),0) -> 9504823.984 | I66: =IFERROR(IF('Historical Expenditure-Volumes'!$I12="Averaging",I12*'Unit Rates'!$D12,0),0) -> 9339568.629 | J66: =IFERROR(IF('Historical Expenditure-Volumes'!$I12="Averaging",J12*'Unit Rates'!$D12,0),0) -> 8707976.244 | K66: =IFERROR(IF('Historical Expenditure-Volumes'!$I12="Averaging",K12*'Unit Rates'!$D12,0),0) -> 8643836.038 | L66: =IFERROR(IF('Historical Expenditure-Volumes'!$I12="Averaging",L12*'Unit Rates'!$D12,0),0) -> 8827956.16 | M66: =IFERROR(IF('Historical Expenditure-Volumes'!$I12="Averaging",M12*'Unit Rates'!$D12,0),0) -> 8918507.039
B67: =IF('Historical Expenditure-Volumes'!B13=0," ",'Historical Expenditure-Volumes'!B13) -> CBL1 | C67: =IFERROR(IF('Historical Expenditure-Volumes'!$I13="Averaging",'Historical Expenditure-Volumes'!D45,0),0) -> 2198238.847 | D67: =IFERROR(IF('Historical Expenditure-Volumes'!$I13="Averaging",'Historical Expenditure-Volumes'!E45,0),0) -> 2455890.356 | E67: =IFERROR(IF('Historical Expenditure-Volumes'!$I13="Averaging",'Historical Expenditure-Volumes'!F45,0),0) -> 1975690.345 | F67: =IFERROR(IF('Historical Expenditure-Volumes'!$I13="Averaging",'Historical Expenditure-Volumes'!G45,0),0) -> 1501717.277 | G67: =IFERROR(IF('Historical Expenditure-Volumes'!$I13="Averaging",G13*'Unit Rates'!$D13,0),0) -> 2032884.206 | H67: =IFERROR(IF('Historical Expenditure-Volumes'!$I13="Averaging",H13*'Unit Rates'!$D13,0),0) -> 2082313.529 | I67: =IFERROR(IF('Historical Expenditure-Volumes'!$I13="Averaging",I13*'Unit Rates'!$D13,0),0) -> 2046109.443 | J67: =IFERROR(IF('Historical Expenditure-Volumes'!$I13="Averaging",J13*'Unit Rates'!$D13,0),0) -> 1907740.403 | K67: =IFERROR(IF('Historical Expenditure-Volumes'!$I13="Averaging",K13*'Unit Rates'!$D13,0),0) -> 1893688.589 | L67: =IFERROR(IF('Historical Expenditure-Volumes'!$I13="Averaging",L13*'Unit Rates'!$D13,0),0) -> 1934025.561 | M67: =IFERROR(IF('Historical Expenditure-Volumes'!$I13="Averaging",M13*'Unit Rates'!$D13,0),0) -> 1953863.417
B68: =IF('Historical Expenditure-Volumes'!B14=0," ",'Historical Expenditure-Volumes'!B14) -> CBP1 | C68: =IFERROR(IF('Historical Expenditure-Volumes'!$I14="Averaging",'Historical Expenditure-Volumes'!D46,0),0) -> 7192524.837 | D68: =IFERROR(IF('Historical Expenditure-Volumes'!$I14="Averaging",'Historical Expenditure-Volumes'!E46,0),0) -> 5614767.467 | E68: =IFERROR(IF('Historical Expenditure-Volumes'!$I14="Averaging",'Historical Expenditure-Volumes'!F46,0),0) -> 3751104.442 | F68: =IFERROR(IF('Historical Expenditure-Volumes'!$I14="Averaging",'Historical Expenditure-Volumes'!G46,0),0) -> 3720393.994 | G68: =IFERROR(IF('Historical Expenditure-Volumes'!$I14="Averaging",G14*'Unit Rates'!$D14,0),0) -> 5069697.685 | H68: =IFERROR(IF('Historical Expenditure-Volumes'!$I14="Averaging",H14*'Unit Rates'!$D14,0),0) -> 5192966.743 | I68: =IFERROR(IF('Historical Expenditure-Volumes'!$I14="Averaging",I14*'Unit Rates'!$D14,0),0) -> 5102679.373 | J68: =IFERROR(IF('Historical Expenditure-Volumes'!$I14="Averaging",J14*'Unit Rates'!$D14,0),0) -> 4757608.464 | K68: =IFERROR(IF('Historical Expenditure-Volumes'!$I14="Averaging",K14*'Unit Rates'!$D14,0),0) -> 4722565.421 | L68: =IFERROR(IF('Historical Expenditure-Volumes'!$I14="Averaging",L14*'Unit Rates'!$D14,0),0) -> 4823159.569 | M68: =IFERROR(IF('Historical Expenditure-Volumes'!$I14="Averaging",M14*'Unit Rates'!$D14,0),0) -> 4872632.1
B69: =IF('Historical Expenditure-Volumes'!B15=0," ",'Historical Expenditure-Volumes'!B15) -> CBS1 | C69: =IFERROR(IF('Historical Expenditure-Volumes'!$I15="Averaging",'Historical Expenditure-Volumes'!D47,0),0) -> 0 | D69: =IFERROR(IF('Historical Expenditure-Volumes'!$I15="Averaging",'Historical Expenditure-Volumes'!E47,0),0) -> 0 | E69: =IFERROR(IF('Historical Expenditure-Volumes'!$I15="Averaging",'Historical Expenditure-Volumes'!F47,0),0) -> 0 | F69: =IFERROR(IF('Historical Expenditure-Volumes'!$I15="Averaging",'Historical Expenditure-Volumes'!G47,0),0) -> 0 | G69: =IFERROR(IF('Historical Expenditure-Volumes'!$I15="Averaging",G15*'Unit Rates'!$D15,0),0) -> 0 | H69: =IFERROR(IF('Historical Expenditure-Volumes'!$I15="Averaging",H15*'Unit Rates'!$D15,0),0) -> 0 | I69: =IFERROR(IF('Historical Expenditure-Volumes'!$I15="Averaging",I15*'Unit Rates'!$D15,0),0) -> 0 | J69: =IFERROR(IF('Historical Expenditure-Volumes'!$I15="Averaging",J15*'Unit Rates'!$D15,0),0) -> 0 | K69: =IFERROR(IF('Historical Expenditure-Volumes'!$I15="Averaging",K15*'Unit Rates'!$D15,0),0) -> 0 | L69: =IFERROR(IF('Historical Expenditure-Volumes'!$I15="Averaging",L15*'Unit Rates'!$D15,0),0) -> 0 | M69: =IFERROR(IF('Historical Expenditure-Volumes'!$I15="Averaging",M15*'Unit Rates'!$D15,0),0) -> 0
B70: =IF('Historical Expenditure-Volumes'!B16=0," ",'Historical Expenditure-Volumes'!B16) -> CBE2 | C70: =IFERROR(IF('Historical Expenditure-Volumes'!$I16="Averaging",'Historical Expenditure-Volumes'!D48,0),0) -> 0 | D70: =IFERROR(IF('Historical Expenditure-Volumes'!$I16="Averaging",'Historical Expenditure-Volumes'!E48,0),0) -> 0 | E70: =IFERROR(IF('Historical Expenditure-Volumes'!$I16="Averaging",'Historical Expenditure-Volumes'!F48,0),0) -> 0 | F70: =IFERROR(IF('Historical Expenditure-Volumes'!$I16="Averaging",'Historical Expenditure-Volumes'!G48,0),0) -> 0 | G70: =IFERROR(IF('Historical Expenditure-Volumes'!$I16="Averaging",G16*'Unit Rates'!$D16,0),0) -> 0 | H70: =IFERROR(IF('Historical Expenditure-Volumes'!$I16="Averaging",H16*'Unit Rates'!$D16,0),0) -> 0 | I70: =IFERROR(IF('Historical Expenditure-Volumes'!$I16="Averaging",I16*'Unit Rates'!$D16,0),0) -> 0 | J70: =IFERROR(IF('Historical Expenditure-Volumes'!$I16="Averaging",J16*'Unit Rates'!$D16,0),0) -> 0 | K70: =IFERROR(IF('Historical Expenditure-Volumes'!$I16="Averaging",K16*'Unit Rates'!$D16,0),0) -> 0 | L70: =IFERROR(IF('Historical Expenditure-Volumes'!$I16="Averaging",L16*'Unit Rates'!$D16,0),0) -> 0 | M70: =IFERROR(IF('Historical Expenditure-Volumes'!$I16="Averaging",M16*'Unit Rates'!$D16,0),0) -> 0
B71: =IF('Historical Expenditure-Volumes'!B17=0," ",'Historical Expenditure-Volumes'!B17) -> CBG2 | C71: =IFERROR(IF('Historical Expenditure-Volumes'!$I17="Averaging",'Historical Expenditure-Volumes'!D49,0),0) -> 0 | D71: =IFERROR(IF('Historical Expenditure-Volumes'!$I17="Averaging",'Historical Expenditure-Volumes'!E49,0),0) -> 0 | E71: =IFERROR(IF('Historical Expenditure-Volumes'!$I17="Averaging",'Historical Expenditure-Volumes'!F49,0),0) -> 0 | F71: =IFERROR(IF('Historical Expenditure-Volumes'!$I17="Averaging",'Historical Expenditure-Volumes'!G49,0),0) -> 0 | G71: =IFERROR(IF('Historical Expenditure-Volumes'!$I17="Averaging",G17*'Unit Rates'!$D17,0),0) -> 0 | H71: =IFERROR(IF('Historical Expenditure-Volumes'!$I17="Averaging",H17*'Unit Rates'!$D17,0),0) -> 0 | I71: =IFERROR(IF('Historical Expenditure-Volumes'!$I17="Averaging",I17*'Unit Rates'!$D17,0),0) -> 0 | J71: =IFERROR(IF('Historical Expenditure-Volumes'!$I17="Averaging",J17*'Unit Rates'!$D17,0),0) -> 0 | K71: =IFERROR(IF('Historical Expenditure-Volumes'!$I17="Averaging",K17*'Unit Rates'!$D17,0),0) -> 0 | L71: =IFERROR(IF('Historical Expenditure-Volumes'!$I17="Averaging",L17*'Unit Rates'!$D17,0),0) -> 0 | M71: =IFERROR(IF('Historical Expenditure-Volumes'!$I17="Averaging",M17*'Unit Rates'!$D17,0),0) -> 0
B72: =IF('Historical Expenditure-Volumes'!B18=0," ",'Historical Expenditure-Volumes'!B18) -> CBH2 | C72: =IFERROR(IF('Historical Expenditure-Volumes'!$I18="Averaging",'Historical Expenditure-Volumes'!D50,0),0) -> 0 | D72: =IFERROR(IF('Historical Expenditure-Volumes'!$I18="Averaging",'Historical Expenditure-Volumes'!E50,0),0) -> 0 | E72: =IFERROR(IF('Historical Expenditure-Volumes'!$I18="Averaging",'Historical Expenditure-Volumes'!F50,0),0) -> 0 | F72: =IFERROR(IF('Historical Expenditure-Volumes'!$I18="Averaging",'Historical Expenditure-Volumes'!G50,0),0) -> 0 | G72: =IFERROR(IF('Historical Expenditure-Volumes'!$I18="Averaging",G18*'Unit Rates'!$D18,0),0) -> 0 | H72: =IFERROR(IF('Historical Expenditure-Volumes'!$I18="Averaging",H18*'Unit Rates'!$D18,0),0) -> 0 | I72: =IFERROR(IF('Historical Expenditure-Volumes'!$I18="Averaging",I18*'Unit Rates'!$D18,0),0) -> 0 | J72: =IFERROR(IF('Historical Expenditure-Volumes'!$I18="Averaging",J18*'Unit Rates'!$D18,0),0) -> 0 | K72: =IFERROR(IF('Historical Expenditure-Volumes'!$I18="Averaging",K18*'Unit Rates'!$D18,0),0) -> 0 | L72: =IFERROR(IF('Historical Expenditure-Volumes'!$I18="Averaging",L18*'Unit Rates'!$D18,0),0) -> 0 | M72: =IFERROR(IF('Historical Expenditure-Volumes'!$I18="Averaging",M18*'Unit Rates'!$D18,0),0) -> 0
B73: =IF('Historical Expenditure-Volumes'!B19=0," ",'Historical Expenditure-Volumes'!B19) -> CBI2 | C73: =IFERROR(IF('Historical Expenditure-Volumes'!$I19="Averaging",'Historical Expenditure-Volumes'!D51,0),0) -> 1774910.89 | D73: =IFERROR(IF('Historical Expenditure-Volumes'!$I19="Averaging",'Historical Expenditure-Volumes'!E51,0),0) -> 327996.3996 | E73: =IFERROR(IF('Historical Expenditure-Volumes'!$I19="Averaging",'Historical Expenditure-Volumes'!F51,0),0) -> 478032.9116 | F73: =IFERROR(IF('Historical Expenditure-Volumes'!$I19="Averaging",'Historical Expenditure-Volumes'!G51,0),0) -> 868871.8066 | G73: =IFERROR(IF('Historical Expenditure-Volumes'!$I19="Averaging",G19*'Unit Rates'!$D19,0),0) -> 862453.002 | H73: =IFERROR(IF('Historical Expenditure-Volumes'!$I19="Averaging",H19*'Unit Rates'!$D19,0),0) -> 883423.4377 | I73: =IFERROR(IF('Historical Expenditure-Volumes'!$I19="Averaging",I19*'Unit Rates'!$D19,0),0) -> 868063.8209 | J73: =IFERROR(IF('Historical Expenditure-Volumes'!$I19="Averaging",J19*'Unit Rates'!$D19,0),0) -> 809360.628 | K73: =IFERROR(IF('Historical Expenditure-Volumes'!$I19="Averaging",K19*'Unit Rates'!$D19,0),0) -> 803399.1329 | L73: =IFERROR(IF('Historical Expenditure-Volumes'!$I19="Averaging",L19*'Unit Rates'!$D19,0),0) -> 820512.1306 | M73: =IFERROR(IF('Historical Expenditure-Volumes'!$I19="Averaging",M19*'Unit Rates'!$D19,0),0) -> 828928.359
B74: =IF('Historical Expenditure-Volumes'!B20=0," ",'Historical Expenditure-Volumes'!B20) -> CBK2 | C74: =IFERROR(IF('Historical Expenditure-Volumes'!$I20="Averaging",'Historical Expenditure-Volumes'!D52,0),0) -> 3062767.752 | D74: =IFERROR(IF('Historical Expenditure-Volumes'!$I20="Averaging",'Historical Expenditure-Volumes'!E52,0),0) -> 2344164.408 | E74: =IFERROR(IF('Historical Expenditure-Volumes'!$I20="Averaging",'Historical Expenditure-Volumes'!F52,0),0) -> 937114.4593 | F74: =IFERROR(IF('Historical Expenditure-Volumes'!$I20="Averaging",'Historical Expenditure-Volumes'!G52,0),0) -> 921517.2 | G74: =IFERROR(IF('Historical Expenditure-Volumes'!$I20="Averaging",G20*'Unit Rates'!$D20,0),0) -> 1816390.955 | H74: =IFERROR(IF('Historical Expenditure-Volumes'!$I20="Averaging",H20*'Unit Rates'!$D20,0),0) -> 1860556.271 | I74: =IFERROR(IF('Historical Expenditure-Volumes'!$I20="Averaging",I20*'Unit Rates'!$D20,0),0) -> 1828207.762 | J74: =IFERROR(IF('Historical Expenditure-Volumes'!$I20="Averaging",J20*'Unit Rates'!$D20,0),0) -> 1704574.418 | K74: =IFERROR(IF('Historical Expenditure-Volumes'!$I20="Averaging",K20*'Unit Rates'!$D20,0),0) -> 1692019.06 | L74: =IFERROR(IF('Historical Expenditure-Volumes'!$I20="Averaging",L20*'Unit Rates'!$D20,0),0) -> 1728060.322 | M74: =IFERROR(IF('Historical Expenditure-Volumes'!$I20="Averaging",M20*'Unit Rates'!$D20,0),0) -> 1745785.533
B75: =IF('Historical Expenditure-Volumes'!B21=0," ",'Historical Expenditure-Volumes'!B21) -> CBL2 | C75: =IFERROR(IF('Historical Expenditure-Volumes'!$I21="Averaging",'Historical Expenditure-Volumes'!D53,0),0) -> 0 | D75: =IFERROR(IF('Historical Expenditure-Volumes'!$I21="Averaging",'Historical Expenditure-Volumes'!E53,0),0) -> 0 | E75: =IFERROR(IF('Historical Expenditure-Volumes'!$I21="Averaging",'Historical Expenditure-Volumes'!F53,0),0) -> 0 | F75: =IFERROR(IF('Historical Expenditure-Volumes'!$I21="Averaging",'Historical Expenditure-Volumes'!G53,0),0) -> 0 | G75: =IFERROR(IF('Historical Expenditure-Volumes'!$I21="Averaging",G21*'Unit Rates'!$D21,0),0) -> 0 | H75: =IFERROR(IF('Historical Expenditure-Volumes'!$I21="Averaging",H21*'Unit Rates'!$D21,0),0) -> 0 | I75: =IFERROR(IF('Historical Expenditure-Volumes'!$I21="Averaging",I21*'Unit Rates'!$D21,0),0) -> 0 | J75: =IFERROR(IF('Historical Expenditure-Volumes'!$I21="Averaging",J21*'Unit Rates'!$D21,0),0) -> 0 | K75: =IFERROR(IF('Historical Expenditure-Volumes'!$I21="Averaging",K21*'Unit Rates'!$D21,0),0) -> 0 | L75: =IFERROR(IF('Historical Expenditure-Volumes'!$I21="Averaging",L21*'Unit Rates'!$D21,0),0) -> 0 | M75: =IFERROR(IF('Historical Expenditure-Volumes'!$I21="Averaging",M21*'Unit Rates'!$D21,0),0) -> 0
B76: =IF('Historical Expenditure-Volumes'!B22=0," ",'Historical Expenditure-Volumes'!B22) -> CBP2 | C76: =IFERROR(IF('Historical Expenditure-Volumes'!$I22="Averaging",'Historical Expenditure-Volumes'!D54,0),0) -> 0 | D76: =IFERROR(IF('Historical Expenditure-Volumes'!$I22="Averaging",'Historical Expenditure-Volumes'!E54,0),0) -> 0 | E76: =IFERROR(IF('Historical Expenditure-Volumes'!$I22="Averaging",'Historical Expenditure-Volumes'!F54,0),0) -> 0 | F76: =IFERROR(IF('Historical Expenditure-Volumes'!$I22="Averaging",'Historical Expenditure-Volumes'!G54,0),0) -> 0 | G76: =IFERROR(IF('Historical Expenditure-Volumes'!$I22="Averaging",G22*'Unit Rates'!$D22,0),0) -> 0 | H76: =IFERROR(IF('Historical Expenditure-Volumes'!$I22="Averaging",H22*'Unit Rates'!$D22,0),0) -> 0 | I76: =IFERROR(IF('Historical Expenditure-Volumes'!$I22="Averaging",I22*'Unit Rates'!$D22,0),0) -> 0 | J76: =IFERROR(IF('Historical Expenditure-Volumes'!$I22="Averaging",J22*'Unit Rates'!$D22,0),0) -> 0 | K76: =IFERROR(IF('Historical Expenditure-Volumes'!$I22="Averaging",K22*'Unit Rates'!$D22,0),0) -> 0 | L76: =IFERROR(IF('Historical Expenditure-Volumes'!$I22="Averaging",L22*'Unit Rates'!$D22,0),0) -> 0 | M76: =IFERROR(IF('Historical Expenditure-Volumes'!$I22="Averaging",M22*'Unit Rates'!$D22,0),0) -> 0
B77: =IF('Historical Expenditure-Volumes'!B23=0," ",'Historical Expenditure-Volumes'!B23) -> CBS2 | C77: =IFERROR(IF('Historical Expenditure-Volumes'!$I23="Averaging",'Historical Expenditure-Volumes'!D55,0),0) -> 0 | D77: =IFERROR(IF('Historical Expenditure-Volumes'!$I23="Averaging",'Historical Expenditure-Volumes'!E55,0),0) -> 0 | E77: =IFERROR(IF('Historical Expenditure-Volumes'!$I23="Averaging",'Historical Expenditure-Volumes'!F55,0),0) -> 0 | F77: =IFERROR(IF('Historical Expenditure-Volumes'!$I23="Averaging",'Historical Expenditure-Volumes'!G55,0),0) -> 0 | G77: =IFERROR(IF('Historical Expenditure-Volumes'!$I23="Averaging",G23*'Unit Rates'!$D23,0),0) -> 0 | H77: =IFERROR(IF('Historical Expenditure-Volumes'!$I23="Averaging",H23*'Unit Rates'!$D23,0),0) -> 0 | I77: =IFERROR(IF('Historical Expenditure-Volumes'!$I23="Averaging",I23*'Unit Rates'!$D23,0),0) -> 0 | J77: =IFERROR(IF('Historical Expenditure-Volumes'!$I23="Averaging",J23*'Unit Rates'!$D23,0),0) -> 0 | K77: =IFERROR(IF('Historical Expenditure-Volumes'!$I23="Averaging",K23*'Unit Rates'!$D23,0),0) -> 0 | L77: =IFERROR(IF('Historical Expenditure-Volumes'!$I23="Averaging",L23*'Unit Rates'!$D23,0),0) -> 0 | M77: =IFERROR(IF('Historical Expenditure-Volumes'!$I23="Averaging",M23*'Unit Rates'!$D23,0),0) -> 0
B78: =IF('Historical Expenditure-Volumes'!B24=0," ",'Historical Expenditure-Volumes'!B24) -> CDA | C78: =IFERROR(IF('Historical Expenditure-Volumes'!$I24="Averaging",'Historical Expenditure-Volumes'!D56,0),0) -> 14718604.67 | D78: =IFERROR(IF('Historical Expenditure-Volumes'!$I24="Averaging",'Historical Expenditure-Volumes'!E56,0),0) -> 13633228.77 | E78: =IFERROR(IF('Historical Expenditure-Volumes'!$I24="Averaging",'Historical Expenditure-Volumes'!F56,0),0) -> 16014200.9 | F78: =IFERROR(IF('Historical Expenditure-Volumes'!$I24="Averaging",'Historical Expenditure-Volumes'!G56,0),0) -> 16718300 | G78: =IFERROR(IF('Historical Expenditure-Volumes'!$I24="Averaging",G24*'Unit Rates'!$D24,0),0) -> 15271083.59 | H78: =IFERROR(IF('Historical Expenditure-Volumes'!$I24="Averaging",H24*'Unit Rates'!$D24,0),0) -> 15097917.02 | I78: =IFERROR(IF('Historical Expenditure-Volumes'!$I24="Averaging",I24*'Unit Rates'!$D24,0),0) -> 15464947.36 | J78: =IFERROR(IF('Historical Expenditure-Volumes'!$I24="Averaging",J24*'Unit Rates'!$D24,0),0) -> 15983757.15 | K78: =IFERROR(IF('Historical Expenditure-Volumes'!$I24="Averaging",K24*'Unit Rates'!$D24,0),0) -> 16243162.05 | L78: =IFERROR(IF('Historical Expenditure-Volumes'!$I24="Averaging",L24*'Unit Rates'!$D24,0),0) -> 16370104.87 | M78: =IFERROR(IF('Historical Expenditure-Volumes'!$I24="Averaging",M24*'Unit Rates'!$D24,0),0) -> 16454273.48
B79: =IF('Historical Expenditure-Volumes'!B25=0," ",'Historical Expenditure-Volumes'!B25) -> CDP | C79: =IFERROR(IF('Historical Expenditure-Volumes'!$I25="Averaging",'Historical Expenditure-Volumes'!D57,0),0) -> 0 | D79: =IFERROR(IF('Historical Expenditure-Volumes'!$I25="Averaging",'Historical Expenditure-Volumes'!E57,0),0) -> 0 | E79: =IFERROR(IF('Historical Expenditure-Volumes'!$I25="Averaging",'Historical Expenditure-Volumes'!F57,0),0) -> 0 | F79: =IFERROR(IF('Historical Expenditure-Volumes'!$I25="Averaging",'Historical Expenditure-Volumes'!G57,0),0) -> 0 | G79: =IFERROR(IF('Historical Expenditure-Volumes'!$I25="Averaging",G25*'Unit Rates'!$D25,0),0) -> 0 | H79: =IFERROR(IF('Historical Expenditure-Volumes'!$I25="Averaging",H25*'Unit Rates'!$D25,0),0) -> 0 | I79: =IFERROR(IF('Historical Expenditure-Volumes'!$I25="Averaging",I25*'Unit Rates'!$D25,0),0) -> 0 | J79: =IFERROR(IF('Historical Expenditure-Volumes'!$I25="Averaging",J25*'Unit Rates'!$D25,0),0) -> 0 | K79: =IFERROR(IF('Historical Expenditure-Volumes'!$I25="Averaging",K25*'Unit Rates'!$D25,0),0) -> 0 | L79: =IFERROR(IF('Historical Expenditure-Volumes'!$I25="Averaging",L25*'Unit Rates'!$D25,0),0) -> 0 | M79: =IFERROR(IF('Historical Expenditure-Volumes'!$I25="Averaging",M25*'Unit Rates'!$D25,0),0) -> 0
B80: =IF('Historical Expenditure-Volumes'!B26=0," ",'Historical Expenditure-Volumes'!B26) -> CHH1 | C80: =IFERROR(IF('Historical Expenditure-Volumes'!$I26="Averaging",'Historical Expenditure-Volumes'!D58,0),0) -> 1978560.662 | D80: =IFERROR(IF('Historical Expenditure-Volumes'!$I26="Averaging",'Historical Expenditure-Volumes'!E58,0),0) -> 2703440.02 | E80: =IFERROR(IF('Historical Expenditure-Volumes'!$I26="Averaging",'Historical Expenditure-Volumes'!F58,0),0) -> 2063501.214 | F80: =IFERROR(IF('Historical Expenditure-Volumes'!$I26="Averaging",'Historical Expenditure-Volumes'!G58,0),0) -> 1743426.817 | G80: =IFERROR(IF('Historical Expenditure-Volumes'!$I26="Averaging",G26*'Unit Rates'!$D26,0),0) -> 2122232.178 | H80: =IFERROR(IF('Historical Expenditure-Volumes'!$I26="Averaging",H26*'Unit Rates'!$D26,0),0) -> 1936586.026 | I80: =IFERROR(IF('Historical Expenditure-Volumes'!$I26="Averaging",I26*'Unit Rates'!$D26,0),0) -> 1838290.214 | J80: =IFERROR(IF('Historical Expenditure-Volumes'!$I26="Averaging",J26*'Unit Rates'!$D26,0),0) -> 1890121.132 | K80: =IFERROR(IF('Historical Expenditure-Volumes'!$I26="Averaging",K26*'Unit Rates'!$D26,0),0) -> 2092566.6 | L80: =IFERROR(IF('Historical Expenditure-Volumes'!$I26="Averaging",L26*'Unit Rates'!$D26,0),0) -> 2161654.165 | M80: =IFERROR(IF('Historical Expenditure-Volumes'!$I26="Averaging",M26*'Unit Rates'!$D26,0),0) -> 2174886.293
B81: =IF('Historical Expenditure-Volumes'!B27=0," ",'Historical Expenditure-Volumes'!B27) -> CHL1 | C81: =IFERROR(IF('Historical Expenditure-Volumes'!$I27="Averaging",'Historical Expenditure-Volumes'!D59,0),0) -> 2583472.735 | D81: =IFERROR(IF('Historical Expenditure-Volumes'!$I27="Averaging",'Historical Expenditure-Volumes'!E59,0),0) -> 2145383.846 | E81: =IFERROR(IF('Historical Expenditure-Volumes'!$I27="Averaging",'Historical Expenditure-Volumes'!F59,0),0) -> 1621938.004 | F81: =IFERROR(IF('Historical Expenditure-Volumes'!$I27="Averaging",'Historical Expenditure-Volumes'!G59,0),0) -> 1868783.862 | G81: =IFERROR(IF('Historical Expenditure-Volumes'!$I27="Averaging",G27*'Unit Rates'!$D27,0),0) -> 2054894.611 | H81: =IFERROR(IF('Historical Expenditure-Volumes'!$I27="Averaging",H27*'Unit Rates'!$D27,0),0) -> 1875138.936 | I81: =IFERROR(IF('Historical Expenditure-Volumes'!$I27="Averaging",I27*'Unit Rates'!$D27,0),0) -> 1779962.011 | J81: =IFERROR(IF('Historical Expenditure-Volumes'!$I27="Averaging",J27*'Unit Rates'!$D27,0),0) -> 1830148.355 | K81: =IFERROR(IF('Historical Expenditure-Volumes'!$I27="Averaging",K27*'Unit Rates'!$D27,0),0) -> 2026170.31 | L81: =IFERROR(IF('Historical Expenditure-Volumes'!$I27="Averaging",L27*'Unit Rates'!$D27,0),0) -> 2093065.754 | M81: =IFERROR(IF('Historical Expenditure-Volumes'!$I27="Averaging",M27*'Unit Rates'!$D27,0),0) -> 2105878.033
B82: =IF('Historical Expenditure-Volumes'!B28=0," ",'Historical Expenditure-Volumes'!B28) -> CHH2 | C82: =IFERROR(IF('Historical Expenditure-Volumes'!$I28="Averaging",'Historical Expenditure-Volumes'!D60,0),0) -> 0 | D82: =IFERROR(IF('Historical Expenditure-Volumes'!$I28="Averaging",'Historical Expenditure-Volumes'!E60,0),0) -> 552811.4365 | E82: =IFERROR(IF('Historical Expenditure-Volumes'!$I28="Averaging",'Historical Expenditure-Volumes'!F60,0),0) -> 728084.7777 | F82: =IFERROR(IF('Historical Expenditure-Volumes'!$I28="Averaging",'Historical Expenditure-Volumes'!G60,0),0) -> 676076.5195 | G82: =IFERROR(IF('Historical Expenditure-Volumes'!$I28="Averaging",G28*'Unit Rates'!$D28,0),0) -> 489243.1834 | H82: =IFERROR(IF('Historical Expenditure-Volumes'!$I28="Averaging",H28*'Unit Rates'!$D28,0),0) -> 446445.7386 | I82: =IFERROR(IF('Historical Expenditure-Volumes'!$I28="Averaging",I28*'Unit Rates'!$D28,0),0) -> 423785.3736 | J82: =IFERROR(IF('Historical Expenditure-Volumes'!$I28="Averaging",J28*'Unit Rates'!$D28,0),0) -> 435734.0772 | K82: =IFERROR(IF('Historical Expenditure-Volumes'!$I28="Averaging",K28*'Unit Rates'!$D28,0),0) -> 482404.3078 | L82: =IFERROR(IF('Historical Expenditure-Volumes'!$I28="Averaging",L28*'Unit Rates'!$D28,0),0) -> 498331.2268 | M82: =IFERROR(IF('Historical Expenditure-Volumes'!$I28="Averaging",M28*'Unit Rates'!$D28,0),0) -> 501381.6606
B83: =IF('Historical Expenditure-Volumes'!B29=0," ",'Historical Expenditure-Volumes'!B29) -> CHL2 | C83: =IFERROR(IF('Historical Expenditure-Volumes'!$I29="Averaging",'Historical Expenditure-Volumes'!D61,0),0) -> 456097.0808 | D83: =IFERROR(IF('Historical Expenditure-Volumes'!$I29="Averaging",'Historical Expenditure-Volumes'!E61,0),0) -> 447812.9112 | E83: =IFERROR(IF('Historical Expenditure-Volumes'!$I29="Averaging",'Historical Expenditure-Volumes'!F61,0),0) -> 443277.0529 | F83: =IFERROR(IF('Historical Expenditure-Volumes'!$I29="Averaging",'Historical Expenditure-Volumes'!G61,0),0) -> 280795.2461 | G83: =IFERROR(IF('Historical Expenditure-Volumes'!$I29="Averaging",G29*'Unit Rates'!$D29,0),0) -> 406995.5728 | H83: =IFERROR(IF('Historical Expenditure-Volumes'!$I29="Averaging",H29*'Unit Rates'!$D29,0),0) -> 371392.8885 | I83: =IFERROR(IF('Historical Expenditure-Volumes'!$I29="Averaging",I29*'Unit Rates'!$D29,0),0) -> 352542.001 | J83: =IFERROR(IF('Historical Expenditure-Volumes'!$I29="Averaging",J29*'Unit Rates'!$D29,0),0) -> 362481.9851 | K83: =IFERROR(IF('Historical Expenditure-Volumes'!$I29="Averaging",K29*'Unit Rates'!$D29,0),0) -> 401306.3936 | L83: =IFERROR(IF('Historical Expenditure-Volumes'!$I29="Averaging",L29*'Unit Rates'!$D29,0),0) -> 414555.8077 | M83: =IFERROR(IF('Historical Expenditure-Volumes'!$I29="Averaging",M29*'Unit Rates'!$D29,0),0) -> 417093.4272
B84: =IF('Historical Expenditure-Volumes'!B30=0," ",'Historical Expenditure-Volumes'!B30) -> CR1 | C84: =IFERROR(IF('Historical Expenditure-Volumes'!$I30="Averaging",'Historical Expenditure-Volumes'!D62,0),0) -> 0 | D84: =IFERROR(IF('Historical Expenditure-Volumes'!$I30="Averaging",'Historical Expenditure-Volumes'!E62,0),0) -> 0 | E84: =IFERROR(IF('Historical Expenditure-Volumes'!$I30="Averaging",'Historical Expenditure-Volumes'!F62,0),0) -> 0 | F84: =IFERROR(IF('Historical Expenditure-Volumes'!$I30="Averaging",'Historical Expenditure-Volumes'!G62,0),0) -> 0 | G84: =IFERROR(IF('Historical Expenditure-Volumes'!$I30="Averaging",G30*'Unit Rates'!$D30,0),0) -> 0 | H84: =IFERROR(IF('Historical Expenditure-Volumes'!$I30="Averaging",H30*'Unit Rates'!$D30,0),0) -> 0 | I84: =IFERROR(IF('Historical Expenditure-Volumes'!$I30="Averaging",I30*'Unit Rates'!$D30,0),0) -> 0 | J84: =IFERROR(IF('Historical Expenditure-Volumes'!$I30="Averaging",J30*'Unit Rates'!$D30,0),0) -> 0 | K84: =IFERROR(IF('Historical Expenditure-Volumes'!$I30="Averaging",K30*'Unit Rates'!$D30,0),0) -> 0 | L84: =IFERROR(IF('Historical Expenditure-Volumes'!$I30="Averaging",L30*'Unit Rates'!$D30,0),0) -> 0 | M84: =IFERROR(IF('Historical Expenditure-Volumes'!$I30="Averaging",M30*'Unit Rates'!$D30,0),0) -> 0
B85: =IF('Historical Expenditure-Volumes'!B31=0," ",'Historical Expenditure-Volumes'!B31) -> CR2 | C85: =IFERROR(IF('Historical Expenditure-Volumes'!$I31="Averaging",'Historical Expenditure-Volumes'!D63,0),0) -> 0 | D85: =IFERROR(IF('Historical Expenditure-Volumes'!$I31="Averaging",'Historical Expenditure-Volumes'!E63,0),0) -> 0 | E85: =IFERROR(IF('Historical Expenditure-Volumes'!$I31="Averaging",'Historical Expenditure-Volumes'!F63,0),0) -> 0 | F85: =IFERROR(IF('Historical Expenditure-Volumes'!$I31="Averaging",'Historical Expenditure-Volumes'!G63,0),0) -> 0 | G85: =IFERROR(IF('Historical Expenditure-Volumes'!$I31="Averaging",G31*'Unit Rates'!$D31,0),0) -> 0 | H85: =IFERROR(IF('Historical Expenditure-Volumes'!$I31="Averaging",H31*'Unit Rates'!$D31,0),0) -> 0 | I85: =IFERROR(IF('Historical Expenditure-Volumes'!$I31="Averaging",I31*'Unit Rates'!$D31,0),0) -> 0 | J85: =IFERROR(IF('Historical Expenditure-Volumes'!$I31="Averaging",J31*'Unit Rates'!$D31,0),0) -> 0 | K85: =IFERROR(IF('Historical Expenditure-Volumes'!$I31="Averaging",K31*'Unit Rates'!$D31,0),0) -> 0 | L85: =IFERROR(IF('Historical Expenditure-Volumes'!$I31="Averaging",L31*'Unit Rates'!$D31,0),0) -> 0 | M85: =IFERROR(IF('Historical Expenditure-Volumes'!$I31="Averaging",M31*'Unit Rates'!$D31,0),0) -> 0
B86: =IF('Historical Expenditure-Volumes'!B32=0," ",'Historical Expenditure-Volumes'!B32) -> CS1 | C86: =IFERROR(IF('Historical Expenditure-Volumes'!$I32="Averaging",'Historical Expenditure-Volumes'!D64,0),0) -> 1048557.352 | D86: =IFERROR(IF('Historical Expenditure-Volumes'!$I32="Averaging",'Historical Expenditure-Volumes'!E64,0),0) -> 660568.5769 | E86: =IFERROR(IF('Historical Expenditure-Volumes'!$I32="Averaging",'Historical Expenditure-Volumes'!F64,0),0) -> 444441.6798 | F86: =IFERROR(IF('Historical Expenditure-Volumes'!$I32="Averaging",'Historical Expenditure-Volumes'!G64,0),0) -> 651716.2103 | G86: =IFERROR(IF('Historical Expenditure-Volumes'!$I32="Averaging",G32*'Unit Rates'!$D32,0),0) -> 701320.9549 | H86: =IFERROR(IF('Historical Expenditure-Volumes'!$I32="Averaging",H32*'Unit Rates'!$D32,0),0) -> 675313.1166 | I86: =IFERROR(IF('Historical Expenditure-Volumes'!$I32="Averaging",I32*'Unit Rates'!$D32,0),0) -> 690187.4624 | J86: =IFERROR(IF('Historical Expenditure-Volumes'!$I32="Averaging",J32*'Unit Rates'!$D32,0),0) -> 709515.2053 | K86: =IFERROR(IF('Historical Expenditure-Volumes'!$I32="Averaging",K32*'Unit Rates'!$D32,0),0) -> 721450.3092 | L86: =IFERROR(IF('Historical Expenditure-Volumes'!$I32="Averaging",L32*'Unit Rates'!$D32,0),0) -> 725369.2985 | M86: =IFERROR(IF('Historical Expenditure-Volumes'!$I32="Averaging",M32*'Unit Rates'!$D32,0),0) -> 729733.6275
B87: =IF('Historical Expenditure-Volumes'!B33=0," ",'Historical Expenditure-Volumes'!B33) -> CS2 | C87: =IFERROR(IF('Historical Expenditure-Volumes'!$I33="Averaging",'Historical Expenditure-Volumes'!D65,0),0) -> 0 | D87: =IFERROR(IF('Historical Expenditure-Volumes'!$I33="Averaging",'Historical Expenditure-Volumes'!E65,0),0) -> 0 | E87: =IFERROR(IF('Historical Expenditure-Volumes'!$I33="Averaging",'Historical Expenditure-Volumes'!F65,0),0) -> 0 | F87: =IFERROR(IF('Historical Expenditure-Volumes'!$I33="Averaging",'Historical Expenditure-Volumes'!G65,0),0) -> 0 | G87: =IFERROR(IF('Historical Expenditure-Volumes'!$I33="Averaging",G33*'Unit Rates'!$D33,0),0) -> 0 | H87: =IFERROR(IF('Historical Expenditure-Volumes'!$I33="Averaging",H33*'Unit Rates'!$D33,0),0) -> 0 | I87: =IFERROR(IF('Historical Expenditure-Volumes'!$I33="Averaging",I33*'Unit Rates'!$D33,0),0) -> 0 | J87: =IFERROR(IF('Historical Expenditure-Volumes'!$I33="Averaging",J33*'Unit Rates'!$D33,0),0) -> 0 | K87: =IFERROR(IF('Historical Expenditure-Volumes'!$I33="Averaging",K33*'Unit Rates'!$D33,0),0) -> 0 | L87: =IFERROR(IF('Historical Expenditure-Volumes'!$I33="Averaging",L33*'Unit Rates'!$D33,0),0) -> 0 | M87: =IFERROR(IF('Historical Expenditure-Volumes'!$I33="Averaging",M33*'Unit Rates'!$D33,0),0) -> 0
B88: =IF('Historical Expenditure-Volumes'!C34=0," ",'Historical Expenditure-Volumes'!C34) -> Total | C88: =SUM(C62:C87) -> 54430748.11 | D88: 50458967.59 | E88: 43753837.26 | F88: 42163670.64 | G88: 47701805.9 | H88: 47706967.68 | I88: 47379165.11 | J88: 46226855.35 | K88: 46797904.1 | L88: 47622840.66 | M88: 48003128.39
B89: Check | C89: =SUMPRODUCT(('Historical Expenditure-Volumes'!D8:D33)*('Historical Expenditure-Volumes'!$I$8:$I$33="Averaging"))*Inflation!G10-C88 -> 0 | D89: =SUMPRODUCT(('Historical Expenditure-Volumes'!E8:E33)*('Historical Expenditure-Volumes'!$I$8:$I$33="Averaging"))*Inflation!H10-D88 -> 0 | E89: =SUMPRODUCT(('Historical Expenditure-Volumes'!F8:F33)*('Historical Expenditure-Volumes'!$I$8:$I$33="Averaging"))*Inflation!I10-E88 -> 0 | F89: =SUMPRODUCT(('Historical Expenditure-Volumes'!G8:G33)*('Historical Expenditure-Volumes'!$I$8:$I$33="Averaging"))*Inflation!J10-F88 -> 0 | G89: =SUMPRODUCT((G8:G33)*('Unit Rates'!$D$8:$D$33)*('Historical Expenditure-Volumes'!$I$8:$I$33="Averaging"))-G88 -> 0 | H89: =SUMPRODUCT((H8:H33)*('Unit Rates'!$D$8:$D$33)*('Historical Expenditure-Volumes'!$I$8:$I$33="Averaging"))-H88 -> 0 | I89: =SUMPRODUCT((I8:I33)*('Unit Rates'!$D$8:$D$33)*('Historical Expenditure-Volumes'!$I$8:$I$33="Averaging"))-I88 -> 0 | J89: =SUMPRODUCT((J8:J33)*('Unit Rates'!$D$8:$D$33)*('Historical Expenditure-Volumes'!$I$8:$I$33="Averaging"))-J88 -> 0 | K89: =SUMPRODUCT((K8:K33)*('Unit Rates'!$D$8:$D$33)*('Historical Expenditure-Volumes'!$I$8:$I$33="Averaging"))-K88 -> 0 | L89: =SUMPRODUCT((L8:L33)*('Unit Rates'!$D$8:$D$33)*('Historical Expenditure-Volumes'!$I$8:$I$33="Averaging"))-L88 -> 0 | M89: =SUMPRODUCT((M8:M33)*('Unit Rates'!$D$8:$D$33)*('Historical Expenditure-Volumes'!$I$8:$I$33="Averaging"))-M88 -> 0
B92: ="Forecast Expenditure by Function Code (Bottom Up Build)" -> Forecast Expenditure by Function Code (Bottom Up Build)
B93: From Major Projects sheet
C94: ="$ "&Inflation!$C$4 -> $ 2021
B95: Function Code | C95: 2015/16 | D95: 2016/17 | E95: 2017/18 | F95: 2018/19 | G95: 2019/20 | H95: 2020/21 | I95: 2021/22 | J95: 2022/23 | K95: 2023/24 | L95: 2024/25 | M95: 2025/26
B96: =IF('Historical Expenditure-Volumes'!B8=0," ",'Historical Expenditure-Volumes'!B8) -> CBE1 | C96: =IF('Historical Expenditure-Volumes'!$I8="Bottom Up",'Historical Expenditure-Volumes'!D40,0) -> 0 | D96: =IF('Historical Expenditure-Volumes'!$I8="Bottom Up",'Historical Expenditure-Volumes'!E40,0) -> 0 | E96: =IF('Historical Expenditure-Volumes'!$I8="Bottom Up",'Historical Expenditure-Volumes'!F40,0) -> 0 | F96: =IF('Historical Expenditure-Volumes'!$I8="Bottom Up",'Historical Expenditure-Volumes'!G40,0) -> 0 | G96: =IF('Historical Expenditure-Volumes'!$I8="Bottom Up",(SUMIF('Major Projects'!$B$8:$I$11,$B96,'Major Projects'!C$8:C$11))*Inflation!$K$10, 0) -> 0 | H96: =IF('Historical Expenditure-Volumes'!$I8="Bottom Up",(SUMIF('Major Projects'!$B$8:$I$11,$B96,'Major Projects'!D$8:D$11))*Inflation!$K$10, 0) -> 0 | I96: =IF('Historical Expenditure-Volumes'!$I8="Bottom Up",(SUMIF('Major Projects'!$B$8:$I$11,$B96,'Major Projects'!E$8:E$11))*Inflation!$K$10, 0) -> 0 | J96: =IF('Historical Expenditure-Volumes'!$I8="Bottom Up",(SUMIF('Major Projects'!$B$8:$I$11,$B96,'Major Projects'!F$8:F$11))*Inflation!$K$10, 0) -> 0 | K96: =IF('Historical Expenditure-Volumes'!$I8="Bottom Up",(SUMIF('Major Projects'!$B$8:$I$11,$B96,'Major Projects'!G$8:G$11))*Inflation!$K$10, 0) -> 0 | L96: =IF('Historical Expenditure-Volumes'!$I8="Bottom Up",(SUMIF('Major Projects'!$B$8:$I$11,$B96,'Major Projects'!H$8:H$11))*Inflation!$K$10, 0) -> 0 | M96: =IF('Historical Expenditure-Volumes'!$I8="Bottom Up",(SUMIF('Major Projects'!$B$8:$I$11,$B96,'Major Projects'!I$8:I$11))*Inflation!$K$10, 0) -> 0
B97: =IF('Historical Expenditure-Volumes'!B9=0," ",'Historical Expenditure-Volumes'!B9) -> CBG1 | C97: =IF('Historical Expenditure-Volumes'!$I9="Bottom Up",'Historical Expenditure-Volumes'!D41,0) -> 0 | D97: =IF('Historical Expenditure-Volumes'!$I9="Bottom Up",'Historical Expenditure-Volumes'!E41,0) -> 0 | E97: =IF('Historical Expenditure-Volumes'!$I9="Bottom Up",'Historical Expenditure-Volumes'!F41,0) -> 0 | F97: =IF('Historical Expenditure-Volumes'!$I9="Bottom Up",'Historical Expenditure-Volumes'!G41,0) -> 0 | G97: =IF('Historical Expenditure-Volumes'!$I9="Bottom Up",(SUMIF('Major Projects'!$B$8:$I$11,$B97,'Major Projects'!C$8:C$11))*Inflation!$K$10, 0) -> 0 | H97: =IF('Historical Expenditure-Volumes'!$I9="Bottom Up",(SUMIF('Major Projects'!$B$8:$I$11,$B97,'Major Projects'!D$8:D$11))*Inflation!$K$10, 0) -> 0 | I97: =IF('Historical Expenditure-Volumes'!$I9="Bottom Up",(SUMIF('Major Projects'!$B$8:$I$11,$B97,'Major Projects'!E$8:E$11))*Inflation!$K$10, 0) -> 0 | J97: =IF('Historical Expenditure-Volumes'!$I9="Bottom Up",(SUMIF('Major Projects'!$B$8:$I$11,$B97,'Major Projects'!F$8:F$11))*Inflation!$K$10, 0) -> 0 | K97: =IF('Historical Expenditure-Volumes'!$I9="Bottom Up",(SUMIF('Major Projects'!$B$8:$I$11,$B97,'Major Projects'!G$8:G$11))*Inflation!$K$10, 0) -> 0 | L97: =IF('Historical Expenditure-Volumes'!$I9="Bottom Up",(SUMIF('Major Projects'!$B$8:$I$11,$B97,'Major Projects'!H$8:H$11))*Inflation!$K$10, 0) -> 0 | M97: =IF('Historical Expenditure-Volumes'!$I9="Bottom Up",(SUMIF('Major Projects'!$B$8:$I$11,$B97,'Major Projects'!I$8:I$11))*Inflation!$K$10, 0) -> 0
B98: =IF('Historical Expenditure-Volumes'!B10=0," ",'Historical Expenditure-Volumes'!B10) -> CBH1 | C98: =IF('Historical Expenditure-Volumes'!$I10="Bottom Up",'Historical Expenditure-Volumes'!D42,0) -> 255540.0834 | D98: =IF('Historical Expenditure-Volumes'!$I10="Bottom Up",'Historical Expenditure-Volumes'!E42,0) -> 408540.7485 | E98: =IF('Historical Expenditure-Volumes'!$I10="Bottom Up",'Historical Expenditure-Volumes'!F42,0) -> 644801.2578 | F98: =IF('Historical Expenditure-Volumes'!$I10="Bottom Up",'Historical Expenditure-Volumes'!G42,0) -> 482241.7404 | G98: =IF('Historical Expenditure-Volumes'!$I10="Bottom Up",(SUMIF('Major Projects'!$B$8:$I$11,$B98,'Major Projects'!C$8:C$11))*Inflation!$K$10, 0) -> 442295.7644 | H98: =IF('Historical Expenditure-Volumes'!$I10="Bottom Up",(SUMIF('Major Projects'!$B$8:$I$11,$B98,'Major Projects'!D$8:D$11))*Inflation!$K$10, 0) -> 442295.7644 | I98: =IF('Historical Expenditure-Volumes'!$I10="Bottom Up",(SUMIF('Major Projects'!$B$8:$I$11,$B98,'Major Projects'!E$8:E$11))*Inflation!$K$10, 0) -> 442295.7644 | J98: =IF('Historical Expenditure-Volumes'!$I10="Bottom Up",(SUMIF('Major Projects'!$B$8:$I$11,$B98,'Major Projects'!F$8:F$11))*Inflation!$K$10, 0) -> 442295.7644 | K98: =IF('Historical Expenditure-Volumes'!$I10="Bottom Up",(SUMIF('Major Projects'!$B$8:$I$11,$B98,'Major Projects'!G$8:G$11))*Inflation!$K$10, 0) -> 442295.7644 | L98: =IF('Historical Expenditure-Volumes'!$I10="Bottom Up",(SUMIF('Major Projects'!$B$8:$I$11,$B98,'Major Projects'!H$8:H$11))*Inflation!$K$10, 0) -> 442295.7644 | M98: =IF('Historical Expenditure-Volumes'!$I10="Bottom Up",(SUMIF('Major Projects'!$B$8:$I$11,$B98,'Major Projects'!I$8:I$11))*Inflation!$K$10, 0) -> 442295.7644
B99: =IF('Historical Expenditure-Volumes'!B11=0," ",'Historical Expenditure-Volumes'!B11) -> CBI1 | C99: =IF('Historical Expenditure-Volumes'!$I11="Bottom Up",'Historical Expenditure-Volumes'!D43,0) -> 0 | D99: =IF('Historical Expenditure-Volumes'!$I11="Bottom Up",'Historical Expenditure-Volumes'!E43,0) -> 0 | E99: =IF('Historical Expenditure-Volumes'!$I11="Bottom Up",'Historical Expenditure-Volumes'!F43,0) -> 0 | F99: =IF('Historical Expenditure-Volumes'!$I11="Bottom Up",'Historical Expenditure-Volumes'!G43,0) -> 0 | G99: =IF('Historical Expenditure-Volumes'!$I11="Bottom Up",(SUMIF('Major Projects'!$B$8:$I$11,$B99,'Major Projects'!C$8:C$11))*Inflation!$K$10, 0) -> 0 | H99: =IF('Historical Expenditure-Volumes'!$I11="Bottom Up",(SUMIF('Major Projects'!$B$8:$I$11,$B99,'Major Projects'!D$8:D$11))*Inflation!$K$10, 0) -> 0 | I99: =IF('Historical Expenditure-Volumes'!$I11="Bottom Up",(SUMIF('Major Projects'!$B$8:$I$11,$B99,'Major Projects'!E$8:E$11))*Inflation!$K$10, 0) -> 0 | J99: =IF('Historical Expenditure-Volumes'!$I11="Bottom Up",(SUMIF('Major Projects'!$B$8:$I$11,$B99,'Major Projects'!F$8:F$11))*Inflation!$K$10, 0) -> 0 | K99: =IF('Historical Expenditure-Volumes'!$I11="Bottom Up",(SUMIF('Major Projects'!$B$8:$I$11,$B99,'Major Projects'!G$8:G$11))*Inflation!$K$10, 0) -> 0 | L99: =IF('Historical Expenditure-Volumes'!$I11="Bottom Up",(SUMIF('Major Projects'!$B$8:$I$11,$B99,'Major Projects'!H$8:H$11))*Inflation!$K$10, 0) -> 0 | M99: =IF('Historical Expenditure-Volumes'!$I11="Bottom Up",(SUMIF('Major Projects'!$B$8:$I$11,$B99,'Major Projects'!I$8:I$11))*Inflation!$K$10, 0) -> 0
B100: =IF('Historical Expenditure-Volumes'!B12=0," ",'Historical Expenditure-Volumes'!B12) -> CBK1 | C100: =IF('Historical Expenditure-Volumes'!$I12="Bottom Up",'Historical Expenditure-Volumes'!D44,0) -> 0 | D100: =IF('Historical Expenditure-Volumes'!$I12="Bottom Up",'Historical Expenditure-Volumes'!E44,0) -> 0 | E100: =IF('Historical Expenditure-Volumes'!$I12="Bottom Up",'Historical Expenditure-Volumes'!F44,0) -> 0 | F100: =IF('Historical Expenditure-Volumes'!$I12="Bottom Up",'Historical Expenditure-Volumes'!G44,0) -> 0 | G100: =IF('Historical Expenditure-Volumes'!$I12="Bottom Up",(SUMIF('Major Projects'!$B$8:$I$11,$B100,'Major Projects'!C$8:C$11))*Inflation!$K$10, 0) -> 0 | H100: =IF('Historical Expenditure-Volumes'!$I12="Bottom Up",(SUMIF('Major Projects'!$B$8:$I$11,$B100,'Major Projects'!D$8:D$11))*Inflation!$K$10, 0) -> 0 | I100: =IF('Historical Expenditure-Volumes'!$I12="Bottom Up",(SUMIF('Major Projects'!$B$8:$I$11,$B100,'Major Projects'!E$8:E$11))*Inflation!$K$10, 0) -> 0 | J100: =IF('Historical Expenditure-Volumes'!$I12="Bottom Up",(SUMIF('Major Projects'!$B$8:$I$11,$B100,'Major Projects'!F$8:F$11))*Inflation!$K$10, 0) -> 0 | K100: =IF('Historical Expenditure-Volumes'!$I12="Bottom Up",(SUMIF('Major Projects'!$B$8:$I$11,$B100,'Major Projects'!G$8:G$11))*Inflation!$K$10, 0) -> 0 | L100: =IF('Historical Expenditure-Volumes'!$I12="Bottom Up",(SUMIF('Major Projects'!$B$8:$I$11,$B100,'Major Projects'!H$8:H$11))*Inflation!$K$10, 0) -> 0 | M100: =IF('Historical Expenditure-Volumes'!$I12="Bottom Up",(SUMIF('Major Projects'!$B$8:$I$11,$B100,'Major Projects'!I$8:I$11))*Inflation!$K$10, 0) -> 0
B101: =IF('Historical Expenditure-Volumes'!B13=0," ",'Historical Expenditure-Volumes'!B13) -> CBL1 | C101: =IF('Historical Expenditure-Volumes'!$I13="Bottom Up",'Historical Expenditure-Volumes'!D45,0) -> 0 | D101: =IF('Historical Expenditure-Volumes'!$I13="Bottom Up",'Historical Expenditure-Volumes'!E45,0) -> 0 | E101: =IF('Historical Expenditure-Volumes'!$I13="Bottom Up",'Historical Expenditure-Volumes'!F45,0) -> 0 | F101: =IF('Historical Expenditure-Volumes'!$I13="Bottom Up",'Historical Expenditure-Volumes'!G45,0) -> 0 | G101: =IF('Historical Expenditure-Volumes'!$I13="Bottom Up",(SUMIF('Major Projects'!$B$8:$I$11,$B101,'Major Projects'!C$8:C$11))*Inflation!$K$10, 0) -> 0 | H101: =IF('Historical Expenditure-Volumes'!$I13="Bottom Up",(SUMIF('Major Projects'!$B$8:$I$11,$B101,'Major Projects'!D$8:D$11))*Inflation!$K$10, 0) -> 0 | I101: =IF('Historical Expenditure-Volumes'!$I13="Bottom Up",(SUMIF('Major Projects'!$B$8:$I$11,$B101,'Major Projects'!E$8:E$11))*Inflation!$K$10, 0) -> 0 | J101: =IF('Historical Expenditure-Volumes'!$I13="Bottom Up",(SUMIF('Major Projects'!$B$8:$I$11,$B101,'Major Projects'!F$8:F$11))*Inflation!$K$10, 0) -> 0 | K101: =IF('Historical Expenditure-Volumes'!$I13="Bottom Up",(SUMIF('Major Projects'!$B$8:$I$11,$B101,'Major Projects'!G$8:G$11))*Inflation!$K$10, 0) -> 0 | L101: =IF('Historical Expenditure-Volumes'!$I13="Bottom Up",(SUMIF('Major Projects'!$B$8:$I$11,$B101,'Major Projects'!H$8:H$11))*Inflation!$K$10, 0) -> 0 | M101: =IF('Historical Expenditure-Volumes'!$I13="Bottom Up",(SUMIF('Major Projects'!$B$8:$I$11,$B101,'Major Projects'!I$8:I$11))*Inflation!$K$10, 0) -> 0
B102: =IF('Historical Expenditure-Volumes'!B14=0," ",'Historical Expenditure-Volumes'!B14) -> CBP1 | C102: =IF('Historical Expenditure-Volumes'!$I14="Bottom Up",'Historical Expenditure-Volumes'!D46,0) -> 0 | D102: =IF('Historical Expenditure-Volumes'!$I14="Bottom Up",'Historical Expenditure-Volumes'!E46,0) -> 0 | E102: =IF('Historical Expenditure-Volumes'!$I14="Bottom Up",'Historical Expenditure-Volumes'!F46,0) -> 0 | F102: =IF('Historical Expenditure-Volumes'!$I14="Bottom Up",'Historical Expenditure-Volumes'!G46,0) -> 0 | G102: =IF('Historical Expenditure-Volumes'!$I14="Bottom Up",(SUMIF('Major Projects'!$B$8:$I$11,$B102,'Major Projects'!C$8:C$11))*Inflation!$K$10, 0) -> 0 | H102: =IF('Historical Expenditure-Volumes'!$I14="Bottom Up",(SUMIF('Major Projects'!$B$8:$I$11,$B102,'Major Projects'!D$8:D$11))*Inflation!$K$10, 0) -> 0 | I102: =IF('Historical Expenditure-Volumes'!$I14="Bottom Up",(SUMIF('Major Projects'!$B$8:$I$11,$B102,'Major Projects'!E$8:E$11))*Inflation!$K$10, 0) -> 0 | J102: =IF('Historical Expenditure-Volumes'!$I14="Bottom Up",(SUMIF('Major Projects'!$B$8:$I$11,$B102,'Major Projects'!F$8:F$11))*Inflation!$K$10, 0) -> 0 | K102: =IF('Historical Expenditure-Volumes'!$I14="Bottom Up",(SUMIF('Major Projects'!$B$8:$I$11,$B102,'Major Projects'!G$8:G$11))*Inflation!$K$10, 0) -> 0 | L102: =IF('Historical Expenditure-Volumes'!$I14="Bottom Up",(SUMIF('Major Projects'!$B$8:$I$11,$B102,'Major Projects'!H$8:H$11))*Inflation!$K$10, 0) -> 0 | M102: =IF('Historical Expenditure-Volumes'!$I14="Bottom Up",(SUMIF('Major Projects'!$B$8:$I$11,$B102,'Major Projects'!I$8:I$11))*Inflation!$K$10, 0) -> 0
B103: =IF('Historical Expenditure-Volumes'!B15=0," ",'Historical Expenditure-Volumes'!B15) -> CBS1 | C103: =IF('Historical Expenditure-Volumes'!$I15="Bottom Up",'Historical Expenditure-Volumes'!D47,0) -> 0 | D103: =IF('Historical Expenditure-Volumes'!$I15="Bottom Up",'Historical Expenditure-Volumes'!E47,0) -> 0 | E103: =IF('Historical Expenditure-Volumes'!$I15="Bottom Up",'Historical Expenditure-Volumes'!F47,0) -> 0 | F103: =IF('Historical Expenditure-Volumes'!$I15="Bottom Up",'Historical Expenditure-Volumes'!G47,0) -> 0 | G103: =IF('Historical Expenditure-Volumes'!$I15="Bottom Up",(SUMIF('Major Projects'!$B$8:$I$11,$B103,'Major Projects'!C$8:C$11))*Inflation!$K$10, 0) -> 0 | H103: =IF('Historical Expenditure-Volumes'!$I15="Bottom Up",(SUMIF('Major Projects'!$B$8:$I$11,$B103,'Major Projects'!D$8:D$11))*Inflation!$K$10, 0) -> 0 | I103: =IF('Historical Expenditure-Volumes'!$I15="Bottom Up",(SUMIF('Major Projects'!$B$8:$I$11,$B103,'Major Projects'!E$8:E$11))*Inflation!$K$10, 0) -> 0 | J103: =IF('Historical Expenditure-Volumes'!$I15="Bottom Up",(SUMIF('Major Projects'!$B$8:$I$11,$B103,'Major Projects'!F$8:F$11))*Inflation!$K$10, 0) -> 0 | K103: =IF('Historical Expenditure-Volumes'!$I15="Bottom Up",(SUMIF('Major Projects'!$B$8:$I$11,$B103,'Major Projects'!G$8:G$11))*Inflation!$K$10, 0) -> 0 | L103: =IF('Historical Expenditure-Volumes'!$I15="Bottom Up",(SUMIF('Major Projects'!$B$8:$I$11,$B103,'Major Projects'!H$8:H$11))*Inflation!$K$10, 0) -> 0 | M103: =IF('Historical Expenditure-Volumes'!$I15="Bottom Up",(SUMIF('Major Projects'!$B$8:$I$11,$B103,'Major Projects'!I$8:I$11))*Inflation!$K$10, 0) -> 0
B104: =IF('Historical Expenditure-Volumes'!B16=0," ",'Historical Expenditure-Volumes'!B16) -> CBE2 | C104: =IF('Historical Expenditure-Volumes'!$I16="Bottom Up",'Historical Expenditure-Volumes'!D48,0) -> 0 | D104: =IF('Historical Expenditure-Volumes'!$I16="Bottom Up",'Historical Expenditure-Volumes'!E48,0) -> 0 | E104: =IF('Historical Expenditure-Volumes'!$I16="Bottom Up",'Historical Expenditure-Volumes'!F48,0) -> 0 | F104: =IF('Historical Expenditure-Volumes'!$I16="Bottom Up",'Historical Expenditure-Volumes'!G48,0) -> 0 | G104: =IF('Historical Expenditure-Volumes'!$I16="Bottom Up",(SUMIF('Major Projects'!$B$8:$I$11,$B104,'Major Projects'!C$8:C$11))*Inflation!$K$10, 0) -> 0 | H104: =IF('Historical Expenditure-Volumes'!$I16="Bottom Up",(SUMIF('Major Projects'!$B$8:$I$11,$B104,'Major Projects'!D$8:D$11))*Inflation!$K$10, 0) -> 0 | I104: =IF('Historical Expenditure-Volumes'!$I16="Bottom Up",(SUMIF('Major Projects'!$B$8:$I$11,$B104,'Major Projects'!E$8:E$11))*Inflation!$K$10, 0) -> 0 | J104: =IF('Historical Expenditure-Volumes'!$I16="Bottom Up",(SUMIF('Major Projects'!$B$8:$I$11,$B104,'Major Projects'!F$8:F$11))*Inflation!$K$10, 0) -> 0 | K104: =IF('Historical Expenditure-Volumes'!$I16="Bottom Up",(SUMIF('Major Projects'!$B$8:$I$11,$B104,'Major Projects'!G$8:G$11))*Inflation!$K$10, 0) -> 0 | L104: =IF('Historical Expenditure-Volumes'!$I16="Bottom Up",(SUMIF('Major Projects'!$B$8:$I$11,$B104,'Major Projects'!H$8:H$11))*Inflation!$K$10, 0) -> 0 | M104: =IF('Historical Expenditure-Volumes'!$I16="Bottom Up",(SUMIF('Major Projects'!$B$8:$I$11,$B104,'Major Projects'!I$8:I$11))*Inflation!$K$10, 0) -> 0
B105: =IF('Historical Expenditure-Volumes'!B17=0," ",'Historical Expenditure-Volumes'!B17) -> CBG2 | C105: =IF('Historical Expenditure-Volumes'!$I17="Bottom Up",'Historical Expenditure-Volumes'!D49,0) -> 0 | D105: =IF('Historical Expenditure-Volumes'!$I17="Bottom Up",'Historical Expenditure-Volumes'!E49,0) -> 0 | E105: =IF('Historical Expenditure-Volumes'!$I17="Bottom Up",'Historical Expenditure-Volumes'!F49,0) -> 0 | F105: =IF('Historical Expenditure-Volumes'!$I17="Bottom Up",'Historical Expenditure-Volumes'!G49,0) -> 0 | G105: =IF('Historical Expenditure-Volumes'!$I17="Bottom Up",(SUMIF('Major Projects'!$B$8:$I$11,$B105,'Major Projects'!C$8:C$11))*Inflation!$K$10, 0) -> 0 | H105: =IF('Historical Expenditure-Volumes'!$I17="Bottom Up",(SUMIF('Major Projects'!$B$8:$I$11,$B105,'Major Projects'!D$8:D$11))*Inflation!$K$10, 0) -> 0 | I105: =IF('Historical Expenditure-Volumes'!$I17="Bottom Up",(SUMIF('Major Projects'!$B$8:$I$11,$B105,'Major Projects'!E$8:E$11))*Inflation!$K$10, 0) -> 0 | J105: =IF('Historical Expenditure-Volumes'!$I17="Bottom Up",(SUMIF('Major Projects'!$B$8:$I$11,$B105,'Major Projects'!F$8:F$11))*Inflation!$K$10, 0) -> 0 | K105: =IF('Historical Expenditure-Volumes'!$I17="Bottom Up",(SUMIF('Major Projects'!$B$8:$I$11,$B105,'Major Projects'!G$8:G$11))*Inflation!$K$10, 0) -> 0 | L105: =IF('Historical Expenditure-Volumes'!$I17="Bottom Up",(SUMIF('Major Projects'!$B$8:$I$11,$B105,'Major Projects'!H$8:H$11))*Inflation!$K$10, 0) -> 0 | M105: =IF('Historical Expenditure-Volumes'!$I17="Bottom Up",(SUMIF('Major Projects'!$B$8:$I$11,$B105,'Major Projects'!I$8:I$11))*Inflation!$K$10, 0) -> 0
B106: =IF('Historical Expenditure-Volumes'!B18=0," ",'Historical Expenditure-Volumes'!B18) -> CBH2 | C106: =IF('Historical Expenditure-Volumes'!$I18="Bottom Up",'Historical Expenditure-Volumes'!D50,0) -> 2781231.891 | D106: =IF('Historical Expenditure-Volumes'!$I18="Bottom Up",'Historical Expenditure-Volumes'!E50,0) -> 1150860.879 | E106: =IF('Historical Expenditure-Volumes'!$I18="Bottom Up",'Historical Expenditure-Volumes'!F50,0) -> 522759.2546 | F106: =IF('Historical Expenditure-Volumes'!$I18="Bottom Up",'Historical Expenditure-Volumes'!G50,0) -> 1077259.9 | G106: =IF('Historical Expenditure-Volumes'!$I18="Bottom Up",(SUMIF('Major Projects'!$B$8:$I$11,$B106,'Major Projects'!C$8:C$11))*Inflation!$K$10, 0) -> 1935401.05 | H106: =IF('Historical Expenditure-Volumes'!$I18="Bottom Up",(SUMIF('Major Projects'!$B$8:$I$11,$B106,'Major Projects'!D$8:D$11))*Inflation!$K$10, 0) -> 1575489.546 | I106: =IF('Historical Expenditure-Volumes'!$I18="Bottom Up",(SUMIF('Major Projects'!$B$8:$I$11,$B106,'Major Projects'!E$8:E$11))*Inflation!$K$10, 0) -> 2243896.625 | J106: =IF('Historical Expenditure-Volumes'!$I18="Bottom Up",(SUMIF('Major Projects'!$B$8:$I$11,$B106,'Major Projects'!F$8:F$11))*Inflation!$K$10, 0) -> 3045985.121 | K106: =IF('Historical Expenditure-Volumes'!$I18="Bottom Up",(SUMIF('Major Projects'!$B$8:$I$11,$B106,'Major Projects'!G$8:G$11))*Inflation!$K$10, 0) -> 1883985.121 | L106: =IF('Historical Expenditure-Volumes'!$I18="Bottom Up",(SUMIF('Major Projects'!$B$8:$I$11,$B106,'Major Projects'!H$8:H$11))*Inflation!$K$10, 0) -> 3375047.068 | M106: =IF('Historical Expenditure-Volumes'!$I18="Bottom Up",(SUMIF('Major Projects'!$B$8:$I$11,$B106,'Major Projects'!I$8:I$11))*Inflation!$K$10, 0) -> 2192480.696
B107: =IF('Historical Expenditure-Volumes'!B19=0," ",'Historical Expenditure-Volumes'!B19) -> CBI2 | C107: =IF('Historical Expenditure-Volumes'!$I19="Bottom Up",'Historical Expenditure-Volumes'!D51,0) -> 0 | D107: =IF('Historical Expenditure-Volumes'!$I19="Bottom Up",'Historical Expenditure-Volumes'!E51,0) -> 0 | E107: =IF('Historical Expenditure-Volumes'!$I19="Bottom Up",'Historical Expenditure-Volumes'!F51,0) -> 0 | F107: =IF('Historical Expenditure-Volumes'!$I19="Bottom Up",'Historical Expenditure-Volumes'!G51,0) -> 0 | G107: =IF('Historical Expenditure-Volumes'!$I19="Bottom Up",(SUMIF('Major Projects'!$B$8:$I$11,$B107,'Major Projects'!C$8:C$11))*Inflation!$K$10, 0) -> 0 | H107: =IF('Historical Expenditure-Volumes'!$I19="Bottom Up",(SUMIF('Major Projects'!$B$8:$I$11,$B107,'Major Projects'!D$8:D$11))*Inflation!$K$10, 0) -> 0 | I107: =IF('Historical Expenditure-Volumes'!$I19="Bottom Up",(SUMIF('Major Projects'!$B$8:$I$11,$B107,'Major Projects'!E$8:E$11))*Inflation!$K$10, 0) -> 0 | J107: =IF('Historical Expenditure-Volumes'!$I19="Bottom Up",(SUMIF('Major Projects'!$B$8:$I$11,$B107,'Major Projects'!F$8:F$11))*Inflation!$K$10, 0) -> 0 | K107: =IF('Historical Expenditure-Volumes'!$I19="Bottom Up",(SUMIF('Major Projects'!$B$8:$I$11,$B107,'Major Projects'!G$8:G$11))*Inflation!$K$10, 0) -> 0 | L107: =IF('Historical Expenditure-Volumes'!$I19="Bottom Up",(SUMIF('Major Projects'!$B$8:$I$11,$B107,'Major Projects'!H$8:H$11))*Inflation!$K$10, 0) -> 0 | M107: =IF('Historical Expenditure-Volumes'!$I19="Bottom Up",(SUMIF('Major Projects'!$B$8:$I$11,$B107,'Major Projects'!I$8:I$11))*Inflation!$K$10, 0) -> 0
B108: =IF('Historical Expenditure-Volumes'!B20=0," ",'Historical Expenditure-Volumes'!B20) -> CBK2 | C108: =IF('Historical Expenditure-Volumes'!$I20="Bottom Up",'Historical Expenditure-Volumes'!D52,0) -> 0 | D108: =IF('Historical Expenditure-Volumes'!$I20="Bottom Up",'Historical Expenditure-Volumes'!E52,0) -> 0 | E108: =IF('Historical Expenditure-Volumes'!$I20="Bottom Up",'Historical Expenditure-Volumes'!F52,0) -> 0 | F108: =IF('Historical Expenditure-Volumes'!$I20="Bottom Up",'Historical Expenditure-Volumes'!G52,0) -> 0 | G108: =IF('Historical Expenditure-Volumes'!$I20="Bottom Up",(SUMIF('Major Projects'!$B$8:$I$11,$B108,'Major Projects'!C$8:C$11))*Inflation!$K$10, 0) -> 0 | H108: =IF('Historical Expenditure-Volumes'!$I20="Bottom Up",(SUMIF('Major Projects'!$B$8:$I$11,$B108,'Major Projects'!D$8:D$11))*Inflation!$K$10, 0) -> 0 | I108: =IF('Historical Expenditure-Volumes'!$I20="Bottom Up",(SUMIF('Major Projects'!$B$8:$I$11,$B108,'Major Projects'!E$8:E$11))*Inflation!$K$10, 0) -> 0 | J108: =IF('Historical Expenditure-Volumes'!$I20="Bottom Up",(SUMIF('Major Projects'!$B$8:$I$11,$B108,'Major Projects'!F$8:F$11))*Inflation!$K$10, 0) -> 0 | K108: =IF('Historical Expenditure-Volumes'!$I20="Bottom Up",(SUMIF('Major Projects'!$B$8:$I$11,$B108,'Major Projects'!G$8:G$11))*Inflation!$K$10, 0) -> 0 | L108: =IF('Historical Expenditure-Volumes'!$I20="Bottom Up",(SUMIF('Major Projects'!$B$8:$I$11,$B108,'Major Projects'!H$8:H$11))*Inflation!$K$10, 0) -> 0 | M108: =IF('Historical Expenditure-Volumes'!$I20="Bottom Up",(SUMIF('Major Projects'!$B$8:$I$11,$B108,'Major Projects'!I$8:I$11))*Inflation!$K$10, 0) -> 0
B109: =IF('Historical Expenditure-Volumes'!B21=0," ",'Historical Expenditure-Volumes'!B21) -> CBL2 | C109: =IF('Historical Expenditure-Volumes'!$I21="Bottom Up",'Historical Expenditure-Volumes'!D53,0) -> 0 | D109: =IF('Historical Expenditure-Volumes'!$I21="Bottom Up",'Historical Expenditure-Volumes'!E53,0) -> 0 | E109: =IF('Historical Expenditure-Volumes'!$I21="Bottom Up",'Historical Expenditure-Volumes'!F53,0) -> 0 | F109: =IF('Historical Expenditure-Volumes'!$I21="Bottom Up",'Historical Expenditure-Volumes'!G53,0) -> 0 | G109: =IF('Historical Expenditure-Volumes'!$I21="Bottom Up",(SUMIF('Major Projects'!$B$8:$I$11,$B109,'Major Projects'!C$8:C$11))*Inflation!$K$10, 0) -> 0 | H109: =IF('Historical Expenditure-Volumes'!$I21="Bottom Up",(SUMIF('Major Projects'!$B$8:$I$11,$B109,'Major Projects'!D$8:D$11))*Inflation!$K$10, 0) -> 0 | I109: =IF('Historical Expenditure-Volumes'!$I21="Bottom Up",(SUMIF('Major Projects'!$B$8:$I$11,$B109,'Major Projects'!E$8:E$11))*Inflation!$K$10, 0) -> 0 | J109: =IF('Historical Expenditure-Volumes'!$I21="Bottom Up",(SUMIF('Major Projects'!$B$8:$I$11,$B109,'Major Projects'!F$8:F$11))*Inflation!$K$10, 0) -> 0 | K109: =IF('Historical Expenditure-Volumes'!$I21="Bottom Up",(SUMIF('Major Projects'!$B$8:$I$11,$B109,'Major Projects'!G$8:G$11))*Inflation!$K$10, 0) -> 0 | L109: =IF('Historical Expenditure-Volumes'!$I21="Bottom Up",(SUMIF('Major Projects'!$B$8:$I$11,$B109,'Major Projects'!H$8:H$11))*Inflation!$K$10, 0) -> 0 | M109: =IF('Historical Expenditure-Volumes'!$I21="Bottom Up",(SUMIF('Major Projects'!$B$8:$I$11,$B109,'Major Projects'!I$8:I$11))*Inflation!$K$10, 0) -> 0
B110: =IF('Historical Expenditure-Volumes'!B22=0," ",'Historical Expenditure-Volumes'!B22) -> CBP2 | C110: =IF('Historical Expenditure-Volumes'!$I22="Bottom Up",'Historical Expenditure-Volumes'!D54,0) -> 0 | D110: =IF('Historical Expenditure-Volumes'!$I22="Bottom Up",'Historical Expenditure-Volumes'!E54,0) -> 0 | E110: =IF('Historical Expenditure-Volumes'!$I22="Bottom Up",'Historical Expenditure-Volumes'!F54,0) -> 0 | F110: =IF('Historical Expenditure-Volumes'!$I22="Bottom Up",'Historical Expenditure-Volumes'!G54,0) -> 0 | G110: =IF('Historical Expenditure-Volumes'!$I22="Bottom Up",(SUMIF('Major Projects'!$B$8:$I$11,$B110,'Major Projects'!C$8:C$11))*Inflation!$K$10, 0) -> 0 | H110: =IF('Historical Expenditure-Volumes'!$I22="Bottom Up",(SUMIF('Major Projects'!$B$8:$I$11,$B110,'Major Projects'!D$8:D$11))*Inflation!$K$10, 0) -> 0 | I110: =IF('Historical Expenditure-Volumes'!$I22="Bottom Up",(SUMIF('Major Projects'!$B$8:$I$11,$B110,'Major Projects'!E$8:E$11))*Inflation!$K$10, 0) -> 0 | J110: =IF('Historical Expenditure-Volumes'!$I22="Bottom Up",(SUMIF('Major Projects'!$B$8:$I$11,$B110,'Major Projects'!F$8:F$11))*Inflation!$K$10, 0) -> 0 | K110: =IF('Historical Expenditure-Volumes'!$I22="Bottom Up",(SUMIF('Major Projects'!$B$8:$I$11,$B110,'Major Projects'!G$8:G$11))*Inflation!$K$10, 0) -> 0 | L110: =IF('Historical Expenditure-Volumes'!$I22="Bottom Up",(SUMIF('Major Projects'!$B$8:$I$11,$B110,'Major Projects'!H$8:H$11))*Inflation!$K$10, 0) -> 0 | M110: =IF('Historical Expenditure-Volumes'!$I22="Bottom Up",(SUMIF('Major Projects'!$B$8:$I$11,$B110,'Major Projects'!I$8:I$11))*Inflation!$K$10, 0) -> 0
B111: =IF('Historical Expenditure-Volumes'!B23=0," ",'Historical Expenditure-Volumes'!B23) -> CBS2 | C111: =IF('Historical Expenditure-Volumes'!$I23="Bottom Up",'Historical Expenditure-Volumes'!D55,0) -> 0 | D111: =IF('Historical Expenditure-Volumes'!$I23="Bottom Up",'Historical Expenditure-Volumes'!E55,0) -> 0 | E111: =IF('Historical Expenditure-Volumes'!$I23="Bottom Up",'Historical Expenditure-Volumes'!F55,0) -> 0 | F111: =IF('Historical Expenditure-Volumes'!$I23="Bottom Up",'Historical Expenditure-Volumes'!G55,0) -> 0 | G111: =IF('Historical Expenditure-Volumes'!$I23="Bottom Up",(SUMIF('Major Projects'!$B$8:$I$11,$B111,'Major Projects'!C$8:C$11))*Inflation!$K$10, 0) -> 0 | H111: =IF('Historical Expenditure-Volumes'!$I23="Bottom Up",(SUMIF('Major Projects'!$B$8:$I$11,$B111,'Major Projects'!D$8:D$11))*Inflation!$K$10, 0) -> 0 | I111: =IF('Historical Expenditure-Volumes'!$I23="Bottom Up",(SUMIF('Major Projects'!$B$8:$I$11,$B111,'Major Projects'!E$8:E$11))*Inflation!$K$10, 0) -> 0 | J111: =IF('Historical Expenditure-Volumes'!$I23="Bottom Up",(SUMIF('Major Projects'!$B$8:$I$11,$B111,'Major Projects'!F$8:F$11))*Inflation!$K$10, 0) -> 0 | K111: =IF('Historical Expenditure-Volumes'!$I23="Bottom Up",(SUMIF('Major Projects'!$B$8:$I$11,$B111,'Major Projects'!G$8:G$11))*Inflation!$K$10, 0) -> 0 | L111: =IF('Historical Expenditure-Volumes'!$I23="Bottom Up",(SUMIF('Major Projects'!$B$8:$I$11,$B111,'Major Projects'!H$8:H$11))*Inflation!$K$10, 0) -> 0 | M111: =IF('Historical Expenditure-Volumes'!$I23="Bottom Up",(SUMIF('Major Projects'!$B$8:$I$11,$B111,'Major Projects'!I$8:I$11))*Inflation!$K$10, 0) -> 0
B112: =IF('Historical Expenditure-Volumes'!B24=0," ",'Historical Expenditure-Volumes'!B24) -> CDA | C112: =IF('Historical Expenditure-Volumes'!$I24="Bottom Up",'Historical Expenditure-Volumes'!D56,0) -> 0 | D112: =IF('Historical Expenditure-Volumes'!$I24="Bottom Up",'Historical Expenditure-Volumes'!E56,0) -> 0 | E112: =IF('Historical Expenditure-Volumes'!$I24="Bottom Up",'Historical Expenditure-Volumes'!F56,0) -> 0 | F112: =IF('Historical Expenditure-Volumes'!$I24="Bottom Up",'Historical Expenditure-Volumes'!G56,0) -> 0 | G112: =IF('Historical Expenditure-Volumes'!$I24="Bottom Up",(SUMIF('Major Projects'!$B$8:$I$11,$B112,'Major Projects'!C$8:C$11))*Inflation!$K$10, 0) -> 0 | H112: =IF('Historical Expenditure-Volumes'!$I24="Bottom Up",(SUMIF('Major Projects'!$B$8:$I$11,$B112,'Major Projects'!D$8:D$11))*Inflation!$K$10, 0) -> 0 | I112: =IF('Historical Expenditure-Volumes'!$I24="Bottom Up",(SUMIF('Major Projects'!$B$8:$I$11,$B112,'Major Projects'!E$8:E$11))*Inflation!$K$10, 0) -> 0 | J112: =IF('Historical Expenditure-Volumes'!$I24="Bottom Up",(SUMIF('Major Projects'!$B$8:$I$11,$B112,'Major Projects'!F$8:F$11))*Inflation!$K$10, 0) -> 0 | K112: =IF('Historical Expenditure-Volumes'!$I24="Bottom Up",(SUMIF('Major Projects'!$B$8:$I$11,$B112,'Major Projects'!G$8:G$11))*Inflation!$K$10, 0) -> 0 | L112: =IF('Historical Expenditure-Volumes'!$I24="Bottom Up",(SUMIF('Major Projects'!$B$8:$I$11,$B112,'Major Projects'!H$8:H$11))*Inflation!$K$10, 0) -> 0 | M112: =IF('Historical Expenditure-Volumes'!$I24="Bottom Up",(SUMIF('Major Projects'!$B$8:$I$11,$B112,'Major Projects'!I$8:I$11))*Inflation!$K$10, 0) -> 0
B113: =IF('Historical Expenditure-Volumes'!B25=0," ",'Historical Expenditure-Volumes'!B25) -> CDP | C113: =IF('Historical Expenditure-Volumes'!$I25="Bottom Up",'Historical Expenditure-Volumes'!D57,0) -> 0 | D113: =IF('Historical Expenditure-Volumes'!$I25="Bottom Up",'Historical Expenditure-Volumes'!E57,0) -> 0 | E113: =IF('Historical Expenditure-Volumes'!$I25="Bottom Up",'Historical Expenditure-Volumes'!F57,0) -> 0 | F113: =IF('Historical Expenditure-Volumes'!$I25="Bottom Up",'Historical Expenditure-Volumes'!G57,0) -> 0 | G113: =IF('Historical Expenditure-Volumes'!$I25="Bottom Up",(SUMIF('Major Projects'!$B$8:$I$11,$B113,'Major Projects'!C$8:C$11))*Inflation!$K$10, 0) -> 0 | H113: =IF('Historical Expenditure-Volumes'!$I25="Bottom Up",(SUMIF('Major Projects'!$B$8:$I$11,$B113,'Major Projects'!D$8:D$11))*Inflation!$K$10, 0) -> 0 | I113: =IF('Historical Expenditure-Volumes'!$I25="Bottom Up",(SUMIF('Major Projects'!$B$8:$I$11,$B113,'Major Projects'!E$8:E$11))*Inflation!$K$10, 0) -> 0 | J113: =IF('Historical Expenditure-Volumes'!$I25="Bottom Up",(SUMIF('Major Projects'!$B$8:$I$11,$B113,'Major Projects'!F$8:F$11))*Inflation!$K$10, 0) -> 0 | K113: =IF('Historical Expenditure-Volumes'!$I25="Bottom Up",(SUMIF('Major Projects'!$B$8:$I$11,$B113,'Major Projects'!G$8:G$11))*Inflation!$K$10, 0) -> 0 | L113: =IF('Historical Expenditure-Volumes'!$I25="Bottom Up",(SUMIF('Major Projects'!$B$8:$I$11,$B113,'Major Projects'!H$8:H$11))*Inflation!$K$10, 0) -> 0 | M113: =IF('Historical Expenditure-Volumes'!$I25="Bottom Up",(SUMIF('Major Projects'!$B$8:$I$11,$B113,'Major Projects'!I$8:I$11))*Inflation!$K$10, 0) -> 0
B114: =IF('Historical Expenditure-Volumes'!B26=0," ",'Historical Expenditure-Volumes'!B26) -> CHH1 | C114: =IF('Historical Expenditure-Volumes'!$I26="Bottom Up",'Historical Expenditure-Volumes'!D58,0) -> 0 | D114: =IF('Historical Expenditure-Volumes'!$I26="Bottom Up",'Historical Expenditure-Volumes'!E58,0) -> 0 | E114: =IF('Historical Expenditure-Volumes'!$I26="Bottom Up",'Historical Expenditure-Volumes'!F58,0) -> 0 | F114: =IF('Historical Expenditure-Volumes'!$I26="Bottom Up",'Historical Expenditure-Volumes'!G58,0) -> 0 | G114: =IF('Historical Expenditure-Volumes'!$I26="Bottom Up",(SUMIF('Major Projects'!$B$8:$I$11,$B114,'Major Projects'!C$8:C$11))*Inflation!$K$10, 0) -> 0 | H114: =IF('Historical Expenditure-Volumes'!$I26="Bottom Up",(SUMIF('Major Projects'!$B$8:$I$11,$B114,'Major Projects'!D$8:D$11))*Inflation!$K$10, 0) -> 0 | I114: =IF('Historical Expenditure-Volumes'!$I26="Bottom Up",(SUMIF('Major Projects'!$B$8:$I$11,$B114,'Major Projects'!E$8:E$11))*Inflation!$K$10, 0) -> 0 | J114: =IF('Historical Expenditure-Volumes'!$I26="Bottom Up",(SUMIF('Major Projects'!$B$8:$I$11,$B114,'Major Projects'!F$8:F$11))*Inflation!$K$10, 0) -> 0 | K114: =IF('Historical Expenditure-Volumes'!$I26="Bottom Up",(SUMIF('Major Projects'!$B$8:$I$11,$B114,'Major Projects'!G$8:G$11))*Inflation!$K$10, 0) -> 0 | L114: =IF('Historical Expenditure-Volumes'!$I26="Bottom Up",(SUMIF('Major Projects'!$B$8:$I$11,$B114,'Major Projects'!H$8:H$11))*Inflation!$K$10, 0) -> 0 | M114: =IF('Historical Expenditure-Volumes'!$I26="Bottom Up",(SUMIF('Major Projects'!$B$8:$I$11,$B114,'Major Projects'!I$8:I$11))*Inflation!$K$10, 0) -> 0
B115: =IF('Historical Expenditure-Volumes'!B27=0," ",'Historical Expenditure-Volumes'!B27) -> CHL1 | C115: =IF('Historical Expenditure-Volumes'!$I27="Bottom Up",'Historical Expenditure-Volumes'!D59,0) -> 0 | D115: =IF('Historical Expenditure-Volumes'!$I27="Bottom Up",'Historical Expenditure-Volumes'!E59,0) -> 0 | E115: =IF('Historical Expenditure-Volumes'!$I27="Bottom Up",'Historical Expenditure-Volumes'!F59,0) -> 0 | F115: =IF('Historical Expenditure-Volumes'!$I27="Bottom Up",'Historical Expenditure-Volumes'!G59,0) -> 0 | G115: =IF('Historical Expenditure-Volumes'!$I27="Bottom Up",(SUMIF('Major Projects'!$B$8:$I$11,$B115,'Major Projects'!C$8:C$11))*Inflation!$K$10, 0) -> 0 | H115: =IF('Historical Expenditure-Volumes'!$I27="Bottom Up",(SUMIF('Major Projects'!$B$8:$I$11,$B115,'Major Projects'!D$8:D$11))*Inflation!$K$10, 0) -> 0 | I115: =IF('Historical Expenditure-Volumes'!$I27="Bottom Up",(SUMIF('Major Projects'!$B$8:$I$11,$B115,'Major Projects'!E$8:E$11))*Inflation!$K$10, 0) -> 0 | J115: =IF('Historical Expenditure-Volumes'!$I27="Bottom Up",(SUMIF('Major Projects'!$B$8:$I$11,$B115,'Major Projects'!F$8:F$11))*Inflation!$K$10, 0) -> 0 | K115: =IF('Historical Expenditure-Volumes'!$I27="Bottom Up",(SUMIF('Major Projects'!$B$8:$I$11,$B115,'Major Projects'!G$8:G$11))*Inflation!$K$10, 0) -> 0 | L115: =IF('Historical Expenditure-Volumes'!$I27="Bottom Up",(SUMIF('Major Projects'!$B$8:$I$11,$B115,'Major Projects'!H$8:H$11))*Inflation!$K$10, 0) -> 0 | M115: =IF('Historical Expenditure-Volumes'!$I27="Bottom Up",(SUMIF('Major Projects'!$B$8:$I$11,$B115,'Major Projects'!I$8:I$11))*Inflation!$K$10, 0) -> 0
B116: =IF('Historical Expenditure-Volumes'!B28=0," ",'Historical Expenditure-Volumes'!B28) -> CHH2 | C116: =IF('Historical Expenditure-Volumes'!$I28="Bottom Up",'Historical Expenditure-Volumes'!D60,0) -> 0 | D116: =IF('Historical Expenditure-Volumes'!$I28="Bottom Up",'Historical Expenditure-Volumes'!E60,0) -> 0 | E116: =IF('Historical Expenditure-Volumes'!$I28="Bottom Up",'Historical Expenditure-Volumes'!F60,0) -> 0 | F116: =IF('Historical Expenditure-Volumes'!$I28="Bottom Up",'Historical Expenditure-Volumes'!G60,0) -> 0 | G116: =IF('Historical Expenditure-Volumes'!$I28="Bottom Up",(SUMIF('Major Projects'!$B$8:$I$11,$B116,'Major Projects'!C$8:C$11))*Inflation!$K$10, 0) -> 0 | H116: =IF('Historical Expenditure-Volumes'!$I28="Bottom Up",(SUMIF('Major Projects'!$B$8:$I$11,$B116,'Major Projects'!D$8:D$11))*Inflation!$K$10, 0) -> 0 | I116: =IF('Historical Expenditure-Volumes'!$I28="Bottom Up",(SUMIF('Major Projects'!$B$8:$I$11,$B116,'Major Projects'!E$8:E$11))*Inflation!$K$10, 0) -> 0 | J116: =IF('Historical Expenditure-Volumes'!$I28="Bottom Up",(SUMIF('Major Projects'!$B$8:$I$11,$B116,'Major Projects'!F$8:F$11))*Inflation!$K$10, 0) -> 0 | K116: =IF('Historical Expenditure-Volumes'!$I28="Bottom Up",(SUMIF('Major Projects'!$B$8:$I$11,$B116,'Major Projects'!G$8:G$11))*Inflation!$K$10, 0) -> 0 | L116: =IF('Historical Expenditure-Volumes'!$I28="Bottom Up",(SUMIF('Major Projects'!$B$8:$I$11,$B116,'Major Projects'!H$8:H$11))*Inflation!$K$10, 0) -> 0 | M116: =IF('Historical Expenditure-Volumes'!$I28="Bottom Up",(SUMIF('Major Projects'!$B$8:$I$11,$B116,'Major Projects'!I$8:I$11))*Inflation!$K$10, 0) -> 0
B117: =IF('Historical Expenditure-Volumes'!B29=0," ",'Historical Expenditure-Volumes'!B29) -> CHL2 | C117: =IF('Historical Expenditure-Volumes'!$I29="Bottom Up",'Historical Expenditure-Volumes'!D61,0) -> 0 | D117: =IF('Historical Expenditure-Volumes'!$I29="Bottom Up",'Historical Expenditure-Volumes'!E61,0) -> 0 | E117: =IF('Historical Expenditure-Volumes'!$I29="Bottom Up",'Historical Expenditure-Volumes'!F61,0) -> 0 | F117: =IF('Historical Expenditure-Volumes'!$I29="Bottom Up",'Historical Expenditure-Volumes'!G61,0) -> 0 | G117: =IF('Historical Expenditure-Volumes'!$I29="Bottom Up",(SUMIF('Major Projects'!$B$8:$I$11,$B117,'Major Projects'!C$8:C$11))*Inflation!$K$10, 0) -> 0 | H117: =IF('Historical Expenditure-Volumes'!$I29="Bottom Up",(SUMIF('Major Projects'!$B$8:$I$11,$B117,'Major Projects'!D$8:D$11))*Inflation!$K$10, 0) -> 0 | I117: =IF('Historical Expenditure-Volumes'!$I29="Bottom Up",(SUMIF('Major Projects'!$B$8:$I$11,$B117,'Major Projects'!E$8:E$11))*Inflation!$K$10, 0) -> 0 | J117: =IF('Historical Expenditure-Volumes'!$I29="Bottom Up",(SUMIF('Major Projects'!$B$8:$I$11,$B117,'Major Projects'!F$8:F$11))*Inflation!$K$10, 0) -> 0 | K117: =IF('Historical Expenditure-Volumes'!$I29="Bottom Up",(SUMIF('Major Projects'!$B$8:$I$11,$B117,'Major Projects'!G$8:G$11))*Inflation!$K$10, 0) -> 0 | L117: =IF('Historical Expenditure-Volumes'!$I29="Bottom Up",(SUMIF('Major Projects'!$B$8:$I$11,$B117,'Major Projects'!H$8:H$11))*Inflation!$K$10, 0) -> 0 | M117: =IF('Historical Expenditure-Volumes'!$I29="Bottom Up",(SUMIF('Major Projects'!$B$8:$I$11,$B117,'Major Projects'!I$8:I$11))*Inflation!$K$10, 0) -> 0
B118: =IF('Historical Expenditure-Volumes'!B30=0," ",'Historical Expenditure-Volumes'!B30) -> CR1 | C118: =IF('Historical Expenditure-Volumes'!$I30="Bottom Up",'Historical Expenditure-Volumes'!D62,0) -> 10836298.15 | D118: =IF('Historical Expenditure-Volumes'!$I30="Bottom Up",'Historical Expenditure-Volumes'!E62,0) -> 12272015 | E118: =IF('Historical Expenditure-Volumes'!$I30="Bottom Up",'Historical Expenditure-Volumes'!F62,0) -> 9490850.082 | F118: =IF('Historical Expenditure-Volumes'!$I30="Bottom Up",'Historical Expenditure-Volumes'!G62,0) -> 7229243.978 | G118: =IF('Historical Expenditure-Volumes'!$I30="Bottom Up",(SUMIF('Major Projects'!$B$8:$I$11,$B118,'Major Projects'!C$8:C$11))*Inflation!$K$10, 0) -> 9851424.495 | H118: =IF('Historical Expenditure-Volumes'!$I30="Bottom Up",(SUMIF('Major Projects'!$B$8:$I$11,$B118,'Major Projects'!D$8:D$11))*Inflation!$K$10, 0) -> 9851424.495 | I118: =IF('Historical Expenditure-Volumes'!$I30="Bottom Up",(SUMIF('Major Projects'!$B$8:$I$11,$B118,'Major Projects'!E$8:E$11))*Inflation!$K$10, 0) -> 9851424.495 | J118: =IF('Historical Expenditure-Volumes'!$I30="Bottom Up",(SUMIF('Major Projects'!$B$8:$I$11,$B118,'Major Projects'!F$8:F$11))*Inflation!$K$10, 0) -> 9851424.495 | K118: =IF('Historical Expenditure-Volumes'!$I30="Bottom Up",(SUMIF('Major Projects'!$B$8:$I$11,$B118,'Major Projects'!G$8:G$11))*Inflation!$K$10, 0) -> 9851424.495 | L118: =IF('Historical Expenditure-Volumes'!$I30="Bottom Up",(SUMIF('Major Projects'!$B$8:$I$11,$B118,'Major Projects'!H$8:H$11))*Inflation!$K$10, 0) -> 9851424.495 | M118: =IF('Historical Expenditure-Volumes'!$I30="Bottom Up",(SUMIF('Major Projects'!$B$8:$I$11,$B118,'Major Projects'!I$8:I$11))*Inflation!$K$10, 0) -> 9851424.495
B119: =IF('Historical Expenditure-Volumes'!B31=0," ",'Historical Expenditure-Volumes'!B31) -> CR2 | C119: =IF('Historical Expenditure-Volumes'!$I31="Bottom Up",'Historical Expenditure-Volumes'!D63,0) -> 3746712.037 | D119: =IF('Historical Expenditure-Volumes'!$I31="Bottom Up",'Historical Expenditure-Volumes'!E63,0) -> 5133147.782 | E119: =IF('Historical Expenditure-Volumes'!$I31="Bottom Up",'Historical Expenditure-Volumes'!F63,0) -> 3337118.204 | F119: =IF('Historical Expenditure-Volumes'!$I31="Bottom Up",'Historical Expenditure-Volumes'!G63,0) -> 1926822.234 | G119: =IF('Historical Expenditure-Volumes'!$I31="Bottom Up",(SUMIF('Major Projects'!$B$8:$I$11,$B119,'Major Projects'!C$8:C$11))*Inflation!$K$10, 0) -> 7424460.177 | H119: =IF('Historical Expenditure-Volumes'!$I31="Bottom Up",(SUMIF('Major Projects'!$B$8:$I$11,$B119,'Major Projects'!D$8:D$11))*Inflation!$K$10, 0) -> 8535044.248 | I119: =IF('Historical Expenditure-Volumes'!$I31="Bottom Up",(SUMIF('Major Projects'!$B$8:$I$11,$B119,'Major Projects'!E$8:E$11))*Inflation!$K$10, 0) -> 12082743.36 | J119: =IF('Historical Expenditure-Volumes'!$I31="Bottom Up",(SUMIF('Major Projects'!$B$8:$I$11,$B119,'Major Projects'!F$8:F$11))*Inflation!$K$10, 0) -> 9810159.292 | K119: =IF('Historical Expenditure-Volumes'!$I31="Bottom Up",(SUMIF('Major Projects'!$B$8:$I$11,$B119,'Major Projects'!G$8:G$11))*Inflation!$K$10, 0) -> 14190796.46 | L119: =IF('Historical Expenditure-Volumes'!$I31="Bottom Up",(SUMIF('Major Projects'!$B$8:$I$11,$B119,'Major Projects'!H$8:H$11))*Inflation!$K$10, 0) -> 9049203.54 | M119: =IF('Historical Expenditure-Volumes'!$I31="Bottom Up",(SUMIF('Major Projects'!$B$8:$I$11,$B119,'Major Projects'!I$8:I$11))*Inflation!$K$10, 0) -> 3959026.549
B120: =IF('Historical Expenditure-Volumes'!B32=0," ",'Historical Expenditure-Volumes'!B32) -> CS1 | C120: =IF('Historical Expenditure-Volumes'!$I32="Bottom Up",'Historical Expenditure-Volumes'!D64,0) -> 0 | D120: =IF('Historical Expenditure-Volumes'!$I32="Bottom Up",'Historical Expenditure-Volumes'!E64,0) -> 0 | E120: =IF('Historical Expenditure-Volumes'!$I32="Bottom Up",'Historical Expenditure-Volumes'!F64,0) -> 0 | F120: =IF('Historical Expenditure-Volumes'!$I32="Bottom Up",'Historical Expenditure-Volumes'!G64,0) -> 0 | G120: =IF('Historical Expenditure-Volumes'!$I32="Bottom Up",(SUMIF('Major Projects'!$B$8:$I$11,$B120,'Major Projects'!C$8:C$11))*Inflation!$K$10, 0) -> 0 | H120: =IF('Historical Expenditure-Volumes'!$I32="Bottom Up",(SUMIF('Major Projects'!$B$8:$I$11,$B120,'Major Projects'!D$8:D$11))*Inflation!$K$10, 0) -> 0 | I120: =IF('Historical Expenditure-Volumes'!$I32="Bottom Up",(SUMIF('Major Projects'!$B$8:$I$11,$B120,'Major Projects'!E$8:E$11))*Inflation!$K$10, 0) -> 0 | J120: =IF('Historical Expenditure-Volumes'!$I32="Bottom Up",(SUMIF('Major Projects'!$B$8:$I$11,$B120,'Major Projects'!F$8:F$11))*Inflation!$K$10, 0) -> 0 | K120: =IF('Historical Expenditure-Volumes'!$I32="Bottom Up",(SUMIF('Major Projects'!$B$8:$I$11,$B120,'Major Projects'!G$8:G$11))*Inflation!$K$10, 0) -> 0 | L120: =IF('Historical Expenditure-Volumes'!$I32="Bottom Up",(SUMIF('Major Projects'!$B$8:$I$11,$B120,'Major Projects'!H$8:H$11))*Inflation!$K$10, 0) -> 0 | M120: =IF('Historical Expenditure-Volumes'!$I32="Bottom Up",(SUMIF('Major Projects'!$B$8:$I$11,$B120,'Major Projects'!I$8:I$11))*Inflation!$K$10, 0) -> 0
B121: =IF('Historical Expenditure-Volumes'!B33=0," ",'Historical Expenditure-Volumes'!B33) -> CS2 | C121: =IF('Historical Expenditure-Volumes'!$I33="Bottom Up",'Historical Expenditure-Volumes'!D65,0) -> 0 | D121: =IF('Historical Expenditure-Volumes'!$I33="Bottom Up",'Historical Expenditure-Volumes'!E65,0) -> 0 | E121: =IF('Historical Expenditure-Volumes'!$I33="Bottom Up",'Historical Expenditure-Volumes'!F65,0) -> 0 | F121: =IF('Historical Expenditure-Volumes'!$I33="Bottom Up",'Historical Expenditure-Volumes'!G65,0) -> 0 | G121: =IF('Historical Expenditure-Volumes'!$I33="Bottom Up",(SUMIF('Major Projects'!$B$8:$I$11,$B121,'Major Projects'!C$8:C$11))*Inflation!$K$10, 0) -> 0 | H121: =IF('Historical Expenditure-Volumes'!$I33="Bottom Up",(SUMIF('Major Projects'!$B$8:$I$11,$B121,'Major Projects'!D$8:D$11))*Inflation!$K$10, 0) -> 0 | I121: =IF('Historical Expenditure-Volumes'!$I33="Bottom Up",(SUMIF('Major Projects'!$B$8:$I$11,$B121,'Major Projects'!E$8:E$11))*Inflation!$K$10, 0) -> 0 | J121: =IF('Historical Expenditure-Volumes'!$I33="Bottom Up",(SUMIF('Major Projects'!$B$8:$I$11,$B121,'Major Projects'!F$8:F$11))*Inflation!$K$10, 0) -> 0 | K121: =IF('Historical Expenditure-Volumes'!$I33="Bottom Up",(SUMIF('Major Projects'!$B$8:$I$11,$B121,'Major Projects'!G$8:G$11))*Inflation!$K$10, 0) -> 0 | L121: =IF('Historical Expenditure-Volumes'!$I33="Bottom Up",(SUMIF('Major Projects'!$B$8:$I$11,$B121,'Major Projects'!H$8:H$11))*Inflation!$K$10, 0) -> 0 | M121: =IF('Historical Expenditure-Volumes'!$I33="Bottom Up",(SUMIF('Major Projects'!$B$8:$I$11,$B121,'Major Projects'!I$8:I$11))*Inflation!$K$10, 0) -> 0
B122: Totals | C122: =SUM(C96:C121) -> 17619782.16 | D122: 18964564.41 | E122: 13995528.8 | F122: =SUM(F96:F121) -> 10715567.85 | G122: 19653581.49 | H122: 20404254.05 | I122: 24620360.25 | J122: =SUM(J96:J121) -> 23149864.67 | K122: 26368501.84 | L122: 22717970.87 | M122: 16445227.5
B123: Check | C123: =SUMPRODUCT(('Historical Expenditure-Volumes'!D8:D33)*('Historical Expenditure-Volumes'!$I$8:$I$33="Bottom Up"))*Inflation!G10-C122 -> 0 | D123: =SUMPRODUCT(('Historical Expenditure-Volumes'!E8:E33)*('Historical Expenditure-Volumes'!$I$8:$I$33="Bottom Up"))*Inflation!H10-D122 -> 0 | E123: =SUMPRODUCT(('Historical Expenditure-Volumes'!F8:F33)*('Historical Expenditure-Volumes'!$I$8:$I$33="Bottom Up"))*Inflation!I10-E122 -> 0 | F123: =SUMPRODUCT(('Historical Expenditure-Volumes'!G8:G33)*('Historical Expenditure-Volumes'!$I$8:$I$33="Bottom Up"))*Inflation!J10-F122 -> 0 | G123: ='Major Projects'!C12*Inflation!$K$10-G122 -> 0 | H123: ='Major Projects'!D12*Inflation!$K$10-H122 -> 0 | I123: ='Major Projects'!E12*Inflation!$K$10-I122 -> 0 | J123: ='Major Projects'!F12*Inflation!$K$10-J122 -> 0 | K123: ='Major Projects'!G12*Inflation!$K$10-K122 -> 0 | L123: ='Major Projects'!H12*Inflation!$K$10-L122 -> 0 | M123: ='Major Projects'!I12*Inflation!$K$10-M122 -> 0
B126: ="Forecast Expenditure by Function Code (Gross)" -> Forecast Expenditure by Function Code (Gross)
C128: ="$ "&Inflation!$C$4 -> $ 2021
B129: Function Code | C129: 2015/16 | D129: 2016/17 | E129: 2017/18 | F129: 2018/19 | G129: 2019/20 | H129: 2020/21 | I129: 2021/22 | J129: 2022/23 | K129: 2023/24 | L129: 2024/25 | M129: 2025/26
B130: =IF('Historical Expenditure-Volumes'!B8=0," ",'Historical Expenditure-Volumes'!B8) -> CBE1 | C130: =C62+C96 -> 1690222.536 | D130: 1983536.254 | E130: 2733013.118 | F130: 2543648.807 | G130: 2237605.179 | H130: 2292012.266 | I130: 2252162.259 | J130: 2099858.808 | K130: 2084391.91 | L130: 2128791.005 | M130: 2150626.625
B131: =IF('Historical Expenditure-Volumes'!B9=0," ",'Historical Expenditure-Volumes'!B9) -> CBG1 | C131: =C63+C97 -> 203785.2178 | D131: 346731.9256 | E131: 302282.5088 | F131: 161834.2824 | G131: 253658.4836 | H131: 259826.1576 | I131: 255308.6974 | J131: 238043.3359 | K131: 236289.9837 | L131: 241323.1357 | M131: 243798.4564
B132: =IF('Historical Expenditure-Volumes'!B10=0," ",'Historical Expenditure-Volumes'!B10) -> CBH1 | C132: =C64+C98 -> 255540.0834 | D132: 408540.7485 | E132: 644801.2578 | F132: 482241.7404 | G132: 442295.7644 | H132: 442295.7644 | I132: 442295.7644 | J132: 442295.7644 | K132: 442295.7644 | L132: 442295.7644 | M132: 442295.7644
B133: =IF('Historical Expenditure-Volumes'!B11=0," ",'Historical Expenditure-Volumes'!B11) -> CBI1 | C133: =C65+C99 -> 6552025.324 | D133: 6276852.886 | E133: 4014067.925 | F133: 3573633.559 | G133: 5104144.924 | H133: 5228251.562 | I133: 5137350.713 | J133: 4789935.14 | K133: 4754653.989 | L133: 4855931.647 | M133: 4905740.331
B134: =IF('Historical Expenditure-Volumes'!B12=0," ",'Historical Expenditure-Volumes'!B12) -> CBK1 | C134: =C66+C100 -> 10970980.2 | D134: 10965782.33 | E134: 8247087.921 | F134: 6932955.055 | G134: 9279201.376 | H134: 9504823.984 | I134: 9339568.629 | J134: 8707976.244 | K134: 8643836.038 | L134: 8827956.16 | M134: 8918507.039
B135: =IF('Historical Expenditure-Volumes'!B13=0," ",'Historical Expenditure-Volumes'!B13) -> CBL1 | C135: =C67+C101 -> 2198238.847 | D135: 2455890.356 | E135: 1975690.345 | F135: 1501717.277 | G135: 2032884.206 | H135: 2082313.529 | I135: 2046109.443 | J135: 1907740.403 | K135: 1893688.589 | L135: 1934025.561 | M135: 1953863.417
B136: =IF('Historical Expenditure-Volumes'!B14=0," ",'Historical Expenditure-Volumes'!B14) -> CBP1 | C136: =C68+C102 -> 7192524.837 | D136: 5614767.467 | E136: 3751104.442 | F136: 3720393.994 | G136: 5069697.685 | H136: 5192966.743 | I136: 5102679.373 | J136: 4757608.464 | K136: 4722565.421 | L136: 4823159.569 | M136: 4872632.1
B137: =IF('Historical Expenditure-Volumes'!B15=0," ",'Historical Expenditure-Volumes'!B15) -> CBS1 | C137: =C69+C103 -> 0 | D137: 0 | E137: 0 | F137: 0 | G137: 0 | H137: 0 | I137: 0 | J137: 0 | K137: 0 | L137: 0 | M137: 0
B138: =IF('Historical Expenditure-Volumes'!B16=0," ",'Historical Expenditure-Volumes'!B16) -> CBE2 | C138: =C70+C104 -> 0 | D138: 0 | E138: 0 | F138: 0 | G138: 0 | H138: 0 | I138: 0 | J138: 0 | K138: 0 | L138: 0 | M138: 0
B139: =IF('Historical Expenditure-Volumes'!B17=0," ",'Historical Expenditure-Volumes'!B17) -> CBG2 | C139: =C71+C105 -> 0 | D139: 0 | E139: 0 | F139: 0 | G139: 0 | H139: 0 | I139: 0 | J139: 0 | K139: 0 | L139: 0 | M139: 0
B140: =IF('Historical Expenditure-Volumes'!B18=0," ",'Historical Expenditure-Volumes'!B18) -> CBH2 | C140: =C72+C106 -> 2781231.891 | D140: 1150860.879 | E140: 522759.2546 | F140: 1077259.9 | G140: 1935401.05 | H140: 1575489.546 | I140: 2243896.625 | J140: 3045985.121 | K140: 1883985.121 | L140: 3375047.068 | M140: 2192480.696
B141: =IF('Historical Expenditure-Volumes'!B19=0," ",'Historical Expenditure-Volumes'!B19) -> CBI2 | C141: =C73+C107 -> 1774910.89 | D141: 327996.3996 | E141: 478032.9116 | F141: 868871.8066 | G141: 862453.002 | H141: 883423.4377 | I141: 868063.8209 | J141: 809360.628 | K141: 803399.1329 | L141: 820512.1306 | M141: 828928.359
B142: =IF('Historical Expenditure-Volumes'!B20=0," ",'Historical Expenditure-Volumes'!B20) -> CBK2 | C142: =C74+C108 -> 3062767.752 | D142: 2344164.408 | E142: 937114.4593 | F142: 921517.2 | G142: 1816390.955 | H142: 1860556.271 | I142: 1828207.762 | J142: 1704574.418 | K142: 1692019.06 | L142: 1728060.322 | M142: 1745785.533
B143: =IF('Historical Expenditure-Volumes'!B21=0," ",'Historical Expenditure-Volumes'!B21) -> CBL2 | C143: =C75+C109 -> 0 | D143: 0 | E143: 0 | F143: 0 | G143: 0 | H143: 0 | I143: 0 | J143: 0 | K143: 0 | L143: 0 | M143: 0
B144: =IF('Historical Expenditure-Volumes'!B22=0," ",'Historical Expenditure-Volumes'!B22) -> CBP2 | C144: =C76+C110 -> 0 | D144: 0 | E144: 0 | F144: 0 | G144: 0 | H144: 0 | I144: 0 | J144: 0 | K144: 0 | L144: 0 | M144: 0
B145: =IF('Historical Expenditure-Volumes'!B23=0," ",'Historical Expenditure-Volumes'!B23) -> CBS2 | C145: =C77+C111 -> 0 | D145: 0 | E145: 0 | F145: 0 | G145: 0 | H145: 0 | I145: 0 | J145: 0 | K145: 0 | L145: 0 | M145: 0
B146: =IF('Historical Expenditure-Volumes'!B24=0," ",'Historical Expenditure-Volumes'!B24) -> CDA | C146: =C78+C112 -> 14718604.67 | D146: 13633228.77 | E146: 16014200.9 | F146: 16718300 | G146: 15271083.59 | H146: 15097917.02 | I146: 15464947.36 | J146: 15983757.15 | K146: 16243162.05 | L146: 16370104.87 | M146: 16454273.48
B147: =IF('Historical Expenditure-Volumes'!B25=0," ",'Historical Expenditure-Volumes'!B25) -> CDP | C147: =C79+C113 -> 0 | D147: 0 | E147: 0 | F147: 0 | G147: 0 | H147: 0 | I147: 0 | J147: 0 | K147: 0 | L147: 0 | M147: 0
B148: =IF('Historical Expenditure-Volumes'!B26=0," ",'Historical Expenditure-Volumes'!B26) -> CHH1 | C148: =C80+C114 -> 1978560.662 | D148: 2703440.02 | E148: 2063501.214 | F148: 1743426.817 | G148: 2122232.178 | H148: 1936586.026 | I148: 1838290.214 | J148: 1890121.132 | K148: 2092566.6 | L148: 2161654.165 | M148: 2174886.293
B149: =IF('Historical Expenditure-Volumes'!B27=0," ",'Historical Expenditure-Volumes'!B27) -> CHL1 | C149: =C81+C115 -> 2583472.735 | D149: 2145383.846 | E149: 1621938.004 | F149: 1868783.862 | G149: 2054894.611 | H149: 1875138.936 | I149: 1779962.011 | J149: 1830148.355 | K149: 2026170.31 | L149: 2093065.754 | M149: 2105878.033
B150: =IF('Historical Expenditure-Volumes'!B28=0," ",'Historical Expenditure-Volumes'!B28) -> CHH2 | C150: =C82+C116 -> 0 | D150: 552811.4365 | E150: 728084.7777 | F150: 676076.5195 | G150: 489243.1834 | H150: 446445.7386 | I150: 423785.3736 | J150: 435734.0772 | K150: 482404.3078 | L150: 498331.2268 | M150: 501381.6606
B151: =IF('Historical Expenditure-Volumes'!B29=0," ",'Historical Expenditure-Volumes'!B29) -> CHL2 | C151: =C83+C117 -> 456097.0808 | D151: 447812.9112 | E151: 443277.0529 | F151: 280795.2461 | G151: 406995.5728 | H151: 371392.8885 | I151: 352542.001 | J151: 362481.9851 | K151: 401306.3936 | L151: 414555.8077 | M151: 417093.4272
B152: =IF('Historical Expenditure-Volumes'!B30=0," ",'Historical Expenditure-Volumes'!B30) -> CR1 | C152: =C84+C118 -> 10836298.15 | D152: 12272015 | E152: 9490850.082 | F152: 7229243.978 | G152: 9851424.495 | H152: 9851424.495 | I152: 9851424.495 | J152: 9851424.495 | K152: 9851424.495 | L152: 9851424.495 | M152: 9851424.495
B153: =IF('Historical Expenditure-Volumes'!B31=0," ",'Historical Expenditure-Volumes'!B31) -> CR2 | C153: =C85+C119 -> 3746712.037 | D153: 5133147.782 | E153: 3337118.204 | F153: 1926822.234 | G153: 7424460.177 | H153: 8535044.248 | I153: 12082743.36 | J153: 9810159.292 | K153: 14190796.46 | L153: 9049203.54 | M153: 3959026.549
B154: =IF('Historical Expenditure-Volumes'!B32=0," ",'Historical Expenditure-Volumes'!B32) -> CS1 | C154: =C86+C120 -> 1048557.352 | D154: 660568.5769 | E154: 444441.6798 | F154: 651716.2103 | G154: 701320.9549 | H154: 675313.1166 | I154: 690187.4624 | J154: 709515.2053 | K154: 721450.3092 | L154: 725369.2985 | M154: 729733.6275
B155: =IF('Historical Expenditure-Volumes'!B33=0," ",'Historical Expenditure-Volumes'!B33) -> CS2 | C155: =C87+C121 -> 0 | D155: 0 | E155: 0 | F155: 0 | G155: 0 | H155: 0 | I155: 0 | J155: 0 | K155: 0 | L155: 0 | M155: 0
B156: Totals | C156: =SUM(C130:C155) -> 72050530.27 | D156: 69423532 | E156: 57749366.06 | F156: 52879238.49 | G156: 67355387.38 | H156: 68111221.73 | I156: 71999525.36 | J156: 69376720.02 | K156: 73166405.94 | L156: 70340811.52 | M156: 64448355.89
B157: Check | C157: =C88+C122-C156 -> 0 | D157: =D88+D122-D156 -> 0 | E157: 0 | F157: 0 | G157: 0 | H157: 0 | I157: 0 | J157: 0 | K157: 0 | L157: 0 | M157: 0
B160: ="Forecast Expenditure by Function Code (Net)" -> Forecast Expenditure by Function Code (Net)
C162: ="$ "&Inflation!$C$4 -> $ 2021
B163: Function Code | C163: 2015/16 | D163: 2016/17 | E163: 2017/18 | F163: 2018/19 | G163: 2019/20 | H163: 2020/21 | I163: 2021/22 | J163: 2022/23 | K163: 2023/24 | L163: 2024/25 | M163: 2025/26
B164: ='Forecast Contributions'!B143 -> CBE1 | C164: ='Forecast Expenditure-Volumes'!C130-'Forecast Contributions'!C143 -> 1379234.096 | D164: ='Forecast Expenditure-Volumes'!D130-'Forecast Contributions'!D143 -> 1417663.264 | E164: ='Forecast Expenditure-Volumes'!E130-'Forecast Contributions'!E143 -> 1868902.447 | F164: ='Forecast Expenditure-Volumes'!F130-'Forecast Contributions'!F143 -> 1537051.813 | G164: ='Forecast Expenditure-Volumes'!G130-'Forecast Contributions'!G143 -> 1465485.973 | H164: ='Forecast Expenditure-Volumes'!H130-'Forecast Contributions'!H143 -> 1506640.887 | I164: ='Forecast Expenditure-Volumes'!I130-'Forecast Contributions'!I143 -> 1692181.736 | J164: ='Forecast Expenditure-Volumes'!J130-'Forecast Contributions'!J143 -> 1542521.689 | K164: ='Forecast Expenditure-Volumes'!K130-'Forecast Contributions'!K143 -> 1567212.847 | L164: ='Forecast Expenditure-Volumes'!L130-'Forecast Contributions'!L143 -> 1565856.301 | M164: ='Forecast Expenditure-Volumes'!M130-'Forecast Contributions'!M143 -> 1529635.173
B165: ='Forecast Contributions'!B144 -> CBG1 | C165: ='Forecast Expenditure-Volumes'!C131-'Forecast Contributions'!C144 -> 161265.8714 | D165: ='Forecast Expenditure-Volumes'!D131-'Forecast Contributions'!D144 -> 285929.2615 | E165: ='Forecast Expenditure-Volumes'!E131-'Forecast Contributions'!E144 -> 158183.5258 | F165: ='Forecast Expenditure-Volumes'!F131-'Forecast Contributions'!F144 -> 56214.05395 | G165: ='Forecast Expenditure-Volumes'!G131-'Forecast Contributions'!G144 -> 143341.8474 | H165: ='Forecast Expenditure-Volumes'!H131-'Forecast Contributions'!H144 -> 146827.1863 | I165: ='Forecast Expenditure-Volumes'!I131-'Forecast Contributions'!I144 -> 170963.4757 | J165: ='Forecast Expenditure-Volumes'!J131-'Forecast Contributions'!J144 -> 156271.3181 | K165: ='Forecast Expenditure-Volumes'!K131-'Forecast Contributions'!K144 -> 160568.3647 | L165: ='Forecast Expenditure-Volumes'!L131-'Forecast Contributions'!L144 -> 158355.2808 | M165: ='Forecast Expenditure-Volumes'!M131-'Forecast Contributions'!M144 -> 151936.0497
B166: ='Forecast Contributions'!B145 -> CBH1 | C166: ='Forecast Expenditure-Volumes'!C132-'Forecast Contributions'!C145 -> 177779.7728 | D166: ='Forecast Expenditure-Volumes'!D132-'Forecast Contributions'!D145 -> 369047.5942 | E166: ='Forecast Expenditure-Volumes'!E132-'Forecast Contributions'!E145 -> 228321.8692 | F166: ='Forecast Expenditure-Volumes'!F132-'Forecast Contributions'!F145 -> -18488.69305 | G166: ='Forecast Expenditure-Volumes'!G132-'Forecast Contributions'!G145 -> 155268.3735 | H166: ='Forecast Expenditure-Volumes'!H132-'Forecast Contributions'!H145 -> 155268.3735 | I166: ='Forecast Expenditure-Volumes'!I132-'Forecast Contributions'!I145 -> 210678.2478 | J166: ='Forecast Expenditure-Volumes'!J132-'Forecast Contributions'!J145 -> 201467.9735 | K166: ='Forecast Expenditure-Volumes'!K132-'Forecast Contributions'!K145 -> 217419.8639 | L166: ='Forecast Expenditure-Volumes'!L132-'Forecast Contributions'!L145 -> 201470.5769 | M166: ='Forecast Expenditure-Volumes'!M132-'Forecast Contributions'!M145 -> 178412.0889
B167: ='Forecast Contributions'!B146 -> CBI1 | C167: ='Forecast Expenditure-Volumes'!C133-'Forecast Contributions'!C146 -> 5463247.379 | D167: ='Forecast Expenditure-Volumes'!D133-'Forecast Contributions'!D146 -> 3846782.894 | E167: ='Forecast Expenditure-Volumes'!E133-'Forecast Contributions'!E146 -> 2269667.709 | F167: ='Forecast Expenditure-Volumes'!F133-'Forecast Contributions'!F146 -> 1469312.011 | G167: ='Forecast Expenditure-Volumes'!G133-'Forecast Contributions'!G146 -> 2726786.947 | H167: ='Forecast Expenditure-Volumes'!H133-'Forecast Contributions'!H146 -> 2798141.508 | I167: ='Forecast Expenditure-Volumes'!I133-'Forecast Contributions'!I146 -> 3298154.931 | J167: ='Forecast Expenditure-Volumes'!J133-'Forecast Contributions'!J146 -> 2993669.798 | K167: ='Forecast Expenditure-Volumes'!K133-'Forecast Contributions'!K146 -> 3089594.215 | L167: ='Forecast Expenditure-Volumes'!L133-'Forecast Contributions'!L146 -> 3036432.418 | M167: ='Forecast Expenditure-Volumes'!M133-'Forecast Contributions'!M146 -> 2893459.824
B168: ='Forecast Contributions'!B147 -> CBK1 | C168: ='Forecast Expenditure-Volumes'!C134-'Forecast Contributions'!C147 -> 9133428.917 | D168: ='Forecast Expenditure-Volumes'!D134-'Forecast Contributions'!D147 -> 6525808.033 | E168: ='Forecast Expenditure-Volumes'!E134-'Forecast Contributions'!E147 -> 4964908.516 | F168: ='Forecast Expenditure-Volumes'!F134-'Forecast Contributions'!F147 -> 2519661.986 | G168: ='Forecast Expenditure-Volumes'!G134-'Forecast Contributions'!G147 -> 4858486.141 | H168: ='Forecast Expenditure-Volumes'!H134-'Forecast Contributions'!H147 -> 4998821.952 | I168: ='Forecast Expenditure-Volumes'!I134-'Forecast Contributions'!I147 -> 5909351.14 | J168: ='Forecast Expenditure-Volumes'!J134-'Forecast Contributions'!J147 -> 5324466.983 | K168: ='Forecast Expenditure-Volumes'!K134-'Forecast Contributions'!K147 -> 5503839.713 | L168: ='Forecast Expenditure-Volumes'!L134-'Forecast Contributions'!L147 -> 5407672.407 | M168: ='Forecast Expenditure-Volumes'!M134-'Forecast Contributions'!M147 -> 5141398.85
B169: ='Forecast Contributions'!B148 -> CBL1 | C169: ='Forecast Expenditure-Volumes'!C135-'Forecast Contributions'!C148 -> 1783089.762 | D169: ='Forecast Expenditure-Volumes'!D135-'Forecast Contributions'!D148 -> 1745431.572 | E169: ='Forecast Expenditure-Volumes'!E135-'Forecast Contributions'!E148 -> 1039015.689 | F169: ='Forecast Expenditure-Volumes'!F135-'Forecast Contributions'!F148 -> 721775.4381 | G169: ='Forecast Expenditure-Volumes'!G135-'Forecast Contributions'!G148 -> 1162939.813 | H169: ='Forecast Expenditure-Volumes'!H135-'Forecast Contributions'!H148 -> 1193300.76 | I169: ='Forecast Expenditure-Volumes'!I135-'Forecast Contributions'!I148 -> 1383521.192 | J169: ='Forecast Expenditure-Volumes'!J135-'Forecast Contributions'!J148 -> 1259922.132 | K169: ='Forecast Expenditure-Volumes'!K135-'Forecast Contributions'!K148 -> 1293266.483 | L169: ='Forecast Expenditure-Volumes'!L135-'Forecast Contributions'!L148 -> 1277823.411 | M169: ='Forecast Expenditure-Volumes'!M135-'Forecast Contributions'!M148 -> 1228211.07
B170: ='Forecast Contributions'!B149 -> CBP1 | C170: ='Forecast Expenditure-Volumes'!C136-'Forecast Contributions'!C149 -> 5647568.938 | D170: ='Forecast Expenditure-Volumes'!D136-'Forecast Contributions'!D149 -> 3567411.259 | E170: ='Forecast Expenditure-Volumes'!E136-'Forecast Contributions'!E149 -> 2154899.133 | F170: ='Forecast Expenditure-Volumes'!F136-'Forecast Contributions'!F149 -> 1717845.823 | G170: ='Forecast Expenditure-Volumes'!G136-'Forecast Contributions'!G149 -> 2856263.674 | H170: ='Forecast Expenditure-Volumes'!H136-'Forecast Contributions'!H149 -> 2929207.236 | I170: ='Forecast Expenditure-Volumes'!I136-'Forecast Contributions'!I149 -> 3409946.241 | J170: ='Forecast Expenditure-Volumes'!J136-'Forecast Contributions'!J149 -> 3107394.049 | K170: ='Forecast Expenditure-Volumes'!K136-'Forecast Contributions'!K149 -> 3193484.985 | L170: ='Forecast Expenditure-Volumes'!L136-'Forecast Contributions'!L149 -> 3150705.481 | M170: ='Forecast Expenditure-Volumes'!M136-'Forecast Contributions'!M149 -> 3022405.013
B171: ='Forecast Contributions'!B150 -> CBS1 | C171: ='Forecast Expenditure-Volumes'!C137-'Forecast Contributions'!C150 -> 0 | D171: ='Forecast Expenditure-Volumes'!D137-'Forecast Contributions'!D150 -> 0 | E171: ='Forecast Expenditure-Volumes'!E137-'Forecast Contributions'!E150 -> 0 | F171: ='Forecast Expenditure-Volumes'!F137-'Forecast Contributions'!F150 -> 0 | G171: ='Forecast Expenditure-Volumes'!G137-'Forecast Contributions'!G150 -> 0 | H171: ='Forecast Expenditure-Volumes'!H137-'Forecast Contributions'!H150 -> 0 | I171: ='Forecast Expenditure-Volumes'!I137-'Forecast Contributions'!I150 -> 0 | J171: ='Forecast Expenditure-Volumes'!J137-'Forecast Contributions'!J150 -> 0 | K171: ='Forecast Expenditure-Volumes'!K137-'Forecast Contributions'!K150 -> 0 | L171: ='Forecast Expenditure-Volumes'!L137-'Forecast Contributions'!L150 -> 0 | M171: ='Forecast Expenditure-Volumes'!M137-'Forecast Contributions'!M150 -> 0
B172: ='Forecast Contributions'!B151 -> CBE2 | C172: ='Forecast Expenditure-Volumes'!C138-'Forecast Contributions'!C151 -> 0 | D172: ='Forecast Expenditure-Volumes'!D138-'Forecast Contributions'!D151 -> 0 | E172: ='Forecast Expenditure-Volumes'!E138-'Forecast Contributions'!E151 -> 0 | F172: ='Forecast Expenditure-Volumes'!F138-'Forecast Contributions'!F151 -> 0 | G172: ='Forecast Expenditure-Volumes'!G138-'Forecast Contributions'!G151 -> 0 | H172: ='Forecast Expenditure-Volumes'!H138-'Forecast Contributions'!H151 -> 0 | I172: ='Forecast Expenditure-Volumes'!I138-'Forecast Contributions'!I151 -> 0 | J172: ='Forecast Expenditure-Volumes'!J138-'Forecast Contributions'!J151 -> 0 | K172: ='Forecast Expenditure-Volumes'!K138-'Forecast Contributions'!K151 -> 0 | L172: ='Forecast Expenditure-Volumes'!L138-'Forecast Contributions'!L151 -> 0 | M172: ='Forecast Expenditure-Volumes'!M138-'Forecast Contributions'!M151 -> 0
B173: ='Forecast Contributions'!B152 -> CBG2 | C173: ='Forecast Expenditure-Volumes'!C139-'Forecast Contributions'!C152 -> 0 | D173: ='Forecast Expenditure-Volumes'!D139-'Forecast Contributions'!D152 -> 0 | E173: ='Forecast Expenditure-Volumes'!E139-'Forecast Contributions'!E152 -> 0 | F173: ='Forecast Expenditure-Volumes'!F139-'Forecast Contributions'!F152 -> 0 | G173: ='Forecast Expenditure-Volumes'!G139-'Forecast Contributions'!G152 -> 0 | H173: ='Forecast Expenditure-Volumes'!H139-'Forecast Contributions'!H152 -> 0 | I173: ='Forecast Expenditure-Volumes'!I139-'Forecast Contributions'!I152 -> 0 | J173: ='Forecast Expenditure-Volumes'!J139-'Forecast Contributions'!J152 -> 0 | K173: ='Forecast Expenditure-Volumes'!K139-'Forecast Contributions'!K152 -> 0 | L173: ='Forecast Expenditure-Volumes'!L139-'Forecast Contributions'!L152 -> 0 | M173: ='Forecast Expenditure-Volumes'!M139-'Forecast Contributions'!M152 -> 0
B174: ='Forecast Contributions'!B153 -> CBH2 | C174: ='Forecast Expenditure-Volumes'!C140-'Forecast Contributions'!C153 -> 2092215.048 | D174: ='Forecast Expenditure-Volumes'!D140-'Forecast Contributions'!D153 -> 555524.792 | E174: ='Forecast Expenditure-Volumes'!E140-'Forecast Contributions'!E153 -> 472132.3899 | F174: ='Forecast Expenditure-Volumes'!F140-'Forecast Contributions'!F153 -> 327168.8318 | G174: ='Forecast Expenditure-Volumes'!G140-'Forecast Contributions'!G153 -> 1223075.49 | H174: ='Forecast Expenditure-Volumes'!H140-'Forecast Contributions'!H153 -> 964562.2704 | I174: ='Forecast Expenditure-Volumes'!I140-'Forecast Contributions'!I153 -> 1662111.222 | J174: ='Forecast Expenditure-Volumes'!J140-'Forecast Contributions'!J153 -> 2280843.888 | K174: ='Forecast Expenditure-Volumes'!K140-'Forecast Contributions'!K153 -> 1386947.255 | L174: ='Forecast Expenditure-Volumes'!L140-'Forecast Contributions'!L153 -> 2542747.099 | M174: ='Forecast Expenditure-Volumes'!M140-'Forecast Contributions'!M153 -> 1539680.088
B175: ='Forecast Contributions'!B154 -> CBI2 | C175: ='Forecast Expenditure-Volumes'!C141-'Forecast Contributions'!C154 -> 1151490.007 | D175: ='Forecast Expenditure-Volumes'!D141-'Forecast Contributions'!D154 -> 251961.7792 | E175: ='Forecast Expenditure-Volumes'!E141-'Forecast Contributions'!E154 -> 428660.1844 | F175: ='Forecast Expenditure-Volumes'!F141-'Forecast Contributions'!F154 -> 554024.8564 | G175: ='Forecast Expenditure-Volumes'!G141-'Forecast Contributions'!G154 -> 661943.7547 | H175: ='Forecast Expenditure-Volumes'!H141-'Forecast Contributions'!H154 -> 678038.8334 | I175: ='Forecast Expenditure-Volumes'!I141-'Forecast Contributions'!I154 -> 739968.1858 | J175: ='Forecast Expenditure-Volumes'!J141-'Forecast Contributions'!J154 -> 685155.0752 | K175: ='Forecast Expenditure-Volumes'!K141-'Forecast Contributions'!K154 -> 688748.5494 | L175: ='Forecast Expenditure-Volumes'!L141-'Forecast Contributions'!L154 -> 694133.1093 | M175: ='Forecast Expenditure-Volumes'!M141-'Forecast Contributions'!M154 -> 688908.9819
B176: ='Forecast Contributions'!B155 -> CBK2 | C176: ='Forecast Expenditure-Volumes'!C142-'Forecast Contributions'!C155 -> 1465630.329 | D176: ='Forecast Expenditure-Volumes'!D142-'Forecast Contributions'!D155 -> 554502.4256 | E176: ='Forecast Expenditure-Volumes'!E142-'Forecast Contributions'!E155 -> -485261.8937 | F176: ='Forecast Expenditure-Volumes'!F142-'Forecast Contributions'!F155 -> 787714.8805 | G176: ='Forecast Expenditure-Volumes'!G142-'Forecast Contributions'!G155 -> 265449.2452 | H176: ='Forecast Expenditure-Volumes'!H142-'Forecast Contributions'!H155 -> 280737.5348 | I176: ='Forecast Expenditure-Volumes'!I142-'Forecast Contributions'!I155 -> 534645.496 | J176: ='Forecast Expenditure-Volumes'!J142-'Forecast Contributions'!J155 -> 427484.6626 | K176: ='Forecast Expenditure-Volumes'!K142-'Forecast Contributions'!K155 -> 505432.2014 | L176: ='Forecast Expenditure-Volumes'!L142-'Forecast Contributions'!L155 -> 438592.9815 | M176: ='Forecast Expenditure-Volumes'!M142-'Forecast Contributions'!M155 -> 322318.8093
B177: ='Forecast Contributions'!B156 -> CBL2 | C177: ='Forecast Expenditure-Volumes'!C143-'Forecast Contributions'!C156 -> 0 | D177: ='Forecast Expenditure-Volumes'!D143-'Forecast Contributions'!D156 -> 0 | E177: ='Forecast Expenditure-Volumes'!E143-'Forecast Contributions'!E156 -> 0 | F177: ='Forecast Expenditure-Volumes'!F143-'Forecast Contributions'!F156 -> 0 | G177: ='Forecast Expenditure-Volumes'!G143-'Forecast Contributions'!G156 -> 0 | H177: ='Forecast Expenditure-Volumes'!H143-'Forecast Contributions'!H156 -> 0 | I177: ='Forecast Expenditure-Volumes'!I143-'Forecast Contributions'!I156 -> 0 | J177: ='Forecast Expenditure-Volumes'!J143-'Forecast Contributions'!J156 -> 0 | K177: ='Forecast Expenditure-Volumes'!K143-'Forecast Contributions'!K156 -> 0 | L177: ='Forecast Expenditure-Volumes'!L143-'Forecast Contributions'!L156 -> 0 | M177: ='Forecast Expenditure-Volumes'!M143-'Forecast Contributions'!M156 -> 0
B178: ='Forecast Contributions'!B157 -> CBP2 | C178: ='Forecast Expenditure-Volumes'!C144-'Forecast Contributions'!C157 -> 0 | D178: ='Forecast Expenditure-Volumes'!D144-'Forecast Contributions'!D157 -> 0 | E178: ='Forecast Expenditure-Volumes'!E144-'Forecast Contributions'!E157 -> 0 | F178: ='Forecast Expenditure-Volumes'!F144-'Forecast Contributions'!F157 -> 0 | G178: ='Forecast Expenditure-Volumes'!G144-'Forecast Contributions'!G157 -> 0 | H178: ='Forecast Expenditure-Volumes'!H144-'Forecast Contributions'!H157 -> 0 | I178: ='Forecast Expenditure-Volumes'!I144-'Forecast Contributions'!I157 -> 0 | J178: ='Forecast Expenditure-Volumes'!J144-'Forecast Contributions'!J157 -> 0 | K178: ='Forecast Expenditure-Volumes'!K144-'Forecast Contributions'!K157 -> 0 | L178: ='Forecast Expenditure-Volumes'!L144-'Forecast Contributions'!L157 -> 0 | M178: ='Forecast Expenditure-Volumes'!M144-'Forecast Contributions'!M157 -> 0
B179: ='Forecast Contributions'!B158 -> CBS2 | C179: ='Forecast Expenditure-Volumes'!C145-'Forecast Contributions'!C158 -> 0 | D179: ='Forecast Expenditure-Volumes'!D145-'Forecast Contributions'!D158 -> 0 | E179: ='Forecast Expenditure-Volumes'!E145-'Forecast Contributions'!E158 -> 0 | F179: ='Forecast Expenditure-Volumes'!F145-'Forecast Contributions'!F158 -> 0 | G179: ='Forecast Expenditure-Volumes'!G145-'Forecast Contributions'!G158 -> 0 | H179: ='Forecast Expenditure-Volumes'!H145-'Forecast Contributions'!H158 -> 0 | I179: ='Forecast Expenditure-Volumes'!I145-'Forecast Contributions'!I158 -> 0 | J179: ='Forecast Expenditure-Volumes'!J145-'Forecast Contributions'!J158 -> 0 | K179: ='Forecast Expenditure-Volumes'!K145-'Forecast Contributions'!K158 -> 0 | L179: ='Forecast Expenditure-Volumes'!L145-'Forecast Contributions'!L158 -> 0 | M179: ='Forecast Expenditure-Volumes'!M145-'Forecast Contributions'!M158 -> 0
